Workbook

Sheet Title
A1: The column titles for this worksheet are in row 2. They span cells C2. The data spans cells A3 through C29. There is information in every cell for column A through C inclusive. If you are not using a screen reader, you can press Alt + R, T for the Review Ribbon, Edit Comment to move to and open a Comment once you are on a cell with a Comment. When you are finished reading the Comment, press Escape to close the comment and return to the worksheet. If you are using the JAWS screen reader, press Ctrl + Shift + Apostrophe to get a list of Comments and their cell coordinates in the worksheet. Press Enter on the Comment you want to go to or Escape once you’ve read the Comment for a cell. You are returned to the workbook. Note that there is no keyboard command with JAWS to reread Comments or read Comments once you are on them in a cell. You must use the ability to list Comments in order to read them if you are using the JAWS screen reader.
C2: California Active Transportation Benefit/Cost Analysis Model for 2024 INFRA/RAISE Applications (Cal-B/C AT) Version 8.1
B22: Office of State Planning-Transportation Economics Branch
B23: Division of Transportation Planning
B24: January 2024
B27: For questions and comments, please contact:
B29: Transportation Economics Branch | C29: eab@dot.ca.gov

Sheet Instructions

Sheet Definitions
B2: Definitions
B3: Several definitions require clarification in evaluating facility use, either improved existing or new facilities. This section provides definitions for terms that are used in this tool with respect to “trip types” and “user types). In addition, not all users benefit from projects in the same way. Definitions about benefit categories are elaborated upon below. Relevance of benefit categories depends on trip purpose and type of project (i.e., existing facility upgrade and new construction).
B5: Trip Types | C5: Definitions
B6: Trips | C6: One-way travel to a destination for commuting, or other purposes and is assumed to counted for both directions of travel (and subsequently modeled) for a specific location.
B7: Roundtrips | C7: Most trips have a return journey using the same mode and some can include other unlinked side trips. This "roundtrip" measure divides Trips by the average number of unlinked trips to determine the is used to identify the number of users that take trips.
B8: Existing Trips | C8: Baseline trips, either on an existing facility or unmarked street, where the project will create a new facility with specific improvements
B9: Induced Trips | C9: Additional trips above the baseline that arise because of the improvements to existing or new facilities
B10: Trip Forecasts | C10: Forecasts are developed for existing facilities and new locations (if applicable), model users determine numbers of current and induced trips, and other characteristics (e.g., roundtrip probability, purpose, distance, etc.)
B12: Trip Purposes | C12: Definitions
B13: Commute to Work | C13: Users who are taking the facility to or from work. These users are primarily adult or young-adult aged. Use by college students would be classified under "other destinations"
B14: Safe Route to School | C14: Users who are school-aged, i.e. 18 or under years old, and taking the facility to or from school.
B15: Other Destinations | C15: Users who are taking the facility to reach a variety of other destinations besides work, such as shopping, meeting friends, college classes, etc. These are trips that would be otherwise taken by some type of motor vehicle
B16: Recreational | C16: Users who are taking the facility purely as a loop-trip for exercise purposes. These trips would not be otherwise taken by motor vehicle since the purpose is for fitness and recreation.
B18: Benefit Categories | C18: Definitions
B19: Journey Quality | C19: Improvements in the quality of the trip for pedestrians and cyclists that arise from a greater feeling of safety, comfort, aesthetics, and other types of improvements. Improvements to existing and new facilities can generate benefits for current trips and induced trips. Benefits to induced users are estimated using "rule of half" approximation. Journey quality is assumed to have a zero value for existing users along routes where there is no existing facility. The value of journey quality includes the perception of safety improvement and thus, to avoid double counting, additional accident reduction value along the routes is excluded. However, safety improvements at intersections along existing facilities generate additional benefits that are discussed below.
B20: Intersection Delay (Time Savings from Improved Intersections on Existing Facilities) | C20: Improvements to existing intersections (e.g. lights, bridges, etc.) can lead to time savings for trips by reducing waiting time at intersections, for say a break in vehicular traffic. Time savings benefits can arise for existing and induced pedestrians and cyclists at each intersection that they cross. The number of intersections crossed by users of a facility on each trip is determined by the total length of the existing facility the average distance traveled per user type, and the number of intersections with improvements. Benefits to induced users are estimated using "rule of half" approximation.
B21: Intersection Safety (Accident Reduction at Improved Intersections of Existing Facilities) | C21: Improvements to existing intersections (e.g. lights, bridges, etc.) can lead to reduced accidents at intersections. Benefits can arise for existing and induced pedestrians and cyclists at each intersection crossed. The number of intersections crossed per trip is determined by the total length of the existing facility, the average distance traveled per user type, and the number of intersections with improvements. The magnitude of impacts is determined by the percent reduction in existing accidents due to specific safety measures. Induced trips benefits apply "rule of half" approximation.
B22: Auto Accident Costs and Auto Emissions | C22: Some of the induced pedestrian and cycling trips entail diversions from auto use. Benefits from reduced auto use include reduced frequency of accidents and level of auto emissions. Benefits are estimated for each diverted auto trip by using standard methods and data for estimating the value of auto use externalities.
B23: Health Benefits - Reduced Absenteeism of Commuters | C23: Health benefits related to reduced absenteeism are generated by induced walking and cycling commuters. The benefits are monetized by higher productivity due to fewer sick days. Benefits to these induced users are not estimated using "rule of half" approximation since the value is observed by the employer.
B24: Health Benefits - Reduced Mortality Risk | C24: Health benefits related to improved long-term health and reduced risk of disease and early death. These benefits are derived from parameters established by the World Health Organization (WHO) and formalized in their online HEAT tool and documentation. Benefits are derived from reduced mortality risk in populations that range from 20-64 for cyclists and 20-74 for pedestrians. Reduced mortality risk depends on the amount of cycling (average distance) undertaken over a one year period.
B26: Benefit Categories by Facility Type
B27: The matrix below indicates the applicability of benefits by to different types of trips and projects. Projects include existing facility improvements and new construction. Trips differ between current trips already being taken and new, induced trips that arise because of improvements.
C28: Existing Facility Improvement | E28: New Construction
B29: Benefit Categories by Facility Type | C29: Existing Trips | D29: Induced Trips | E29: Existing Trips | F29: Induced Trips
B30: Journey Quality | C30: Yes | D30: Yes | E30: Yes | F30: Yes
B31: Intersection Delay (Time Savings from Improved Intersections on Existing Facilities) | C31: Yes | D31: Yes
B32: Intersection Safety (Accident Reduction at Improved Intersections of Existing Facilities) | C32: Yes | D32: Yes
B33: Auto Accident Costs and Auto Emissions | D33: Yes | F33: Yes
B34: Health Benefits - Reduced Absenteeism of Commuters | D34: Yes (Commuters, only) | F34: Yes (Commuters, only)
B35: Health Benefits - Reduced Mortality Risk | D35: Yes (Age dependent) | F35: Yes (Age dependent)

Sheet 1a) Project Info
C2: District: | E2: HQ | V2: Enter all project and program costs (in today's dollars) in the two tables shown below . Costs during construction should be entered in the first row.
H3: EA: | V3: Project costs (including maintenance and operating costs) should be net of costs without project.
C4: PROJECT: | E4: Hypothetical Project | H4: PPNO:
C7: 1A | D7: PROJECT AND SITE CHARACTERISTICS | M7: 1D | N7: GENERAL USER CHARACTERISTICS (BASED ON PROJECT LOCATION) | W7: 1F | X7: PROJECT COSTS AND REQUESTED FUNDS (enter in thousands of dollars) | AK7: 1H | AL7: DATA CHECKS - PROJECT LENGTH, DAILY TRIPS
C9: Type of Project | M9: Cycling | W9: Col. no.
E10: Existing facility upgrade only = 1 New facility only, no existing facility work = 2 Existing facility upgrade and new facility extension = 3 | H10: 1 | N10: Trip Purpose | Q10: No Build | R10: Build | Y10: DIRECT PROJECT COSTS | AF10: TOTAL COSTS (in dollars) | AO10: No Build Project Length | AP10: Build Project Length
O11: Commuting Trip Purpose (%) | Q11: =INDEX(CycTripPurpose,1,IF(ISBLANK(ProjLoc),1,ProjLoc)) -> 0.186 | R11: =Q11 -> 0.186 | Y11: INITIAL COSTS | AB11: SUBSEQUENT COSTS | AN11: Existing Facility Length Check | AO11: =IF(G39=ProjLenEX,"OK","Not OK") -> Not OK | AP11: =IF(H39=G39,"OK","Not OK") -> OK
D12: Total Project Length | I12: Project Type Data Check | O12: Recreational Trip Purpose (%) | Q12: =INDEX(CycTripPurpose,2,IF(ISBLANK(ProjLoc),1,ProjLoc)) -> 0.461 | R12: =Q12 -> 0.461 | W12: Year | X12: Construction | Y12: Project | AB12: Maint./ | AF12: Constant | AG12: Present | AN12: New Facility Length Check | AO12: =IF(Q34=H14,"OK","Not OK") -> OK | AP12: =IF(R39=Q34,"OK","Not OK") -> Not OK
E13: Total Existing Facility Length (miles) | H13: 3 | I13: =IF(AND(OR(ProjType=1,ProjType=3),ProjLenEX=0),"Not OK",IF(AND(ProjType=2,ProjLenEX>0),"Not OK","OK")) -> OK | O13: Other Destinations Trip Purpose (%) | Q13: =INDEX(CycTripPurpose,3,IF(ISBLANK(ProjLoc),1,ProjLoc)) -> 0.353 | R13: =Q13 -> 0.353 | X13: Years | Y13: Support | Z13: R / W | AA13: Construction | AB13: Op. | AC13: Rehab. | AF13: Dollars | AG13: Value
E14: Total New Facility Length (miles) | H14: 3 | I14: =IF(AND(OR(ProjType=2,ProjType=3),ProjLenNEW=0),"Not OK",IF(AND(ProjType=1,ProjLenNEW>0),"Not OK","OK")) -> Not OK | N14: General Trip Characteristics | W14: Infrastructure Program Costs | AO14: Cycling Daily Trips per Mile | AP14: Pedestrian Daily Trips per Mile
O15: Overall Average Distance Traveled / Trip (mi) | Q15: =INDEX(CycDistPerTrip,1,IF(ISBLANK(ProjLoc),1,ProjLoc)) -> 2.29 | R15: =TAvMiCycNB -> 2.29 | W15: 1 | X15: =IF(AA15>0,1,0) -> 0 | AB15: <-- Must enter a cost | AF15: =SUM(Y15:AA15)*1000 -> 0 | AG15: =AF15/(1+DiscRate)^($W15-1) -> 0 | AN15: Existing Facility Users | AO15: =IFERROR(ADT0CycEX/G39,"NA") -> NA | AP15: =IFERROR(ADT0PedEX/G39,"NA") -> NA
C16: Characteristics | O16: Children - SRTS - Distance Traveled / Trip (mi) | Q16: =INDEX(CycDistPerTrip,2,IF(ISBLANK(ProjLoc),1,ProjLoc)) -> 0.99 | R16: =TAvMiCycNBSRTS -> 0.99 | W16: 2 | X16: =IF(AA16>0,1,0) -> 0 | AF16: =SUM(Y16:AA16)*1000 -> 0 | AG16: 0 | AN16: New Facility Users | AO16: =IFERROR(ADT0CycNew/Q39,"NA") -> 0 | AP16: =IFERROR(ADT0PedNew/Q39,"NA") -> 0
D17: Project Location (enter 1 for So. Cal., 2 for No. Cal., or 3 for rural) | H17: 2 | W17: 3 | X17: 0 | AF17: 0 | AG17: 0
M18: Pedestrian | W18: 4 | X18: 0 | AF18: 0 | AG18: 0 | AO18: Safety Measures - Existing only
D19: Safe Route to School? (enter 1 for Yes, 0 for No) | H19: 1 | N19: Trip Purpose | W19: 5 | X19: 0 | AF19: 0 | AG19: 0 | AN19: Existing Facility Characteristics | AO19: =IF(AND(ProjLenEX=0,SUM(H116:H129)>0),"Not OK", "OK") -> OK
O20: Commuting Trip Purpose (%) | Q20: =INDEX(PedTripPurpose,1,IF(ISBLANK(ProjLoc),1,ProjLoc)) -> 0.052 | R20: =Q20 -> 0.052 | W20: 6 | X20: 0 | AF20: 0 | AG20: 0
D21: Programmatic Initiatives? (enter 1 for Yes, 0 for No) | O21: Recreational Trip Purpose (%) | Q21: =INDEX(PedTripPurpose,2,IF(ISBLANK(ProjLoc),1,ProjLoc)) -> 0.55 | R21: =PerRecPedNB -> 0.55 | W21: 7 | X21: 0 | AF21: 0 | AG21: 0
O22: Other Destination Trip Purpose (%) | Q22: =INDEX(PedTripPurpose,3,IF(ISBLANK(ProjLoc),1,ProjLoc)) -> 0.398 | R22: =PerODPedNB -> 0.398 | W22: 8 | X22: 0 | AF22: 0 | AG22: 0
D23: Construction | I23: Constr. Years Data Check | N23: General Trip Characteristics | W23: Annual Infrastructure O&M Costs
E24: Length of Construction Period (years) | H24: 1 | I24: =IF(SUM(X15:X22)=Construct, "OK","Not OK") -> Not OK | O24: Overall Average Distance Traveled / Trip (mi) | Q24: =INDEX(PedDistPerTrip,1,IF(ISBLANK(ProjLoc),1,ProjLoc)) -> 0.68 | R24: =TAvMiPedNB -> 0.68 | W24: 1 | AF24: =SUM(AB24:AC24)*1000 -> 0 | AG24: =$AF24/(1+DiscRate)^($W24+Construct-1) -> 0
O25: Children - SRTS - Distance Traveled / Trip (mi) | Q25: =INDEX(PedDistPerTrip,2,IF(ISBLANK(ProjLoc),1,ProjLoc)) -> 0.63 | R25: =TAvMiPedNBSRTS -> 0.63 | W25: 2 | AF25: =SUM(AB25:AC25)*1000 -> 0 | AG25: 0
W26: 3 | AF26: =SUM(AB26:AC26)*1000 -> 0 | AG26: 0
W27: 4 | AF27: 0 | AG27: 0
W28: 5 | AF28: 0 | AG28: 0
W29: 6 | AF29: 0 | AG29: 0
C30: 1B | D30: EXISTING SEGMENT IMPROVEMENTS AND TRIP VOLUME | M30: 1E | N30: NEW FACILITY IMPROVEMENTS AND TRIP VOLUME | W30: 7 | AF30: 0 | AG30: 0
W31: 8 | AF31: 0 | AG31: 0
C32: Improvement Characteristics | M32: Improvement Characteristics | W32: 9 | AF32: 0 | AG32: 0
D33: Existing Facility Length, if Applicable | F33: Class | G33: No Build | H33: Build | I33: Project Length Data Check | N33: New Facility Length | P33: Class | Q33: No Build | R33: Build | S33: Project Length Data Check | W33: 10 | AF33: 0 | AG33: 0
O34: No Facility | P34: 0 | Q34: =ProjLenNEW -> 3 | S34: =IF(OR(AO12="Not OK",AP12="Not OK"),"Not OK","OK") -> Not OK | W34: 11 | AF34: 0 | AG34: 0
E35: Bike Paths (miles) | F35: I | I35: =IF(OR(AO11="Not OK",AP11="Not OK"),"Not OK","OK") -> Not OK | O35: Bike Paths (miles) | P35: I | W35: 12 | AF35: 0 | AG35: 0
E36: Bike Lanes (miles) | F36: II | O36: Bike Lanes (miles) | P36: II | W36: 13 | AF36: 0 | AG36: 0
E37: Bike Route (miles) | F37: III | O37: Bike Route (miles) | P37: III | W37: 14 | AF37: 0 | AG37: 0
E38: Separated Bikeways, Cycle Tracks (miles) | F38: IV | O38: Separated Bikeways, Cycle Tracks (miles) | P38: IV | W38: 15 | AF38: 0 | AG38: 0
E39: Total | G39: =SUM(G35:G38) -> 0 | H39: =SUM(H35:H38) -> 0 | O39: Total | Q39: =SUM(Q34:Q38) -> 3 | R39: =SUM(R34:R38) -> 0 | W39: 16 | AF39: 0 | AG39: 0
W40: 17 | AF40: 0 | AG40: 0
D41: Pedestrian Improvements | G41: Yes =1 or No=0 | H41: Yes =1 or No=0 | N41: Pedestrian Improvements | R41: Yes =1 | W41: 18 | AF41: 0 | AG41: 0
E42: Street Lighting | O42: Street Lighting | W42: 19 | AF42: 0 | AG42: 0
E43: Curb Level | O43: Curb Level | W43: 20 | AF43: 0 | AG43: 0
E44: Crowding | O44: Crowding | W44: Total | Y44: =SUM(Y15:Y22) -> 0 | Z44: =SUM(Z15:Z22) -> 0 | AA44: =SUM(AA15:AA22) -> 0 | AB44: =SUM(AB24:AB43) -> 0 | AC44: =SUM(AC24:AC43) -> 0 | AF44: =SUM(AF15:AF43) -> 0 | AG44: =SUM(AG15:AG43) -> 0
E45: Pavement Evenness | O45: Pavement Evenness
E46: Information Panels | O46: Information Panels | W46: ATP REQUESTED FUNDS
E47: Benches | O47: Benches | W47: Total
E48: Directional Signage | O48: Directional Signage
C50: Trip Data - Adults | M50: Trip Data - Adults
D51: Cycling | N51: Cycling | Q51: No Build | R51: Build | W51: 1G | X51: PROGRAM COSTS AND REQUESTED FUNDS (enter in thousands of dollars)
E52: Daily Trips - Current | O52: Daily Trips - Current
E53: Projected Annual Growth Rates from Year 1 (%) | O53: Projected Annual Growth Rates from Year 1 (%)
Y54: DIRECT PROJECT COSTS
E55: Daily Trips - Year 1 (post-construction) | G55: =ADT0CycEX*(1+$G$53)^Construct -> 0 | H55: =ADT0CycEX*(1+$H$53)^Construct -> 0 | O55: Daily Trips - Year 1 (post-construction) | Q55: =ADT0CycNew*(1+$Q$53)^Construct -> 0 | R55: =ADT0CycNew*(1+$R$53)^Construct -> 0 | Y55: INITIAL COSTS | AB55: SUBSEQUENT COSTS | AF55: TOTAL COSTS (in dollars)
E56: Daily Trips - Year 20 (post-construction) | G56: =ADT1CycNBEX*(1+$G$53)^20 -> 0 | H56: =ADT1CycBEX*(1+$H$53)^20 -> 0 | O56: Daily Trips - Year 20 (post-construction) | Q56: =ADT1CycNBNew*(1+$Q$53)^20 -> 0 | R56: =ADT1CycBNew*(1+$R$53)^20 -> 0 | W56: Year | X56: Construction | Y56: Project | AB56: Maint./ | AF56: Constant | AG56: Present
X57: Years | Y57: Support | Z57: R / W | AA57: Construction | AB57: Op. | AC57: Rehab. | AF57: Dollars | AG57: Value
D58: Pedestrian | N58: Pedestrian | W58: Non-Infrastructure Program Costs
E59: Daily Trips - Current | O59: Daily Trips - Current | W59: 1 | AB59: <-- Must enter a cost | AF59: =SUM(Y59:AA59)*1000 -> 0 | AG59: =AF59/(1+DiscRate)^($W59-1) -> 0
E60: Projected Annual Growth Rates from Year 1 (%) | O60: Projected Annual Growth Rates from Year 1 (%) | W60: 2 | AF60: =SUM(Y60:AA60)*1000 -> 0 | AG60: 0
W61: 3 | AF61: 0 | AG61: 0
E62: Daily Trips - Year 1 (post-construction) | G62: =ADT0PedEX*(1+$G$60)^Construct -> 0 | H62: =ADT0PedEX*(1+$H$60)^Construct -> 0 | O62: Daily Trips - Year 1 (post-construction) | Q62: =ADT0PedNew*(1+$Q$60)^Construct -> 0 | R62: =ADT0PedNew*(1+$R$60)^Construct -> 0 | W62: 4 | AF62: 0 | AG62: 0
E63: Daily Trips - Year 20 (post-construction) | G63: =ADT1PedNBEX*(1+$G$60)^20 -> 0 | H63: =ADT1PedBEX*(1+$H$60)^20 -> 0 | O63: Daily Trips - Year 20 (post-construction) | Q63: =ADT1PedNBNew*(1+$Q$60)^20 -> 0 | R63: =ADT1PedBNew*(1+$R$60)^20 -> 0 | W63: 5 | AF63: 0 | AG63: 0
W64: 6 | AF64: 0 | AG64: 0
C65: Trip Data - Children - SRTS | M65: Trip Data - Children - SRTS | W65: 7 | AF65: 0 | AG65: 0
D66: Cycling | N66: Cycling | Q66: No Build | R66: Build | W66: 8 | AF66: 0 | AG66: 0
E67: Daily Trips - Current | O67: Daily Trips - Current | W67: Annual Non-Infrastructure O&M Costs
E68: Projected Annual Growth Rates from Year 1 (%) | O68: Projected Annual Growth Rates from Year 1 (%) | W68: 1 | AF68: =SUM(AB68:AC68)*1000 -> 0 | AG68: =$AF68/(1+DiscRate)^($W68-1) -> 0
W69: 2 | AF69: =SUM(AB69:AC69)*1000 -> 0 | AG69: 0
E70: Daily Trips - Year 1 (post-construction) | G70: =ADT0CycEX_SRTS*(1+$G$68)^Construct -> 0 | H70: =ADT0CycEX_SRTS*(1+$H$68)^Construct -> 0 | O70: Daily Trips - Year 1 (post-construction) | Q70: =ADT0CycNew_SRTS*(1+$Q$68)^Construct -> 0 | R70: =ADT0CycNew_SRTS*(1+$R$68)^Construct -> 0 | W70: 3 | AF70: =SUM(AB70:AC70)*1000 -> 0 | AG70: 0
E71: Daily Trips - Year 20 (post-construction) | G71: =ADT1CycNBEX_SRTS*(1+$G$68)^20 -> 0 | H71: =ADT1CycBEX_SRTS*(1+$H$68)^20 -> 0 | O71: Daily Trips - Year 20 (post-construction) | Q71: =ADT1CycNBNew_SRTS*(1+$Q$68)^20 -> 0 | R71: =ADT1CycBNew_SRTS*(1+$R$68)^20 -> 0 | W71: 4 | AF71: 0 | AG71: 0
W72: 5 | AF72: 0 | AG72: 0
D73: Pedestrian | N73: Pedestrian | W73: 6 | AF73: 0 | AG73: 0
E74: Daily Trips - Current | O74: Daily Trips - Current | W74: 7 | AF74: 0 | AG74: 0
E75: Projected Annual Growth Rates from Year 1 (%) | O75: Projected Annual Growth Rates from Year 1 (%) | W75: 8 | AF75: 0 | AG75: 0
W76: 9 | AF76: 0 | AG76: 0
E77: Daily Trips - Year 1 (post-construction) | G77: =ADT0PedEX_SRTS*(1+$G$75)^Construct -> 0 | H77: =ADT0PedEX_SRTS*(1+$H$75)^Construct -> 0 | O77: Daily Trips - Year 1 (post-construction) | Q77: =ADT0PedNew_SRTS*(1+$Q$75)^Construct -> 0 | R77: =ADT0PedNew_SRTS*(1+$R$75)^Construct -> 0 | W77: 10 | AF77: 0 | AG77: 0
E78: Daily Trips - Year 20 (post-construction) | G78: =ADT1PedNBEX_SRTS*(1+$G$75)^20 -> 0 | H78: =ADT1PedBEX_SRTS*(1+$H$75)^20 -> 0 | O78: Daily Trips - Year 20 (post-construction) | Q78: =ADT1PedNBNew_SRTS*(1+$Q$75)^20 -> 0 | R78: =ADT1PedBNew_SRTS*(1+$R$75)^20 -> 0 | W78: 11 | AF78: 0 | AG78: 0
W79: 12 | AF79: 0 | AG79: 0
W80: 13 | AF80: 0 | AG80: 0
W81: 14 | AF81: 0 | AG81: 0
W82: 15 | AF82: 0 | AG82: 0
C83: 1C | D83: INTERSECTION IMPROVEMENTS - TIME SAVINGS AND ACCIDENT REDUCTION DATA | W83: 16 | AF83: 0 | AG83: 0
W84: 17 | AF84: 0 | AG84: 0
C85: Reduced Delay Due to Intersection Improvements | W85: 18 | AF85: 0 | AG85: 0
D86: Time Savings Parameters | W86: 19 | AF86: 0 | AG86: 0
E87: Number of Improved Intersections | W87: 20 | AF87: 0 | AG87: 0
E88: Time Savings per Improved Intersection (min.) | W88: Total | Y88: =SUM(Y59:Y66) -> 0 | Z88: =SUM(Z59:Z66) -> 0 | AA88: =SUM(AA59:AA66) -> 0 | AB88: =SUM(AB68:AB87) -> 0 | AC88: =SUM(AC68:AC87) -> 0 | AF88: =SUM(AF59:AF87) -> 0 | AG88: =SUM(AG59:AG87) -> 0
E89: Intersection improvements on SRTS? (enter 1 for Yes, 0 for No)
W90: ATP REQUESTED FUNDS
C91: Accident Rate - Current Conditions | W91: Total
D93: Cyclists | G93: Count (No.) | H93: Rate per Year
E94: Number of Years of Data
E96: Existing Conditions
E97: Total Number of Accidents (Tot) | G97: =SUM(G98:G100) -> 0 | H97: =IFERROR(G97/$G$94,0) -> 0
E98: Number of Fatal Accidents (Fat) | H98: =IFERROR(G98/$G$94,0) -> 0
E99: Number of Injury Accidents (Inj) | H99: =IFERROR(G99/$G$94,0) -> 0
E100: Number of \Property Damage Only (PDO) Accidents | H100: =IFERROR(G100/$G$94,0) -> 0
E101: Annual Growth Rate in Accidents (%/year) | H101: =IFERROR(G101/$G$94,0) -> 0
D103: Pedestrians | G103: Count (No.) | H103: Rate per Year
E104: Number of Years of Data
E106: Existing Conditions
E107: Total Number of Accidents (Tot) | G107: =SUM(G108:G110) -> 0 | H107: =IFERROR(G107/$G$104,0) -> 0
E108: Number of Fatal Accidents (Fat) | H108: =IFERROR(G108/$G$104,0) -> 0
E109: Number of Injury Accidents (Inj) | H109: =IFERROR(G109/$G$104,0) -> 0
E110: Number of \Property Damage Only (PDO) Accidents | H110: =IFERROR(G110/$G$104,0) -> 0
E111: Annual Growth Rate in Accidents (%/year) | H111: =IFERROR(G111/$G$104,0) -> 0
C113: Safety Countermeasures (improvements to existing facilities only)
D115: Signalized Intersection | H115: Yes =1
E116: Pedestrian Countdown Signal Heads
E117: Pedestrian Crossing
E118: Advance Stop Bar before Crosswalk
E119: Install Overpass/Underpass
D120: Unsignalized Intersection
E121: Raised Medians/Refuge Islands
E122: Pedestrian Crossing (new signs and markings only)
E123: Pedestrian Crossing (safety features/curb extensions)
E124: Pedestrian Signals
D125: Roadways - relevant for pedestrian improvements, such as sidewalks
E126: Sidewalk/Pathway (to avoid walking along roadway)
E127: Pedestrian Crossing (with enhanced safety features)
E128: Pedestrian Crossing
D129: Other Reduction Factor Countermeasures

Sheet 1b) Non-Inf Program Info
C2: District: | E2: ='1a) Project Info'!E2 -> HQ
H3: EA: | I3: ='1a) Project Info'!I3 -> 0
C4: PROJECT: | E4: ='1a) Project Info'!E4 -> Hypothetical Project | H4: PPNO: | I4: ='1a) Project Info'!I4 -> 0
C7: 1I | D7: NON-INFRASTRUCTURE PROGRAM CHARACTERISTICS
C10: Programmatic Initiatives? | H10: =IF('1a) Project Info'!H21=1,"Yes","No") -> No
C12: Scale of Initiative
D13: Participants / Beneficiaries | I13: Data Check on Initiative
E14: Numbers of People Reached per Year | I14: =IF(AND(H10="No",H14>0),"Not Ok","OK") -> OK
E15: Average Percentage of Current Active Bicyclists Reached per Year
E16: Average Percentage of Current Active Pedestrians Reached per Year
C18: Scoring Criteria
D19: Total Number of Criteria | I19: 4
D20: Total Criteria Weight Sum | I20: =IF(SUM(I23,I34,I45,I56)<>1,"Not Correct",SUM(I23,I34,I45,I56)) -> 1
I22: Criteria Weight
D23: 1) Target Audience | I23: 0.25
E25: Indicators | H25: (mark as %; sum must equal 100%) | I25: Indicator Weight
E26: Younger than 10 | F26: ` | I26: 0.1
E27: 10-12 | I27: 0.2
E28: 13-24 | I28: 0.25
E29: 25-55 | I29: 0.15
E30: 55+ | I30: 0.05
E31: Indicator-Weighted Score | H31: =IF(SUM($H$26:$H$30)<>100%,"Sum must equal 100%",SUMPRODUCT(I26:I30,H26:H30)) -> Sum must equal 100%
I33: Criteria Weight
D34: 2) Characteristics Promotional Effort | I34: 0.25
E36: Indicators | H36: (enter 1 for Yes on all that apply) | I36: Indicator Weight
E37: Effort Targets 5 E's or 5 P's | I37: 0.05
E38: Knowledgeable Staff/Educator | I38: 0.05
E39: Partnership/Volunteers | I39: 0.05
E40: Creates Community Ownership/Relationship | I40: 0.05
E41: Part of Bigger Effort (e.g., political support) | I41: 0.05
E42: Indicator-Weighted Score | H42: =SUMPRODUCT(I37:I41,H37:H41) -> 0
I44: Criteria Weight
D45: 3) Type of Impact and Messaging | I45: 0.25
E47: Indicators | H47: (enter 1 for Yes on all that apply) | I47: Indicator Weight
E48: Outreach is Hands-on (self-efficacy) | I48: 0.05
E49: Overcome Barriers (e.g., dist., time, etc.) | I49: 0.05
E50: Eliminates Hazards/Threats (speed, crime, etc.) | I50: 0.05
E51: Connected or Addresses Connectivity Challenges | I51: 0.05
E52: Creating Value in Using Active Transportation | I52: 0.05
E53: Indicator-Weighted Score | H53: =SUMPRODUCT(I48:I52,H48:H52) -> 0
I55: Criteria Weight
D56: 4) Frequency of Outreach Effort | I56: 0.25
E58: Indicators | H58: (enter 1 for Yes for only one option) | I58: Indicator Weight
E59: One Day | I59: 0.05
E60: One Month | I60: 0.1
E61: One Year | I61: 0.15
E62: Multiple Years | I62: 0.2
E63: Continuous Effort | I63: 0.25
E64: Indicator-Weighted Score | H64: =IF(SUM(H59:H63)>1,"Choose Only 1 Option",SUMPRODUCT(I59:I63,H59:H63)) -> 0
D66: Projected New Active Transportation Cyclists
E67: Number of Potential New Facility Users | H67: =$H$14*(1-$H$15) -> 0
E68: Weighted Impact Score of Outreach | H68: =IFERROR(($H$42*$I$34+$H$53*$I$45+$H$64*$I$56+$H$31*$I$23)*$I$19,"") -> 
E69: Program Impact Score | H69: =IFERROR(H67*H68,"") -> 
E70: Years of Outreach | H70: =20-COUNTBLANK('1a) Project Info'!$AB$68:$AB$87) -> 0
E71: Multi-year Program Impact Score | H71: =IFERROR(H70*H69,"") -> 
D73: Cost Effectiveness
E74: Total Discounted Cost | H74: ='1a) Project Info'!$AG$88 -> 0
E75: Cost per Program Impact Score | H75: =IFERROR(H74/H71,"") -> 
D77: Projected New Active Transportation Pedestrians
E78: Number of Potential New Facility Users | H78: =$H$14*(1-$H$16) -> 0
E79: Weighted Impact Score of Outreach | H79: =IFERROR(($H$42*$I$34+$H$53*$I$45+$H$64*$I$56+$H$31*$I$23)*$I$19,"") -> 
E80: Program Impact Score | H80: =IFERROR(H78*H79,"") -> 
E81: Years of Outreach | H81: =20-COUNTBLANK('1a) Project Info'!$AB$68:$AB$87) -> 0
E82: Multi-year Program Impact Score | H82: =IFERROR(H81*H80,"") -> 
D84: Cost Effectiveness
E85: Total Discounted Cost | H85: ='1a) Project Info'!$AG$88 -> 0
E86: Cost per Program Impact Score | H86: =IFERROR(H85/H82,"") -> 

Sheet 2) Model Inputs
C3: 2A | E3: ACTIVE TRANSPORTATION DAILY VOLUME INPUTS - CYCLING - Existing Facility Segment | N3: 2E | P3: ACTIVE TRANSPORTATION DAILY VOLUME INPUTS - PEDESTRIAN - Existing Facility Segment
F5: Calculated by Model | G5: Changed by User | H5: Used for Proj. Eval. | I5: Reason for Change | Q5: Calculated by Model | R5: Changed by User | S5: Used for Proj. Eval. | T5: Reason for Change
C6: No Build - Cycling | N6: No Build - Pedestrian
D7: Year 1 | O7: Year 1
E8: Annual Trips - Commuting | F8: =ADT1CycNBEX*PerCommCycNB*CycleDays -> 0 | H8: =IF(ISNUMBER(G8),G8,F8) -> 0 | P8: Annual Trips - Commuting | Q8: =ADT1PedNBEX*PerCommPedNB*CycleDays -> 0 | S8: =IF(ISNUMBER(R8),R8,Q8) -> 0
E9: Annual Trips - Other Destinations | F9: =ADT1CycNBEX*PerODCycNB*CycleDays -> 0 | H9: 0 | P9: Annual Trips - Other Destinations | Q9: =ADT1PedNBEX*PerODPedNB*WalkDays -> 0 | S9: 0
E10: Annual Trips - Recreational | F10: =ADT1CycNBEX*PerRecCycNB*CycleDays -> 0 | H10: =IF(ISNUMBER(G10),G10,F10)*RecBen -> 0 | I10: =IF(RecBen=0,"Recreational Users not Included in Benefits","") -> Recreational Users not Included in Benefits | P10: Annual Trips - Recreational | Q10: =ADT1PedNBEX*PerRecPedNB*WalkDays -> 0 | S10: =IF(ISNUMBER(R10),R10,Q10)*RecBen -> 0 | T10: =IF(RecBen=0,"Recreational Users not Included in Benefits","") -> Recreational Users not Included in Benefits
E11: Users - Commuting | F11: =H8/RTCycNB/CycleDays -> 0 | H11: 0 | P11: Users - Commuting | Q11: =S8/RTPedNB/WalkDays -> 0 | S11: 0
E12: Users - Other Destinations | F12: =H9/RTCycNB/CycleDays -> 0 | H12: 0 | P12: Users - Other Destinations | Q12: =S9/RTPedNB/WalkDays -> 0 | S12: 0
E13: Users - Recreational | F13: =H10/RTCycNB/CycleDays -> 0 | H13: =IF(ISNUMBER(G13),G13,F13)*RecBen -> 0 | I13: =IF(RecBen=0,"Recreational Users not Included in Benefits","") -> Recreational Users not Included in Benefits | P13: Users - Recreational | Q13: =S10/2/WalkDays -> 0 | S13: =IF(ISNUMBER(R13),R13,Q13)*RecBen -> 0 | T13: =IF(RecBen=0,"Recreational Users not Included in Benefits","") -> Recreational Users not Included in Benefits
E14: Total Miles - Commuting | F14: =H8*MIN(ProjLenEX,TAvMiCycNB)*RTCycNB -> 0 | H14: 0 | P14: Total Miles - Commuting | Q14: =S8*MIN(ProjLenEX,TAvMiPedNB)*RTPedNB -> 0 | S14: 0
E15: Total Miles - Other Destinations | F15: =H9*MIN(ProjLenEX,TAvMiCycNB)*RTCycNB -> 0 | H15: 0 | P15: Total Miles - Other Destinations | Q15: =S9*MIN(ProjLenEX,TAvMiPedNB)*RTPedNB -> 0 | S15: 0
E16: Total Miles - Recreational | F16: =H10*MIN(ProjLenEX,TAvMiCycNB)*RTCycNB -> 0 | H16: =IF(ISNUMBER(G16),G16,F16)*RecBen -> 0 | I16: =IF(RecBen=0,"Recreational Users not Included in Benefits","") -> Recreational Users not Included in Benefits | P16: Total Miles - Recreational | Q16: =S10*MIN(ProjLenEX,TAvMiPedNB)*RTPedNB -> 0 | S16: =IF(ISNUMBER(R16),R16,Q16)*RecBen -> 0 | T16: =IF(RecBen=0,"Recreational Users not Included in Benefits","") -> Recreational Users not Included in Benefits
D18: Year 20 | O18: Year 20
E19: Trips - Commuting | F19: =ADT20CycNBEX*PerCommCycNB*CycleDays -> 0 | H19: =IF(ISNUMBER(G19),G19,F19) -> 0 | P19: Annual Trips - Commuting | Q19: =ADT20PedNBEX*PerCommPedNB*CycleDays -> 0 | S19: =IF(ISNUMBER(R19),R19,Q19) -> 0
E20: Trips - Other Destinations | F20: =ADT20CycNBEX*PerODCycNB*CycleDays -> 0 | H20: 0 | P20: Annual Trips - Other Destinations | Q20: =ADT20PedNBEX*PerODPedNB*WalkDays -> 0 | S20: 0
E21: Trips - Recreational | F21: =ADT20CycNBEX*PerRecCycNB*CycleDays -> 0 | H21: =IF(ISNUMBER(G21),G21,F21)*RecBen -> 0 | I21: =IF(RecBen=0,"Recreational Users not Included in Benefits","") -> Recreational Users not Included in Benefits | P21: Annual Trips - Recreational | Q21: =ADT20PedNBEX*PerRecPedNB*WalkDays -> 0 | S21: =IF(ISNUMBER(R21),R21,Q21)*RecBen -> 0 | T21: =IF(RecBen=0,"Recreational Users not Included in Benefits","") -> Recreational Users not Included in Benefits
E22: Users - Commuting | F22: =H19/RTCycNB/CycleDays -> 0 | H22: 0 | P22: Users - Commuting | Q22: =S19/RTPedNB/WalkDays -> 0 | S22: 0
E23: Users - Other Destinations | F23: =H20/RTCycNB/CycleDays -> 0 | H23: 0 | P23: Users - Other Destinations | Q23: =S20/RTPedNB/WalkDays -> 0 | S23: 0
E24: Users - Recreational | F24: =H21/RTCycNB/CycleDays -> 0 | H24: =IF(ISNUMBER(G24),G24,F24)*RecBen -> 0 | I24: =IF(RecBen=0,"Recreational Users not Included in Benefits","") -> Recreational Users not Included in Benefits | P24: Users - Recreational | Q24: =S21/2/WalkDays -> 0 | S24: =IF(ISNUMBER(R24),R24,Q24)*RecBen -> 0 | T24: =IF(RecBen=0,"Recreational Users not Included in Benefits","") -> Recreational Users not Included in Benefits
E25: Total Miles - Commuting | F25: =H19*MIN(ProjLenEX,TAvMiCycNB)*RTCycNB -> 0 | H25: 0 | P25: Total Miles - Commuting | Q25: =S19*MIN(ProjLenEX,TAvMiPedNB)*RTPedNB -> 0 | S25: 0
E26: Total Miles - Other Destinations | F26: =H20*MIN(ProjLenEX,TAvMiCycNB)*RTCycNB -> 0 | H26: 0 | P26: Total Miles - Other Destinations | Q26: =S20*MIN(ProjLenEX,TAvMiPedNB)*RTPedNB -> 0 | S26: 0
E27: Total Miles - Recreational | F27: =H21*MIN(ProjLenEX,TAvMiCycNB)*RTCycNB -> 0 | H27: =IF(ISNUMBER(G27),G27,F27)*RecBen -> 0 | I27: =IF(RecBen=0,"Recreational Users not Included in Benefits","") -> Recreational Users not Included in Benefits | P27: Total Miles - Recreational | Q27: =S21*MIN(ProjLenEX,TAvMiPedNB)*RTPedNB -> 0 | S27: =IF(ISNUMBER(R27),R27,Q27)*RecBen -> 0 | T27: =IF(RecBen=0,"Recreational Users not Included in Benefits","") -> Recreational Users not Included in Benefits
C30: Build - Cycling | N30: Build - Pedestrian
D31: Year 1 | O31: Year 1
E33: Annual Trips - Commuting | F33: =ADT1CycBEX*PerCommCycB*CycleDays -> 0 | H33: =IF(ISNUMBER(G33),G33,F33) -> 0 | P33: Annual Trips - Commuting | Q33: =ADT1PedBEX*PerCommPedB*CycleDays -> 0 | S33: =IF(ISNUMBER(R33),R33,Q33) -> 0
E34: Annual Trips - Other Destinations | F34: =ADT1CycBEX*PerODCycB*CycleDays -> 0 | H34: 0 | P34: Annual Trips - Other Destinations | Q34: =ADT1PedBEX*PerODPedB*WalkDays -> 0 | S34: 0
E35: Annual Trips - Recreational | F35: =ADT1CycBEX*PerRecCycB*CycleDays -> 0 | H35: =IF(ISNUMBER(G35),G35,F35)*RecBen -> 0 | I35: =IF(RecBen=0,"Recreational Users not Included in Benefits","") -> Recreational Users not Included in Benefits | P35: Annual Trips - Recreational | Q35: =ADT1PedBEX*PerRecPedB*WalkDays -> 0 | S35: =IF(ISNUMBER(R35),R35,Q35)*RecBen -> 0 | T35: =IF(RecBen=0,"Recreational Users not Included in Benefits","") -> Recreational Users not Included in Benefits
E36: Users - Commuting | F36: =H33/RTCycNB/CycleDays -> 0 | H36: 0 | P36: Users - Commuting | Q36: =S33/RTPedNB/WalkDays -> 0 | S36: 0
E37: Users - Other Destinations | F37: =H34/RTCycNB/CycleDays -> 0 | H37: 0 | P37: Users - Other Destinations | Q37: =S34/RTPedNB/WalkDays -> 0 | S37: 0
E38: Users - Recreational | F38: =H35/RTCycNB/CycleDays -> 0 | H38: =IF(ISNUMBER(G38),G38,F38)*RecBen -> 0 | I38: =IF(RecBen=0,"Recreational Users not Included in Benefits","") -> Recreational Users not Included in Benefits | P38: Users - Recreational | Q38: =S35/2/WalkDays -> 0 | S38: =IF(ISNUMBER(R38),R38,Q38)*RecBen -> 0 | T38: =IF(RecBen=0,"Recreational Users not Included in Benefits","") -> Recreational Users not Included in Benefits
E39: Total Miles - Commuting | F39: =H33*MIN(ProjLenEX,TAvMiCycNB)*RTCycNB -> 0 | H39: 0 | P39: Total Miles - Commuting | Q39: =S33*MIN(ProjLenEX,TAvMiPedNB)*RTPedNB -> 0 | S39: 0
E40: Total Miles - Other Destinations | F40: =H34*MIN(ProjLenEX,TAvMiCycNB)*RTCycNB -> 0 | H40: 0 | P40: Total Miles - Other Destinations | Q40: =S34*MIN(ProjLenEX,TAvMiPedNB)*RTPedNB -> 0 | S40: 0
E41: Total Miles - Recreational | F41: =H35*MIN(ProjLenEX,TAvMiCycNB)*RTCycNB -> 0 | H41: =IF(ISNUMBER(G41),G41,F41)*RecBen -> 0 | I41: =IF(RecBen=0,"Recreational Users not Included in Benefits","") -> Recreational Users not Included in Benefits | P41: Total Miles - Recreational | Q41: =S35*MIN(ProjLenEX,TAvMiPedNB)*RTPedNB -> 0 | S41: =IF(ISNUMBER(R41),R41,Q41)*RecBen -> 0 | T41: =IF(RecBen=0,"Recreational Users not Included in Benefits","") -> Recreational Users not Included in Benefits
D43: Year 20 | O43: Year 20
E44: Annual Trips - Commuting | F44: =ADT20CycBEX*PerCommCycB*CycleDays -> 0 | H44: =IF(ISNUMBER(G44),G44,F44) -> 0 | P44: Annual Trips - Commuting | Q44: =ADT20PedBEX*PerCommPedB*CycleDays -> 0 | S44: =IF(ISNUMBER(R44),R44,Q44) -> 0
E45: Annual Trips - Other Destinations | F45: =ADT20CycBEX*PerODCycB*CycleDays -> 0 | H45: 0 | P45: Annual Trips - Other Destinations | Q45: =ADT20PedBEX*PerODPedB*WalkDays -> 0 | S45: 0
E46: Annual Trips - Recreational | F46: =ADT20CycBEX*PerRecCycB*CycleDays -> 0 | H46: =IF(ISNUMBER(G46),G46,F46)*RecBen -> 0 | I46: =IF(RecBen=0,"Recreational Users not Included in Benefits","") -> Recreational Users not Included in Benefits | P46: Annual Trips - Recreational | Q46: =ADT20PedBEX*PerRecPedB*WalkDays -> 0 | S46: =IF(ISNUMBER(R46),R46,Q46)*RecBen -> 0 | T46: =IF(RecBen=0,"Recreational Users not Included in Benefits","") -> Recreational Users not Included in Benefits
E47: Users - Commuting | F47: =H44/RTCycNB/CycleDays -> 0 | H47: 0 | P47: Users - Commuting | Q47: =S44/RTPedNB/WalkDays -> 0 | S47: 0
E48: Users - Other Destinations | F48: =H45/RTCycNB/CycleDays -> 0 | H48: 0 | P48: Users - Other Destinations | Q48: =S45/RTPedNB/WalkDays -> 0 | S48: 0
E49: Users - Recreational | F49: =H46/RTCycNB/CycleDays -> 0 | H49: =IF(ISNUMBER(G49),G49,F49)*RecBen -> 0 | I49: =IF(RecBen=0,"Recreational Users not Included in Benefits","") -> Recreational Users not Included in Benefits | P49: Users - Recreational | Q49: =S46/2/WalkDays -> 0 | S49: =IF(ISNUMBER(R49),R49,Q49)*RecBen -> 0 | T49: =IF(RecBen=0,"Recreational Users not Included in Benefits","") -> Recreational Users not Included in Benefits
E50: Total Miles - Commuting | F50: =H44*MIN(ProjLenEX,TAvMiCycNB)*RTCycNB -> 0 | H50: 0 | P50: Total Miles - Commuting | Q50: =S44*MIN(ProjLenEX,TAvMiPedNB)*RTPedNB -> 0 | S50: 0
E51: Total Miles - Other Destinations | F51: =H45*MIN(ProjLenEX,TAvMiCycNB)*RTCycNB -> 0 | H51: 0 | P51: Total Miles - Other Destinations | Q51: =S45*MIN(ProjLenEX,TAvMiPedNB)*RTPedNB -> 0 | S51: 0
E52: Total Miles - Recreational | F52: =H46*MIN(ProjLenEX,TAvMiCycNB)*RTCycNB -> 0 | H52: =IF(ISNUMBER(G52),G52,F52)*RecBen -> 0 | I52: =IF(RecBen=0,"Recreational Users not Included in Benefits","") -> Recreational Users not Included in Benefits | P52: Total Miles - Recreational | Q52: =S46*MIN(ProjLenEX,TAvMiPedNB)*RTPedNB -> 0 | S52: =IF(ISNUMBER(R52),R52,Q52)*RecBen -> 0 | T52: =IF(RecBen=0,"Recreational Users not Included in Benefits","") -> Recreational Users not Included in Benefits
C58: 2B | E58: ACTIVE TRANSPORTATION DAILY VOLUME INPUTS - CYCLING - New Facility Segment | N58: 2F | P58: ACTIVE TRANSPORTATION DAILY VOLUME INPUTS - PEDESTRIAN - New Facility Segment
F60: Calculated by Model | H60: Used for Proj. Eval. | I60: Reason for Change | Q60: Calculated by Model | S60: Used for Proj. Eval. | T60: Reason for Change
C61: No Build - Cycling | N61: No Build - Pedestrian
D62: Year 1 | O62: Year 1
E63: Annual Trips - Commuting | F63: =ADT1CycNBNew*PerCommCycNB*CycleDays -> 0 | H63: =IF(ISNUMBER(G63),G63,F63) -> 0 | P63: Annual Trips - Commuting | Q63: =ADT1PedNBNew*PerCommPedNB*CycleDays -> 0 | S63: =IF(ISNUMBER(R63),R63,Q63) -> 0
E64: Annual Trips - Other Destinations | F64: =ADT1CycNBNew*PerODCycNB*CycleDays -> 0 | H64: 0 | P64: Annual Trips - Other Destinations | Q64: =ADT1PedNBNew*PerODPedNB*WalkDays -> 0 | S64: 0
E65: Annual Trips - Recreational | F65: =ADT1CycNBNew*PerRecCycNB*CycleDays -> 0 | H65: =IF(ISNUMBER(G65),G65,F65)*RecBen -> 0 | I65: =IF(RecBen=0,"Recreational Users not Included in Benefits","") -> Recreational Users not Included in Benefits | P65: Annual Trips - Recreational | Q65: =ADT1PedNBNew*PerRecPedNB*WalkDays -> 0 | S65: =IF(ISNUMBER(R65),R65,Q65)*RecBen -> 0 | T65: =IF(RecBen=0,"Recreational Users not Included in Benefits","") -> Recreational Users not Included in Benefits
E66: Users - Commuting | F66: =H63/RTCycNB/CycleDays -> 0 | H66: 0 | P66: Users - Commuting | Q66: =S63/RTPedNB/WalkDays -> 0 | S66: 0
E67: Users - Other Destinations | F67: =H64/RTCycNB/CycleDays -> 0 | H67: 0 | P67: Users - Other Destinations | Q67: =S64/RTPedNB/WalkDays -> 0 | S67: 0
E68: Users - Recreational | F68: =H65/RTCycNB/CycleDays -> 0 | H68: =IF(ISNUMBER(G68),G68,F68)*RecBen -> 0 | I68: =IF(RecBen=0,"Recreational Users not Included in Benefits","") -> Recreational Users not Included in Benefits | P68: Users - Recreational | Q68: =S65/2/WalkDays -> 0 | S68: =IF(ISNUMBER(R68),R68,Q68)*RecBen -> 0 | T68: =IF(RecBen=0,"Recreational Users not Included in Benefits","") -> Recreational Users not Included in Benefits
E69: Total Miles - Commuting | F69: =H63*MIN(ProjLenNEW,TAvMiCycNB)*RTCycNB -> 0 | H69: 0 | P69: Total Miles - Commuting | Q69: =S63*MIN(ProjLenNEW,TAvMiPedNB)*RTPedNB -> 0 | S69: 0
E70: Total Miles - Other Destinations | F70: =H64*MIN(ProjLenNEW,TAvMiCycNB)*RTCycNB -> 0 | H70: 0 | P70: Total Miles - Other Destinations | Q70: =S64*MIN(ProjLenNEW,TAvMiPedNB)*RTPedNB -> 0 | S70: 0
E71: Total Miles - Recreational | F71: =H65*MIN(ProjLenNEW,TAvMiCycNB)*RTCycNB -> 0 | H71: =IF(ISNUMBER(G71),G71,F71)*RecBen -> 0 | I71: =IF(RecBen=0,"Recreational Users not Included in Benefits","") -> Recreational Users not Included in Benefits | P71: Total Miles - Recreational | Q71: =S65*MIN(ProjLenNEW,TAvMiPedNB)*RTPedNB -> 0 | S71: =IF(ISNUMBER(R71),R71,Q71)*RecBen -> 0 | T71: =IF(RecBen=0,"Recreational Users not Included in Benefits","") -> Recreational Users not Included in Benefits
D73: Year 20 | O73: Year 20
E74: Trips - Commuting | F74: =ADT20CycNBNew*PerCommCycNB*CycleDays -> 0 | H74: =IF(ISNUMBER(G74),G74,F74) -> 0 | P74: Annual Trips - Commuting | Q74: =ADT20PedNBNew*PerCommPedNB*CycleDays -> 0 | S74: =IF(ISNUMBER(R74),R74,Q74) -> 0
E75: Trips - Other Destinations | F75: =ADT20CycNBNew*PerODCycNB*CycleDays -> 0 | H75: 0 | P75: Annual Trips - Other Destinations | Q75: =ADT20PedNBNew*PerODPedNB*WalkDays -> 0 | S75: 0
E76: Trips - Recreational | F76: =ADT20CycNBNew*PerRecCycNB*CycleDays -> 0 | H76: =IF(ISNUMBER(G76),G76,F76)*RecBen -> 0 | I76: =IF(RecBen=0,"Recreational Users not Included in Benefits","") -> Recreational Users not Included in Benefits | P76: Annual Trips - Recreational | Q76: =ADT20PedNBNew*PerRecPedNB*WalkDays -> 0 | S76: =IF(ISNUMBER(R76),R76,Q76)*RecBen -> 0 | T76: =IF(RecBen=0,"Recreational Users not Included in Benefits","") -> Recreational Users not Included in Benefits
E77: Users - Commuting | F77: =H74/RTCycNB/CycleDays -> 0 | H77: 0 | P77: Users - Commuting | Q77: =S74/RTPedNB/WalkDays -> 0 | S77: 0
E78: Users - Other Destinations | F78: =H75/RTCycNB/CycleDays -> 0 | H78: 0 | P78: Users - Other Destinations | Q78: =S75/RTPedNB/WalkDays -> 0 | S78: 0
E79: Users - Recreational | F79: =H76/RTCycNB/CycleDays -> 0 | H79: =IF(ISNUMBER(G79),G79,F79)*RecBen -> 0 | I79: =IF(RecBen=0,"Recreational Users not Included in Benefits","") -> Recreational Users not Included in Benefits | P79: Users - Recreational | Q79: =S76/2/WalkDays -> 0 | S79: =IF(ISNUMBER(R79),R79,Q79)*RecBen -> 0 | T79: =IF(RecBen=0,"Recreational Users not Included in Benefits","") -> Recreational Users not Included in Benefits
E80: Total Miles - Commuting | F80: =H74*MIN(ProjLenNEW,TAvMiCycNB)*RTCycNB -> 0 | H80: 0 | P80: Total Miles - Commuting | Q80: =S74*MIN(ProjLenNEW,TAvMiPedNB)*RTPedNB -> 0 | S80: 0
E81: Total Miles - Other Destinations | F81: =H75*MIN(ProjLenNEW,TAvMiCycNB)*RTCycNB -> 0 | H81: 0 | P81: Total Miles - Other Destinations | Q81: =S75*MIN(ProjLenNEW,TAvMiPedNB)*RTPedNB -> 0 | S81: 0
E82: Total Miles - Recreational | F82: =H76*MIN(ProjLenNEW,TAvMiCycNB)*RTCycNB -> 0 | H82: =IF(ISNUMBER(G82),G82,F82)*RecBen -> 0 | I82: =IF(RecBen=0,"Recreational Users not Included in Benefits","") -> Recreational Users not Included in Benefits | P82: Total Miles - Recreational | Q82: =S76*MIN(ProjLenNEW,TAvMiPedNB)*RTPedNB -> 0 | S82: =IF(ISNUMBER(R82),R82,Q82)*RecBen -> 0 | T82: =IF(RecBen=0,"Recreational Users not Included in Benefits","") -> Recreational Users not Included in Benefits
C85: Build - Cycling | N85: Build - Pedestrian
D86: Year 1 | O86: Year 1
E88: Annual Trips - Commuting | F88: =ADT1CycBNew*PerCommCycB*CycleDays -> 0 | H88: =IF(ISNUMBER(G88),G88,F88) -> 0 | P88: Annual Trips - Commuting | Q88: =ADT1PedBNew*PerCommPedB*CycleDays -> 0 | S88: =IF(ISNUMBER(R88),R88,Q88) -> 0
E89: Annual Trips - Other Destinations | F89: =ADT1CycBNew*PerODCycB*CycleDays -> 0 | H89: 0 | P89: Annual Trips - Other Destinations | Q89: =ADT1PedBNew*PerODPedB*WalkDays -> 0 | S89: 0
E90: Annual Trips - Recreational | F90: =ADT1CycBNew*PerRecCycB*CycleDays -> 0 | H90: =IF(ISNUMBER(G90),G90,F90)*RecBen -> 0 | I90: =IF(RecBen=0,"Recreational Users not Included in Benefits","") -> Recreational Users not Included in Benefits | P90: Annual Trips - Recreational | Q90: =ADT1PedBNew*PerRecPedB*WalkDays -> 0 | S90: =IF(ISNUMBER(R90),R90,Q90)*RecBen -> 0 | T90: =IF(RecBen=0,"Recreational Users not Included in Benefits","") -> Recreational Users not Included in Benefits
E91: Users - Commuting | F91: =H88/RTCycNB/CycleDays -> 0 | H91: 0 | P91: Users - Commuting | Q91: =S88/RTPedNB/WalkDays -> 0 | S91: 0
E92: Users - Other Destinations | F92: =H89/RTCycNB/CycleDays -> 0 | H92: 0 | P92: Users - Other Destinations | Q92: =S89/RTPedNB/WalkDays -> 0 | S92: 0
E93: Users - Recreational | F93: =H90/RTCycNB/CycleDays -> 0 | H93: =IF(ISNUMBER(G93),G93,F93)*RecBen -> 0 | I93: =IF(RecBen=0,"Recreational Users not Included in Benefits","") -> Recreational Users not Included in Benefits | P93: Users - Recreational | Q93: =S90/2/WalkDays -> 0 | S93: =IF(ISNUMBER(R93),R93,Q93)*RecBen -> 0 | T93: =IF(RecBen=0,"Recreational Users not Included in Benefits","") -> Recreational Users not Included in Benefits
E94: Total Miles - Commuting | F94: =H88*MIN(ProjLenNEW,TAvMiCycNB)*RTCycNB -> 0 | H94: 0 | P94: Total Miles - Commuting | Q94: =S88*MIN(ProjLenNEW,TAvMiPedNB)*RTPedNB -> 0 | S94: 0
E95: Total Miles - Other Destinations | F95: =H89*MIN(ProjLenNEW,TAvMiCycNB)*RTCycNB -> 0 | H95: 0 | P95: Total Miles - Other Destinations | Q95: =S89*MIN(ProjLenNEW,TAvMiPedNB)*RTPedNB -> 0 | S95: 0
E96: Total Miles - Recreational | F96: =H90*MIN(ProjLenNEW,TAvMiCycNB)*RTCycNB -> 0 | H96: =IF(ISNUMBER(G96),G96,F96)*RecBen -> 0 | I96: =IF(RecBen=0,"Recreational Users not Included in Benefits","") -> Recreational Users not Included in Benefits | P96: Total Miles - Recreational | Q96: =S90*MIN(ProjLenNEW,TAvMiPedNB)*RTPedNB -> 0 | S96: =IF(ISNUMBER(R96),R96,Q96)*RecBen -> 0 | T96: =IF(RecBen=0,"Recreational Users not Included in Benefits","") -> Recreational Users not Included in Benefits
D98: Year 20 | O98: Year 20
E99: Annual Trips - Commuting | F99: =ADT20CycBNew*PerCommCycB*CycleDays -> 0 | H99: =IF(ISNUMBER(G99),G99,F99) -> 0 | P99: Annual Trips - Commuting | Q99: =ADT20PedBNew*PerCommPedB*CycleDays -> 0 | S99: =IF(ISNUMBER(R99),R99,Q99) -> 0
E100: Annual Trips - Other Destinations | F100: =ADT20CycBNew*PerODCycB*CycleDays -> 0 | H100: 0 | P100: Annual Trips - Other Destinations | Q100: =ADT20PedBNew*PerODPedB*WalkDays -> 0 | S100: 0
E101: Annual Trips - Recreational | F101: =ADT20CycBNew*PerRecCycB*CycleDays -> 0 | H101: =IF(ISNUMBER(G101),G101,F101)*RecBen -> 0 | I101: =IF(RecBen=0,"Recreational Users not Included in Benefits","") -> Recreational Users not Included in Benefits | P101: Annual Trips - Recreational | Q101: =ADT20PedBNew*PerRecPedB*WalkDays -> 0 | S101: =IF(ISNUMBER(R101),R101,Q101)*RecBen -> 0 | T101: =IF(RecBen=0,"Recreational Users not Included in Benefits","") -> Recreational Users not Included in Benefits
E102: Users - Commuting | F102: =H99/RTCycNB/CycleDays -> 0 | H102: 0 | P102: Users - Commuting | Q102: =S99/RTPedNB/WalkDays -> 0 | S102: 0
E103: Users - Other Destinations | F103: =H100/RTCycNB/CycleDays -> 0 | H103: 0 | P103: Users - Other Destinations | Q103: =S100/RTPedNB/WalkDays -> 0 | S103: 0
E104: Users - Recreational | F104: =H101/RTCycNB/CycleDays -> 0 | H104: =IF(ISNUMBER(G104),G104,F104)*RecBen -> 0 | I104: =IF(RecBen=0,"Recreational Users not Included in Benefits","") -> Recreational Users not Included in Benefits | P104: Users - Recreational | Q104: =S101/2/WalkDays -> 0 | S104: =IF(ISNUMBER(R104),R104,Q104)*RecBen -> 0 | T104: =IF(RecBen=0,"Recreational Users not Included in Benefits","") -> Recreational Users not Included in Benefits
E105: Total Miles - Commuting | F105: =H99*MIN(ProjLenNEW,TAvMiCycNB)*RTCycNB -> 0 | H105: 0 | P105: Total Miles - Commuting | Q105: =S99*MIN(ProjLenNEW,TAvMiPedNB)*RTPedNB -> 0 | S105: 0
E106: Total Miles - Other Destinations | F106: =H100*MIN(ProjLenNEW,TAvMiCycNB)*RTCycNB -> 0 | H106: 0 | P106: Total Miles - Other Destinations | Q106: =S100*MIN(ProjLenNEW,TAvMiPedNB)*RTPedNB -> 0 | S106: 0
E107: Total Miles - Recreational | F107: =H101*MIN(ProjLenNEW,TAvMiCycNB)*RTCycNB -> 0 | H107: =IF(ISNUMBER(G107),G107,F107)*RecBen -> 0 | I107: =IF(RecBen=0,"Recreational Users not Included in Benefits","") -> Recreational Users not Included in Benefits | P107: Total Miles - Recreational | Q107: =S101*MIN(ProjLenNEW,TAvMiPedNB)*RTPedNB -> 0 | S107: =IF(ISNUMBER(R107),R107,Q107)*RecBen -> 0 | T107: =IF(RecBen=0,"Recreational Users not Included in Benefits","") -> Recreational Users not Included in Benefits
C112: 2C | E112: ACTIVE TRANSPORTATION DAILY VOLUME INPUTS - CYCLING - New Safe Routes To School | N112: 2G | P112: ACTIVE TRANSPORTATION DAILY VOLUME INPUTS - PEDESTRIAN - New Safe Routes To School
F114: Calculated by Model | G114: Changed by User | H114: Used for Proj. Eval. | I114: Reason for Change | Q114: Calculated by Model | R114: Changed by User | S114: Used for Proj. Eval. | T114: Reason for Change
C115: No Build - Cycling | N115: No Build - Pedestrian
D116: Year 1 | O116: Year 1
E117: Annual Trips - SRTS | F117: =ADT1CycNBNew_SRTS*SchDays -> 0 | H117: =IF(ISNUMBER(G117),G117,F117) -> 0 | P117: Annual Trips - SRTS | Q117: =ADT1PedNBNew_SRTS*SchDays -> 0 | S117: =IF(ISNUMBER(R117),R117,Q117) -> 0
E118: SRTS Users | F118: =ADT1CycNBNew_SRTS*SchDays/RTCycNB/SchDays -> 0 | H118: =IF(ISNUMBER(G118),G118,F118) -> 0 | P118: SRTS Users | Q118: =ADT1PedNBNew_SRTS*SchDays/RTPedNB/SchDays -> 0 | S118: =IF(ISNUMBER(R118),R118,Q118) -> 0
E119: Total Miles - SRTS | F119: =H118*MIN(ProjLenNEW,TAvMiCycNBSRTS)*RTCycNB -> 0 | H119: =IF(ISNUMBER(G119),G119,F119) -> 0 | P119: Total Miles - SRTS | Q119: =S118*MIN(ProjLenNEW,TAvMiPedNBSRTS)*RTPedNB -> 0 | S119: =IF(ISNUMBER(R119),R119,Q119) -> 0
D121: Year 20 | O121: Year 20
E122: Annual Trips - SRTS | F122: =ADT20CycNBNew_SRTS*SchDays -> 0 | H122: =IF(ISNUMBER(G122),G122,F122) -> 0 | P122: Annual Trips - SRTS | Q122: =ADT20PedNBNew_SRTS*SchDays -> 0 | S122: =IF(ISNUMBER(R122),R122,Q122) -> 0
E123: SRTS Users | F123: =ADT20CycNBNew_SRTS*SchDays/RTCycNB/SchDays -> 0 | H123: =IF(ISNUMBER(G123),G123,F123) -> 0 | P123: SRTS Users | Q123: =ADT20PedNBNew_SRTS*SchDays/RTPedNB/SchDays -> 0 | S123: =IF(ISNUMBER(R123),R123,Q123) -> 0
E124: Total Miles - SRTS | F124: =H123*MIN(ProjLenNEW,TAvMiCycNBSRTS)*RTCycNB -> 0 | H124: =IF(ISNUMBER(G124),G124,F124) -> 0 | P124: Total Miles - SRTS | Q124: =S123*MIN(ProjLenNEW,TAvMiPedNBSRTS)*RTPedNB -> 0 | S124: =IF(ISNUMBER(R124),R124,Q124) -> 0
C126: Build - Cycling | N126: Build - Pedestrian
D127: Year 1 | O127: Year 1
E128: Annual Trips - SRTS | F128: =ADT1CycBNew_SRTS*SchDays -> 0 | H128: =IF(ISNUMBER(G128),G128,F128) -> 0 | P128: Annual Trips - SRTS | Q128: =ADT1PedBNew_SRTS*SchDays -> 0 | S128: =IF(ISNUMBER(R128),R128,Q128) -> 0
E129: SRTS Users | F129: =ADT1CycBNew_SRTS*SchDays/RTCycNB/SchDays -> 0 | H129: =IF(ISNUMBER(G129),G129,F129) -> 0 | P129: SRTS Users | Q129: =ADT1PedBNew_SRTS*SchDays/RTPedNB/SchDays -> 0 | S129: =IF(ISNUMBER(R129),R129,Q129) -> 0
E130: Total Miles - SRTS | F130: =H129*MIN(ProjLenNEW,TAvMiCycNBSRTS)*RTCycNB -> 0 | H130: =IF(ISNUMBER(G130),G130,F130) -> 0 | P130: Total Miles - SRTS | Q130: =S129*MIN(ProjLenNEW,TAvMiPedNBSRTS)*RTPedNB -> 0 | S130: =IF(ISNUMBER(R130),R130,Q130) -> 0
D132: Year 20 | O132: Year 20
E133: Annual Trips - SRTS | F133: =ADT20CycBNew_SRTS*SchDays -> 0 | H133: =IF(ISNUMBER(G133),G133,F133) -> 0 | P133: Annual Trips - SRTS | Q133: =ADT20PedBNew_SRTS*SchDays -> 0 | S133: =IF(ISNUMBER(R133),R133,Q133) -> 0
E134: SRTS Users | F134: =ADT20CycBNew_SRTS*SchDays/RTCycNB/SchDays -> 0 | H134: =IF(ISNUMBER(G134),G134,F134) -> 0 | P134: SRTS Users | Q134: =ADT20PedBNew_SRTS*SchDays/RTPedNB/SchDays -> 0 | S134: =IF(ISNUMBER(R134),R134,Q134) -> 0
E135: Total Miles - SRTS | F135: =H134*MIN(ProjLenNEW,TAvMiCycNBSRTS)*RTCycNB -> 0 | H135: =IF(ISNUMBER(G135),G135,F135) -> 0 | P135: Total Miles - SRTS | Q135: =S134*MIN(ProjLenNEW,TAvMiPedNBSRTS)*RTPedNB -> 0 | S135: =IF(ISNUMBER(R135),R135,Q135) -> 0
C140: 2D | E140: ACTIVE TRANSPORTATION DAILY VOLUME INPUTS - CYCLING - Existing Safe Routes To School | N140: 2H | P140: ACTIVE TRANSPORTATION DAILY VOLUME INPUTS - PEDESTRIAN - Existing Safe Routes To School
F142: Calculated by Model | G142: Changed by User | H142: Used for Proj. Eval. | I142: Reason for Change | Q142: Calculated by Model | R142: Changed by User | S142: Used for Proj. Eval. | T142: Reason for Change
C143: No Build - Cycling | N143: No Build - Pedestrian
D144: Year 1 | O144: Year 1
E145: Annual Trips - SRTS | F145: =ADT1CycNBEX_SRTS*SchDays -> 0 | H145: =IF(ISNUMBER(G145),G145,F145) -> 0 | P145: Annual Trips - SRTS | Q145: =ADT1PedNBEX_SRTS*SchDays -> 0 | S145: =IF(ISNUMBER(R145),R145,Q145) -> 0
E146: SRTS Users | F146: =ADT1CycNBEX_SRTS*SchDays/RTCycNB/SchDays -> 0 | H146: =IF(ISNUMBER(G146),G146,F146) -> 0 | P146: SRTS Users | Q146: =ADT1PedNBEX_SRTS*SchDays/RTPedNB/SchDays -> 0 | S146: =IF(ISNUMBER(R146),R146,Q146) -> 0
E147: Total Miles - SRTS | F147: =H146*MIN(ProjLenEX,TAvMiCycNBSRTS)*RTCycNB -> 0 | H147: =IF(ISNUMBER(G147),G147,F147) -> 0 | P147: Total Miles - SRTS | Q147: =S146*MIN(ProjLenEX,TAvMiPedNBSRTS)*RTPedNB -> 0 | S147: =IF(ISNUMBER(R147),R147,Q147) -> 0
D149: Year 20 | O149: Year 20
E150: Annual Trips - SRTS | F150: =ADT20CycNBEX_SRTS*SchDays -> 0 | H150: =IF(ISNUMBER(G150),G150,F150) -> 0 | P150: Annual Trips - SRTS | Q150: =ADT20PedNBEX_SRTS*SchDays -> 0 | S150: =IF(ISNUMBER(R150),R150,Q150) -> 0
E151: SRTS Users | F151: =ADT20CycNBEX_SRTS*SchDays/RTCycNB/SchDays -> 0 | H151: =IF(ISNUMBER(G151),G151,F151) -> 0 | P151: SRTS Users | Q151: =ADT20PedNBEX_SRTS*SchDays/RTPedNB/SchDays -> 0 | S151: =IF(ISNUMBER(R151),R151,Q151) -> 0
E152: Total Miles - SRTS | F152: =H151*MIN(ProjLenEX,TAvMiCycNBSRTS)*RTCycNB -> 0 | H152: =IF(ISNUMBER(G152),G152,F152) -> 0 | P152: Total Miles - SRTS | Q152: =S151*MIN(ProjLenEX,TAvMiPedNBSRTS)*RTPedNB -> 0 | S152: =IF(ISNUMBER(R152),R152,Q152) -> 0
C154: Build - Cycling | N154: Build - Pedestrian
D155: Year 1 | O155: Year 1
E156: Annual Trips - SRTS | F156: =ADT1CycBEX_SRTS*SchDays -> 0 | H156: =IF(ISNUMBER(G156),G156,F156) -> 0 | P156: Annual Trips - SRTS | Q156: =ADT1PedBEX_SRTS*SchDays -> 0 | S156: =IF(ISNUMBER(R156),R156,Q156) -> 0
E157: SRTS Users | F157: =ADT1CycBEX_SRTS*SchDays/RTCycNB/SchDays -> 0 | H157: =IF(ISNUMBER(G157),G157,F157) -> 0 | P157: SRTS Users | Q157: =ADT1PedBEX_SRTS*SchDays/RTPedNB/SchDays -> 0 | S157: =IF(ISNUMBER(R157),R157,Q157) -> 0
E158: Total Miles - SRTS | F158: =H157*MIN(ProjLenEX,TAvMiCycNBSRTS)*RTCycNB -> 0 | H158: =IF(ISNUMBER(G158),G158,F158) -> 0 | P158: Total Miles - SRTS | Q158: =S157*MIN(ProjLenEX,TAvMiPedNBSRTS)*RTPedNB -> 0 | S158: =IF(ISNUMBER(R158),R158,Q158) -> 0
D160: Year 20 | O160: Year 20
E161: Annual Trips - SRTS | F161: =ADT20CycBEX_SRTS*SchDays -> 0 | H161: =IF(ISNUMBER(G161),G161,F161) -> 0 | P161: Annual Trips - SRTS | Q161: =ADT20PedBEX_SRTS*SchDays -> 0 | S161: =IF(ISNUMBER(R161),R161,Q161) -> 0
E162: SRTS Users | F162: =ADT20CycBEX_SRTS*SchDays/RTCycNB/SchDays -> 0 | H162: =IF(ISNUMBER(G162),G162,F162) -> 0 | P162: SRTS Users | Q162: =ADT20PedBEX_SRTS*SchDays/RTPedNB/SchDays -> 0 | S162: =IF(ISNUMBER(R162),R162,Q162) -> 0
E163: Total Miles - SRTS | F163: =H162*MIN(ProjLenEX,TAvMiCycNBSRTS)*RTCycNB -> 0 | H163: =IF(ISNUMBER(G163),G163,F163) -> 0 | P163: Total Miles - SRTS | Q163: =S162*MIN(ProjLenEX,TAvMiPedNBSRTS)*RTPedNB -> 0 | S163: =IF(ISNUMBER(R163),R163,Q163) -> 0
C165: PROPORTIONS OF SRTS IN TOTAL BENEFITS | N165: PROPORTIONS OF SRTS IN TOTAL BENEFITS
E166: SRTS Trip-Mile / Total Trip-Mile | F166: =IFERROR(IF(ProjType=2,$H$119/(SUM($H$14:$H$16,$H$119)),IF(OR(ProjType=1,ProjType=3),$H$147/(SUM($H$14:$H$16,$H$147)))),0) -> 0 | H166: =IF(ISNUMBER(G166),G166,F166) -> 0 | P166: SRTS Trip-Mile / Total Trip-Mile | Q166: =IFERROR(IF(ProjType=2,$S$119/(SUM($S$14:$S$16,$S$119)),IF(OR(ProjType=1,ProjType=3),$S$147/(SUM($S$14:$S$16,$S$147)))),0) -> 0 | S166: =IF(ISNUMBER(R166),R166,Q166) -> 0

Sheet 3) Results
B2: District: | E2: ='1a) Project Info'!E2 -> HQ
Q3: EA: | R3: ='1a) Project Info'!I3 -> 0
B4: PROJECT: | E4: =ProjName -> Hypothetical Project | Q4: PPNO: | R4: ='1a) Project Info'!I4 -> 0
D8: 3 | E8: INVESTMENT ANALYSIS
E9: SUMMARY RESULTS
Q11: Total Over | R11: Average
E12: Life-Cycle Costs (mil. $) | H12: =lifecyclecost/1000000 -> 0 | L12: ITEMIZED BENEFITS (mil. $) | Q12: 20 Years | R12: Annual
E13: Life-Cycle Benefits (mil. $) | H13: =lifecyclebenefits/1000000 -> 0 | L13: Journey Quality | Q13: =('Final Calculations'!C56)/1000000 -> 0 | R13: =Q13/20 -> 0
E14: Net Present Value (mil. $) | H14: =NetPresentValue/1000000 -> 0 | L14: Additional Delay Savings | Q14: =('Final Calculations'!D56)/1000000 -> 0 | R14: 0
L15: Additional Safety Benefits | Q15: =('Final Calculations'!E56)/1000000 -> 0 | R15: 0
E16: Benefit / Cost Ratio: | H16: =IF(lifecyclecost=0,"N/A",lifecyclebenefits/lifecyclecost) -> N/A | L16: Health Benefits | Q16: =('Final Calculations'!F56)/1000000 -> 0 | R16: 0
L17: Emission Cost Savings | Q17: =('Final Calculations'!G56)/1000000 -> 0 | R17: 0
E18: Rate of Return on Investment: | H18: =IFERROR(ReturnOnInvest,0) -> N/A | L18: TOTAL BENEFITS | Q18: =SUM(Q13:Q17) -> 0 | R18: 0
E20: Payback Period: | H20: =payback -> N/A | L20: SRTS-SPECIFIC BENEFITS (mil. $)
L21: Journey Quality | Q21: =IF($H$31="Yes",'Final Calculations'!N56/1000000,"N/A") -> 0 | R21: =IF($H$31="Yes",Q21/20,"N/A") -> 0
E22: NON-INFRASTRUCTURE IMPLEMENTATION COST | L22: Additional Delay Savings | Q22: =IF($H$31="Yes",'Final Calculations'!O56/1000000,"N/A") -> 0 | R22: =IF($H$31="Yes",Q22/20,"N/A") -> 0
E23: Per Bike Program Impact Score | H23: =IF($H$33="Yes",'1b) Non-Inf Program Info'!$H$75,"N/A") -> N/A | L23: Additional Safety Benefits | Q23: =IF($H$31="Yes",'Final Calculations'!P56/1000000,"N/A") -> 0 | R23: =IF($H$31="Yes",Q23/20,"N/A") -> 0
E24: Per Ped Program Impact Score | H24: =IF($H$33="Yes",'1b) Non-Inf Program Info'!$H$86,"N/A") -> N/A | L24: TOTAL SRTS BENEFITS | Q24: =IF($H$31="Yes",SUM(Q21:Q23),"N/A") -> 0 | R24: =IF($H$31="Yes",Q24/20,"N/A") -> 0
O27: Tons | Q27: Value (mil. $)
E28: Factors that Differentiate Benefits | O28: Total Over | P28: Average | Q28: Total Over | R28: Average
E29: and Performance Measures | L29: EMISSIONS REDUCTION | O29: 20 Years | P29: Annual | Q29: 20 Years | R29: Annual
L30: CO Emissions Saved | O30: ='Final Calculations'!C60 -> 0 | P30: =O30/20 -> 0 | Q30: =('Final Calculations'!D60)/1000000 -> 0 | R30: =Q30/20 -> 0
E31: Safe Route to School | H31: =IF('1a) Project Info'!H19=1,"Yes","No") -> Yes | L31: CO2 Emissions Saved | O31: ='Final Calculations'!C61 -> 0 | P31: =O31/20 -> 0 | Q31: =('Final Calculations'!D61)/1000000 -> 0 | R31: =Q31/20 -> 0
E32: Intersection Improvements on SRTS | H32: =IF('1a) Project Info'!H89=1,"Yes","No") -> No | L32: NOX Emissions Saved | O32: ='Final Calculations'!C62 -> 0 | P32: =O32/20 -> 0 | Q32: =('Final Calculations'!D62)/1000000 -> 0 | R32: =Q32/20 -> 0
E33: Programmatic Initiatives | H33: =IF('1a) Project Info'!H21=1,"Yes","No") -> No | L33: PM2.5 Emissions Saved | O33: ='Final Calculations'!C63 -> 0 | P33: 0 | Q33: =('Final Calculations'!D63)/1000000 -> 0 | R33: 0
E34: Recreational Benefits | H34: 0
E35: (enter 1 for Yes, 0 for No) | L35: SOX Emissions Saved | O35: ='Final Calculations'!C65 -> 0 | P35: 0 | Q35: =('Final Calculations'!D65)/1000000 -> 0 | R35: =Q35/20 -> 0
L36: VOC Emissions Saved | O36: ='Final Calculations'!C66 -> 0 | P36: 0 | Q36: =('Final Calculations'!D66)/1000000 -> 0 | R36: =Q36/20 -> 0

Sheet Journey Quality
B1: Journey Quality Benefits
B3: This sheet calculates journey quality benefits for cyclists and pedestrians who travel to a destination. Recreational users are not included.
B5: Formulas:
B7: Avg. Annual Trips = Avg. Daily Trips x Annual Days in Year, by purpose | H7: Value of Journey Quality = Time-Value of Improvement x Avg. Value of Time
B8: trips / yr. | H8: $ / year | J8: $/hour
B10: Time-Value of Imp. = (1 - Facility Preference Factor) x Distance per Trip (Mi.) / Travel Speed (MPH) | H10: Value of Journey Quality for Induced trips applies rule of half
B11: trip - hrs / yr. | D11: trips / yr. x miles | F11: miles/hour
B15: A | C15: CYCLING BENEFITS | M15: B | N15: PEDESTRIAN BENEFITS | X15: C | Y15: TOTAL
B18: Existing Facility | M18: Existing Facility | X18: Existing Facility
C20: AVERAGE ANNUAL VOLUME | G20: JOURNEY QUALITY VALUE | N20: ANNUAL PERSON-MILES | R20: JOURNEY QUALITY VALUE
C21: (trips/yr.) | G21: ($) | N21: (trip-miles/yr.) | R21: ($)
B22: Year | C22: Total Trips, Existing Facility (Baseline) | D22: Total Trips, Improved Facility | E22: Existing Trips, Improved Facility | F22: Induced Trips, Improved Facility | G22: Existing Trip-Miles, Existing Facility | H22: Existing Trip-Miles, Improved Facility | I22: Induced Trip-Miles, Improved Facility | J22: Constant Dollars | K22: Present Value | M22: Year | N22: Total Trips, Existing Facility (Baseline) | O22: Total Trips, Improved Facility | P22: Existing Trips, Improved Facility | Q22: Induced Trips, Improved Facility | R22: Existing Trip-Miles, Existing Facility | S22: Existing Trip-Miles, Improved Facility | T22: Induced Trip-Miles, Improved Facility | U22: Constant Dollars | V22: Present Value | X22: Year | Y22: Constant Dollars | Z22: Present Value
B23: 1 | C23: =IF(OR(ProjType=1,ProjType=3),TrComCyc1NBEX+TrODCyc1NBEX+TrRecCyc1NBEX*RecBen,0) -> 0 | D23: =IF(OR(ProjType=1,ProjType=3),TrComCyc1BEX+TrODCyc1BEX+TrRecCyc1BEX*RecBen,0) -> 0 | E23: =C23 -> 0 | F23: =D23-C23 -> 0 | G23: =E23*JQValperMiCycNBEx*ValTimeAT*MIN(TAvMiCycNB,ProjLenEX) -> 0 | H23: =E23*JQValperMiCycBEx*ValTimeAT*MIN(TAvMiCycB,ProjLenEX) -> 0 | I23: =F23*(JQValperMiCycBEx-JQValperMiCycNBEx)*ValTimeAT*MIN(TAvMiCycB,ProjLenEX)*1/2 -> 0 | J23: =((H23-G23)+(I23))*(1+TTUprater)^($B23+Construct-1) -> 0 | K23: =$J23/(1+DiscRate)^($B23+Construct-1) -> 0 | M23: 1 | N23: =IF(OR(ProjType=1,ProjType=3),TrComPed1NBEX+TrODPed1NBEX+TrRecPed1NBEX*RecBen,0) -> 0 | O23: =IF(OR(ProjType=1,ProjType=3),TrComPed1BEX+TrODPed1BEX+TrRecPed1BEX*RecBen,0) -> 0 | P23: =N23 -> 0 | Q23: =O23-N23 -> 0 | R23: =P23*JQValperMiPedNBEx*MIN(TAvMiPedNB,ProjLenEX) -> 0 | S23: =P23*JQValperMiPedBEx*MIN(TAvMiPedB,ProjLenEX) -> 0 | T23: =Q23*(JQValperMiPedBEx-JQValperMiPedNBEx)*MIN(TAvMiPedB,ProjLenEX)*1/2 -> 0 | U23: =(S23-R23+T23)*(1+TTUprater)^($B23+Construct-1) -> 0 | V23: =$U23/(1+DiscRate)^($B23+Construct-1) -> 0 | X23: 1 | Y23: =U23+J23 -> 0 | Z23: =V23+K23 -> 0
B24: 20 | C24: =IF(OR(ProjType=1,ProjType=3),TrComCyc20NBEX+TrODCyc20NBEX+TrRecCyc20NBEX*RecBen,0) -> 0 | D24: =IF(OR(ProjType=1,ProjType=3),TrComCyc20BEX+TrODCyc20BEX+TrRecCyc20BEX*RecBen,0) -> 0 | E24: =C24 -> 0 | F24: =D24-C24 -> 0 | G24: =E24*JQValperMiCycNBEx*ValTimeAT*MIN(TAvMiCycNB,ProjLenEX) -> 0 | H24: =E24*JQValperMiCycBEx*ValTimeAT*MIN(TAvMiCycB,ProjLenEX) -> 0 | I24: =F24*(JQValperMiCycBEx-JQValperMiCycNBEx)*ValTimeAT*MIN(TAvMiCycB,ProjLenEX)*1/2 -> 0 | J24: =((H24-G24)+(I24))*(1+TTUprater)^($B24+Construct-1) -> 0 | K24: =$J24/(1+DiscRate)^($B24+Construct-1) -> 0 | M24: 20 | N24: =IF(OR(ProjType=1,ProjType=3),TrComPed20NBEX+TrODPed20NBEX+TrRecPed20NBEX*RecBen,0) -> 0 | O24: =IF(OR(ProjType=1,ProjType=3),TrComPed20BEX+TrODPed20BEX+TrRecPed20BEX*RecBen,0) -> 0 | P24: =N24 -> 0 | Q24: =O24-N24 -> 0 | R24: =P24*JQValperMiPedNBEx*MIN(TAvMiPedNB,ProjLenEX) -> 0 | S24: =P24*JQValperMiPedBEx*MIN(TAvMiPedB,ProjLenEX) -> 0 | T24: =Q24*(JQValperMiPedBEx-JQValperMiPedNBEx)*MIN(TAvMiPedB,ProjLenEX)*1/2 -> 0 | U24: =(S24-R24+T24)*(1+TTUprater)^($B24+Construct-1) -> 0 | V24: =$U24/(1+DiscRate)^($B24+Construct-1) -> 0 | X24: 20 | Y24: =U24+J24 -> 0 | Z24: =V24+K24 -> 0
A26: =F26/965 -> 0 | B26: 1 | C26: =TREND(C$23:C$24,$B$23:$B$24,$B26) -> 0 | D26: =TREND(D$23:D$24,$B$23:$B$24,$B26) -> 0 | E26: =TREND(E$23:E$24,$B$23:$B$24,$B26) -> 0 | F26: =TREND(F$23:F$24,$B$23:$B$24,$B26) -> 0 | G26: =E26*JQValperMiCycNBEx*ValTimeAT*MIN(TAvMiCycNB,ProjLenEX) -> 0 | H26: =E26*JQValperMiCycBEx*ValTimeAT*MIN(TAvMiCycB,ProjLenEX) -> 0 | I26: =F26*(JQValperMiCycBEx-JQValperMiCycNBEx)*ValTimeAT*MIN(TAvMiCycB,ProjLenEX)*1/2 -> 0 | J26: =((H26-G26)+(I26))*(1+TTUprater)^($B26+Construct-1) -> 0 | K26: =$J26/(1+DiscRate)^($B26+Construct-1) -> 0 | M26: 1 | N26: =TREND(N$23:N$24,$M$23:$M$24,$M26) -> 0 | O26: =TREND(O$23:O$24,$M$23:$M$24,$M26) -> 0 | P26: =TREND(P$23:P$24,$M$23:$M$24,$M26) -> 0 | Q26: =TREND(Q$23:Q$24,$M$23:$M$24,$M26) -> 0 | R26: =P26*JQValperMiPedNBEx*MIN(TAvMiPedNB,ProjLenEX) -> 0 | S26: =P26*JQValperMiPedBEx*MIN(TAvMiPedB,ProjLenEX) -> 0 | T26: =Q26*(JQValperMiPedBEx-JQValperMiPedNBEx)*MIN(TAvMiPedB,ProjLenEX)*1/2 -> 0 | U26: =(S26-R26+T26)*(1+TTUprater)^($B26+Construct-1) -> 0 | V26: =$U26/(1+DiscRate)^($B26+Construct-1) -> 0 | X26: 1 | Y26: =U26+J26 -> 0 | Z26: 0
A27: =F27/965 -> 0 | B27: 2 | C27: =TREND(C$23:C$24,$B$23:$B$24,$B27) -> 0 | D27: 0 | E27: 0 | F27: =TREND(F$23:F$24,$B$23:$B$24,$B27) -> 0 | G27: 0 | H27: 0 | I27: 0 | J27: 0 | K27: 0 | M27: 2 | N27: =TREND(N$23:N$24,$M$23:$M$24,$M27) -> 0 | O27: 0 | P27: 0 | Q27: 0 | R27: 0 | S27: 0 | T27: 0 | U27: 0 | V27: 0 | X27: 2 | Y27: 0 | Z27: 0
A28: 0 | B28: 3 | C28: 0 | D28: 0 | E28: 0 | F28: =TREND(F$23:F$24,$B$23:$B$24,$B28) -> 0 | G28: 0 | H28: 0 | I28: 0 | J28: 0 | K28: 0 | M28: 3 | N28: 0 | O28: 0 | P28: 0 | Q28: 0 | R28: 0 | S28: 0 | T28: 0 | U28: 0 | V28: 0 | X28: 3 | Y28: 0 | Z28: 0
A29: 0 | B29: 4 | C29: 0 | D29: 0 | E29: 0 | F29: =TREND(F$23:F$24,$B$23:$B$24,$B29) -> 0 | G29: 0 | H29: 0 | I29: 0 | J29: 0 | K29: 0 | M29: 4 | N29: 0 | O29: 0 | P29: 0 | Q29: 0 | R29: 0 | S29: 0 | T29: 0 | U29: 0 | V29: 0 | X29: 4 | Y29: 0 | Z29: 0
A30: 0 | B30: 5 | C30: 0 | D30: 0 | E30: 0 | F30: 0 | G30: 0 | H30: 0 | I30: 0 | J30: 0 | K30: 0 | M30: 5 | N30: 0 | O30: 0 | P30: 0 | Q30: 0 | R30: 0 | S30: 0 | T30: 0 | U30: 0 | V30: 0 | X30: 5 | Y30: 0 | Z30: 0
A31: 0 | B31: 6 | C31: 0 | D31: 0 | E31: 0 | F31: 0 | G31: 0 | H31: 0 | I31: 0 | J31: 0 | K31: 0 | M31: 6 | N31: 0 | O31: 0 | P31: 0 | Q31: 0 | R31: 0 | S31: 0 | T31: 0 | U31: 0 | V31: 0 | X31: 6 | Y31: 0 | Z31: 0
A32: 0 | B32: 7 | C32: 0 | D32: 0 | E32: 0 | F32: 0 | G32: 0 | H32: 0 | I32: 0 | J32: 0 | K32: 0 | M32: 7 | N32: 0 | O32: 0 | P32: 0 | Q32: 0 | R32: 0 | S32: 0 | T32: 0 | U32: 0 | V32: 0 | X32: 7 | Y32: 0 | Z32: 0
A33: 0 | B33: 8 | C33: 0 | D33: 0 | E33: 0 | F33: 0 | G33: 0 | H33: 0 | I33: 0 | J33: 0 | K33: 0 | M33: 8 | N33: 0 | O33: 0 | P33: 0 | Q33: 0 | R33: 0 | S33: 0 | T33: 0 | U33: 0 | V33: 0 | X33: 8 | Y33: 0 | Z33: 0
A34: 0 | B34: 9 | C34: 0 | D34: 0 | E34: 0 | F34: 0 | G34: 0 | H34: 0 | I34: 0 | J34: 0 | K34: 0 | M34: 9 | N34: 0 | O34: 0 | P34: 0 | Q34: 0 | R34: 0 | S34: 0 | T34: 0 | U34: 0 | V34: 0 | X34: 9 | Y34: 0 | Z34: 0
A35: 0 | B35: 10 | C35: 0 | D35: 0 | E35: 0 | F35: 0 | G35: 0 | H35: 0 | I35: 0 | J35: 0 | K35: 0 | M35: 10 | N35: 0 | O35: 0 | P35: 0 | Q35: 0 | R35: 0 | S35: 0 | T35: 0 | U35: 0 | V35: 0 | X35: 10 | Y35: 0 | Z35: 0
A36: 0 | B36: 11 | C36: 0 | D36: 0 | E36: 0 | F36: 0 | G36: 0 | H36: 0 | I36: 0 | J36: 0 | K36: 0 | M36: 11 | N36: 0 | O36: 0 | P36: 0 | Q36: 0 | R36: 0 | S36: 0 | T36: 0 | U36: 0 | V36: 0 | X36: 11 | Y36: 0 | Z36: 0
A37: 0 | B37: 12 | C37: 0 | D37: 0 | E37: 0 | F37: 0 | G37: 0 | H37: 0 | I37: 0 | J37: 0 | K37: 0 | M37: 12 | N37: 0 | O37: 0 | P37: 0 | Q37: 0 | R37: 0 | S37: 0 | T37: 0 | U37: 0 | V37: 0 | X37: 12 | Y37: 0 | Z37: 0
A38: 0 | B38: 13 | C38: 0 | D38: 0 | E38: 0 | F38: 0 | G38: 0 | H38: 0 | I38: 0 | J38: 0 | K38: 0 | M38: 13 | N38: 0 | O38: 0 | P38: 0 | Q38: 0 | R38: 0 | S38: 0 | T38: 0 | U38: 0 | V38: 0 | X38: 13 | Y38: 0 | Z38: 0
A39: 0 | B39: 14 | C39: 0 | D39: 0 | E39: 0 | F39: 0 | G39: 0 | H39: 0 | I39: 0 | J39: 0 | K39: 0 | M39: 14 | N39: 0 | O39: 0 | P39: 0 | Q39: 0 | R39: 0 | S39: 0 | T39: 0 | U39: 0 | V39: 0 | X39: 14 | Y39: 0 | Z39: 0
A40: 0 | B40: 15 | C40: 0 | D40: 0 | E40: 0 | F40: 0 | G40: 0 | H40: 0 | I40: 0 | J40: 0 | K40: 0 | M40: 15 | N40: 0 | O40: 0 | P40: 0 | Q40: 0 | R40: 0 | S40: 0 | T40: 0 | U40: 0 | V40: 0 | X40: 15 | Y40: 0 | Z40: 0
A41: 0 | B41: 16 | C41: 0 | D41: 0 | E41: 0 | F41: 0 | G41: 0 | H41: 0 | I41: 0 | J41: 0 | K41: 0 | M41: 16 | N41: 0 | O41: 0 | P41: 0 | Q41: 0 | R41: 0 | S41: 0 | T41: 0 | U41: 0 | V41: 0 | X41: 16 | Y41: 0 | Z41: 0
A42: 0 | B42: 17 | C42: 0 | D42: 0 | E42: 0 | F42: 0 | G42: 0 | H42: 0 | I42: 0 | J42: 0 | K42: 0 | M42: 17 | N42: 0 | O42: 0 | P42: 0 | Q42: 0 | R42: 0 | S42: 0 | T42: 0 | U42: 0 | V42: 0 | X42: 17 | Y42: 0 | Z42: 0
A43: 0 | B43: 18 | C43: 0 | D43: 0 | E43: 0 | F43: 0 | G43: 0 | H43: 0 | I43: 0 | J43: 0 | K43: 0 | M43: 18 | N43: 0 | O43: 0 | P43: 0 | Q43: 0 | R43: 0 | S43: 0 | T43: 0 | U43: 0 | V43: 0 | X43: 18 | Y43: 0 | Z43: 0
A44: 0 | B44: 19 | C44: 0 | D44: 0 | E44: 0 | F44: 0 | G44: 0 | H44: 0 | I44: 0 | J44: 0 | K44: 0 | M44: 19 | N44: 0 | O44: 0 | P44: 0 | Q44: 0 | R44: 0 | S44: 0 | T44: 0 | U44: 0 | V44: 0 | X44: 19 | Y44: 0 | Z44: 0
A45: 0 | B45: 20 | C45: 0 | D45: 0 | E45: 0 | F45: 0 | G45: 0 | H45: 0 | I45: 0 | J45: 0 | K45: 0 | M45: 20 | N45: 0 | O45: 0 | P45: 0 | Q45: 0 | R45: 0 | S45: 0 | T45: 0 | U45: 0 | V45: 0 | X45: 20 | Y45: 0 | Z45: 0
B47: Total | K47: =SUM(K26:K45) -> 0 | M47: Total | V47: =SUM(V26:V45) -> 0 | X47: Total | Z47: =SUM(Z26:Z45) -> 0
B50: New Facility | M50: New Facility | X50: New Facility
C52: AVERAGE ANNUAL VOLUME | G52: JOURNEY QUALITY VALUE | N52: ANNUAL PERSON-TRIPS | R52: JOURNEY QUALITY VALUE
C53: (trips/yr.) | G53: ($) | N53: (trips/yr.) | R53: ($)
B54: Year | C54: Total Trips, No Facility (Baseline) | D54: Total Trips, New Facility | E54: Existing Trips, New Facility | F54: Induced Trips, New Facility | H54: Existing Trips, New Facility | I54: Induced Trips, New Facility | J54: Constant Dollars | K54: Present Value | M54: Year | N54: Total Trips, No Facility (Baseline) | O54: Total Trips, New Facility | P54: Existing Trips, New Facility | Q54: Induced Trips, New Facility | S54: Existing Trips, New Facility | T54: Induced Trips, New Facility | U54: Constant Dollars | V54: Present Value | X54: Year | Y54: Constant Dollars | Z54: Present Value
B55: 1 | C55: =IF(ProjType>1,TrComCyc1NBNew+TrODCyc1NBNew+TrRecCyc1NBNew,0) -> 0 | D55: =IF(ProjType>1,TrComCyc1BNew+TrODCyc1BNew+TrRecCyc1BNew,0) -> 0 | E55: =C55 -> 0 | F55: =D55-C55 -> 0 | H55: =E55*JQValperMiCycBNew*ValTimeAT*MIN(TAvMiCycB,ProjLenNEW) -> 0 | I55: =F55*JQValperMiCycBNew*ValTimeAT*MIN(TAvMiCycB,ProjLenNEW)*1/2 -> 0 | J55: =(I55+H55)*(1+TTUprater)^($B23+Construct-1) -> 0 | K55: =$J55/(1+DiscRate)^($B55+Construct-1) -> 0 | M55: 1 | N55: =IF(ProjType>1,TrComPed1NBNew+TrODPed1NBNew+TrRecPed1NBNew*RecBen,0) -> 0 | O55: =IF(ProjType>1,TrComPed1BNew+TrODPed1BNew+TrRecPed1BNew*RecBen,0) -> 0 | P55: =N55 -> 0 | Q55: =O55-N55 -> 0 | S55: =P55*JQValperMiPedBNew*MIN(TAvMiPedB,ProjLenNEW) -> 0 | T55: =Q55*JQValperMiPedBNew*MIN(TAvMiPedB,ProjLenNEW)*1/2 -> 0 | U55: =(S55+T55)*(1+TTUprater)^($B55+Construct-1) -> 0 | V55: =$U55/(1+DiscRate)^($B55+Construct-1) -> 0 | X55: 1 | Y55: =U55+J55 -> 0 | Z55: =V55+K55 -> 0
B56: 20 | C56: =IF(ProjType>1,TrComCyc20NBNew+TrODCyc20NBNew+TrRecCyc20NBNew,0) -> 0 | D56: =IF(ProjType>1,TrComCyc20BNew+TrODCyc20BNew+TrRecCyc20BNew,0) -> 0 | E56: =C56 -> 0 | F56: =D56-C56 -> 0 | H56: =E56*JQValperMiCycBNew*ValTimeAT*MIN(TAvMiCycB,ProjLenNEW) -> 0 | I56: =F56*JQValperMiCycBNew*ValTimeAT*MIN(TAvMiCycB,ProjLenNEW)*1/2 -> 0 | J56: =(I56+H56)*(1+TTUprater)^($B24+Construct-1) -> 0 | K56: =$J56/(1+DiscRate)^($B56+Construct-1) -> 0 | M56: 20 | N56: =IF(ProjType>1,TrComPed20NBNew+TrODPed20NBNew+TrRecPed20NBNew*RecBen,0) -> 0 | O56: =IF(ProjType>1,TrComPed20BNew+TrODPed20BNew+TrRecPed20BNew*RecBen,0) -> 0 | P56: =N56 -> 0 | Q56: =O56-N56 -> 0 | S56: =P56*JQValperMiPedBNew*MIN(TAvMiPedB,ProjLenNEW) -> 0 | T56: =Q56*JQValperMiPedBNew*MIN(TAvMiPedB,ProjLenNEW)*1/2 -> 0 | U56: =(S56+T56)*(1+TTUprater)^($B56+Construct-1) -> 0 | V56: =$U56/(1+DiscRate)^($B56+Construct-1) -> 0 | X56: 20 | Y56: =U56+J56 -> 0 | Z56: =V56+K56 -> 0
B58: 1 | C58: =TREND(C$55:C$56,$B$55:$B$56,$B58) -> 0 | D58: =TREND(D$55:D$56,$B$55:$B$56,$B58) -> 0 | E58: =TREND(E$55:E$56,$B$55:$B$56,$B58) -> 0 | F58: =TREND(F$55:F$56,$B$55:$B$56,$B58) -> 0 | H58: =E58*JQValperMiCycBNew*ValTimeAT*MIN(TAvMiCycB,ProjLenNEW) -> 0 | I58: =F58*JQValperMiCycBNew*ValTimeAT*MIN(TAvMiCycB,ProjLenNEW)*1/2 -> 0 | J58: =(I58+H58)*(1+TTUprater)^($B26+Construct-1) -> 0 | K58: =$J58/(1+DiscRate)^($B58+Construct-1) -> 0 | M58: 1 | N58: =TREND(N$55:N$56,$M$55:$M$56,$M58) -> 0 | O58: =TREND(O$55:O$56,$M$55:$M$56,$M58) -> 0 | P58: =TREND(P$55:P$56,$M$55:$M$56,$M58) -> 0 | Q58: =TREND(Q$55:Q$56,$M$55:$M$56,$M58) -> 0 | S58: =P58*JQValperMiPedBNew*MIN(TAvMiPedB,ProjLenNEW) -> 0 | T58: =Q58*JQValperMiPedBNew*MIN(TAvMiPedB,ProjLenNEW)*1/2 -> 0 | U58: =(S58+T58)*(1+TTUprater)^($B58+Construct-1) -> 0 | V58: =$U58/(1+DiscRate)^($B58+Construct-1) -> 0 | X58: 1 | Y58: =U58+J58 -> 0 | Z58: 0
B59: 2 | C59: =TREND(C$55:C$56,$B$55:$B$56,$B59) -> 0 | D59: 0 | E59: 0 | F59: 0 | H59: 0 | I59: 0 | J59: 0 | K59: 0 | M59: 2 | N59: =TREND(N$55:N$56,$M$55:$M$56,$M59) -> 0 | O59: 0 | P59: 0 | Q59: 0 | S59: 0 | T59: 0 | U59: 0 | V59: 0 | X59: 2 | Y59: 0 | Z59: 0
B60: 3 | C60: 0 | D60: 0 | E60: 0 | F60: 0 | H60: 0 | I60: 0 | J60: 0 | K60: 0 | M60: 3 | N60: 0 | O60: 0 | P60: 0 | Q60: 0 | S60: 0 | T60: 0 | U60: 0 | V60: 0 | X60: 3 | Y60: 0 | Z60: 0
B61: 4 | C61: 0 | D61: 0 | E61: 0 | F61: 0 | H61: 0 | I61: 0 | J61: 0 | K61: 0 | M61: 4 | N61: 0 | O61: 0 | P61: 0 | Q61: 0 | S61: 0 | T61: 0 | U61: 0 | V61: 0 | X61: 4 | Y61: 0 | Z61: 0
B62: 5 | C62: 0 | D62: 0 | E62: 0 | F62: 0 | H62: 0 | I62: 0 | J62: 0 | K62: 0 | M62: 5 | N62: 0 | O62: 0 | P62: 0 | Q62: 0 | S62: 0 | T62: 0 | U62: 0 | V62: 0 | X62: 5 | Y62: 0 | Z62: 0
B63: 6 | C63: 0 | D63: 0 | E63: 0 | F63: 0 | H63: 0 | I63: 0 | J63: 0 | K63: 0 | M63: 6 | N63: 0 | O63: 0 | P63: 0 | Q63: 0 | S63: 0 | T63: 0 | U63: 0 | V63: 0 | X63: 6 | Y63: 0 | Z63: 0
B64: 7 | C64: 0 | D64: 0 | E64: 0 | F64: 0 | H64: 0 | I64: 0 | J64: 0 | K64: 0 | M64: 7 | N64: 0 | O64: 0 | P64: 0 | Q64: 0 | S64: 0 | T64: 0 | U64: 0 | V64: 0 | X64: 7 | Y64: 0 | Z64: 0
B65: 8 | C65: 0 | D65: 0 | E65: 0 | F65: 0 | H65: 0 | I65: 0 | J65: 0 | K65: 0 | M65: 8 | N65: 0 | O65: 0 | P65: 0 | Q65: 0 | S65: 0 | T65: 0 | U65: 0 | V65: 0 | X65: 8 | Y65: 0 | Z65: 0
B66: 9 | C66: 0 | D66: 0 | E66: 0 | F66: 0 | H66: 0 | I66: 0 | J66: 0 | K66: 0 | M66: 9 | N66: 0 | O66: 0 | P66: 0 | Q66: 0 | S66: 0 | T66: 0 | U66: 0 | V66: 0 | X66: 9 | Y66: 0 | Z66: 0
B67: 10 | C67: 0 | D67: 0 | E67: 0 | F67: 0 | H67: 0 | I67: 0 | J67: 0 | K67: 0 | M67: 10 | N67: 0 | O67: 0 | P67: 0 | Q67: 0 | S67: 0 | T67: 0 | U67: 0 | V67: 0 | X67: 10 | Y67: 0 | Z67: 0
B68: 11 | C68: 0 | D68: 0 | E68: 0 | F68: 0 | H68: 0 | I68: 0 | J68: 0 | K68: 0 | M68: 11 | N68: 0 | O68: 0 | P68: 0 | Q68: 0 | S68: 0 | T68: 0 | U68: 0 | V68: 0 | X68: 11 | Y68: 0 | Z68: 0
B69: 12 | C69: 0 | D69: 0 | E69: 0 | F69: 0 | H69: 0 | I69: 0 | J69: 0 | K69: 0 | M69: 12 | N69: 0 | O69: 0 | P69: 0 | Q69: 0 | S69: 0 | T69: 0 | U69: 0 | V69: 0 | X69: 12 | Y69: 0 | Z69: 0
B70: 13 | C70: 0 | D70: 0 | E70: 0 | F70: 0 | H70: 0 | I70: 0 | J70: 0 | K70: 0 | M70: 13 | N70: 0 | O70: 0 | P70: 0 | Q70: 0 | S70: 0 | T70: 0 | U70: 0 | V70: 0 | X70: 13 | Y70: 0 | Z70: 0
B71: 14 | C71: 0 | D71: 0 | E71: 0 | F71: 0 | H71: 0 | I71: 0 | J71: 0 | K71: 0 | M71: 14 | N71: 0 | O71: 0 | P71: 0 | Q71: 0 | S71: 0 | T71: 0 | U71: 0 | V71: 0 | X71: 14 | Y71: 0 | Z71: 0
B72: 15 | C72: 0 | D72: 0 | E72: 0 | F72: 0 | H72: 0 | I72: 0 | J72: 0 | K72: 0 | M72: 15 | N72: 0 | O72: 0 | P72: 0 | Q72: 0 | S72: 0 | T72: 0 | U72: 0 | V72: 0 | X72: 15 | Y72: 0 | Z72: 0
B73: 16 | C73: 0 | D73: 0 | E73: 0 | F73: 0 | H73: 0 | I73: 0 | J73: 0 | K73: 0 | M73: 16 | N73: 0 | O73: 0 | P73: 0 | Q73: 0 | S73: 0 | T73: 0 | U73: 0 | V73: 0 | X73: 16 | Y73: 0 | Z73: 0
B74: 17 | C74: 0 | D74: 0 | E74: 0 | F74: 0 | H74: 0 | I74: 0 | J74: 0 | K74: 0 | M74: 17 | N74: 0 | O74: 0 | P74: 0 | Q74: 0 | S74: 0 | T74: 0 | U74: 0 | V74: 0 | X74: 17 | Y74: 0 | Z74: 0
B75: 18 | C75: 0 | D75: 0 | E75: 0 | F75: 0 | H75: 0 | I75: 0 | J75: 0 | K75: 0 | M75: 18 | N75: 0 | O75: 0 | P75: 0 | Q75: 0 | S75: 0 | T75: 0 | U75: 0 | V75: 0 | X75: 18 | Y75: 0 | Z75: 0
B76: 19 | C76: 0 | D76: 0 | E76: 0 | F76: 0 | H76: 0 | I76: 0 | J76: 0 | K76: 0 | M76: 19 | N76: 0 | O76: 0 | P76: 0 | Q76: 0 | S76: 0 | T76: 0 | U76: 0 | V76: 0 | X76: 19 | Y76: 0 | Z76: 0
B77: 20 | C77: 0 | D77: 0 | E77: 0 | F77: 0 | H77: 0 | I77: 0 | J77: 0 | K77: 0 | M77: 20 | N77: 0 | O77: 0 | P77: 0 | Q77: 0 | S77: 0 | T77: 0 | U77: 0 | V77: 0 | X77: 20 | Y77: 0 | Z77: 0
B79: Total | K79: =SUM(K58:K77) -> 0 | M79: Total | V79: =SUM(V58:V77) -> 0 | X79: Total | Z79: =SUM(Z58:Z77) -> 0
B81: D | C81: CYCLING BENEFITS - SRTS | M81: E | N81: PEDESTRIAN BENEFITS - SRTS | X81: F | Y81: TOTAL
B84: Existing SRTS Facility | M84: Existing SRTS Facility | X84: Existing SRTS Facility
C86: AVERAGE ANNUAL VOLUME | G86: JOURNEY QUALITY VALUE | N86: ANNUAL PERSON-MILES | R86: JOURNEY QUALITY VALUE
C87: (trips/yr.) | G87: ($) | N87: (trip-miles/yr.) | R87: ($)
B88: Year | C88: Total Trips, Existing Facility (Baseline) | D88: Total Trips, Improved Facility | E88: Existing Trips, Improved Facility | F88: Induced Trips, Improved Facility | G88: Existing Trips, Existing Facility | H88: Existing Trips, Improved Facility | I88: Induced Trips, Improved Facility | J88: Constant Dollars | K88: Present Value | M88: Year | N88: Total Trips, Existing Facility (Baseline) | O88: Total Trips, Improved Facility | P88: Existing Trips, Improved Facility | Q88: Induced Trips, Improved Facility | R88: Existing Trips, Existing Facility | S88: Existing Trips, Improved Facility | T88: Induced Trips, Improved Facility | U88: Constant Dollars | V88: Present Value | X88: Year | Y88: Constant Dollars | Z88: Present Value
B89: 1 | C89: =IF(AND(OR(ProjType=1,ProjType=3),SRTSProj=1),TrSRTSCyc1NBEx,0) -> 0 | D89: =IF(AND(OR(ProjType=1,ProjType=3),SRTSProj=1),TrSRTSCyc1BEx,0) -> 0 | E89: =C89 -> 0 | F89: =D89-C89 -> 0 | G89: =E89*JQValperMiCycNBEx*ValTimeChild*MIN(TAvMiCycNBSRTS,ProjLenEX) -> 0 | H89: =E89*JQValperMiCycBEx*ValTimeChild*MIN(TAvMiCycBSRTS,ProjLenEX) -> 0 | I89: =F89*(JQValperMiCycBEx-JQValperMiCycNBEx)*ValTimeChild*MIN(TAvMiCycBSRTS,ProjLenEX)*1/2 -> 0 | J89: =((H89-G89)+(I89))*(1+TTUprater)^($B89+Construct-1) -> 0 | K89: =$J89/(1+DiscRate)^($B89+Construct-1) -> 0 | M89: 1 | N89: =IF(AND(OR(ProjType=1,ProjType=3),SRTSProj=1),TrSRTSPed1NBEx,0) -> 0 | O89: =IF(AND(OR(ProjType=1,ProjType=3),SRTSProj=1),TrSRTSPed1BEx,0) -> 0 | P89: =N89 -> 0 | Q89: =O89-N89 -> 0 | R89: =P89*JQValperMiPedNBEx*MIN(TAvMiPedNBSRTS,ProjLenEX) -> 0 | S89: =P89*JQValperMiPedBEx*MIN(TAvMiPedBSRTS,ProjLenEX) -> 0 | T89: =Q89*(JQValperMiPedBEx-JQValperMiPedNBEx)*MIN(TAvMiPedBSRTS,ProjLenEX)*1/2 -> 0 | U89: =(S89-R89+T89)*(1+TTUprater)^($B89+Construct-1) -> 0 | V89: =$U89/(1+DiscRate)^($B89+Construct-1) -> 0 | X89: 1 | Y89: =U89+J89 -> 0 | Z89: =V89+K89 -> 0
B90: 20 | C90: =IF(AND(OR(ProjType=1,ProjType=3),SRTSProj=1),TrSRTSCyc20NBEx,0) -> 0 | D90: =IF(AND(OR(ProjType=1,ProjType=3),SRTSProj=1),TrSRTSCyc20BEx,0) -> 0 | E90: =C90 -> 0 | F90: =D90-C90 -> 0 | G90: =E90*JQValperMiCycNBEx*ValTimeChild*MIN(TAvMiCycNBSRTS,ProjLenEX) -> 0 | H90: =E90*JQValperMiCycBEx*ValTimeChild*MIN(TAvMiCycBSRTS,ProjLenEX) -> 0 | I90: =F90*(JQValperMiCycBEx-JQValperMiCycNBEx)*ValTimeChild*MIN(TAvMiCycBSRTS,ProjLenEX)*1/2 -> 0 | J90: =((H90-G90)+(I90))*(1+TTUprater)^($B90+Construct-1) -> 0 | K90: =$J90/(1+DiscRate)^($B90+Construct-1) -> 0 | M90: 20 | N90: =IF(AND(OR(ProjType=1,ProjType=3),SRTSProj=1),TrSRTSPed20NBEx,0) -> 0 | O90: =IF(AND(OR(ProjType=1,ProjType=3),SRTSProj=1),TrSRTSPed20BEx,0) -> 0 | P90: =N90 -> 0 | Q90: =O90-N90 -> 0 | R90: =P90*JQValperMiPedNBEx*MIN(TAvMiPedNBSRTS,ProjLenEX) -> 0 | S90: =P90*JQValperMiPedBEx*MIN(TAvMiPedBSRTS,ProjLenEX) -> 0 | T90: =Q90*(JQValperMiPedBEx-JQValperMiPedNBEx)*MIN(TAvMiPedBSRTS,ProjLenEX)*1/2 -> 0 | U90: =(S90-R90+T90)*(1+TTUprater)^($B90+Construct-1) -> 0 | V90: =$U90/(1+DiscRate)^($B90+Construct-1) -> 0 | X90: 20 | Y90: =U90+J90 -> 0 | Z90: =V90+K90 -> 0
B92: 1 | C92: =TREND(C$89:C$90,$B$89:$B$90,$B92) -> 0 | D92: =TREND(D$89:D$90,$B$89:$B$90,$B92) -> 0 | E92: =TREND(E$89:E$90,$B$89:$B$90,$B92) -> 0 | F92: =TREND(F$89:F$90,$B$89:$B$90,$B92) -> 0 | G92: =E92*JQValperMiCycNBEx*ValTimeChild*MIN(TAvMiCycNBSRTS,ProjLenEX) -> 0 | H92: =E92*JQValperMiCycBEx*ValTimeChild*MIN(TAvMiCycBSRTS,ProjLenEX) -> 0 | I92: =F92*(JQValperMiCycBEx-JQValperMiCycNBEx)*ValTimeChild*MIN(TAvMiCycBSRTS,ProjLenEX)*1/2 -> 0 | J92: =((H92-G92)+(I92))*(1+TTUprater)^($B92+Construct-1) -> 0 | K92: =$J92/(1+DiscRate)^($B92+Construct-1) -> 0 | M92: 1 | N92: =TREND(N$89:N$90,$M$89:$M$90,$M92) -> 0 | O92: =TREND(O$89:O$90,$M$89:$M$90,$M92) -> 0 | P92: =TREND(P$89:P$90,$M$89:$M$90,$M92) -> 0 | Q92: =TREND(Q$89:Q$90,$M$89:$M$90,$M92) -> 0 | R92: =P92*JQValperMiPedNBEx*MIN(TAvMiPedNBSRTS,ProjLenEX) -> 0 | S92: =P92*JQValperMiPedBEx*MIN(TAvMiPedBSRTS,ProjLenEX) -> 0 | T92: =Q92*(JQValperMiPedBEx-JQValperMiPedNBEx)*MIN(TAvMiPedBSRTS,ProjLenEX)*1/2 -> 0 | U92: =(S92-R92+T92)*(1+TTUprater)^($B92+Construct-1) -> 0 | V92: =$U92/(1+DiscRate)^($B92+Construct-1) -> 0 | X92: 1 | Y92: =U92+J92 -> 0 | Z92: 0
B93: 2 | C93: =TREND(C$89:C$90,$B$89:$B$90,$B93) -> 0 | D93: 0 | E93: 0 | F93: 0 | G93: 0 | H93: 0 | I93: 0 | J93: 0 | K93: 0 | M93: 2 | N93: =TREND(N$89:N$90,$M$89:$M$90,$M93) -> 0 | O93: 0 | P93: 0 | Q93: 0 | R93: 0 | S93: 0 | T93: 0 | U93: 0 | V93: 0 | X93: 2 | Y93: 0 | Z93: 0
B94: 3 | C94: 0 | D94: 0 | E94: 0 | F94: 0 | G94: 0 | H94: 0 | I94: 0 | J94: 0 | K94: 0 | M94: 3 | N94: 0 | O94: 0 | P94: 0 | Q94: 0 | R94: 0 | S94: 0 | T94: 0 | U94: 0 | V94: 0 | X94: 3 | Y94: 0 | Z94: 0
B95: 4 | C95: 0 | D95: 0 | E95: 0 | F95: 0 | G95: 0 | H95: 0 | I95: 0 | J95: 0 | K95: 0 | M95: 4 | N95: 0 | O95: 0 | P95: 0 | Q95: 0 | R95: 0 | S95: 0 | T95: 0 | U95: 0 | V95: 0 | X95: 4 | Y95: 0 | Z95: 0
B96: 5 | C96: 0 | D96: 0 | E96: 0 | F96: 0 | G96: 0 | H96: 0 | I96: 0 | J96: 0 | K96: 0 | M96: 5 | N96: 0 | O96: 0 | P96: 0 | Q96: 0 | R96: 0 | S96: 0 | T96: 0 | U96: 0 | V96: 0 | X96: 5 | Y96: 0 | Z96: 0
B97: 6 | C97: 0 | D97: 0 | E97: 0 | F97: 0 | G97: 0 | H97: 0 | I97: 0 | J97: 0 | K97: 0 | M97: 6 | N97: 0 | O97: 0 | P97: 0 | Q97: 0 | R97: 0 | S97: 0 | T97: 0 | U97: 0 | V97: 0 | X97: 6 | Y97: 0 | Z97: 0
B98: 7 | C98: 0 | D98: 0 | E98: 0 | F98: 0 | G98: 0 | H98: 0 | I98: 0 | J98: 0 | K98: 0 | M98: 7 | N98: 0 | O98: 0 | P98: 0 | Q98: 0 | R98: 0 | S98: 0 | T98: 0 | U98: 0 | V98: 0 | X98: 7 | Y98: 0 | Z98: 0
B99: 8 | C99: 0 | D99: 0 | E99: 0 | F99: 0 | G99: 0 | H99: 0 | I99: 0 | J99: 0 | K99: 0 | M99: 8 | N99: 0 | O99: 0 | P99: 0 | Q99: 0 | R99: 0 | S99: 0 | T99: 0 | U99: 0 | V99: 0 | X99: 8 | Y99: 0 | Z99: 0
B100: 9 | C100: 0 | D100: 0 | E100: 0 | F100: 0 | G100: 0 | H100: 0 | I100: 0 | J100: 0 | K100: 0 | M100: 9 | N100: 0 | O100: 0 | P100: 0 | Q100: 0 | R100: 0 | S100: 0 | T100: 0 | U100: 0 | V100: 0 | X100: 9 | Y100: 0 | Z100: 0
B101: 10 | C101: 0 | D101: 0 | E101: 0 | F101: 0 | G101: 0 | H101: 0 | I101: 0 | J101: 0 | K101: 0 | M101: 10 | N101: 0 | O101: 0 | P101: 0 | Q101: 0 | R101: 0 | S101: 0 | T101: 0 | U101: 0 | V101: 0 | X101: 10 | Y101: 0 | Z101: 0
B102: 11 | C102: 0 | D102: 0 | E102: 0 | F102: 0 | G102: 0 | H102: 0 | I102: 0 | J102: 0 | K102: 0 | M102: 11 | N102: 0 | O102: 0 | P102: 0 | Q102: 0 | R102: 0 | S102: 0 | T102: 0 | U102: 0 | V102: 0 | X102: 11 | Y102: 0 | Z102: 0
B103: 12 | C103: 0 | D103: 0 | E103: 0 | F103: 0 | G103: 0 | H103: 0 | I103: 0 | J103: 0 | K103: 0 | M103: 12 | N103: 0 | O103: 0 | P103: 0 | Q103: 0 | R103: 0 | S103: 0 | T103: 0 | U103: 0 | V103: 0 | X103: 12 | Y103: 0 | Z103: 0
B104: 13 | C104: 0 | D104: 0 | E104: 0 | F104: 0 | G104: 0 | H104: 0 | I104: 0 | J104: 0 | K104: 0 | M104: 13 | N104: 0 | O104: 0 | P104: 0 | Q104: 0 | R104: 0 | S104: 0 | T104: 0 | U104: 0 | V104: 0 | X104: 13 | Y104: 0 | Z104: 0
B105: 14 | C105: 0 | D105: 0 | E105: 0 | F105: 0 | G105: 0 | H105: 0 | I105: 0 | J105: 0 | K105: 0 | M105: 14 | N105: 0 | O105: 0 | P105: 0 | Q105: 0 | R105: 0 | S105: 0 | T105: 0 | U105: 0 | V105: 0 | X105: 14 | Y105: 0 | Z105: 0
B106: 15 | C106: 0 | D106: 0 | E106: 0 | F106: 0 | G106: 0 | H106: 0 | I106: 0 | J106: 0 | K106: 0 | M106: 15 | N106: 0 | O106: 0 | P106: 0 | Q106: 0 | R106: 0 | S106: 0 | T106: 0 | U106: 0 | V106: 0 | X106: 15 | Y106: 0 | Z106: 0
B107: 16 | C107: 0 | D107: 0 | E107: 0 | F107: 0 | G107: 0 | H107: 0 | I107: 0 | J107: 0 | K107: 0 | M107: 16 | N107: 0 | O107: 0 | P107: 0 | Q107: 0 | R107: 0 | S107: 0 | T107: 0 | U107: 0 | V107: 0 | X107: 16 | Y107: 0 | Z107: 0
B108: 17 | C108: 0 | D108: 0 | E108: 0 | F108: 0 | G108: 0 | H108: 0 | I108: 0 | J108: 0 | K108: 0 | M108: 17 | N108: 0 | O108: 0 | P108: 0 | Q108: 0 | R108: 0 | S108: 0 | T108: 0 | U108: 0 | V108: 0 | X108: 17 | Y108: 0 | Z108: 0
B109: 18 | C109: 0 | D109: 0 | E109: 0 | F109: 0 | G109: 0 | H109: 0 | I109: 0 | J109: 0 | K109: 0 | M109: 18 | N109: 0 | O109: 0 | P109: 0 | Q109: 0 | R109: 0 | S109: 0 | T109: 0 | U109: 0 | V109: 0 | X109: 18 | Y109: 0 | Z109: 0
B110: 19 | C110: 0 | D110: 0 | E110: 0 | F110: 0 | G110: 0 | H110: 0 | I110: 0 | J110: 0 | K110: 0 | M110: 19 | N110: 0 | O110: 0 | P110: 0 | Q110: 0 | R110: 0 | S110: 0 | T110: 0 | U110: 0 | V110: 0 | X110: 19 | Y110: 0 | Z110: 0
B111: 20 | C111: 0 | D111: 0 | E111: 0 | F111: 0 | G111: 0 | H111: 0 | I111: 0 | J111: 0 | K111: 0 | M111: 20 | N111: 0 | O111: 0 | P111: 0 | Q111: 0 | R111: 0 | S111: 0 | T111: 0 | U111: 0 | V111: 0 | X111: 20 | Y111: 0 | Z111: 0
B113: Total | K113: =SUM(K92:K111) -> 0 | M113: Total | V113: =SUM(V92:V111) -> 0 | X113: Total | Z113: =SUM(Z92:Z111) -> 0
B117: CYCLING BENEFITS - SRTS | M117: PEDESTRIAN BENEFITS - SRTS | X117: C | Y117: TOTAL
B120: New SRTS Facility | M120: New SRTS Facility | X120: New SRTS Facility
C122: AVERAGE ANNUAL VOLUME | G122: JOURNEY QUALITY VALUE | N122: ANNUAL PERSON-MILES | R122: JOURNEY QUALITY VALUE
C123: (trips/yr.) | G123: ($) | N123: (trip-miles/yr.) | R123: ($)
B124: Year | C124: Total Trips, No Facility (Baseline) | D124: Total Trips, New Facility | E124: Existing Trips, New Facility | F124: Induced Trips, New Facility | H124: Existing Trips, New Facility | I124: Induced Trips, New Facility | J124: Constant Dollars | K124: Present Value | M124: Year | N124: Total Trips, No Facility (Baseline) | O124: Total Trips, New Facility | P124: Existing Trips, New Facility | Q124: Induced Trips, New Facility | S124: Existing Trips, New Facility | T124: Induced Trips, New Facility | U124: Constant Dollars | V124: Present Value | X124: Year | Y124: Constant Dollars | Z124: Present Value
B125: 1 | C125: =IF(AND(ProjType>1,SRTSProj=1),TrSRTSCyc1NBNew,0) -> 0 | D125: =IF(AND(ProjType>1,SRTSProj=1),TrSRTSCyc1BNew,0) -> 0 | E125: =C125 -> 0 | F125: =D125-C125 -> 0 | H125: =E125*JQValperMiCycBNew*ValTimeChild*MIN(TAvMiCycBSRTS,ProjLenNEW) -> 0 | I125: =F125*JQValperMiCycBNew*ValTimeChild*MIN(TAvMiCycBSRTS,ProjLenNEW)*1/2 -> 0 | J125: =((H125-G125)+(I125))*(1+TTUprater)^($B125+Construct-1) -> 0 | K125: =$J125/(1+DiscRate)^($B125+Construct-1) -> 0 | M125: 1 | N125: =IF(AND(ProjType>1,SRTSProj=1),TrSRTSPed1NBNew,0) -> 0 | O125: =IF(AND(ProjType>1,SRTSProj=1),TrSRTSPed1BNew,0) -> 0 | P125: =N125 -> 0 | Q125: =O125-N125 -> 0 | S125: =P125*JQValperMiPedBNew*MIN(TAvMiPedBSRTS,ProjLenNEW) -> 0 | T125: =Q125*JQValperMiPedBNew*MIN(TAvMiPedBSRTS,ProjLenNEW)*1/2 -> 0 | U125: =(S125-R125+T125)*(1+TTUprater)^($B125+Construct-1) -> 0 | V125: =$U125/(1+DiscRate)^($B125+Construct-1) -> 0 | X125: 1 | Y125: =U125+J125 -> 0 | Z125: =V125+K125 -> 0
B126: 20 | C126: =IF(AND(ProjType>1,SRTSProj=1),TrSRTSCyc20NBNew,0) -> 0 | D126: =IF(AND(ProjType>1,SRTSProj=1),TrSRTSCyc20BNew,0) -> 0 | E126: =C126 -> 0 | F126: =D126-C126 -> 0 | H126: =E126*JQValperMiCycBNew*ValTimeChild*MIN(TAvMiCycBSRTS,ProjLenNEW) -> 0 | I126: =F126*JQValperMiCycBNew*ValTimeChild*MIN(TAvMiCycBSRTS,ProjLenNEW)*1/2 -> 0 | J126: =((H126-G126)+(I126))*(1+TTUprater)^($B126+Construct-1) -> 0 | K126: =$J126/(1+DiscRate)^($B126+Construct-1) -> 0 | M126: 20 | N126: =IF(AND(ProjType>1,SRTSProj=1),TrSRTSPed20NBNew,0) -> 0 | O126: =IF(AND(ProjType>1,SRTSProj=1),TrSRTSPed20BNew,0) -> 0 | P126: =N126 -> 0 | Q126: =O126-N126 -> 0 | S126: =P126*JQValperMiPedBNew*MIN(TAvMiPedBSRTS,ProjLenNEW) -> 0 | T126: =Q126*JQValperMiPedBNew*MIN(TAvMiPedBSRTS,ProjLenNEW)*1/2 -> 0 | U126: =(S126-R126+T126)*(1+TTUprater)^($B126+Construct-1) -> 0 | V126: =$U126/(1+DiscRate)^($B126+Construct-1) -> 0 | X126: 20 | Y126: =U126+J126 -> 0 | Z126: =V126+K126 -> 0
B128: 1 | C128: =TREND(C$125:C$126,$B$125:$B$126,$B128) -> 0 | D128: =TREND(D$125:D$126,$B$125:$B$126,$B128) -> 0 | E128: =TREND(E$125:E$126,$B$125:$B$126,$B128) -> 0 | F128: =TREND(F$125:F$126,$B$125:$B$126,$B128) -> 0 | H128: =E128*JQValperMiCycBNew*ValTimeChild*MIN(TAvMiCycBSRTS,ProjLenNEW) -> 0 | I128: =F128*JQValperMiCycBNew*ValTimeChild*MIN(TAvMiCycBSRTS,ProjLenNEW)*1/2 -> 0 | J128: =((H128-G128)+(I128))*(1+TTUprater)^($B128+Construct-1) -> 0 | K128: =$J128/(1+DiscRate)^($B128+Construct-1) -> 0 | M128: 1 | N128: =TREND(N$125:N$126,$M$125:$M$126,$M128) -> 0 | O128: =TREND(O$125:O$126,$M$125:$M$126,$M128) -> 0 | P128: =TREND(P$125:P$126,$M$125:$M$126,$M128) -> 0 | Q128: =TREND(Q$125:Q$126,$M$125:$M$126,$M128) -> 0 | S128: =P128*JQValperMiPedBNew*MIN(TAvMiPedBSRTS,ProjLenNEW) -> 0 | T128: =Q128*JQValperMiPedBNew*MIN(TAvMiPedBSRTS,ProjLenNEW)*1/2 -> 0 | U128: =(S128-R128+T128)*(1+TTUprater)^($B128+Construct-1) -> 0 | V128: =$U128/(1+DiscRate)^($B128+Construct-1) -> 0 | X128: 1 | Y128: =U128+J128 -> 0 | Z128: 0
B129: 2 | C129: =TREND(C$125:C$126,$B$125:$B$126,$B129) -> 0 | D129: 0 | E129: 0 | F129: 0 | H129: 0 | I129: 0 | J129: 0 | K129: 0 | M129: 2 | N129: =TREND(N$125:N$126,$M$125:$M$126,$M129) -> 0 | O129: =TREND(O$125:O$126,$M$125:$M$126,$M129) -> 0 | P129: 0 | Q129: 0 | S129: 0 | T129: 0 | U129: 0 | V129: 0 | X129: 2 | Y129: 0 | Z129: 0
B130: 3 | C130: 0 | D130: 0 | E130: 0 | F130: 0 | H130: 0 | I130: 0 | J130: 0 | K130: 0 | M130: 3 | N130: =TREND(N$125:N$126,$M$125:$M$126,$M130) -> 0 | O130: 0 | P130: 0 | Q130: 0 | S130: 0 | T130: 0 | U130: 0 | V130: 0 | X130: 3 | Y130: 0 | Z130: 0
B131: 4 | C131: 0 | D131: 0 | E131: 0 | F131: 0 | H131: 0 | I131: 0 | J131: 0 | K131: 0 | M131: 4 | N131: =TREND(N$125:N$126,$M$125:$M$126,$M131) -> 0 | O131: 0 | P131: 0 | Q131: 0 | S131: 0 | T131: 0 | U131: 0 | V131: 0 | X131: 4 | Y131: 0 | Z131: 0
B132: 5 | C132: 0 | D132: 0 | E132: 0 | F132: 0 | H132: 0 | I132: 0 | J132: 0 | K132: 0 | M132: 5 | N132: 0 | O132: 0 | P132: 0 | Q132: 0 | S132: 0 | T132: 0 | U132: 0 | V132: 0 | X132: 5 | Y132: 0 | Z132: 0
B133: 6 | C133: 0 | D133: 0 | E133: 0 | F133: 0 | H133: 0 | I133: 0 | J133: 0 | K133: 0 | M133: 6 | N133: 0 | O133: 0 | P133: 0 | Q133: 0 | S133: 0 | T133: 0 | U133: 0 | V133: 0 | X133: 6 | Y133: 0 | Z133: 0
B134: 7 | C134: 0 | D134: 0 | E134: 0 | F134: 0 | H134: 0 | I134: 0 | J134: 0 | K134: 0 | M134: 7 | N134: 0 | O134: 0 | P134: 0 | Q134: 0 | S134: 0 | T134: 0 | U134: 0 | V134: 0 | X134: 7 | Y134: 0 | Z134: 0
B135: 8 | C135: 0 | D135: 0 | E135: 0 | F135: 0 | H135: 0 | I135: 0 | J135: 0 | K135: 0 | M135: 8 | N135: 0 | O135: 0 | P135: 0 | Q135: 0 | S135: 0 | T135: 0 | U135: 0 | V135: 0 | X135: 8 | Y135: 0 | Z135: 0
B136: 9 | C136: 0 | D136: 0 | E136: 0 | F136: 0 | H136: 0 | I136: 0 | J136: 0 | K136: 0 | M136: 9 | N136: 0 | O136: 0 | P136: 0 | Q136: 0 | S136: 0 | T136: 0 | U136: 0 | V136: 0 | X136: 9 | Y136: 0 | Z136: 0
B137: 10 | C137: 0 | D137: 0 | E137: 0 | F137: 0 | H137: 0 | I137: 0 | J137: 0 | K137: 0 | M137: 10 | N137: 0 | O137: 0 | P137: 0 | Q137: 0 | S137: 0 | T137: 0 | U137: 0 | V137: 0 | X137: 10 | Y137: 0 | Z137: 0
B138: 11 | C138: 0 | D138: 0 | E138: 0 | F138: 0 | H138: 0 | I138: 0 | J138: 0 | K138: 0 | M138: 11 | N138: 0 | O138: 0 | P138: 0 | Q138: 0 | S138: 0 | T138: 0 | U138: 0 | V138: 0 | X138: 11 | Y138: 0 | Z138: 0
B139: 12 | C139: 0 | D139: 0 | E139: 0 | F139: 0 | H139: 0 | I139: 0 | J139: 0 | K139: 0 | M139: 12 | N139: 0 | O139: 0 | P139: 0 | Q139: 0 | S139: 0 | T139: 0 | U139: 0 | V139: 0 | X139: 12 | Y139: 0 | Z139: 0
B140: 13 | C140: 0 | D140: 0 | E140: 0 | F140: 0 | H140: 0 | I140: 0 | J140: 0 | K140: 0 | M140: 13 | N140: 0 | O140: 0 | P140: 0 | Q140: 0 | S140: 0 | T140: 0 | U140: 0 | V140: 0 | X140: 13 | Y140: 0 | Z140: 0
B141: 14 | C141: 0 | D141: 0 | E141: 0 | F141: 0 | H141: 0 | I141: 0 | J141: 0 | K141: 0 | M141: 14 | N141: 0 | O141: 0 | P141: 0 | Q141: 0 | S141: 0 | T141: 0 | U141: 0 | V141: 0 | X141: 14 | Y141: 0 | Z141: 0
B142: 15 | C142: 0 | D142: 0 | E142: 0 | F142: 0 | H142: 0 | I142: 0 | J142: 0 | K142: 0 | M142: 15 | N142: 0 | O142: 0 | P142: 0 | Q142: 0 | S142: 0 | T142: 0 | U142: 0 | V142: 0 | X142: 15 | Y142: 0 | Z142: 0
B143: 16 | C143: 0 | D143: 0 | E143: 0 | F143: 0 | H143: 0 | I143: 0 | J143: 0 | K143: 0 | M143: 16 | N143: 0 | O143: 0 | P143: 0 | Q143: 0 | S143: 0 | T143: 0 | U143: 0 | V143: 0 | X143: 16 | Y143: 0 | Z143: 0
B144: 17 | C144: 0 | D144: 0 | E144: 0 | F144: 0 | H144: 0 | I144: 0 | J144: 0 | K144: 0 | M144: 17 | N144: 0 | O144: 0 | P144: 0 | Q144: 0 | S144: 0 | T144: 0 | U144: 0 | V144: 0 | X144: 17 | Y144: 0 | Z144: 0
B145: 18 | C145: 0 | D145: 0 | E145: 0 | F145: 0 | H145: 0 | I145: 0 | J145: 0 | K145: 0 | M145: 18 | N145: 0 | O145: 0 | P145: 0 | Q145: 0 | S145: 0 | T145: 0 | U145: 0 | V145: 0 | X145: 18 | Y145: 0 | Z145: 0
B146: 19 | C146: 0 | D146: 0 | E146: 0 | F146: 0 | H146: 0 | I146: 0 | J146: 0 | K146: 0 | M146: 19 | N146: 0 | O146: 0 | P146: 0 | Q146: 0 | S146: 0 | T146: 0 | U146: 0 | V146: 0 | X146: 19 | Y146: 0 | Z146: 0
B147: 20 | C147: 0 | D147: 0 | E147: 0 | F147: 0 | H147: 0 | I147: 0 | J147: 0 | K147: 0 | M147: 20 | N147: 0 | O147: 0 | P147: 0 | Q147: 0 | S147: 0 | T147: 0 | U147: 0 | V147: 0 | X147: 20 | Y147: 0 | Z147: 0
B149: Total | K149: =SUM(K128:K147) -> 0 | M149: Total | V149: =SUM(V128:V147) -> 0 | X149: Total | Z149: =SUM(Z128:Z147) -> 0
D152: Computation of Journey Quality Parameters - Cycling | P152: Computation of Journey Quality Parameters - Cycling
G154: Improved Facility | I154: New Facility | R154: Improved Facility | T154: New Facility
G155: Existing | H155: Build | I155: Build | R155: No Build | S155: Build | T155: Build
F156: Facility Type | G156: Percent of Facility | H156: Percent of Facility | I156: Percent of Facility | Q156: Amenities | R156: Presence / Absence | S156: Presence / Absence | T156: Presence / Absence
F157: Class I - Bike Paths, if any | G157: =IFERROR('1a) Project Info'!G35/'1a) Project Info'!$H$39,0) -> 0 | H157: =IFERROR('1a) Project Info'!H35/'1a) Project Info'!$H$39,0) -> 0 | I157: =IFERROR('1a) Project Info'!R35/'1a) Project Info'!$R$39,0) -> 0 | Q157: Street Lighting | R157: ='1a) Project Info'!G42 -> 0 | S157: ='1a) Project Info'!H42 -> 0 | T157: ='1a) Project Info'!R42 -> 0 | U157: Yes =1 or No=0
F158: Class II - Bike Lanes, if any | G158: =IFERROR('1a) Project Info'!G36/'1a) Project Info'!$H$39,0) -> 0 | H158: =IFERROR('1a) Project Info'!H36/'1a) Project Info'!$H$39,0) -> 0 | I158: =IFERROR('1a) Project Info'!R36/'1a) Project Info'!$R$39,0) -> 0 | Q158: Curb Level | R158: ='1a) Project Info'!G43 -> 0 | S158: ='1a) Project Info'!H43 -> 0 | T158: ='1a) Project Info'!R43 -> 0 | U158: Yes =1 or No=0
F159: Class III - Bike Route, if any | G159: =IFERROR('1a) Project Info'!G37/'1a) Project Info'!$H$39,0) -> 0 | H159: =IFERROR('1a) Project Info'!H37/'1a) Project Info'!$H$39,0) -> 0 | I159: =IFERROR('1a) Project Info'!R37/'1a) Project Info'!$R$39,0) -> 0 | Q159: Crowding | R159: ='1a) Project Info'!G44 -> 0 | S159: ='1a) Project Info'!H44 -> 0 | T159: ='1a) Project Info'!R44 -> 0 | U159: Yes =1 or No=0
F160: Class IV - Separated bikeways, cycle tracks, if any | G160: =IFERROR('1a) Project Info'!G38/'1a) Project Info'!$H$39,0) -> 0 | H160: =IFERROR('1a) Project Info'!H38/'1a) Project Info'!$H$39,0) -> 0 | I160: =IFERROR('1a) Project Info'!R38/'1a) Project Info'!$R$39,0) -> 0 | Q160: Pavement Evenness | R160: ='1a) Project Info'!G45 -> 0 | S160: ='1a) Project Info'!H45 -> 0 | T160: ='1a) Project Info'!R45 -> 0 | U160: Yes =1 or No=0
Q161: Information Panels | R161: ='1a) Project Info'!G46 -> 0 | S161: ='1a) Project Info'!H46 -> 0 | T161: ='1a) Project Info'!R46 -> 0 | U161: Yes =1 or No=0
Q162: Benches | R162: ='1a) Project Info'!G47 -> 0 | S162: ='1a) Project Info'!H47 -> 0 | T162: ='1a) Project Info'!R47 -> 0 | U162: Yes =1 or No=0
F163: Facility Preference Factor (Pro-rated) - New Segment | G163: =SUMPRODUCT('Journey Quality'!G157:G160,JQValCyc) -> 0 | H163: =SUMPRODUCT('Journey Quality'!H157:H160,JQValCyc) -> 0 | I163: =SUMPRODUCT('Journey Quality'!I157:I160,JQValCyc) -> 0 | J163: miles of road / miles of facility | Q163: Directional Signage | R163: ='1a) Project Info'!G48 -> 0 | S163: ='1a) Project Info'!H48 -> 0 | T163: ='1a) Project Info'!R48 -> 0 | U163: Yes =1 or No=0
F165: Journey Quality per Avg Trip Distance | G165: =IF(OR(ProjType=1,ProjType=3),((1-'Journey Quality'!G$163)/CycSpeed),0) -> 0.1149425287 | H165: =IF(OR(ProjType=1,ProjType=3),((1-'Journey Quality'!H$163)/CycSpeed),0) -> 0.1149425287 | I165: =IF(ProjType>1,((1-'Journey Quality'!$I$163)/CycSpeed),0) -> 0 | J165: hrs / mile of avg trip distance | Q165: All measures | R165: =IF(OR(ProjType=1,ProjType=3),SUMPRODUCT(R157:R163,JQValPed),0) -> 0 | S165: =IF(OR(ProjType=1,ProjType=3),SUMPRODUCT(S157:S163,JQValPed),0) -> 0 | T165: =IF(ProjType>1,SUMPRODUCT(T157:T163,JQValPed),0) -> 0 | U165: Value ($/Mi)

Sheet Intersection Delay
B1: Intersection Delay Benefits
B3: This sheet calculates total reduction in intersection delay due to improvements at intersections on an existing bike/pedestrian facility.
B5: Formulas:
B7: Avg. Annual Trips = Avg. Daily Trips x Annual Days in Year, by purpose | H7: Value of Time Savings = Travel Time Reduction x Avg. Value of Time
B8: trips / yr. | H8: $ / year | J8: $/hour
B10: Time Saved = # of intersections crossed per trip x time savings per intersection x Avg. Annual Trips | H10: Value of Journey Quality for Induced trips applies rule of half
B11: trip-hrs / yr. | D11: trip / yr. x miles | F11: miles/hour
B15: A | C15: CYCLING BENEFITS | N15: B | O15: PEDESTRIAN BENEFITS | Z15: C | AA15: TOTAL
B18: Existing Facility | N18: Existing Facility | Z18: Existing Facility
C20: AVERAGE ANNUAL VOLUME | G20: TRAVEL TIME SAVED | I20: VALUE OF TIME SAVINGS | O20: AVERAGE ANNUAL VOLUME | S20: TRAVEL TIME SAVED | U20: VALUE OF TIME SAVINGS
C21: (trips/yr.) | G21: (hours/yr.) | I21: ($/year) | O21: (trips/yr.) | S21: (hours/yr.) | U21: ($/year)
B22: Year | C22: Total Trips, Existing Facility (Baseline) | D22: Total Trips, Improved Facility | E22: Existing Trips, Existing Facility | F22: Induced Trips, Existing Facility | G22: Existing Trips | H22: Induced Trips | I22: Existing Trips | J22: Induced Trips | K22: Constant Dollars | L22: Present Value | N22: Year | O22: Total Trips, Existing Facility (Baseline) | P22: Total Trips, Improved Facility | Q22: Existing Trips, Existing Facility | R22: Induced Trips, Existing Facility | S22: Existing Trips | T22: Induced Trips | U22: Existing Trips | V22: Induced Trips | W22: Constant Dollars | X22: Present Value | Z22: Year | AA22: Constant Dollars | AB22: Present Value
B23: 1 | C23: =IF(OR(ProjType=1, ProjType=3),TrComCyc1NBEX+TrODCyc1NBEX+TrRecCyc1NBEX*RecBen,0) -> 0 | D23: =IF(OR(ProjType=1, ProjType=3),TrComCyc1BEX+TrODCyc1BEX+TrRecCyc1BEX*RecBen,0) -> 0 | E23: =C23 -> 0 | F23: =D23-C23 -> 0 | G23: =E23*'Intersection Delay'!$E$94 -> 0 | H23: =F23*'Intersection Delay'!$E$94 -> 0 | I23: =G23*ValTimeAT -> 0 | J23: =H23*ValTimeAT/2 -> 0 | K23: =I23*(1+TTUprater)^($B23+Construct-1) -> 0 | L23: =$K23/(1+DiscRate)^($B23+Construct-1) -> 0 | N23: 1 | O23: =IF(OR(ProjType=1, ProjType=3),TrComPed1NBEX+TrODPed1NBEX+TrRecPed1NBEX*RecBen,0) -> 0 | P23: =IF(OR(ProjType=1, ProjType=3),TrComPed1BEX+TrODPed1BEX+TrRecPed1BEX*RecBen,0) -> 0 | Q23: =O23 -> 0 | R23: =P23-O23 -> 0 | S23: =Q23*'Intersection Delay'!$Q$94 -> 0 | T23: =R23*'Intersection Delay'!$Q$94 -> 0 | U23: =S23*ValTimeAT -> 0 | V23: =T23*ValTimeAT/2 -> 0 | W23: =U23*(1+TTUprater)^($B23+Construct-1) -> 0 | X23: =$W23/(1+DiscRate)^($B23+Construct-1) -> 0 | Z23: 1 | AA23: =W23+K23 -> 0 | AB23: =X23+L23 -> 0
B24: 20 | C24: =IF(OR(ProjType=1, ProjType=3),TrComCyc20NBEX+TrODCyc20NBEX+TrRecCyc20NBEX*RecBen,0) -> 0 | D24: =IF(OR(ProjType=1, ProjType=3),TrComCyc20BEX+TrODCyc20BEX+TrRecCyc20BEX*RecBen,0) -> 0 | E24: =C24 -> 0 | F24: =D24-C24 -> 0 | G24: =E24*'Intersection Delay'!$E$94 -> 0 | H24: =F24*'Intersection Delay'!$E$94 -> 0 | I24: =G24*ValTimeAT -> 0 | J24: =H24*ValTimeAT/2 -> 0 | K24: =I24*(1+TTUprater)^($B23+Construct-1) -> 0 | L24: =$K24/(1+DiscRate)^($B24+Construct-1) -> 0 | N24: 20 | O24: =IF(OR(ProjType=1, ProjType=3),TrComPed20NBEX+TrODPed20NBEX+TrRecPed20NBEX*RecBen,0) -> 0 | P24: =IF(OR(ProjType=1, ProjType=3),TrComPed20BEX+TrODPed20BEX+TrRecPed20BEX*RecBen,0) -> 0 | Q24: =O24 -> 0 | R24: =P24-O24 -> 0 | S24: =Q24*'Intersection Delay'!$Q$94 -> 0 | T24: =R24*'Intersection Delay'!$Q$94 -> 0 | U24: =S24*ValTimeAT -> 0 | V24: =T24*ValTimeAT/2 -> 0 | W24: =U24*(1+TTUprater)^($B23+Construct-1) -> 0 | X24: =$W24/(1+DiscRate)^($B24+Construct-1) -> 0 | Z24: 20 | AA24: =W24+K24 -> 0 | AB24: =X24+L24 -> 0
B26: 1 | C26: =TREND(C$23:C$24,$B$23:$B$24,$B26) -> 0 | D26: =TREND(D$23:D$24,$B$23:$B$24,$B26) -> 0 | E26: =C26 -> 0 | F26: =D26-C26 -> 0 | G26: =E26*'Intersection Delay'!$E$94 -> 0 | H26: =F26*'Intersection Delay'!$E$94 -> 0 | I26: =G26*ValTimeAT -> 0 | J26: =H26*ValTimeAT/2 -> 0 | K26: =I26*(1+TTUprater)^($B23+Construct-1) -> 0 | L26: =$K26/(1+DiscRate)^($B26+Construct-1) -> 0 | N26: 1 | O26: =TREND(O$23:O$24,$B$23:$B$24,$B26) -> 0 | P26: =TREND(P$23:P$24,$B$23:$B$24,$B26) -> 0 | Q26: =TREND(Q$23:Q$24,$B$23:$B$24,$B26) -> 0 | R26: =P26-O26 -> 0 | S26: =Q26*'Intersection Delay'!$Q$94 -> 0 | T26: =R26*'Intersection Delay'!$Q$94 -> 0 | U26: =S26*ValTimeAT -> 0 | V26: =T26*ValTimeAT/2 -> 0 | W26: =U26*(1+TTUprater)^($B23+Construct-1) -> 0 | X26: =$W26/(1+DiscRate)^($B26+Construct-1) -> 0 | Z26: 1 | AA26: =W26+K26 -> 0 | AB26: =X26+L26 -> 0
B27: 2 | C27: =TREND(C$23:C$24,$B$23:$B$24,$B27) -> 0 | D27: 0 | E27: 0 | F27: 0 | G27: =E27*'Intersection Delay'!$E$94 -> 0 | H27: =F27*'Intersection Delay'!$E$94 -> 0 | I27: 0 | J27: 0 | K27: 0 | L27: 0 | N27: 2 | O27: =TREND(O$23:O$24,$B$23:$B$24,$B27) -> 0 | P27: 0 | Q27: 0 | R27: 0 | S27: =Q27*'Intersection Delay'!$Q$94 -> 0 | T27: =R27*'Intersection Delay'!$Q$94 -> 0 | U27: 0 | V27: 0 | W27: 0 | X27: 0 | Z27: 2 | AA27: 0 | AB27: 0
B28: 3 | C28: 0 | D28: 0 | E28: 0 | F28: 0 | G28: =E28*'Intersection Delay'!$E$94 -> 0 | H28: =F28*'Intersection Delay'!$E$94 -> 0 | I28: 0 | J28: 0 | K28: 0 | L28: 0 | N28: 3 | O28: 0 | P28: 0 | Q28: 0 | R28: 0 | S28: =Q28*'Intersection Delay'!$Q$94 -> 0 | T28: =R28*'Intersection Delay'!$Q$94 -> 0 | U28: 0 | V28: 0 | W28: 0 | X28: 0 | Z28: 3 | AA28: 0 | AB28: 0
B29: 4 | C29: 0 | D29: 0 | E29: 0 | F29: 0 | G29: =E29*'Intersection Delay'!$E$94 -> 0 | H29: =F29*'Intersection Delay'!$E$94 -> 0 | I29: 0 | J29: 0 | K29: 0 | L29: 0 | N29: 4 | O29: 0 | P29: 0 | Q29: 0 | R29: 0 | S29: =Q29*'Intersection Delay'!$Q$94 -> 0 | T29: =R29*'Intersection Delay'!$Q$94 -> 0 | U29: 0 | V29: 0 | W29: 0 | X29: 0 | Z29: 4 | AA29: 0 | AB29: 0
B30: 5 | C30: 0 | D30: 0 | E30: 0 | F30: 0 | G30: =E30*'Intersection Delay'!$E$94 -> 0 | H30: =F30*'Intersection Delay'!$E$94 -> 0 | I30: 0 | J30: 0 | K30: 0 | L30: 0 | N30: 5 | O30: 0 | P30: 0 | Q30: 0 | R30: 0 | S30: =Q30*'Intersection Delay'!$Q$94 -> 0 | T30: =R30*'Intersection Delay'!$Q$94 -> 0 | U30: 0 | V30: 0 | W30: 0 | X30: 0 | Z30: 5 | AA30: 0 | AB30: 0
B31: 6 | C31: 0 | D31: 0 | E31: 0 | F31: 0 | G31: =E31*'Intersection Delay'!$E$94 -> 0 | H31: =F31*'Intersection Delay'!$E$94 -> 0 | I31: 0 | J31: 0 | K31: 0 | L31: 0 | N31: 6 | O31: 0 | P31: 0 | Q31: 0 | R31: 0 | S31: =Q31*'Intersection Delay'!$Q$94 -> 0 | T31: =R31*'Intersection Delay'!$Q$94 -> 0 | U31: 0 | V31: 0 | W31: 0 | X31: 0 | Z31: 6 | AA31: 0 | AB31: 0
B32: 7 | C32: 0 | D32: 0 | E32: 0 | F32: 0 | G32: =E32*'Intersection Delay'!$E$94 -> 0 | H32: =F32*'Intersection Delay'!$E$94 -> 0 | I32: 0 | J32: 0 | K32: 0 | L32: 0 | N32: 7 | O32: 0 | P32: 0 | Q32: 0 | R32: 0 | S32: =Q32*'Intersection Delay'!$Q$94 -> 0 | T32: =R32*'Intersection Delay'!$Q$94 -> 0 | U32: 0 | V32: 0 | W32: 0 | X32: 0 | Z32: 7 | AA32: 0 | AB32: 0
B33: 8 | C33: 0 | D33: 0 | E33: 0 | F33: 0 | G33: =E33*'Intersection Delay'!$E$94 -> 0 | H33: =F33*'Intersection Delay'!$E$94 -> 0 | I33: 0 | J33: 0 | K33: 0 | L33: 0 | N33: 8 | O33: 0 | P33: 0 | Q33: 0 | R33: 0 | S33: =Q33*'Intersection Delay'!$Q$94 -> 0 | T33: =R33*'Intersection Delay'!$Q$94 -> 0 | U33: 0 | V33: 0 | W33: 0 | X33: 0 | Z33: 8 | AA33: 0 | AB33: 0
B34: 9 | C34: 0 | D34: 0 | E34: 0 | F34: 0 | G34: =E34*'Intersection Delay'!$E$94 -> 0 | H34: =F34*'Intersection Delay'!$E$94 -> 0 | I34: 0 | J34: 0 | K34: 0 | L34: 0 | N34: 9 | O34: 0 | P34: 0 | Q34: 0 | R34: 0 | S34: =Q34*'Intersection Delay'!$Q$94 -> 0 | T34: =R34*'Intersection Delay'!$Q$94 -> 0 | U34: 0 | V34: 0 | W34: 0 | X34: 0 | Z34: 9 | AA34: 0 | AB34: 0
B35: 10 | C35: 0 | D35: 0 | E35: 0 | F35: 0 | G35: =E35*'Intersection Delay'!$E$94 -> 0 | H35: =F35*'Intersection Delay'!$E$94 -> 0 | I35: 0 | J35: 0 | K35: 0 | L35: 0 | N35: 10 | O35: 0 | P35: 0 | Q35: 0 | R35: 0 | S35: =Q35*'Intersection Delay'!$Q$94 -> 0 | T35: =R35*'Intersection Delay'!$Q$94 -> 0 | U35: 0 | V35: 0 | W35: 0 | X35: 0 | Z35: 10 | AA35: 0 | AB35: 0
B36: 11 | C36: 0 | D36: 0 | E36: 0 | F36: 0 | G36: =E36*'Intersection Delay'!$E$94 -> 0 | H36: =F36*'Intersection Delay'!$E$94 -> 0 | I36: 0 | J36: 0 | K36: 0 | L36: 0 | N36: 11 | O36: 0 | P36: 0 | Q36: 0 | R36: 0 | S36: =Q36*'Intersection Delay'!$Q$94 -> 0 | T36: =R36*'Intersection Delay'!$Q$94 -> 0 | U36: 0 | V36: 0 | W36: 0 | X36: 0 | Z36: 11 | AA36: 0 | AB36: 0
B37: 12 | C37: 0 | D37: 0 | E37: 0 | F37: 0 | G37: =E37*'Intersection Delay'!$E$94 -> 0 | H37: =F37*'Intersection Delay'!$E$94 -> 0 | I37: 0 | J37: 0 | K37: 0 | L37: 0 | N37: 12 | O37: 0 | P37: 0 | Q37: 0 | R37: 0 | S37: =Q37*'Intersection Delay'!$Q$94 -> 0 | T37: =R37*'Intersection Delay'!$Q$94 -> 0 | U37: 0 | V37: 0 | W37: 0 | X37: 0 | Z37: 12 | AA37: 0 | AB37: 0
B38: 13 | C38: 0 | D38: 0 | E38: 0 | F38: 0 | G38: =E38*'Intersection Delay'!$E$94 -> 0 | H38: =F38*'Intersection Delay'!$E$94 -> 0 | I38: 0 | J38: 0 | K38: 0 | L38: 0 | N38: 13 | O38: 0 | P38: 0 | Q38: 0 | R38: 0 | S38: =Q38*'Intersection Delay'!$Q$94 -> 0 | T38: =R38*'Intersection Delay'!$Q$94 -> 0 | U38: 0 | V38: 0 | W38: 0 | X38: 0 | Z38: 13 | AA38: 0 | AB38: 0
B39: 14 | C39: 0 | D39: 0 | E39: 0 | F39: 0 | G39: =E39*'Intersection Delay'!$E$94 -> 0 | H39: =F39*'Intersection Delay'!$E$94 -> 0 | I39: 0 | J39: 0 | K39: 0 | L39: 0 | N39: 14 | O39: 0 | P39: 0 | Q39: 0 | R39: 0 | S39: =Q39*'Intersection Delay'!$Q$94 -> 0 | T39: =R39*'Intersection Delay'!$Q$94 -> 0 | U39: 0 | V39: 0 | W39: 0 | X39: 0 | Z39: 14 | AA39: 0 | AB39: 0
B40: 15 | C40: 0 | D40: 0 | E40: 0 | F40: 0 | G40: =E40*'Intersection Delay'!$E$94 -> 0 | H40: =F40*'Intersection Delay'!$E$94 -> 0 | I40: 0 | J40: 0 | K40: 0 | L40: 0 | N40: 15 | O40: 0 | P40: 0 | Q40: 0 | R40: 0 | S40: =Q40*'Intersection Delay'!$Q$94 -> 0 | T40: =R40*'Intersection Delay'!$Q$94 -> 0 | U40: 0 | V40: 0 | W40: 0 | X40: 0 | Z40: 15 | AA40: 0 | AB40: 0
B41: 16 | C41: 0 | D41: 0 | E41: 0 | F41: 0 | G41: =E41*'Intersection Delay'!$E$94 -> 0 | H41: =F41*'Intersection Delay'!$E$94 -> 0 | I41: 0 | J41: 0 | K41: 0 | L41: 0 | N41: 16 | O41: 0 | P41: 0 | Q41: 0 | R41: 0 | S41: =Q41*'Intersection Delay'!$Q$94 -> 0 | T41: =R41*'Intersection Delay'!$Q$94 -> 0 | U41: 0 | V41: 0 | W41: 0 | X41: 0 | Z41: 16 | AA41: 0 | AB41: 0
B42: 17 | C42: 0 | D42: 0 | E42: 0 | F42: 0 | G42: =E42*'Intersection Delay'!$E$94 -> 0 | H42: =F42*'Intersection Delay'!$E$94 -> 0 | I42: 0 | J42: 0 | K42: 0 | L42: 0 | N42: 17 | O42: 0 | P42: 0 | Q42: 0 | R42: 0 | S42: =Q42*'Intersection Delay'!$Q$94 -> 0 | T42: =R42*'Intersection Delay'!$Q$94 -> 0 | U42: 0 | V42: 0 | W42: 0 | X42: 0 | Z42: 17 | AA42: 0 | AB42: 0
B43: 18 | C43: 0 | D43: 0 | E43: 0 | F43: 0 | G43: =E43*'Intersection Delay'!$E$94 -> 0 | H43: =F43*'Intersection Delay'!$E$94 -> 0 | I43: 0 | J43: 0 | K43: 0 | L43: 0 | N43: 18 | O43: 0 | P43: 0 | Q43: 0 | R43: 0 | S43: =Q43*'Intersection Delay'!$Q$94 -> 0 | T43: =R43*'Intersection Delay'!$Q$94 -> 0 | U43: 0 | V43: 0 | W43: 0 | X43: 0 | Z43: 18 | AA43: 0 | AB43: 0
B44: 19 | C44: 0 | D44: 0 | E44: 0 | F44: 0 | G44: =E44*'Intersection Delay'!$E$94 -> 0 | H44: =F44*'Intersection Delay'!$E$94 -> 0 | I44: 0 | J44: 0 | K44: 0 | L44: 0 | N44: 19 | O44: 0 | P44: 0 | Q44: 0 | R44: 0 | S44: =Q44*'Intersection Delay'!$Q$94 -> 0 | T44: =R44*'Intersection Delay'!$Q$94 -> 0 | U44: 0 | V44: 0 | W44: 0 | X44: 0 | Z44: 19 | AA44: 0 | AB44: 0
B45: 20 | C45: 0 | D45: 0 | E45: 0 | F45: 0 | G45: =E45*'Intersection Delay'!$E$94 -> 0 | H45: =F45*'Intersection Delay'!$E$94 -> 0 | I45: 0 | J45: 0 | K45: 0 | L45: 0 | N45: 20 | O45: 0 | P45: 0 | Q45: 0 | R45: 0 | S45: =Q45*'Intersection Delay'!$Q$94 -> 0 | T45: =R45*'Intersection Delay'!$Q$94 -> 0 | U45: 0 | V45: 0 | W45: 0 | X45: 0 | Z45: 20 | AA45: 0 | AB45: 0
B47: Total | L47: =SUM(L26:L45) -> 0 | N47: Total | X47: =SUM(X26:X45) -> 0 | Z47: Total | AB47: =SUM(AB26:AB45) -> 0
B52: D | C52: CYCLING BENEFITS | N52: E | O52: PEDESTRIAN BENEFITS - SRTS | Z52: F | AA52: TOTAL
B55: Existing SRTS Facility | N55: Existing SRTS Facility | Z55: Existing Facility
C57: AVERAGE ANNUAL VOLUME | G57: TRAVEL TIME SAVED | I57: VALUE OF TIME SAVINGS | O57: AVERAGE ANNUAL VOLUME | S57: TRAVEL TIME SAVED | U57: VALUE OF TIME SAVINGS
C58: (trips/yr.) | G58: (hours/yr.) | I58: ($/year) | O58: (trips/yr.) | S58: (hours/yr.) | U58: ($/year)
B59: Year | C59: Total Trips, Existing Facility (Baseline) | D59: Total Trips, Improved Facility | E59: Existing Trips, Existing Facility | F59: Induced Trips, Existing Facility | G59: Existing Trips | H59: Induced Trips | I59: Existing Trips | J59: Induced Trips | K59: Constant Dollars | L59: Present Value | N59: Year | O59: Total Trips, Existing Facility (Baseline) | P59: Total Trips, Improved Facility | Q59: Existing Trips, Existing Facility | R59: Induced Trips, Existing Facility | S59: Existing Trips | T59: Induced Trips | U59: Existing Trips | V59: Induced Trips | W59: Constant Dollars | X59: Present Value | Z59: Year | AA59: Constant Dollars | AB59: Present Value
B60: 1 | C60: =IF(AND(OR(ProjType=1, ProjType=3),SRTSProj=1),TrSRTSCyc1NBEx,0) -> 0 | D60: =IF(AND(OR(ProjType=1, ProjType=3),SRTSProj=1),TrSRTSCyc1BEx,0) -> 0 | E60: =C60 -> 0 | F60: =D60-C60 -> 0 | G60: =E60*'Intersection Delay'!$E$94 -> 0 | H60: =F60*'Intersection Delay'!$E$94 -> 0 | I60: =G60*ValTimeAT -> 0 | J60: =H60*ValTimeAT/2 -> 0 | K60: =I60*(1+TTUprater)^($B60+Construct-1) -> 0 | L60: =$K60/(1+DiscRate)^($B60+Construct-1) -> 0 | N60: 1 | O60: =IF(AND(OR(ProjType=1, ProjType=3),SRTSProj=1),TrSRTSPed1NBEx,0) -> 0 | P60: =IF(AND(OR(ProjType=1, ProjType=3),SRTSProj=1),TrSRTSPed1BEx,0) -> 0 | Q60: =O60 -> 0 | R60: =P60-O60 -> 0 | S60: =Q60*'Intersection Delay'!$Q$94 -> 0 | T60: =R60*'Intersection Delay'!$Q$94 -> 0 | U60: =S60*ValTimeAT -> 0 | V60: =T60*ValTimeAT/2 -> 0 | W60: =U60*(1+TTUprater)^($B60+Construct-1) -> 0 | X60: =$W60/(1+DiscRate)^($B60+Construct-1) -> 0 | Z60: 1 | AA60: =W60+K60 -> 0 | AB60: =X60+L60 -> 0
B61: 20 | C61: =IF(AND(OR(ProjType=1, ProjType=3),SRTSProj=1),TrSRTSCyc20NBEx,0) -> 0 | D61: =IF(AND(OR(ProjType=1, ProjType=3),SRTSProj=1),TrSRTSCyc20BEx,0) -> 0 | E61: =C61 -> 0 | F61: =D61-C61 -> 0 | G61: =E61*'Intersection Delay'!$E$94 -> 0 | H61: =F61*'Intersection Delay'!$E$94 -> 0 | I61: =G61*ValTimeAT -> 0 | J61: =H61*ValTimeAT/2 -> 0 | K61: =I61*(1+TTUprater)^($B60+Construct-1) -> 0 | L61: =$K61/(1+DiscRate)^($B61+Construct-1) -> 0 | N61: 20 | O61: =IF(AND(OR(ProjType=1, ProjType=3),SRTSProj=1),TrSRTSPed20NBEx,0) -> 0 | P61: =IF(AND(OR(ProjType=1, ProjType=3),SRTSProj=1),TrSRTSPed20BEx,0) -> 0 | Q61: =O61 -> 0 | R61: =P61-O61 -> 0 | S61: =Q61*'Intersection Delay'!$Q$94 -> 0 | T61: =R61*'Intersection Delay'!$Q$94 -> 0 | U61: =S61*ValTimeAT -> 0 | V61: =T61*ValTimeAT/2 -> 0 | W61: =U61*(1+TTUprater)^($B60+Construct-1) -> 0 | X61: =$W61/(1+DiscRate)^($B61+Construct-1) -> 0 | Z61: 20 | AA61: =W61+K61 -> 0 | AB61: =X61+L61 -> 0
B63: 1 | C63: =TREND(C$60:C$61,$B$60:$B$61,$B63) -> 0 | D63: =TREND(D$60:D$61,$B$60:$B$61,$B63) -> 0 | E63: =C63 -> 0 | F63: =D63-C63 -> 0 | G63: =E63*'Intersection Delay'!$E$94 -> 0 | H63: =F63*'Intersection Delay'!$E$94 -> 0 | I63: =G63*ValTimeAT -> 0 | J63: =H63*ValTimeAT/2 -> 0 | K63: =I63*(1+TTUprater)^($B60+Construct-1) -> 0 | L63: =$K63/(1+DiscRate)^($B63+Construct-1) -> 0 | N63: 1 | O63: =TREND(O$23:O$24,$B$23:$B$24,$B63) -> 0 | P63: =TREND(P$23:P$24,$B$23:$B$24,$B63) -> 0 | Q63: =TREND(Q$23:Q$24,$B$23:$B$24,$B63) -> 0 | R63: =P63-O63 -> 0 | S63: =Q63*'Intersection Delay'!$Q$94 -> 0 | T63: =R63*'Intersection Delay'!$Q$94 -> 0 | U63: =S63*ValTimeAT -> 0 | V63: =T63*ValTimeAT/2 -> 0 | W63: =U63*(1+TTUprater)^($B60+Construct-1) -> 0 | X63: =$W63/(1+DiscRate)^($B63+Construct-1) -> 0 | Z63: 1 | AA63: =W63+K63 -> 0 | AB63: =X63+L63 -> 0
B64: 2 | C64: =TREND(C$60:C$61,$B$60:$B$61,$B64) -> 0 | D64: 0 | E64: 0 | F64: 0 | G64: =E64*'Intersection Delay'!$E$94 -> 0 | H64: =F64*'Intersection Delay'!$E$94 -> 0 | I64: 0 | J64: 0 | K64: 0 | L64: 0 | N64: 2 | O64: =TREND(O$23:O$24,$B$23:$B$24,$B64) -> 0 | P64: 0 | Q64: 0 | R64: 0 | S64: =Q64*'Intersection Delay'!$Q$94 -> 0 | T64: =R64*'Intersection Delay'!$Q$94 -> 0 | U64: 0 | V64: 0 | W64: 0 | X64: 0 | Z64: 2 | AA64: 0 | AB64: 0
B65: 3 | C65: 0 | D65: 0 | E65: 0 | F65: 0 | G65: =E65*'Intersection Delay'!$E$94 -> 0 | H65: =F65*'Intersection Delay'!$E$94 -> 0 | I65: 0 | J65: 0 | K65: 0 | L65: 0 | N65: 3 | O65: 0 | P65: 0 | Q65: 0 | R65: 0 | S65: =Q65*'Intersection Delay'!$Q$94 -> 0 | T65: =R65*'Intersection Delay'!$Q$94 -> 0 | U65: 0 | V65: 0 | W65: 0 | X65: 0 | Z65: 3 | AA65: 0 | AB65: 0
B66: 4 | C66: 0 | D66: 0 | E66: 0 | F66: 0 | G66: =E66*'Intersection Delay'!$E$94 -> 0 | H66: =F66*'Intersection Delay'!$E$94 -> 0 | I66: 0 | J66: 0 | K66: 0 | L66: 0 | N66: 4 | O66: 0 | P66: 0 | Q66: 0 | R66: 0 | S66: =Q66*'Intersection Delay'!$Q$94 -> 0 | T66: =R66*'Intersection Delay'!$Q$94 -> 0 | U66: 0 | V66: 0 | W66: 0 | X66: 0 | Z66: 4 | AA66: 0 | AB66: 0
B67: 5 | C67: 0 | D67: 0 | E67: 0 | F67: 0 | G67: =E67*'Intersection Delay'!$E$94 -> 0 | H67: =F67*'Intersection Delay'!$E$94 -> 0 | I67: 0 | J67: 0 | K67: 0 | L67: 0 | N67: 5 | O67: 0 | P67: 0 | Q67: 0 | R67: 0 | S67: =Q67*'Intersection Delay'!$Q$94 -> 0 | T67: =R67*'Intersection Delay'!$Q$94 -> 0 | U67: 0 | V67: 0 | W67: 0 | X67: 0 | Z67: 5 | AA67: 0 | AB67: 0
B68: 6 | C68: 0 | D68: 0 | E68: 0 | F68: 0 | G68: =E68*'Intersection Delay'!$E$94 -> 0 | H68: =F68*'Intersection Delay'!$E$94 -> 0 | I68: 0 | J68: 0 | K68: 0 | L68: 0 | N68: 6 | O68: 0 | P68: 0 | Q68: 0 | R68: 0 | S68: =Q68*'Intersection Delay'!$Q$94 -> 0 | T68: =R68*'Intersection Delay'!$Q$94 -> 0 | U68: 0 | V68: 0 | W68: 0 | X68: 0 | Z68: 6 | AA68: 0 | AB68: 0
B69: 7 | C69: 0 | D69: 0 | E69: 0 | F69: 0 | G69: =E69*'Intersection Delay'!$E$94 -> 0 | H69: =F69*'Intersection Delay'!$E$94 -> 0 | I69: 0 | J69: 0 | K69: 0 | L69: 0 | N69: 7 | O69: 0 | P69: 0 | Q69: 0 | R69: 0 | S69: =Q69*'Intersection Delay'!$Q$94 -> 0 | T69: =R69*'Intersection Delay'!$Q$94 -> 0 | U69: 0 | V69: 0 | W69: 0 | X69: 0 | Z69: 7 | AA69: 0 | AB69: 0
B70: 8 | C70: 0 | D70: 0 | E70: 0 | F70: 0 | G70: =E70*'Intersection Delay'!$E$94 -> 0 | H70: =F70*'Intersection Delay'!$E$94 -> 0 | I70: 0 | J70: 0 | K70: 0 | L70: 0 | N70: 8 | O70: 0 | P70: 0 | Q70: 0 | R70: 0 | S70: =Q70*'Intersection Delay'!$Q$94 -> 0 | T70: =R70*'Intersection Delay'!$Q$94 -> 0 | U70: 0 | V70: 0 | W70: 0 | X70: 0 | Z70: 8 | AA70: 0 | AB70: 0
B71: 9 | C71: 0 | D71: 0 | E71: 0 | F71: 0 | G71: =E71*'Intersection Delay'!$E$94 -> 0 | H71: =F71*'Intersection Delay'!$E$94 -> 0 | I71: 0 | J71: 0 | K71: 0 | L71: 0 | N71: 9 | O71: 0 | P71: 0 | Q71: 0 | R71: 0 | S71: =Q71*'Intersection Delay'!$Q$94 -> 0 | T71: =R71*'Intersection Delay'!$Q$94 -> 0 | U71: 0 | V71: 0 | W71: 0 | X71: 0 | Z71: 9 | AA71: 0 | AB71: 0
B72: 10 | C72: 0 | D72: 0 | E72: 0 | F72: 0 | G72: =E72*'Intersection Delay'!$E$94 -> 0 | H72: =F72*'Intersection Delay'!$E$94 -> 0 | I72: 0 | J72: 0 | K72: 0 | L72: 0 | N72: 10 | O72: 0 | P72: 0 | Q72: 0 | R72: 0 | S72: =Q72*'Intersection Delay'!$Q$94 -> 0 | T72: =R72*'Intersection Delay'!$Q$94 -> 0 | U72: 0 | V72: 0 | W72: 0 | X72: 0 | Z72: 10 | AA72: 0 | AB72: 0
B73: 11 | C73: 0 | D73: 0 | E73: 0 | F73: 0 | G73: =E73*'Intersection Delay'!$E$94 -> 0 | H73: =F73*'Intersection Delay'!$E$94 -> 0 | I73: 0 | J73: 0 | K73: 0 | L73: 0 | N73: 11 | O73: 0 | P73: 0 | Q73: 0 | R73: 0 | S73: =Q73*'Intersection Delay'!$Q$94 -> 0 | T73: =R73*'Intersection Delay'!$Q$94 -> 0 | U73: 0 | V73: 0 | W73: 0 | X73: 0 | Z73: 11 | AA73: 0 | AB73: 0
B74: 12 | C74: 0 | D74: 0 | E74: 0 | F74: 0 | G74: =E74*'Intersection Delay'!$E$94 -> 0 | H74: =F74*'Intersection Delay'!$E$94 -> 0 | I74: 0 | J74: 0 | K74: 0 | L74: 0 | N74: 12 | O74: 0 | P74: 0 | Q74: 0 | R74: 0 | S74: =Q74*'Intersection Delay'!$Q$94 -> 0 | T74: =R74*'Intersection Delay'!$Q$94 -> 0 | U74: 0 | V74: 0 | W74: 0 | X74: 0 | Z74: 12 | AA74: 0 | AB74: 0
B75: 13 | C75: 0 | D75: 0 | E75: 0 | F75: 0 | G75: =E75*'Intersection Delay'!$E$94 -> 0 | H75: =F75*'Intersection Delay'!$E$94 -> 0 | I75: 0 | J75: 0 | K75: 0 | L75: 0 | N75: 13 | O75: 0 | P75: 0 | Q75: 0 | R75: 0 | S75: =Q75*'Intersection Delay'!$Q$94 -> 0 | T75: =R75*'Intersection Delay'!$Q$94 -> 0 | U75: 0 | V75: 0 | W75: 0 | X75: 0 | Z75: 13 | AA75: 0 | AB75: 0
B76: 14 | C76: 0 | D76: 0 | E76: 0 | F76: 0 | G76: =E76*'Intersection Delay'!$E$94 -> 0 | H76: =F76*'Intersection Delay'!$E$94 -> 0 | I76: 0 | J76: 0 | K76: 0 | L76: 0 | N76: 14 | O76: 0 | P76: 0 | Q76: 0 | R76: 0 | S76: =Q76*'Intersection Delay'!$Q$94 -> 0 | T76: =R76*'Intersection Delay'!$Q$94 -> 0 | U76: 0 | V76: 0 | W76: 0 | X76: 0 | Z76: 14 | AA76: 0 | AB76: 0
B77: 15 | C77: 0 | D77: 0 | E77: 0 | F77: 0 | G77: =E77*'Intersection Delay'!$E$94 -> 0 | H77: =F77*'Intersection Delay'!$E$94 -> 0 | I77: 0 | J77: 0 | K77: 0 | L77: 0 | N77: 15 | O77: 0 | P77: 0 | Q77: 0 | R77: 0 | S77: =Q77*'Intersection Delay'!$Q$94 -> 0 | T77: =R77*'Intersection Delay'!$Q$94 -> 0 | U77: 0 | V77: 0 | W77: 0 | X77: 0 | Z77: 15 | AA77: 0 | AB77: 0
B78: 16 | C78: 0 | D78: 0 | E78: 0 | F78: 0 | G78: =E78*'Intersection Delay'!$E$94 -> 0 | H78: =F78*'Intersection Delay'!$E$94 -> 0 | I78: 0 | J78: 0 | K78: 0 | L78: 0 | N78: 16 | O78: 0 | P78: 0 | Q78: 0 | R78: 0 | S78: =Q78*'Intersection Delay'!$Q$94 -> 0 | T78: =R78*'Intersection Delay'!$Q$94 -> 0 | U78: 0 | V78: 0 | W78: 0 | X78: 0 | Z78: 16 | AA78: 0 | AB78: 0
B79: 17 | C79: 0 | D79: 0 | E79: 0 | F79: 0 | G79: =E79*'Intersection Delay'!$E$94 -> 0 | H79: =F79*'Intersection Delay'!$E$94 -> 0 | I79: 0 | J79: 0 | K79: 0 | L79: 0 | N79: 17 | O79: 0 | P79: 0 | Q79: 0 | R79: 0 | S79: =Q79*'Intersection Delay'!$Q$94 -> 0 | T79: =R79*'Intersection Delay'!$Q$94 -> 0 | U79: 0 | V79: 0 | W79: 0 | X79: 0 | Z79: 17 | AA79: 0 | AB79: 0
B80: 18 | C80: 0 | D80: 0 | E80: 0 | F80: 0 | G80: =E80*'Intersection Delay'!$E$94 -> 0 | H80: =F80*'Intersection Delay'!$E$94 -> 0 | I80: 0 | J80: 0 | K80: 0 | L80: 0 | N80: 18 | O80: 0 | P80: 0 | Q80: 0 | R80: 0 | S80: =Q80*'Intersection Delay'!$Q$94 -> 0 | T80: =R80*'Intersection Delay'!$Q$94 -> 0 | U80: 0 | V80: 0 | W80: 0 | X80: 0 | Z80: 18 | AA80: 0 | AB80: 0
B81: 19 | C81: 0 | D81: 0 | E81: 0 | F81: 0 | G81: =E81*'Intersection Delay'!$E$94 -> 0 | H81: =F81*'Intersection Delay'!$E$94 -> 0 | I81: 0 | J81: 0 | K81: 0 | L81: 0 | N81: 19 | O81: 0 | P81: 0 | Q81: 0 | R81: 0 | S81: =Q81*'Intersection Delay'!$Q$94 -> 0 | T81: =R81*'Intersection Delay'!$Q$94 -> 0 | U81: 0 | V81: 0 | W81: 0 | X81: 0 | Z81: 19 | AA81: 0 | AB81: 0
B82: 20 | C82: 0 | D82: 0 | E82: 0 | F82: 0 | G82: =E82*'Intersection Delay'!$E$94 -> 0 | H82: =F82*'Intersection Delay'!$E$94 -> 0 | I82: 0 | J82: 0 | K82: 0 | L82: 0 | N82: 20 | O82: 0 | P82: 0 | Q82: 0 | R82: 0 | S82: =Q82*'Intersection Delay'!$Q$94 -> 0 | T82: =R82*'Intersection Delay'!$Q$94 -> 0 | U82: 0 | V82: 0 | W82: 0 | X82: 0 | Z82: 20 | AA82: 0 | AB82: 0
B84: Total | L84: =SUM(L63:L82) -> 0 | N84: Total | X84: =SUM(X63:X82) -> 0 | Z84: Total | AB84: =SUM(AB63:AB82) -> 0
C88: Computation of Travel Time Parameters - Cycling | O88: Computation of Travel Time Parameters - Pedestrian
D90: Average Number of Intersections Crossed per Trip (#) | E90: =IFERROR(NumInt/ProjLenEX*TAvMiCycNB,0) -> 0 | P90: Average Number of Intersections Crossed per Trip | Q90: =IFERROR(NumInt/ProjLenEX*TAvMiPedNB,0) -> 0
D92: Total Time Savings per Trip (min) | E92: =E90*'1a) Project Info'!H88 -> 0 | P92: Total Time Savings per Trip (min) | Q92: =Q90*'1a) Project Info'!H88 -> 0
D94: Total Time Savings per Trip (hr) | E94: =E92/60 -> 0 | P94: Total Time Savings per Trip (hr) | Q94: =Q92/60 -> 0

Sheet Intersection Safety
B1: Intersection Safety Benefits
B3: This sheet calculates safety benefits associated with intersection improvements along a bike/pedestrian facility.
B5: Formulas:
B7: Baseline Ave. Ann. Accidents by Type = Sum of total Accidents by Type / Years of Accident Data | J7: Value of Accident Reduction by Type = Reduced # of accidents by Type x Value of Accident by Type
B8: Accidents / yr. | J8: $ / year | L8: $/accident
B10: Reduction in Acc. by Type = Crash Modification Factor(s) x Baseline Ave. Ann. Acc. by Type (see calculations, below) | J10: Value of Accident Reduction all types = Sum of Value of Accidents by Type
B11: vehicle-hrs / yr. | D11: vehicles / yr. x miles | F11: miles/hour | J11: $ / year | L11: $/accident
B15: A | C15: CYCLING BENEFITS | S15: B | T15: PEDESTRIAN BENEFITS | AJ15: C | AK15: TOTAL | AN15: D | AO15: SRTS Benefits Share
B18: Existing Facility | S18: Existing Facility | AJ18: Existing Facility | AN18: Existing Facility
C20: EXISTING ACCIDENT RATE AT AFFECTED INTERSECTIONS | G20: NEW ACCIDENT RATE AT AFFECTED INTERSECTIONS | K20: ACCIDENT REDUCTION AT AFFECTED INTERSECTIONS | O20: SAFETY VALUE | T20: EXISTING ACCIDENT RATE AT AFFECTED INTERSECTIONS | X20: NEW ACCIDENT RATE AT AFFECTED INTERSECTIONS | AB20: ACCIDENT REDUCTION AT AFFECTED INTERSECTIONS | AF20: SAFETY VALUE | AO20: Share of Cycling Benefits | AP20: Share of Ped Benefits | AQ20: Sum of Benefits
C21: (events/yr.) | G21: (events/yr.) | K21: (events/yr.) | O21: ($) | T21: (events/yr.) | X21: (events/yr.) | AB21: (events/yr.) | AF21: ($) | AO21: ='2) Model Inputs'!$H$166 -> 0 | AP21: ='2) Model Inputs'!$S$166 -> 0
B22: Year | C22: Fatalities | D22: Injuries | E22: Property Damage Only | F22: Total | G22: Fatalities | H22: Injuries | I22: Property Damage Only | J22: Total | K22: Fatalities | L22: Injuries | M22: Property Damage Only | N22: Total | O22: Total | P22: Constant Dollars | Q22: Present Value | S22: Year | T22: Fatalities | U22: Injuries | V22: Property Damage Only | W22: Total | X22: Fatalities | Y22: Injuries | Z22: Property Damage Only | AA22: Total | AB22: Fatalities | AC22: Injuries | AD22: Property Damage Only | AE22: Total | AF22: Total | AG22: Constant Dollars | AH22: Present Value | AK22: Dollars | AL22: Value | AN22: Year | AO22: SRTS Cycling Benefits - Present Value | AP22: SRTS Ped Benefits - Present Value
B23: 1 | C23: =IF(OR(ProjType=1, ProjType=3),FatCycYr,0) -> 0 | D23: =IF(OR(ProjType=1, ProjType=3),InjCycYr,0) -> 0 | E23: =IF(OR(ProjType=1, ProjType=3),PdoCycYr,0) -> 0 | F23: =SUM(C23:E23) -> 0 | G23: =C23*(1-$K$79) -> 0 | H23: 0 | I23: 0 | J23: =SUM(G23:I23) -> 0 | K23: =C23-G23 -> 0 | L23: 0 | M23: 0 | N23: 0 | O23: =L79 -> 0 | P23: =O23 -> 0 | Q23: =$P23/(1+DiscRate)^($B23+Construct-1) -> 0 | S23: 1 | T23: =IF(OR(ProjType=1, ProjType=3),FatPedYr,0) -> 0 | U23: =IF(OR(ProjType=1, ProjType=3),InjPedYr,0) -> 0 | V23: =IF(OR(ProjType=1, ProjType=3),PdoPedYr,0) -> 0 | W23: =SUM(T23:V23) -> 0 | X23: =T23*(1-$K$79) -> 0 | Y23: 0 | Z23: 0 | AA23: =SUM(X23:Z23) -> 0 | AB23: =T23-X23 -> 0 | AC23: 0 | AD23: 0 | AE23: 0 | AF23: =AC79 -> 0 | AG23: =AF23 -> 0 | AH23: =$AG23/(1+DiscRate)^($B23+Construct-1) -> 0 | AJ23: 1 | AK23: =AG23+P23 -> 0 | AL23: =AH23+Q23 -> 0 | AN23: 1 | AO23: =$AO$21*Q23 -> 0 | AP23: =$AP$21*AH23 -> 0 | AQ23: =SUM(AO23:AP23) -> 0
B24: 20 | C24: =C45 -> 0 | D24: =D45 -> 0 | E24: =E45 -> 0 | F24: =SUM(C24:E24) -> 0 | G24: 0 | H24: 0 | I24: 0 | J24: =SUM(G24:I24) -> 0 | K24: 0 | L24: 0 | M24: 0 | N24: 0 | O24: =O45 -> 0 | P24: =O24 -> 0 | Q24: =$P24/(1+DiscRate)^($B24+Construct-1) -> 0 | S24: 20 | T24: =T45 -> 0 | U24: =U45 -> 0 | V24: =V45 -> 0 | W24: =SUM(T24:V24) -> 0 | X24: 0 | Y24: 0 | Z24: 0 | AA24: =SUM(X24:Z24) -> 0 | AB24: 0 | AC24: 0 | AD24: 0 | AE24: 0 | AF24: =AF45 -> 0 | AG24: =AF24 -> 0 | AH24: =$AG24/(1+DiscRate)^($B24+Construct-1) -> 0 | AJ24: 20 | AK24: =AG24+P24 -> 0 | AL24: =AH24+Q24 -> 0 | AN24: 20 | AO24: =$AO$21*Q24 -> 0 | AP24: =$AP$21*AH24 -> 0 | AQ24: =SUM(AO24:AP24) -> 0
B26: 1 | C26: =C23 -> 0 | D26: =D23 -> 0 | E26: =E23 -> 0 | F26: =SUM(C26:E26) -> 0 | G26: =C26*(1-$K$79) -> 0 | H26: =D26*(1-$K$79) -> 0 | I26: =E26*(1-$K$79) -> 0 | J26: =SUM(G26:I26) -> 0 | K26: =C26-G26 -> 0 | L26: =D26-H26 -> 0 | M26: =E26-I26 -> 0 | N26: =F26-J26 -> 0 | O26: =O23 -> 0 | P26: =O26 -> 0 | Q26: =$P26/(1+DiscRate)^($B26+Construct-1) -> 0 | S26: 1 | T26: =T23 -> 0 | U26: =U23 -> 0 | V26: =V23 -> 0 | W26: =SUM(T26:V26) -> 0 | X26: =T26*(1-$K$79) -> 0 | Y26: =U26*(1-$K$79) -> 0 | Z26: =V26*(1-$K$79) -> 0 | AA26: =SUM(X26:Z26) -> 0 | AB26: =T26-X26 -> 0 | AC26: =U26-Y26 -> 0 | AD26: =V26-Z26 -> 0 | AE26: =W26-AA26 -> 0 | AF26: =AF23 -> 0 | AG26: =AF26 -> 0 | AH26: =$AG26/(1+DiscRate)^($B26+Construct-1) -> 0 | AJ26: 1 | AK26: =AG26+P26 -> 0 | AL26: =AH26+Q26 -> 0 | AN26: 1 | AO26: =$AO$21*Q26 -> 0 | AP26: =$AP$21*AH26 -> 0 | AQ26: =SUM(AO26:AP26) -> 0
B27: 2 | C27: =C26*(1+AccCycGrowth) -> 0 | D27: =D26*(1+AccCycGrowth) -> 0 | E27: =E26*(1+AccCycGrowth) -> 0 | F27: 0 | G27: 0 | H27: 0 | I27: 0 | J27: 0 | K27: 0 | L27: 0 | M27: 0 | N27: 0 | O27: =O26*(1+AccCycGrowth) -> 0 | P27: =O27 -> 0 | Q27: 0 | S27: 2 | T27: =T26*(1+AccPedGrowth) -> 0 | U27: =U26*(1+AccPedGrowth) -> 0 | V27: =V26*(1+AccPedGrowth) -> 0 | W27: 0 | X27: 0 | Y27: 0 | Z27: 0 | AA27: 0 | AB27: 0 | AC27: 0 | AD27: 0 | AE27: 0 | AF27: =AF26*(1+AccPedGrowth) -> 0 | AG27: =AF27 -> 0 | AH27: 0 | AJ27: 2 | AK27: 0 | AL27: 0 | AN27: 2 | AO27: 0 | AP27: 0 | AQ27: =SUM(AO27:AP27) -> 0
B28: 3 | C28: 0 | D28: 0 | E28: 0 | F28: 0 | G28: 0 | H28: 0 | I28: 0 | J28: 0 | K28: 0 | L28: 0 | M28: 0 | N28: 0 | O28: 0 | P28: =O28 -> 0 | Q28: 0 | S28: 3 | T28: 0 | U28: 0 | V28: 0 | W28: 0 | X28: 0 | Y28: 0 | Z28: 0 | AA28: 0 | AB28: 0 | AC28: 0 | AD28: 0 | AE28: 0 | AF28: 0 | AG28: 0 | AH28: 0 | AJ28: 3 | AK28: 0 | AL28: 0 | AN28: 3 | AO28: 0 | AP28: 0 | AQ28: 0
B29: 4 | C29: 0 | D29: 0 | E29: 0 | F29: 0 | G29: 0 | H29: 0 | I29: 0 | J29: 0 | K29: 0 | L29: 0 | M29: 0 | N29: 0 | O29: 0 | P29: =O29 -> 0 | Q29: 0 | S29: 4 | T29: 0 | U29: 0 | V29: 0 | W29: 0 | X29: 0 | Y29: 0 | Z29: 0 | AA29: 0 | AB29: 0 | AC29: 0 | AD29: 0 | AE29: 0 | AF29: 0 | AG29: 0 | AH29: 0 | AJ29: 4 | AK29: 0 | AL29: 0 | AN29: 4 | AO29: 0 | AP29: 0 | AQ29: 0
B30: 5 | C30: 0 | D30: 0 | E30: 0 | F30: 0 | G30: 0 | H30: 0 | I30: 0 | J30: 0 | K30: 0 | L30: 0 | M30: 0 | N30: 0 | O30: 0 | P30: 0 | Q30: 0 | S30: 5 | T30: 0 | U30: 0 | V30: 0 | W30: 0 | X30: 0 | Y30: 0 | Z30: 0 | AA30: 0 | AB30: 0 | AC30: 0 | AD30: 0 | AE30: 0 | AF30: 0 | AG30: 0 | AH30: 0 | AJ30: 5 | AK30: 0 | AL30: 0 | AN30: 5 | AO30: 0 | AP30: 0 | AQ30: 0
B31: 6 | C31: 0 | D31: 0 | E31: 0 | F31: 0 | G31: 0 | H31: 0 | I31: 0 | J31: 0 | K31: 0 | L31: 0 | M31: 0 | N31: 0 | O31: 0 | P31: 0 | Q31: 0 | S31: 6 | T31: 0 | U31: 0 | V31: 0 | W31: 0 | X31: 0 | Y31: 0 | Z31: 0 | AA31: 0 | AB31: 0 | AC31: 0 | AD31: 0 | AE31: 0 | AF31: 0 | AG31: 0 | AH31: 0 | AJ31: 6 | AK31: 0 | AL31: 0 | AN31: 6 | AO31: 0 | AP31: 0 | AQ31: 0
B32: 7 | C32: 0 | D32: 0 | E32: 0 | F32: 0 | G32: 0 | H32: 0 | I32: 0 | J32: 0 | K32: 0 | L32: 0 | M32: 0 | N32: 0 | O32: 0 | P32: 0 | Q32: 0 | S32: 7 | T32: 0 | U32: 0 | V32: 0 | W32: 0 | X32: 0 | Y32: 0 | Z32: 0 | AA32: 0 | AB32: 0 | AC32: 0 | AD32: 0 | AE32: 0 | AF32: 0 | AG32: 0 | AH32: 0 | AJ32: 7 | AK32: 0 | AL32: 0 | AN32: 7 | AO32: 0 | AP32: 0 | AQ32: 0
B33: 8 | C33: 0 | D33: 0 | E33: 0 | F33: 0 | G33: 0 | H33: 0 | I33: 0 | J33: 0 | K33: 0 | L33: 0 | M33: 0 | N33: 0 | O33: 0 | P33: 0 | Q33: 0 | S33: 8 | T33: 0 | U33: 0 | V33: 0 | W33: 0 | X33: 0 | Y33: 0 | Z33: 0 | AA33: 0 | AB33: 0 | AC33: 0 | AD33: 0 | AE33: 0 | AF33: 0 | AG33: 0 | AH33: 0 | AJ33: 8 | AK33: 0 | AL33: 0 | AN33: 8 | AO33: 0 | AP33: 0 | AQ33: 0
B34: 9 | C34: 0 | D34: 0 | E34: 0 | F34: 0 | G34: 0 | H34: 0 | I34: 0 | J34: 0 | K34: 0 | L34: 0 | M34: 0 | N34: 0 | O34: 0 | P34: 0 | Q34: 0 | S34: 9 | T34: 0 | U34: 0 | V34: 0 | W34: 0 | X34: 0 | Y34: 0 | Z34: 0 | AA34: 0 | AB34: 0 | AC34: 0 | AD34: 0 | AE34: 0 | AF34: 0 | AG34: 0 | AH34: 0 | AJ34: 9 | AK34: 0 | AL34: 0 | AN34: 9 | AO34: 0 | AP34: 0 | AQ34: 0
B35: 10 | C35: 0 | D35: 0 | E35: 0 | F35: 0 | G35: 0 | H35: 0 | I35: 0 | J35: 0 | K35: 0 | L35: 0 | M35: 0 | N35: 0 | O35: 0 | P35: 0 | Q35: 0 | S35: 10 | T35: 0 | U35: 0 | V35: 0 | W35: 0 | X35: 0 | Y35: 0 | Z35: 0 | AA35: 0 | AB35: 0 | AC35: 0 | AD35: 0 | AE35: 0 | AF35: 0 | AG35: 0 | AH35: 0 | AJ35: 10 | AK35: 0 | AL35: 0 | AN35: 10 | AO35: 0 | AP35: 0 | AQ35: 0
B36: 11 | C36: 0 | D36: 0 | E36: 0 | F36: 0 | G36: 0 | H36: 0 | I36: 0 | J36: 0 | K36: 0 | L36: 0 | M36: 0 | N36: 0 | O36: 0 | P36: 0 | Q36: 0 | S36: 11 | T36: 0 | U36: 0 | V36: 0 | W36: 0 | X36: 0 | Y36: 0 | Z36: 0 | AA36: 0 | AB36: 0 | AC36: 0 | AD36: 0 | AE36: 0 | AF36: 0 | AG36: 0 | AH36: 0 | AJ36: 11 | AK36: 0 | AL36: 0 | AN36: 11 | AO36: 0 | AP36: 0 | AQ36: 0
B37: 12 | C37: 0 | D37: 0 | E37: 0 | F37: 0 | G37: 0 | H37: 0 | I37: 0 | J37: 0 | K37: 0 | L37: 0 | M37: 0 | N37: 0 | O37: 0 | P37: 0 | Q37: 0 | S37: 12 | T37: 0 | U37: 0 | V37: 0 | W37: 0 | X37: 0 | Y37: 0 | Z37: 0 | AA37: 0 | AB37: 0 | AC37: 0 | AD37: 0 | AE37: 0 | AF37: 0 | AG37: 0 | AH37: 0 | AJ37: 12 | AK37: 0 | AL37: 0 | AN37: 12 | AO37: 0 | AP37: 0 | AQ37: 0
B38: 13 | C38: 0 | D38: 0 | E38: 0 | F38: 0 | G38: 0 | H38: 0 | I38: 0 | J38: 0 | K38: 0 | L38: 0 | M38: 0 | N38: 0 | O38: 0 | P38: 0 | Q38: 0 | S38: 13 | T38: 0 | U38: 0 | V38: 0 | W38: 0 | X38: 0 | Y38: 0 | Z38: 0 | AA38: 0 | AB38: 0 | AC38: 0 | AD38: 0 | AE38: 0 | AF38: 0 | AG38: 0 | AH38: 0 | AJ38: 13 | AK38: 0 | AL38: 0 | AN38: 13 | AO38: 0 | AP38: 0 | AQ38: 0
B39: 14 | C39: 0 | D39: 0 | E39: 0 | F39: 0 | G39: 0 | H39: 0 | I39: 0 | J39: 0 | K39: 0 | L39: 0 | M39: 0 | N39: 0 | O39: 0 | P39: 0 | Q39: 0 | S39: 14 | T39: 0 | U39: 0 | V39: 0 | W39: 0 | X39: 0 | Y39: 0 | Z39: 0 | AA39: 0 | AB39: 0 | AC39: 0 | AD39: 0 | AE39: 0 | AF39: 0 | AG39: 0 | AH39: 0 | AJ39: 14 | AK39: 0 | AL39: 0 | AN39: 14 | AO39: 0 | AP39: 0 | AQ39: 0
B40: 15 | C40: 0 | D40: 0 | E40: 0 | F40: 0 | G40: 0 | H40: 0 | I40: 0 | J40: 0 | K40: 0 | L40: 0 | M40: 0 | N40: 0 | O40: 0 | P40: 0 | Q40: 0 | S40: 15 | T40: 0 | U40: 0 | V40: 0 | W40: 0 | X40: 0 | Y40: 0 | Z40: 0 | AA40: 0 | AB40: 0 | AC40: 0 | AD40: 0 | AE40: 0 | AF40: 0 | AG40: 0 | AH40: 0 | AJ40: 15 | AK40: 0 | AL40: 0 | AN40: 15 | AO40: 0 | AP40: 0 | AQ40: 0
B41: 16 | C41: 0 | D41: 0 | E41: 0 | F41: 0 | G41: 0 | H41: 0 | I41: 0 | J41: 0 | K41: 0 | L41: 0 | M41: 0 | N41: 0 | O41: 0 | P41: 0 | Q41: 0 | S41: 16 | T41: 0 | U41: 0 | V41: 0 | W41: 0 | X41: 0 | Y41: 0 | Z41: 0 | AA41: 0 | AB41: 0 | AC41: 0 | AD41: 0 | AE41: 0 | AF41: 0 | AG41: 0 | AH41: 0 | AJ41: 16 | AK41: 0 | AL41: 0 | AN41: 16 | AO41: 0 | AP41: 0 | AQ41: 0
B42: 17 | C42: 0 | D42: 0 | E42: 0 | F42: 0 | G42: 0 | H42: 0 | I42: 0 | J42: 0 | K42: 0 | L42: 0 | M42: 0 | N42: 0 | O42: 0 | P42: 0 | Q42: 0 | S42: 17 | T42: 0 | U42: 0 | V42: 0 | W42: 0 | X42: 0 | Y42: 0 | Z42: 0 | AA42: 0 | AB42: 0 | AC42: 0 | AD42: 0 | AE42: 0 | AF42: 0 | AG42: 0 | AH42: 0 | AJ42: 17 | AK42: 0 | AL42: 0 | AN42: 17 | AO42: 0 | AP42: 0 | AQ42: 0
B43: 18 | C43: 0 | D43: 0 | E43: 0 | F43: 0 | G43: 0 | H43: 0 | I43: 0 | J43: 0 | K43: 0 | L43: 0 | M43: 0 | N43: 0 | O43: 0 | P43: 0 | Q43: 0 | S43: 18 | T43: 0 | U43: 0 | V43: 0 | W43: 0 | X43: 0 | Y43: 0 | Z43: 0 | AA43: 0 | AB43: 0 | AC43: 0 | AD43: 0 | AE43: 0 | AF43: 0 | AG43: 0 | AH43: 0 | AJ43: 18 | AK43: 0 | AL43: 0 | AN43: 18 | AO43: 0 | AP43: 0 | AQ43: 0
B44: 19 | C44: 0 | D44: 0 | E44: 0 | F44: 0 | G44: 0 | H44: 0 | I44: 0 | J44: 0 | K44: 0 | L44: 0 | M44: 0 | N44: 0 | O44: 0 | P44: 0 | Q44: 0 | S44: 19 | T44: 0 | U44: 0 | V44: 0 | W44: 0 | X44: 0 | Y44: 0 | Z44: 0 | AA44: 0 | AB44: 0 | AC44: 0 | AD44: 0 | AE44: 0 | AF44: 0 | AG44: 0 | AH44: 0 | AJ44: 19 | AK44: 0 | AL44: 0 | AN44: 19 | AO44: 0 | AP44: 0 | AQ44: 0
B45: 20 | C45: 0 | D45: 0 | E45: 0 | F45: 0 | G45: 0 | H45: 0 | I45: 0 | J45: 0 | K45: 0 | L45: 0 | M45: 0 | N45: 0 | O45: 0 | P45: 0 | Q45: 0 | S45: 20 | T45: 0 | U45: 0 | V45: 0 | W45: 0 | X45: 0 | Y45: 0 | Z45: 0 | AA45: 0 | AB45: 0 | AC45: 0 | AD45: 0 | AE45: 0 | AF45: 0 | AG45: 0 | AH45: 0 | AJ45: 20 | AK45: 0 | AL45: 0 | AN45: 20 | AO45: 0 | AP45: 0 | AQ45: 0
B47: Total | Q47: =SUM(Q26:Q45) -> 0 | S47: Total | AH47: =SUM(AH26:AH45) -> 0 | AJ47: Total | AL47: =SUM(AL26:AL45) -> 0 | AN47: Total | AO47: =SUM(AO26:AO45) -> 0 | AP47: =SUM(AP26:AP45) -> 0 | AQ47: 0
C50: Intersection Safety Improvements - Cycling | T50: Intersection Safety Improvements - Pedestrian
H52: Fatalities | I52: Injuries | J52: Property Damage Only | L52: Total | Y52: Fatalities | Z52: Injuries | AA52: Property Damage Only | AC52: Total
G53: Baseline Frequency | H53: =FatCycYr -> 0 | I53: =InjCycYr -> 0 | J53: =PdoCycYr -> 0 | L53: =SUM(H53:J53) -> 0 | X53: Baseline Frequency | Y53: =FatPedYr -> 0 | Z53: =InjPedYr -> 0 | AA53: =PdoPedYr -> 0 | AC53: =SUM(Y53:AA53) -> 0
G54: Cost per Collision (Vc) | H54: =HwyFatCost -> 13800000 | I54: =HwyInjCost -> 293800 | J54: =HwyPDOCost -> 9000 | L54: =SUMPRODUCT(H53:J53,H54:J54) -> 0 | X54: Cost per Collision (Vc) | Y54: =HwyFatCost -> 13800000 | Z54: =HwyInjCost -> 293800 | AA54: =HwyPDOCost -> 9000 | AC54: =SUMPRODUCT(Y53:AA53,Y54:AA54) -> 0
G57: Measures | H57: Applicable | I57: Collision Reduction Factors (CRFs) | J57: Potential Cost Reduction | K57: Estimated Impact (%) - Pc | L57: Singular Measure Impact ($) | X57: Measures | Y57: Applicable | Z57: Collision Reduction Factors (CRFs) | AA57: Potential Cost Reduction | AB57: Estimated Impact (%) - Pc | AC57: Estimated Impact ($)
G58: SIGNALIZED INTERSECTION COUNTERMEASURES | X58: SIGNALIZED INTERSECTION COUNTERMEASURES
G59: Install pedestrian countdown signal heads | H59: ='1a) Project Info'!H116 -> 0 | I59: 0.25 | J59: =($L$54*I59) -> 0 | K59: =I59*$H59 -> 0 | L59: 0 | X59: Install pedestrian countdown signal heads | Y59: ='1a) Project Info'!H116 -> 0 | Z59: 0.25 | AA59: =($AC$54*Z59) -> 0 | AB59: =Z59*$Y59 -> 0 | AC59: =AA59*$Y59 -> 0
G60: Install pedestrian crossing | H60: ='1a) Project Info'!H117 -> 0 | I60: 0.25 | J60: =($L$54*I60) -> 0 | K60: 0 | L60: 0 | X60: Install pedestrian crossing | Y60: ='1a) Project Info'!H117 -> 0 | Z60: 0.25 | AA60: =($AC$54*Z60) -> 0 | AB60: =Z60*$Y60 -> 0 | AC60: =AA60*$Y60 -> 0
G61: Install advance stop bar before crosswalk (bicycle box) | H61: ='1a) Project Info'!H118 -> 0 | I61: 0.15 | J61: =($L$54*I61) -> 0 | K61: 0 | L61: 0 | X61: Install advance stop bar before crosswalk (bicycle box) | Y61: ='1a) Project Info'!H118 -> 0 | Z61: 0.15 | AA61: =($AC$54*Z61) -> 0 | AB61: =Z61*$Y61 -> 0 | AC61: 0
G62: Install pedestrian overpass/ underpass | H62: ='1a) Project Info'!H119 -> 0 | I62: 0.75 | J62: =($L$54*I62) -> 0 | K62: 0 | L62: 0 | X62: Install pedestrian overpass/ underpass | Y62: ='1a) Project Info'!H119 -> 0 | Z62: 0.75 | AA62: =($AC$54*Z62) -> 0 | AB62: =Z62*$Y62 -> 0 | AC62: 0
G64: UNSIGNALIZED INTERESECTION COUNTERMEASURES | X64: UNSIGNALIZED INTERESECTION COUNTERMEASURES
G65: Install raised medians/ refuge islands | H65: ='1a) Project Info'!H121 -> 0 | I65: 0.45 | J65: =($L$54*I65) -> 0 | K65: =I65*$H65 -> 0 | L65: 0 | X65: Install raised medians/ refuge islands | Y65: ='1a) Project Info'!H121 -> 0 | Z65: 0.45 | AA65: =($AC$54*Z65) -> 0 | AB65: =Z65*$Y65 -> 0 | AC65: =AA65*$Y65 -> 0
G66: Install pedestrian crossings (new signs and markings only | H66: ='1a) Project Info'!H122 -> 0 | I66: 0.25 | J66: =($L$54*I66) -> 0 | K66: 0 | L66: 0 | X66: Install pedestrian crossings (new signs and markings only | Y66: ='1a) Project Info'!H122 -> 0 | Z66: 0.25 | AA66: =($AC$54*Z66) -> 0 | AB66: =Z66*$Y66 -> 0 | AC66: =AA66*$Y66 -> 0
G67: Install pedestrian crossing (with enhanced safety measures/ curb extensions | H67: ='1a) Project Info'!H123 -> 0 | I67: 0.35 | J67: =($L$54*I67) -> 0 | K67: 0 | L67: 0 | X67: Install pedestrian crossing (with enhanced safety measures/ curb extensions | Y67: ='1a) Project Info'!H123 -> 0 | Z67: 0.35 | AA67: =($AC$54*Z67) -> 0 | AB67: =Z67*$Y67 -> 0 | AC67: 0
G68: Install pedestrian signal | H68: ='1a) Project Info'!H124 -> 0 | I68: 0.55 | J68: =($L$54*I68) -> 0 | K68: 0 | L68: 0 | X68: Install pedestrian signal | Y68: ='1a) Project Info'!H124 -> 0 | Z68: 0.55 | AA68: =($AC$54*Z68) -> 0 | AB68: =Z68*$Y68 -> 0 | AC68: 0
G70: ROADWAY COUNTERMEASURES - CAPTURED BY JOURNEY QUALITY | X70: ROADWAY COUNTERMEASURES
G71: Install sidewalk/pathway (to avoid walking along roadways | X71: Install sidewalk/pathway (to avoid walking along roadways | Y71: ='1a) Project Info'!H126 -> 0 | Z71: 0.8 | AA71: =($AC$54*Z71) -> 0 | AB71: =Z71*$Y71 -> 0 | AC71: =AA71*$Y71 -> 0
G72: Install pedestrian crossing (with enhanced safety measures | X72: Install pedestrian crossing (with enhanced safety measures | Y72: ='1a) Project Info'!H127 -> 0 | Z72: 0.3 | AA72: =($AC$54*Z72) -> 0 | AB72: =Z72*$Y72 -> 0 | AC72: 0
G73: Install Pedestrian crossing | X73: Install Pedestrian crossing | Y73: ='1a) Project Info'!H128 -> 0 | Z73: 0.35 | AA73: =($AC$54*Z73) -> 0 | AB73: =Z73*$Y73 -> 0 | AC73: 0
G75: OTHER REDUCTION FACTOR | H75: ='1a) Project Info'!H129 -> 0 | I75: 0.1 | J75: =($L$54*I75) -> 0 | K75: =I75*$H75 -> 0 | L75: =J75*$H75 -> 0 | X75: OTHER REDUCTION FACTOR | Y75: ='1a) Project Info'!H129 -> 0 | Z75: 0.1 | AA75: =($AC$54*Z75) -> 0 | AB75: =Z75*$H75 -> 0 | AC75: 0
G77: TOTAL | X77: TOTAL
J78: TOTAL MEASURES | K78: =IF(OR(ProjType=1, ProjType=3),SUM(H59:H75),0) -> 0 | AA78: TOTAL MEASURES | AB78: =IF(OR(ProjType=1, ProjType=3),SUM(Y59:Y75),0) -> 0
J79: TOTAL COMBINED ANNUAL IMPACT | K79: =1-(1-LARGE(K59:K75,1))*(1-LARGE(K59:K75,2))*(1-LARGE(K59:K75,3)) -> 0 | L79: =$K$79*(H54*H53+I53*I54+J53*J54) -> 0 | AA79: TOTAL ANNUAL IMPACT | AB79: =1-(1-LARGE(AB59:AB75,1))*(1-LARGE(AB59:AB75,2))*(1-LARGE(AB59:AB75,3)) -> 0 | AC79: =$K$79*(Y54*Y53+Z53*Z54+AA53*AA54) -> 0

Sheet Auto Accident Costs
B1: Accident Reduction Benefits
B3: This sheet calculates benefits of avoided accidents on highways due to a mode shift in trips to active transportation modes.
B5: Formulas:
B7: Vehicle-Miles Traveled = Affected Length x Avg Volume / Vehicle Occupancy | G7: Transit Acc Cost = Veh-Miles x Acc Cost/Mile
B8: veh-miles/yr. | D8: miles | E8: vehicles/yr.
B10: Hwy Acc Cost = (VMT x Rate x Cost/Mile) by Acc Type | G10: Transit Acc Cost/Mile from PARAMETERS
B15: A | C15: REDUCED ACCIDENT BENEFITS - HIGHWAY USERS
B18: Total
C20: AVERAGE ANNUAL VOLUME | E20: REDUCED VMT | F20: ACCIDENT BENEFITS
C21: (trip-miles/yr.) | E21: (veh-miles/yr.) | F21: ($/yr.)
B22: Year | C22: Induced Trips, Cycling | D22: Induced Trips, Pedestrians | E22: Induced Trips, Cyclists, Pedestrians | F22: Induced Trips | G22: Constant Dollars | H22: Present Value
B23: 1 | C23: =IF(OR(ProjType=1,ProjType=3),((TrComCyc1BEX-TrComCyc1NBEX)+(TrODCyc1BEX-TrODCyc1NBEX))*TAvMiCycNB,0)+IF(ProjType>1,((TrComCyc1BNew-TrComCyc1NBNew)+(TrODCyc1BNew-TrODCyc1NBNew))*TAvMiCycNB,0) -> 0 | D23: =IF(OR(ProjType=1,ProjType=3),((TrComPed1BEX-TrComPed1NBEX)+(TrODPed1BEX-TrODPed1NBEX))*TAvMiPedNB,0)+IF(ProjType>1,((TrComPed1BNew-TrComPed1NBNew)+(TrODPed1BNew-TrODPed1NBNew))*TAvMiPedNB,0) -> 0 | E23: =(D23*DivCycAutoNB+C23*DivPedAutoNB)/VehOcc -> 0 | F23: =(E23*NonFwyAccRate*AvgAccCost/1000000) -> 0 | G23: =SUM(F23:F23) -> 0 | H23: =$G23/(1+DiscRate)^($B23+Construct-1) -> 0
B24: 20 | C24: =IF(OR(ProjType=1,ProjType=3),((TrComCyc20BEX-TrComCyc20NBEX)+(TrODCyc20BEX-TrODCyc20NBEX))*TAvMiCycNB,0)+IF(ProjType>1,((TrComCyc20BNew-TrComCyc20NBNew)+(TrODCyc20BNew-TrODCyc20NBNew))*TAvMiCycNB,0) -> 0 | D24: =IF(OR(ProjType=1,ProjType=3),((TrComPed20BEX-TrComPed20NBEX)+(TrODPed20BEX-TrODPed20NBEX))*TAvMiPedNB,0)+IF(ProjType>1,((TrComPed20BNew-TrComPed20NBNew)+(TrODPed20BNew-TrODPed20NBNew))*TAvMiPedNB,0) -> 0 | E24: =(D24*DivCycAutoNB+C24*DivPedAutoNB)/VehOcc -> 0 | F24: =(E24*NonFwyAccRate*AvgAccCost/1000000) -> 0 | G24: =SUM($F24:$F24) -> 0 | H24: =$G24/(1+DiscRate)^($B24+Construct-1) -> 0
B26: 1 | C26: =TREND(C$23:C$24,$B$23:$B$24,$B26) -> 0 | D26: =TREND(D$23:D$24,$B$23:$B$24,$B26) -> 0 | E26: =(D26*DivCycAutoNB+C26*DivPedAutoNB)/VehOcc -> 0 | F26: =(E26*NonFwyAccRate*AvgAccCost/1000000) -> 0 | G26: =TREND(G$23:G$24,$B$23:$B$24,$B26) -> 0 | H26: =$G26/(1+DiscRate)^($B26+Construct-1) -> 0
B27: 2 | C27: =TREND(C$23:C$24,$B$23:$B$24,$B27) -> 0 | D27: 0 | E27: 0 | F27: 0 | G27: 0 | H27: 0
B28: 3 | C28: 0 | D28: 0 | E28: 0 | F28: 0 | G28: 0 | H28: 0
B29: 4 | C29: 0 | D29: 0 | E29: 0 | F29: 0 | G29: 0 | H29: 0
B30: 5 | C30: 0 | D30: 0 | E30: 0 | F30: 0 | G30: 0 | H30: 0
B31: 6 | C31: 0 | D31: 0 | E31: 0 | F31: 0 | G31: 0 | H31: 0
B32: 7 | C32: 0 | D32: 0 | E32: 0 | F32: 0 | G32: 0 | H32: 0
B33: 8 | C33: 0 | D33: 0 | E33: 0 | F33: 0 | G33: 0 | H33: 0
B34: 9 | C34: 0 | D34: 0 | E34: 0 | F34: 0 | G34: 0 | H34: 0
B35: 10 | C35: 0 | D35: 0 | E35: 0 | F35: 0 | G35: 0 | H35: 0
B36: 11 | C36: 0 | D36: 0 | E36: 0 | F36: 0 | G36: 0 | H36: 0
B37: 12 | C37: 0 | D37: 0 | E37: 0 | F37: 0 | G37: 0 | H37: 0
B38: 13 | C38: 0 | D38: 0 | E38: 0 | F38: 0 | G38: 0 | H38: 0
B39: 14 | C39: 0 | D39: 0 | E39: 0 | F39: 0 | G39: 0 | H39: 0
B40: 15 | C40: 0 | D40: 0 | E40: 0 | F40: 0 | G40: 0 | H40: 0
B41: 16 | C41: 0 | D41: 0 | E41: 0 | F41: 0 | G41: 0 | H41: 0
B42: 17 | C42: 0 | D42: 0 | E42: 0 | F42: 0 | G42: 0 | H42: 0
B43: 18 | C43: 0 | D43: 0 | E43: 0 | F43: 0 | G43: 0 | H43: 0
B44: 19 | C44: 0 | D44: 0 | E44: 0 | F44: 0 | G44: 0 | H44: 0
B45: 20 | C45: 0 | D45: 0 | E45: 0 | F45: 0 | G45: 0 | H45: 0
B47: Total | H47: =SUM(H26:H45) -> 0

Sheet Health - Absenteeism
B1: Health Benefits - Reduced Absenteeism
B3: This sheet calculates the benefits to employers of improved health of employees who use active transportation modes. Benefits are based on the value of reduced work absences.
B5: Formulas:
H6: Value of Short-Term Health = Reduced Days of Work Absences x Avg. Value of Time per Day
B7: Avg. Ann. Commuters = Avg. Daily Trips / Roundtrip Factor x Commuting Purpose (%) x Annual Days | H7: $ / year | J7: # of days / year | L7: $ / day
B8: # / year | C8: #/day' | D8: % | E8: # | H8: Avg. Value of Time per Day, based on state average wage rate and 8 hour day
B10: Reduced Days of Work Absences = Avg. Ann. Commuters x Short-term sick leave coverage x Reduction in sick days | H10: Only applicable for induced riders
B11: # / yr. | C11: # / year | D11: (%) | E11: (%)
B15: A | C15: CYCLING BENEFITS | K15: B | L15: PEDESTRIAN BENEFITS | T15: C | U15: TOTAL
B18: Total | K18: Total | T18: Total
C20: COMMUTER TRIPS | F20: REDUCTION IN ABSENTEEISM | G20: VALUE OF REDUCED ABSENTEEISM | L20: NEW COMMUTERS | O20: REDUCTION IN ABSENTEEISM | P20: VALUE OF REDUCED ABSENTEEISM
C21: (trips/yr.) | F21: (days) | G21: ($/day) | L21: (trips/yr.) | O21: (days) | P21: ($/day)
B22: Year | C22: Total Commuters, Existing + New Facility (Baseline) | D22: Total Commuters, Improved + New Facility | E22: Induced Commuters, Existing Facility | F22: Induced Commuters | G22: Induced Commuters | H22: Constant Dollars | I22: Present Value | K22: Year | L22: Total Commuters, Existing Facility (Baseline) | M22: Total Commuters, Improved Facility | N22: Induced Commuters, Existing Facility | O22: Induced Commuters | P22: Induced Commuters | Q22: Constant Dollars | R22: Present Value | T22: Year | U22: Constant Dollars | V22: Present Value
B23: 1 | C23: =IF(OR(ProjType=1,ProjType=3),UserComCyc1NBEX,0)+IF(ProjType>1,UserComCyc1NBNew,0) -> 0 | D23: =IF(OR(ProjType=1,ProjType=3),UserComCyc1BEX,0)+IF(ProjType>1,UserComCyc1BNew,0) -> 0 | E23: =D23-C23 -> 0 | F23: =E23*AnnSickDays*PerSickDaysLeave*PerSickDaysRed -> 0 | G23: =WageStatewide*8 -> 281.7786669 | H23: =G23*F23*(1+TTUprater)^($B23+Construct-1) -> 0 | I23: =$H23/(1+DiscRate)^($B23+Construct-1) -> 0 | K23: 1 | L23: =IF(OR(ProjType=1,ProjType=3),UserComPed1NBEX,0)+IF(ProjType>1,UserComPed1NBNew,0) -> 0 | M23: =IF(OR(ProjType=1,ProjType=3),UserComPed1BEX,0)+IF(ProjType>1,UserComPed1BNew,0) -> 0 | N23: =M23-L23 -> 0 | O23: =N23*AnnSickDays*PerSickDaysLeave*PerSickDaysRed -> 0 | P23: =WageStatewide*8 -> 281.7786669 | Q23: =P23*O23 -> 0 | R23: =$Q23/(1+DiscRate)^($K23+Construct-1) -> 0 | T23: 1 | U23: =Q23+H23 -> 0 | V23: =R23+I23 -> 0
B24: 20 | C24: =IF(OR(ProjType=1,ProjType=3),UserComCyc20NBEX,0)+IF(ProjType>1,UserComCyc20NBNew,0) -> 0 | D24: =IF(OR(ProjType=1,ProjType=3),UserComCyc20BEX,0)+IF(ProjType>1,UserComCyc20BNew,0) -> 0 | E24: =D24-C24 -> 0 | F24: =E24*AnnSickDays*PerSickDaysLeave*PerSickDaysRed -> 0 | G24: =WageStatewide*8 -> 281.7786669 | H24: =G24*F24*(1+TTUprater)^($B24+Construct-1) -> 0 | I24: =$H24/(1+DiscRate)^($B24+Construct-1) -> 0 | K24: 20 | L24: =IF(OR(ProjType=1,ProjType=3),UserComPed20NBEX,0)+IF(ProjType>1,UserComPed20NBNew,0) -> 0 | M24: =IF(OR(ProjType=1,ProjType=3),UserComPed20BEX,0)+IF(ProjType>1,UserComPed20BNew,0) -> 0 | N24: =M24-L24 -> 0 | O24: =N24*AnnSickDays*PerSickDaysLeave*PerSickDaysRed -> 0 | P24: =WageStatewide*8 -> 281.7786669 | Q24: =P24*O24 -> 0 | R24: =$Q24/(1+DiscRate)^($K24+Construct-1) -> 0 | T24: 20 | U24: =Q24+H24 -> 0 | V24: =R24+I24 -> 0
B26: 1 | C26: =TREND(C$23:C$24,$B$23:$B$24,$B26) -> 0 | D26: =TREND(D$23:D$24,$B$23:$B$24,$B26) -> 0 | E26: =TREND(E$23:E$24,$B$23:$B$24,$B26) -> 0 | F26: =E26*AnnSickDays*PerSickDaysLeave*PerSickDaysRed -> 0 | G26: =WageStatewide*8 -> 281.7786669 | H26: =G26*F26*(1+TTUprater)^($B26+Construct-1) -> 0 | I26: =$H26/(1+DiscRate)^($B26+Construct-1) -> 0 | K26: 1 | L26: =TREND(L$23:L$24,$B$23:$B$24,$B26) -> 0 | M26: =TREND(M$23:M$24,$B$23:$B$24,$B26) -> 0 | N26: =TREND(N$23:N$24,$B$23:$B$24,$B26) -> 0 | O26: =N26*AnnSickDays*PerSickDaysLeave*PerSickDaysRed -> 0 | P26: =WageStatewide*8 -> 281.7786669 | Q26: =P26*O26 -> 0 | R26: =$Q26/(1+DiscRate)^($K26+Construct-1) -> 0 | T26: 1 | U26: =Q26+H26 -> 0 | V26: =R26+I26 -> 0
B27: 2 | C27: =TREND(C$23:C$24,$B$23:$B$24,$B27) -> 0 | D27: 0 | E27: 0 | F27: 0 | G27: 281.7786669 | H27: 0 | I27: 0 | K27: 2 | L27: =TREND(L$23:L$24,$B$23:$B$24,$B27) -> 0 | M27: 0 | N27: 0 | O27: 0 | P27: 281.7786669 | Q27: 0 | R27: 0 | T27: 2 | U27: 0 | V27: 0
B28: 3 | C28: 0 | D28: 0 | E28: 0 | F28: 0 | G28: 281.7786669 | H28: 0 | I28: 0 | K28: 3 | L28: 0 | M28: 0 | N28: 0 | O28: 0 | P28: 281.7786669 | Q28: 0 | R28: 0 | T28: 3 | U28: 0 | V28: 0
B29: 4 | C29: 0 | D29: 0 | E29: 0 | F29: 0 | G29: 281.7786669 | H29: 0 | I29: 0 | K29: 4 | L29: 0 | M29: 0 | N29: 0 | O29: 0 | P29: 281.7786669 | Q29: 0 | R29: 0 | T29: 4 | U29: 0 | V29: 0
B30: 5 | C30: 0 | D30: 0 | E30: 0 | F30: 0 | G30: 281.7786669 | H30: 0 | I30: 0 | K30: 5 | L30: 0 | M30: 0 | N30: 0 | O30: 0 | P30: 281.7786669 | Q30: 0 | R30: 0 | T30: 5 | U30: 0 | V30: 0
B31: 6 | C31: 0 | D31: 0 | E31: 0 | F31: 0 | G31: 281.7786669 | H31: 0 | I31: 0 | K31: 6 | L31: 0 | M31: 0 | N31: 0 | O31: 0 | P31: 281.7786669 | Q31: 0 | R31: 0 | T31: 6 | U31: 0 | V31: 0
B32: 7 | C32: 0 | D32: 0 | E32: 0 | F32: 0 | G32: 281.7786669 | H32: 0 | I32: 0 | K32: 7 | L32: 0 | M32: 0 | N32: 0 | O32: 0 | P32: 281.7786669 | Q32: 0 | R32: 0 | T32: 7 | U32: 0 | V32: 0
B33: 8 | C33: 0 | D33: 0 | E33: 0 | F33: 0 | G33: 281.7786669 | H33: 0 | I33: 0 | K33: 8 | L33: 0 | M33: 0 | N33: 0 | O33: 0 | P33: 281.7786669 | Q33: 0 | R33: 0 | T33: 8 | U33: 0 | V33: 0
B34: 9 | C34: 0 | D34: 0 | E34: 0 | F34: 0 | G34: 281.7786669 | H34: 0 | I34: 0 | K34: 9 | L34: 0 | M34: 0 | N34: 0 | O34: 0 | P34: 281.7786669 | Q34: 0 | R34: 0 | T34: 9 | U34: 0 | V34: 0
B35: 10 | C35: 0 | D35: 0 | E35: 0 | F35: 0 | G35: 281.7786669 | H35: 0 | I35: 0 | K35: 10 | L35: 0 | M35: 0 | N35: 0 | O35: 0 | P35: 281.7786669 | Q35: 0 | R35: 0 | T35: 10 | U35: 0 | V35: 0
B36: 11 | C36: 0 | D36: 0 | E36: 0 | F36: 0 | G36: 281.7786669 | H36: 0 | I36: 0 | K36: 11 | L36: 0 | M36: 0 | N36: 0 | O36: 0 | P36: 281.7786669 | Q36: 0 | R36: 0 | T36: 11 | U36: 0 | V36: 0
B37: 12 | C37: 0 | D37: 0 | E37: 0 | F37: 0 | G37: 281.7786669 | H37: 0 | I37: 0 | K37: 12 | L37: 0 | M37: 0 | N37: 0 | O37: 0 | P37: 281.7786669 | Q37: 0 | R37: 0 | T37: 12 | U37: 0 | V37: 0
B38: 13 | C38: 0 | D38: 0 | E38: 0 | F38: 0 | G38: 281.7786669 | H38: 0 | I38: 0 | K38: 13 | L38: 0 | M38: 0 | N38: 0 | O38: 0 | P38: 281.7786669 | Q38: 0 | R38: 0 | T38: 13 | U38: 0 | V38: 0
B39: 14 | C39: 0 | D39: 0 | E39: 0 | F39: 0 | G39: 281.7786669 | H39: 0 | I39: 0 | K39: 14 | L39: 0 | M39: 0 | N39: 0 | O39: 0 | P39: 281.7786669 | Q39: 0 | R39: 0 | T39: 14 | U39: 0 | V39: 0
B40: 15 | C40: 0 | D40: 0 | E40: 0 | F40: 0 | G40: 281.7786669 | H40: 0 | I40: 0 | K40: 15 | L40: 0 | M40: 0 | N40: 0 | O40: 0 | P40: 281.7786669 | Q40: 0 | R40: 0 | T40: 15 | U40: 0 | V40: 0
B41: 16 | C41: 0 | D41: 0 | E41: 0 | F41: 0 | G41: 281.7786669 | H41: 0 | I41: 0 | K41: 16 | L41: 0 | M41: 0 | N41: 0 | O41: 0 | P41: 281.7786669 | Q41: 0 | R41: 0 | T41: 16 | U41: 0 | V41: 0
B42: 17 | C42: 0 | D42: 0 | E42: 0 | F42: 0 | G42: 281.7786669 | H42: 0 | I42: 0 | K42: 17 | L42: 0 | M42: 0 | N42: 0 | O42: 0 | P42: 281.7786669 | Q42: 0 | R42: 0 | T42: 17 | U42: 0 | V42: 0
B43: 18 | C43: 0 | D43: 0 | E43: 0 | F43: 0 | G43: 281.7786669 | H43: 0 | I43: 0 | K43: 18 | L43: 0 | M43: 0 | N43: 0 | O43: 0 | P43: 281.7786669 | Q43: 0 | R43: 0 | T43: 18 | U43: 0 | V43: 0
B44: 19 | C44: 0 | D44: 0 | E44: 0 | F44: 0 | G44: 281.7786669 | H44: 0 | I44: 0 | K44: 19 | L44: 0 | M44: 0 | N44: 0 | O44: 0 | P44: 281.7786669 | Q44: 0 | R44: 0 | T44: 19 | U44: 0 | V44: 0
B45: 20 | C45: 0 | D45: 0 | E45: 0 | F45: 0 | G45: 281.7786669 | H45: 0 | I45: 0 | K45: 20 | L45: 0 | M45: 0 | N45: 0 | O45: 0 | P45: 281.7786669 | Q45: 0 | R45: 0 | T45: 20 | U45: 0 | V45: 0
B47: Total | I47: =SUM(I26:I45) -> 0 | K47: Total | R47: =SUM(R26:R45) -> 0 | T47: Total | V47: =SUM(V26:V45) -> 0

Sheet Health - Reduced Mortality
B1: Health Benefits - Reduced Mortality
B3: This sheet calculates the benefits to cyclists and pedestrians for improved long-term health based on reduced risk of mortality.
B5: Formulas:
H6: Number of Expected Deaths in Age Group (Baseline) = Number of Users in Risk-Reducing Age Group * Death Rate (Group)
B7: Number of Induced Users = Users With Project (Improved or New Facility) - Baseline Users (Existing and / or no Facility) | H7: # / yr.
B8: # / yr. | H8: Reduced Mortality Risk = Expected Deaths in Age Group * Mortality Risk Reduction (%), as function of annual trip miles
H9: # / yr.
B10: Number of Users in Risk-Reducing Age Group = Number of Induced Users * % of Users (by Mode) in Risk-reducing Age Group | H10: Value of Reduced Mortality = Reduced Number of Annual Deaths * Value of Life
B11: # / yr. | H11: $/yr.
B15: A | C15: CYCLING BENEFITS | M15: B | N15: PEDESTRIAN BENEFITS | X15: C | Y15: TOTAL
B18: Existing | M18: Existing | X18: Existing
C20: AVERAGE ANNUAL USERS | F20: REDUCED MORTALITY RISK | I20: VALUE OF REDUCED MORTALITY | N20: AVERAGE ANNUAL USERS | Q20: REDUCED MORTALITY RISK | T20: VALUE OF REDUCED MORTALITY
C21: (Users/yr.) | F21: (# of persons) | I21: ($) | N21: (trips/yr.) | Q21: (# of persons) | T21: ($)
B22: Year | C22: Total Users, Existing Facility (Baseline) | D22: Total Users, Improved Facility | E22: Induced Users, Improved Facility | F22: Users in Risk-Reducing Age Group (Ages 20-64) | G22: Expected # of Deaths Among Users | H22: Reduced Mortality Risk (Induced User Trips) | I22: Induced Users | J22: Constant Dollars | K22: Present Value | M22: Year | N22: Total Users, Existing Facility (Baseline) | O22: Total Users, Improved Facility | P22: Induced Users, Improved Facility | Q22: Users in Age-Risk Group | R22: Expected # of Deaths Among Users | S22: Reduced Mortality Risk (Induced User Trips) | T22: Induced Users | U22: Constant Dollars | V22: Present Value | X22: Year | Y22: Constant Dollars | Z22: Present Value
B23: 1 | C23: =IF(OR(ProjType=1, ProjType=3),UserComCyc1NBEX+UserODCyc1NBEX+UserRecCyc1NBEX*RecBen,0) -> 0 | D23: =IF(OR(ProjType=1, ProjType=3),UserComCyc1BEX+UserODCyc1BEX+UserRecCyc1BEX*RecBen,0) -> 0 | E23: =D23-C23 -> 0 | F23: =E23*PerCycAge -> 0 | G23: =F23*MortRateCyc/100000 -> 0 | H23: =G23*PerCycRiskRedUsers -> 0 | I23: =H23*HwyFatCost -> 0 | J23: =I23 -> 0 | K23: =$J23/(1+DiscRate)^($B23+Construct-1) -> 0 | M23: 1 | N23: =IF(OR(ProjType=1, ProjType=3),UserComPed1NBEX+UserODPed1NBEX+UserRecPed1NBEX*RecBen,0) -> 0 | O23: =IF(OR(ProjType=1, ProjType=3),UserComPed1BEX+UserODPed1BEX+UserRecPed1BEX*RecBen,0) -> 0 | P23: =O23-N23 -> 0 | Q23: =P23*PerPedAge -> 0 | R23: =Q23*MortRatePed/100000 -> 0 | S23: =R23*PerPedRiskRedUsers -> 0 | T23: =IF(OR(ProjType=1, ProjType=3),S23*HwyFatCost,0) -> 0 | U23: =T23 -> 0 | V23: =$U23/(1+DiscRate)^($M23+Construct-1) -> 0 | X23: 1 | Y23: =U23+J23 -> 0 | Z23: =V23+K23 -> 0
B24: 20 | C24: =IF(OR(ProjType=1, ProjType=3),UserComCyc20NBEX+UserODCyc20NBEX+UserRecCyc20NBEX*RecBen,0) -> 0 | D24: =IF(OR(ProjType=1, ProjType=3),UserComCyc20BEX+UserODCyc20BEX+UserRecCyc20BEX*RecBen,0) -> 0 | E24: =D24-C24 -> 0 | F24: =E24*PerCycAge -> 0 | G24: =F24*MortRateCyc/100000 -> 0 | H24: =G24*PerCycRiskRedUsers -> 0 | I24: =H24*HwyFatCost -> 0 | J24: =I24 -> 0 | K24: =$J24/(1+DiscRate)^($B24+Construct-1) -> 0 | M24: 20 | N24: =IF(OR(ProjType=1, ProjType=3),UserComPed20NBEX+UserODPed20NBEX+UserRecPed20NBEX*RecBen,0) -> 0 | O24: =IF(OR(ProjType=1, ProjType=3),UserComPed20BEX+UserODPed20BEX+UserRecPed20BEX*RecBen,0) -> 0 | P24: =O24-N24 -> 0 | Q24: =P24*PerPedAge -> 0 | R24: =Q24*MortRatePed/100000 -> 0 | S24: =R24*PerPedRiskRedUsers -> 0 | T24: =IF(OR(ProjType=1, ProjType=3),S24*HwyFatCost,0) -> 0 | U24: =T24 -> 0 | V24: =$U24/(1+DiscRate)^($M24+Construct-1) -> 0 | X24: 20 | Y24: =U24+J24 -> 0 | Z24: =V24+K24 -> 0
B26: 1 | C26: =TREND(C$23:C$24,$B$23:$B$24,$B26) -> 0 | D26: =TREND(D$23:D$24,$B$23:$B$24,$B26) -> 0 | E26: =TREND(E$23:E$24,$B$23:$B$24,$B26) -> 0 | F26: =E26*PerCycAge -> 0 | G26: =F26*MortRateCyc/100000 -> 0 | H26: =G26*PerCycRiskRedUsers -> 0 | I26: =H26*HwyFatCost -> 0 | J26: =I26 -> 0 | K26: =$J26/(1+DiscRate)^($B26+Construct-1) -> 0 | M26: 1 | N26: =TREND(N$23:N$24,$M$23:$M$24,$M26) -> 0 | O26: 0 | P26: =O26-N26 -> 0 | Q26: =P26*PerPedAge -> 0 | R26: =Q26*MortRatePed/100000 -> 0 | S26: =R26*PerPedRiskRedUsers -> 0 | T26: =IF(OR(ProjType=1, ProjType=3),S26*HwyFatCost,0) -> 0 | U26: =T26 -> 0 | V26: =U26/(1+DiscRate)^($B26+Construct-1) -> 0 | X26: 1 | Y26: =U26+J26 -> 0 | Z26: 0
B27: 2 | C27: =TREND(C$23:C$24,$B$23:$B$24,$B27) -> 0 | D27: 0 | E27: 0 | F27: 0 | G27: 0 | H27: 0 | I27: 0 | J27: 0 | K27: 0 | M27: 2 | N27: 0 | O27: 0 | P27: =O27-N27 -> 0 | Q27: 0 | R27: 0 | S27: 0 | T27: 0 | U27: 0 | V27: 0 | X27: 2 | Y27: 0 | Z27: 0
B28: 3 | C28: 0 | D28: 0 | E28: 0 | F28: 0 | G28: 0 | H28: 0 | I28: 0 | J28: 0 | K28: 0 | M28: 3 | N28: 0 | O28: 0 | P28: 0 | Q28: 0 | R28: 0 | S28: 0 | T28: 0 | U28: 0 | V28: 0 | X28: 3 | Y28: 0 | Z28: 0
B29: 4 | C29: 0 | D29: 0 | E29: 0 | F29: 0 | G29: 0 | H29: 0 | I29: 0 | J29: 0 | K29: 0 | M29: 4 | N29: 0 | O29: 0 | P29: 0 | Q29: 0 | R29: 0 | S29: 0 | T29: 0 | U29: 0 | V29: 0 | X29: 4 | Y29: 0 | Z29: 0
B30: 5 | C30: 0 | D30: 0 | E30: 0 | F30: 0 | G30: 0 | H30: 0 | I30: 0 | J30: 0 | K30: 0 | M30: 5 | N30: 0 | O30: 0 | P30: 0 | Q30: 0 | R30: 0 | S30: 0 | T30: 0 | U30: 0 | V30: 0 | X30: 5 | Y30: 0 | Z30: 0
B31: 6 | C31: 0 | D31: 0 | E31: 0 | F31: 0 | G31: 0 | H31: 0 | I31: 0 | J31: 0 | K31: 0 | M31: 6 | N31: 0 | O31: 0 | P31: 0 | Q31: 0 | R31: 0 | S31: 0 | T31: 0 | U31: 0 | V31: 0 | X31: 6 | Y31: 0 | Z31: 0
B32: 7 | C32: 0 | D32: 0 | E32: 0 | F32: 0 | G32: 0 | H32: 0 | I32: 0 | J32: 0 | K32: 0 | M32: 7 | N32: 0 | O32: 0 | P32: 0 | Q32: 0 | R32: 0 | S32: 0 | T32: 0 | U32: 0 | V32: 0 | X32: 7 | Y32: 0 | Z32: 0
B33: 8 | C33: 0 | D33: 0 | E33: 0 | F33: 0 | G33: 0 | H33: 0 | I33: 0 | J33: 0 | K33: 0 | M33: 8 | N33: 0 | O33: 0 | P33: 0 | Q33: 0 | R33: 0 | S33: 0 | T33: 0 | U33: 0 | V33: 0 | X33: 8 | Y33: 0 | Z33: 0
B34: 9 | C34: 0 | D34: 0 | E34: 0 | F34: 0 | G34: 0 | H34: 0 | I34: 0 | J34: 0 | K34: 0 | M34: 9 | N34: =TREND(N$23:N$24,$M$23:$M$24,$M34) -> 0 | O34: =TREND(O$23:O$24,$M$23:$M$24,$M34) -> 0 | P34: 0 | Q34: 0 | R34: 0 | S34: 0 | T34: 0 | U34: 0 | V34: 0 | X34: 9 | Y34: 0 | Z34: 0
B35: 10 | C35: 0 | D35: 0 | E35: 0 | F35: 0 | G35: 0 | H35: 0 | I35: 0 | J35: 0 | K35: 0 | M35: 10 | N35: =TREND(N$23:N$24,$B$23:$B$24,$B35) -> 0 | O35: 0 | P35: 0 | Q35: 0 | R35: 0 | S35: 0 | T35: 0 | U35: 0 | V35: 0 | X35: 10 | Y35: 0 | Z35: 0
B36: 11 | C36: 0 | D36: 0 | E36: 0 | F36: 0 | G36: 0 | H36: 0 | I36: 0 | J36: 0 | K36: 0 | M36: 11 | N36: 0 | O36: 0 | P36: 0 | Q36: 0 | R36: 0 | S36: 0 | T36: 0 | U36: 0 | V36: 0 | X36: 11 | Y36: 0 | Z36: 0
B37: 12 | C37: 0 | D37: 0 | E37: 0 | F37: 0 | G37: 0 | H37: 0 | I37: 0 | J37: 0 | K37: 0 | M37: 12 | N37: 0 | O37: 0 | P37: 0 | Q37: 0 | R37: 0 | S37: 0 | T37: 0 | U37: 0 | V37: 0 | X37: 12 | Y37: 0 | Z37: 0
B38: 13 | C38: 0 | D38: 0 | E38: 0 | F38: 0 | G38: 0 | H38: 0 | I38: 0 | J38: 0 | K38: 0 | M38: 13 | N38: 0 | O38: 0 | P38: 0 | Q38: 0 | R38: 0 | S38: 0 | T38: 0 | U38: 0 | V38: 0 | X38: 13 | Y38: 0 | Z38: 0
B39: 14 | C39: 0 | D39: 0 | E39: 0 | F39: 0 | G39: 0 | H39: 0 | I39: 0 | J39: 0 | K39: 0 | M39: 14 | N39: 0 | O39: 0 | P39: 0 | Q39: 0 | R39: 0 | S39: 0 | T39: 0 | U39: 0 | V39: 0 | X39: 14 | Y39: 0 | Z39: 0
B40: 15 | C40: 0 | D40: 0 | E40: 0 | F40: 0 | G40: 0 | H40: 0 | I40: 0 | J40: 0 | K40: 0 | M40: 15 | N40: 0 | O40: 0 | P40: 0 | Q40: 0 | R40: 0 | S40: 0 | T40: 0 | U40: 0 | V40: 0 | X40: 15 | Y40: 0 | Z40: 0
B41: 16 | C41: 0 | D41: 0 | E41: 0 | F41: 0 | G41: 0 | H41: 0 | I41: 0 | J41: 0 | K41: 0 | M41: 16 | N41: 0 | O41: 0 | P41: 0 | Q41: 0 | R41: 0 | S41: 0 | T41: 0 | U41: 0 | V41: 0 | X41: 16 | Y41: 0 | Z41: 0
B42: 17 | C42: 0 | D42: 0 | E42: 0 | F42: 0 | G42: 0 | H42: 0 | I42: 0 | J42: 0 | K42: 0 | M42: 17 | N42: 0 | O42: 0 | P42: 0 | Q42: 0 | R42: 0 | S42: 0 | T42: 0 | U42: 0 | V42: 0 | X42: 17 | Y42: 0 | Z42: 0
B43: 18 | C43: 0 | D43: 0 | E43: 0 | F43: 0 | G43: 0 | H43: 0 | I43: 0 | J43: 0 | K43: 0 | M43: 18 | N43: 0 | O43: 0 | P43: 0 | Q43: 0 | R43: 0 | S43: 0 | T43: 0 | U43: 0 | V43: 0 | X43: 18 | Y43: 0 | Z43: 0
B44: 19 | C44: 0 | D44: 0 | E44: 0 | F44: 0 | G44: 0 | H44: 0 | I44: 0 | J44: 0 | K44: 0 | M44: 19 | N44: 0 | O44: 0 | P44: 0 | Q44: 0 | R44: 0 | S44: 0 | T44: 0 | U44: 0 | V44: 0 | X44: 19 | Y44: 0 | Z44: 0
B45: 20 | C45: 0 | D45: 0 | E45: 0 | F45: 0 | G45: 0 | H45: 0 | I45: 0 | J45: 0 | K45: 0 | M45: 20 | N45: 0 | O45: 0 | P45: 0 | Q45: 0 | R45: 0 | S45: 0 | T45: 0 | U45: 0 | V45: 0 | X45: 20 | Y45: 0 | Z45: 0
B47: Total | K47: =SUM(K26:K45) -> 0 | M47: Total | V47: =SUM(V26:V45) -> 0 | X47: Total | Z47: =SUM(Z26:Z45) -> 0
B52: D | C52: CYCLING BENEFITS | M52: E | N52: PEDESTRIAN BENEFITS | X52: F | Y52: TOTAL
B55: New | M55: New | X55: New
C57: AVERAGE ANNUAL USERS | F57: REDUCED MORTALITY RISK | I57: VALUE OF REDUCED MORTALITY | N57: AVERAGE ANNUAL USERS | Q57: REDUCED MORTALITY RISK | T57: VALUE OF REDUCED MORTALITY
C58: (trips/yr.) | F58: (# of persons) | I58: ($) | N58: (trips/yr.) | Q58: (# of persons) | T58: ($)
B59: Year | C59: Total Users, Existing Facility (Baseline) | D59: Total Users, Improved Facility | E59: Induced Users, Improved Facility | F59: Users in Age-Risk Group | G59: Expected # of Deaths Among Users | H59: Reduced Mortality Risk (Induced User Trips) | I59: Induced Users | J59: Constant Dollars | K59: Present Value | M59: Year | N59: Total Users, Existing Facility (Baseline) | O59: Total Users, Improved Facility | P59: Induced Users, Improved Facility | Q59: Users in Age-Risk Group | R59: Expected # of Deaths Among Users | S59: Reduced Mortality Risk (Induced User Trips) | T59: Induced Users | U59: Constant Dollars | V59: Present Value | X59: Year | Y59: Constant Dollars | Z59: Present Value
B60: 1 | C60: =IF(ProjType>1,UserComCyc1NBNew+UserODCyc1NBNew+UserRecCyc1NBNew*RecBen,0) -> 0 | D60: =IF(ProjType>1,UserComCyc1BNew+UserODCyc1BNew+UserRecCyc1BNew*RecBen,0) -> 0 | E60: =D60-C60 -> 0 | F60: =E60*PerCycAge -> 0 | G60: =F60*MortRateCyc/100000 -> 0 | H60: =G60*PerCycRiskRedUsers -> 0 | I60: =H60*HwyFatCost -> 0 | J60: =I60 -> 0 | K60: =$J60/(1+DiscRate)^($B60+Construct-1) -> 0 | M60: 1 | N60: =IF(ProjType>1,UserComPed1NBNew+UserODPed1NBNew+UserRecPed1NBNew*RecBen,0) -> 0 | O60: =IF(ProjType>1,UserComPed1BNew+UserODPed1BNew+UserRecPed1BNew*RecBen,0) -> 0 | P60: =O60-N60 -> 0 | Q60: =P60*PerPedAge -> 0 | R60: =Q60*MortRatePed/100000 -> 0 | S60: =R60*PerPedRiskRedUsers -> 0 | T60: =IF(ProjType>1,S60*HwyFatCost,0) -> 0 | U60: =T60 -> 0 | V60: =$U60/(1+DiscRate)^($M60+Construct-1) -> 0 | X60: 1 | Y60: =U60+J60 -> 0 | Z60: =V60+K60 -> 0
B61: 20 | C61: =IF(ProjType>1,UserComCyc20NBNew+UserODCyc20NBNew+UserRecCyc20NBNew*RecBen,0) -> 0 | D61: =IF(ProjType>1,UserComCyc20BNew+UserODCyc20BNew+UserRecCyc20BNew*RecBen,0) -> 0 | E61: =D61-C61 -> 0 | F61: =E61*PerCycAge -> 0 | G61: =F61*MortRateCyc/100000 -> 0 | H61: =G61*PerCycRiskRedUsers -> 0 | I61: =H61*HwyFatCost -> 0 | J61: =I61 -> 0 | K61: =$J61/(1+DiscRate)^($B61+Construct-1) -> 0 | M61: 20 | N61: =IF(ProjType>1,UserComPed20NBNew+UserODPed20NBNew+UserRecPed20NBNew*RecBen,0) -> 0 | O61: =IF(ProjType>1,UserComPed20BNew+UserODPed20BNew+UserRecPed20BNew*RecBen,0) -> 0 | P61: =O61-N61 -> 0 | Q61: =P61*PerPedAge -> 0 | R61: =Q61*MortRatePed/100000 -> 0 | S61: =R61*PerPedRiskRedUsers -> 0 | T61: =IF(ProjType>1,S61*HwyFatCost,0) -> 0 | U61: =T61 -> 0 | V61: =$U61/(1+DiscRate)^($M61+Construct-1) -> 0 | X61: 20 | Y61: =U61+J61 -> 0 | Z61: =V61+K61 -> 0
B63: 1 | C63: =TREND(C$60:C$61,$B$60:$B$61,$B63) -> 0 | D63: =TREND(D$60:D$61,$B$60:$B$61,$B63) -> 0 | E63: =D63-C63 -> 0 | F63: =E63*PerCycAge -> 0 | G63: =F63*MortRateCyc/100000 -> 0 | H63: =G63*PerCycRiskRedUsers -> 0 | I63: =H63*HwyFatCost -> 0 | J63: =I63 -> 0 | K63: =$J63/(1+DiscRate)^($B63+Construct-1) -> 0 | M63: 1 | N63: =TREND(N$60:N$61,$M$60:$M$61,$M63) -> 0 | O63: =TREND(O$60:O$61,$M$60:$M$61,$M63) -> 0 | P63: =O63-N63 -> 0 | Q63: =P63*PerPedAge -> 0 | R63: =Q63*MortRatePed/100000 -> 0 | S63: =R63*PerPedRiskRedUsers -> 0 | T63: =IF(ProjType>1,S63*HwyFatCost,0) -> 0 | U63: =T63 -> 0 | V63: =U63/(1+DiscRate)^($B63+Construct-1) -> 0 | X63: 1 | Y63: =U63+J63 -> 0 | Z63: 0
B64: 2 | C64: =TREND(C$60:C$61,$B$60:$B$61,$B64) -> 0 | D64: 0 | E64: =D64-C64 -> 0 | F64: 0 | G64: 0 | H64: 0 | I64: 0 | J64: 0 | K64: 0 | M64: 2 | N64: =TREND(N$60:N$61,$M$60:$M$61,$M64) -> 0 | O64: 0 | P64: =O64-N64 -> 0 | Q64: 0 | R64: 0 | S64: 0 | T64: 0 | U64: 0 | V64: 0 | X64: 2 | Y64: 0 | Z64: 0
B65: 3 | C65: 0 | D65: 0 | E65: 0 | F65: 0 | G65: 0 | H65: 0 | I65: 0 | J65: 0 | K65: 0 | M65: 3 | N65: 0 | O65: 0 | P65: 0 | Q65: 0 | R65: 0 | S65: 0 | T65: 0 | U65: 0 | V65: 0 | X65: 3 | Y65: 0 | Z65: 0
B66: 4 | C66: 0 | D66: 0 | E66: 0 | F66: 0 | G66: 0 | H66: 0 | I66: 0 | J66: 0 | K66: 0 | M66: 4 | N66: 0 | O66: 0 | P66: 0 | Q66: 0 | R66: 0 | S66: 0 | T66: 0 | U66: 0 | V66: 0 | X66: 4 | Y66: 0 | Z66: 0
B67: 5 | C67: 0 | D67: 0 | E67: 0 | F67: 0 | G67: 0 | H67: 0 | I67: 0 | J67: 0 | K67: 0 | M67: 5 | N67: 0 | O67: 0 | P67: 0 | Q67: 0 | R67: 0 | S67: 0 | T67: 0 | U67: 0 | V67: 0 | X67: 5 | Y67: 0 | Z67: 0
B68: 6 | C68: 0 | D68: 0 | E68: 0 | F68: 0 | G68: 0 | H68: 0 | I68: 0 | J68: 0 | K68: 0 | M68: 6 | N68: 0 | O68: 0 | P68: 0 | Q68: 0 | R68: 0 | S68: 0 | T68: 0 | U68: 0 | V68: 0 | X68: 6 | Y68: 0 | Z68: 0
B69: 7 | C69: 0 | D69: 0 | E69: 0 | F69: 0 | G69: 0 | H69: 0 | I69: 0 | J69: 0 | K69: 0 | M69: 7 | N69: 0 | O69: 0 | P69: 0 | Q69: 0 | R69: 0 | S69: 0 | T69: 0 | U69: 0 | V69: 0 | X69: 7 | Y69: 0 | Z69: 0
B70: 8 | C70: 0 | D70: 0 | E70: 0 | F70: 0 | G70: 0 | H70: 0 | I70: 0 | J70: 0 | K70: 0 | M70: 8 | N70: 0 | O70: 0 | P70: 0 | Q70: 0 | R70: 0 | S70: 0 | T70: 0 | U70: 0 | V70: 0 | X70: 8 | Y70: 0 | Z70: 0
B71: 9 | C71: 0 | D71: 0 | E71: 0 | F71: 0 | G71: 0 | H71: 0 | I71: 0 | J71: 0 | K71: 0 | M71: 9 | N71: 0 | O71: 0 | P71: 0 | Q71: 0 | R71: 0 | S71: 0 | T71: 0 | U71: 0 | V71: 0 | X71: 9 | Y71: 0 | Z71: 0
B72: 10 | C72: 0 | D72: 0 | E72: 0 | F72: 0 | G72: 0 | H72: 0 | I72: 0 | J72: 0 | K72: 0 | M72: 10 | N72: 0 | O72: 0 | P72: 0 | Q72: 0 | R72: 0 | S72: 0 | T72: 0 | U72: 0 | V72: 0 | X72: 10 | Y72: 0 | Z72: 0
B73: 11 | C73: 0 | D73: 0 | E73: 0 | F73: 0 | G73: 0 | H73: 0 | I73: 0 | J73: 0 | K73: 0 | M73: 11 | N73: 0 | O73: 0 | P73: 0 | Q73: 0 | R73: 0 | S73: 0 | T73: 0 | U73: 0 | V73: 0 | X73: 11 | Y73: 0 | Z73: 0
B74: 12 | C74: 0 | D74: 0 | E74: 0 | F74: 0 | G74: 0 | H74: 0 | I74: 0 | J74: 0 | K74: 0 | M74: 12 | N74: 0 | O74: 0 | P74: 0 | Q74: 0 | R74: 0 | S74: 0 | T74: 0 | U74: 0 | V74: 0 | X74: 12 | Y74: 0 | Z74: 0
B75: 13 | C75: 0 | D75: 0 | E75: 0 | F75: 0 | G75: 0 | H75: 0 | I75: 0 | J75: 0 | K75: 0 | M75: 13 | N75: 0 | O75: 0 | P75: 0 | Q75: 0 | R75: 0 | S75: 0 | T75: 0 | U75: 0 | V75: 0 | X75: 13 | Y75: 0 | Z75: 0
B76: 14 | C76: 0 | D76: 0 | E76: 0 | F76: 0 | G76: 0 | H76: 0 | I76: 0 | J76: 0 | K76: 0 | M76: 14 | N76: 0 | O76: 0 | P76: 0 | Q76: 0 | R76: 0 | S76: 0 | T76: 0 | U76: 0 | V76: 0 | X76: 14 | Y76: 0 | Z76: 0
B77: 15 | C77: 0 | D77: 0 | E77: 0 | F77: 0 | G77: 0 | H77: 0 | I77: 0 | J77: 0 | K77: 0 | M77: 15 | N77: 0 | O77: 0 | P77: 0 | Q77: 0 | R77: 0 | S77: 0 | T77: 0 | U77: 0 | V77: 0 | X77: 15 | Y77: 0 | Z77: 0
B78: 16 | C78: 0 | D78: 0 | E78: 0 | F78: 0 | G78: 0 | H78: 0 | I78: 0 | J78: 0 | K78: 0 | M78: 16 | N78: 0 | O78: 0 | P78: 0 | Q78: 0 | R78: 0 | S78: 0 | T78: 0 | U78: 0 | V78: 0 | X78: 16 | Y78: 0 | Z78: 0
B79: 17 | C79: 0 | D79: 0 | E79: 0 | F79: 0 | G79: 0 | H79: 0 | I79: 0 | J79: 0 | K79: 0 | M79: 17 | N79: 0 | O79: 0 | P79: 0 | Q79: 0 | R79: 0 | S79: 0 | T79: 0 | U79: 0 | V79: 0 | X79: 17 | Y79: 0 | Z79: 0
B80: 18 | C80: 0 | D80: 0 | E80: 0 | F80: 0 | G80: 0 | H80: 0 | I80: 0 | J80: 0 | K80: 0 | M80: 18 | N80: 0 | O80: 0 | P80: 0 | Q80: 0 | R80: 0 | S80: 0 | T80: 0 | U80: 0 | V80: 0 | X80: 18 | Y80: 0 | Z80: 0
B81: 19 | C81: 0 | D81: 0 | E81: 0 | F81: 0 | G81: 0 | H81: 0 | I81: 0 | J81: 0 | K81: 0 | M81: 19 | N81: 0 | O81: 0 | P81: 0 | Q81: 0 | R81: 0 | S81: 0 | T81: 0 | U81: 0 | V81: 0 | X81: 19 | Y81: 0 | Z81: 0
B82: 20 | C82: 0 | D82: 0 | E82: 0 | F82: 0 | G82: 0 | H82: 0 | I82: 0 | J82: 0 | K82: 0 | M82: 20 | N82: 0 | O82: 0 | P82: 0 | Q82: 0 | R82: 0 | S82: 0 | T82: 0 | U82: 0 | V82: 0 | X82: 20 | Y82: 0 | Z82: 0
B84: Total | K84: =SUM(K63:K82) -> 0 | M84: Total | V84: =SUM(V63:V82) -> 0 | X84: Total | Z84: =SUM(Z63:Z82) -> 0
F88: Computation of Risk Redution Parameter - Cycling | Q88: Computation of Risk Redution Parameter - Walking
G90: Total Average Annual Miles - Existing | H90: =TAvMiCycNB*CycleDays*RTCycNB -> 1863.9455 | R90: Total Average Annual Miles - Existing | S90: =TAvMiPedB*WalkDays*RTPedNB -> 521.22
G92: Percentage reduction in mortality per 365 annual cycling miles (2) from research | H92: =PerCycRiskRed -> 0.045 | R92: Percentage reduction in mortality per 365 annual cycling miles (2) from research | S92: =PerPedRiskRed -> 0.09
G94: Actual annual percentage reduction in mortality | H94: =MIN(IFERROR(H90,0)*H92/365,30%) -> 0.2298015 | I94: Note: Max risk reduction = 45%, or about 5 miles per trip for 365 days. WHO HEAT Model (2016) | R94: Actual annual percentage reduction in mortality | S94: =MIN(IFERROR(S90,0)*S92/365,30%) -> 0.12852 | T94: Note: Max risk reduction = 30%, or about 1.7 miles per day for 365 days. WHO HEAT Model (2016)

Sheet Emissions
B1: Emission Reduction Benefits
B3: This sheet calculates emissions benefits associated with reductions in automobile use due to increased cycling and walking.
B5: Formulas:
B7: Vehicle-Miles Traveled = Affected Length x Avg. Annual Volume | H7: Veh Em Cost = (Veh-Miles x Rate x Cost/Mile) by Em Type
B8: veh-miles/yr. | D8: miles | E8: vehicles/yr.
B10: Hwy Emissions Cost = (VMT x Rate x Cost/Mile) by Emissions Type
B15: A | C15: REDUCED EMISSIONS BENEFITS
B18: Total
C20: AVERAGE ANNUAL VOLUME | E20: REDUCED VMT | F20: AVERAGE SPEED | G20: RUNNING EMISSIONS | K20: TONS EMISSIONS SAVED | R20: DOLLARS EMISSIONS SAVED
C21: (trip-miles/yr.) | E21: (veh-miles/yr.) | F21: (mph) | G21: ($/yr.) | K21: (tons/yr) | R21: (PV $/yr)
B22: Year | C22: Induced Trips, Cycling | D22: Induced Trips, Pedestrians | E22: Induced Trips | F22: Induced Trips | G22: Induced Trips | H22: Constant Dollars | I22: Present Value | K22: CO | L22: CO2 | M22: NOX | N22: PM10 | O22: SOX | P22: VOC | Q22: PM2.5 | R22: CO | S22: CO2 | T22: NOX | U22: PM10 | V22: SOX | W22: VOC
B23: 1 | C23: =IF(OR(ProjType=1,ProjType=3),((TrComCyc1BEX-TrComCyc1NBEX)+(TrODCyc1BEX-TrODCyc1NBEX))*TAvMiCycNB,0)+IF(ProjType>1,((TrComCyc1BNew-TrComCyc1NBNew)+(TrODCyc1BNew-TrODCyc1NBNew))*TAvMiCycNB,0) -> 0 | D23: =IF(OR(ProjType=1,ProjType=3),((TrComPed1BEX-TrComPed1NBEX)+(TrODPed1BEX-TrODPed1NBEX))*TAvMiPedNB,0)+IF(ProjType>1,((TrComPed1BNew-TrComPed1NBNew)+(TrODPed1BNew-TrODPed1NBNew))*TAvMiPedNB,0) -> 0 | E23: =(D23*DivCycAutoNB+C23*DivPedAutoNB)/VehOcc -> 0 | F23: =VehSpeed -> 25 | G23: =IFERROR(E23*0.00000110231131*(VLOOKUP(F23,EmAuto1,2)*VLOOKUP(ProjLoc,EmCost,2)+VLOOKUP(F23,EmAuto1,3)*VLOOKUP(ProjLoc,EmCost,3)*(1+CO2Uprater)^($B23+Construct-1)+VLOOKUP(F23,EmAuto1,4)*VLOOKUP(ProjLoc,EmCost,4)+VLOOKUP(F23,EmAuto1,5)*VLOOKUP(ProjLoc,EmCost,5)+VLOOKUP(F23,EmAuto1,6)*VLOOKUP(ProjLoc,EmCost,6)+VLOOKUP(F23,EmAuto1,7)*VLOOKUP(ProjLoc,EmCost,7)),0) -> 0 | H23: =G23 -> 0 | I23: =$H23/(1+DiscRate)^($B23+Construct-1) -> 0 | K23: =0.00000110231131*(E23*VLOOKUP(F23,EmAuto1,2)) -> 0 | L23: =0.00000110231131*(E23*VLOOKUP(F23,EmAuto1,3)) -> 0 | M23: =0.00000110231131*(E23*VLOOKUP(F23,EmAuto1,4)) -> 0 | N23: =0.00000110231131*(E23*VLOOKUP(F23,EmAuto1,5)) -> 0 | O23: =0.00000110231131*(E23*VLOOKUP(F23,EmAuto1,6)) -> 0 | P23: =0.00000110231131*(E23*VLOOKUP(F23,EmAuto1,7)) -> 0 | Q23: =0.00000110231131*(E23*VLOOKUP(F23,EmAuto1,8)) -> 0 | R23: =IFERROR(K23*VLOOKUP(ProjLoc,EmCost,2)/(1+DiscRate)^($B23+Construct-1),0) -> 0 | S23: =IFERROR(L23*VLOOKUP(ProjLoc,EmCost,3)*(1+CO2Uprater)^($B23+Construct-1)/(1+DiscRate)^($B23+Construct-1),0) -> 0 | T23: =IFERROR(M23*VLOOKUP(ProjLoc,EmCost,4)/(1+DiscRate)^($B23+Construct-1),0) -> 0 | U23: =IFERROR(N23*VLOOKUP(ProjLoc,EmCost,5)/(1+DiscRate)^($B23+Construct-1),0) -> 0 | V23: =IFERROR(O23*VLOOKUP(ProjLoc,EmCost,6)/(1+DiscRate)^($B23+Construct-1),0) -> 0 | W23: =IFERROR(P23*VLOOKUP(ProjLoc,EmCost,7)/(1+DiscRate)^($B23+Construct-1),0) -> 0
B24: 20 | C24: =IF(OR(ProjType=1,ProjType=3),((TrComCyc20BEX-TrComCyc20NBEX)+(TrODCyc20BEX-TrODCyc20NBEX))*TAvMiCycNB,0)+IF(ProjType>1,((TrComCyc20BNew-TrComCyc20NBNew)+(TrODCyc20BNew-TrODCyc20NBNew))*TAvMiCycNB,0) -> 0 | D24: =IF(OR(ProjType=1,ProjType=3),((TrComPed20BEX-TrComPed20NBEX)+(TrODPed20BEX-TrODPed20NBEX))*TAvMiPedNB,0)+IF(ProjType>1,((TrComPed20BNew-TrComPed20NBNew)+(TrODPed20BNew-TrODPed20NBNew))*TAvMiPedNB,0) -> 0 | E24: =(D24*DivCycAutoNB+C24*DivPedAutoNB)/VehOcc -> 0 | F24: =VehSpeed -> 25 | G24: =IFERROR(E24*0.00000110231131*(VLOOKUP(F24,EmAuto20,2)*VLOOKUP(ProjLoc,EmCost,2)+VLOOKUP(F24,EmAuto20,3)*VLOOKUP(ProjLoc,EmCost,3)*(1+CO2Uprater)^($B24+Construct-1)+VLOOKUP(F24,EmAuto20,4)*VLOOKUP(ProjLoc,EmCost,4)+VLOOKUP(F24,EmAuto20,5)*VLOOKUP(ProjLoc,EmCost,5)+VLOOKUP(F24,EmAuto20,6)*VLOOKUP(ProjLoc,EmCost,6)+VLOOKUP(F24,EmAuto20,7)*VLOOKUP(ProjLoc,EmCost,7)),0) -> 0 | H24: =G24 -> 0 | I24: =$H24/(1+DiscRate)^($B24+Construct-1) -> 0 | K24: =0.00000110231131*(E24*VLOOKUP(F24,EmAuto20,2)) -> 0 | L24: =0.00000110231131*(E24*VLOOKUP(F24,EmAuto20,3)) -> 0 | M24: =0.00000110231131*(E24*VLOOKUP(F24,EmAuto20,4)) -> 0 | N24: =0.00000110231131*(E24*VLOOKUP(F24,EmAuto20,5)) -> 0 | O24: =0.00000110231131*(E24*VLOOKUP(F24,EmAuto20,6)) -> 0 | P24: =0.00000110231131*(E24*VLOOKUP(F24,EmAuto20,7)) -> 0 | Q24: =0.00000110231131*(E24*VLOOKUP(F24,EmAuto20,8)) -> 0 | R24: =IFERROR(K24*VLOOKUP(ProjLoc,EmCost,2)/(1+DiscRate)^($B24+Construct-1),0) -> 0 | S24: =IFERROR(L24*VLOOKUP(ProjLoc,EmCost,3)*(1+CO2Uprater)^($B24+Construct-1)/(1+DiscRate)^($B24+Construct-1),0) -> 0 | T24: =IFERROR(M24*VLOOKUP(ProjLoc,EmCost,4)/(1+DiscRate)^($B24+Construct-1),0) -> 0 | U24: =IFERROR(N24*VLOOKUP(ProjLoc,EmCost,5)/(1+DiscRate)^($B24+Construct-1),0) -> 0 | V24: =IFERROR(O24*VLOOKUP(ProjLoc,EmCost,6)/(1+DiscRate)^($B24+Construct-1),0) -> 0 | W24: =IFERROR(P24*VLOOKUP(ProjLoc,EmCost,7)/(1+DiscRate)^($B24+Construct-1),0) -> 0
B26: 1 | C26: =TREND(C$23:C$24,$B$23:$B$24,$B26) -> 0 | D26: =TREND(D$23:D$24,$B$23:$B$24,$B26) -> 0 | E26: =(D26*DivCycAutoNB+C26*DivPedAutoNB)/VehOcc -> 0 | F26: =VehSpeed -> 25 | G26: =IFERROR(E26*0.00000110231131*(VLOOKUP(F26,EmAuto1,2)*VLOOKUP(ProjLoc,EmCost,2)+VLOOKUP(F26,EmAuto1,3)*VLOOKUP(ProjLoc,EmCost,3)*(1+CO2Uprater)^($B26+Construct-1)+VLOOKUP(F26,EmAuto1,4)*VLOOKUP(ProjLoc,EmCost,4)+VLOOKUP(F26,EmAuto1,5)*VLOOKUP(ProjLoc,EmCost,5)+VLOOKUP(F26,EmAuto1,6)*VLOOKUP(ProjLoc,EmCost,6)+VLOOKUP(F26,EmAuto1,7)*VLOOKUP(ProjLoc,EmCost,7)),0) -> 0 | H26: =G26 -> 0 | I26: =$H26/(1+DiscRate)^($B26+Construct-1) -> 0 | K26: =0.00000110231131*(E26*VLOOKUP(F26,EmAuto1,2)) -> 0 | L26: =0.00000110231131*(E26*VLOOKUP(F26,EmAuto1,3)) -> 0 | M26: =0.00000110231131*(E26*VLOOKUP(F26,EmAuto1,4)) -> 0 | N26: =0.00000110231131*(E26*VLOOKUP(F26,EmAuto1,5)) -> 0 | O26: =0.00000110231131*(E26*VLOOKUP(F26,EmAuto1,6)) -> 0 | P26: =0.00000110231131*(E26*VLOOKUP(F26,EmAuto1,7)) -> 0 | Q26: =0.00000110231131*(E26*VLOOKUP(F26,EmAuto1,8)) -> 0 | R26: =IFERROR(K26*VLOOKUP(ProjLoc,EmCost,2)/(1+DiscRate)^($B26+Construct-1),0) -> 0 | S26: =IFERROR(L26*VLOOKUP(ProjLoc,EmCost,3)*(1+CO2Uprater)^($B26+Construct-1)/(1+DiscRate)^($B26+Construct-1),0) -> 0 | T26: =IFERROR(M26*VLOOKUP(ProjLoc,EmCost,4)/(1+DiscRate)^($B26+Construct-1),0) -> 0 | U26: =IFERROR(N26*VLOOKUP(ProjLoc,EmCost,5)/(1+DiscRate)^($B26+Construct-1),0) -> 0 | V26: =IFERROR(O26*VLOOKUP(ProjLoc,EmCost,6)/(1+DiscRate)^($B26+Construct-1),0) -> 0 | W26: =IFERROR(P26*VLOOKUP(ProjLoc,EmCost,7)/(1+DiscRate)^($B26+Construct-1),0) -> 0
B27: 2 | C27: =TREND(C$23:C$24,$B$23:$B$24,$B27) -> 0 | D27: 0 | E27: 0 | F27: 25 | G27: 0 | H27: 0 | I27: 0 | K27: 0 | L27: 0 | M27: 0 | N27: 0 | O27: 0 | P27: 0 | Q27: 0 | R27: 0 | S27: 0 | T27: 0 | U27: 0 | V27: 0 | W27: 0
B28: 3 | C28: 0 | D28: 0 | E28: 0 | F28: 25 | G28: 0 | H28: 0 | I28: 0 | K28: 0 | L28: 0 | M28: 0 | N28: 0 | O28: 0 | P28: 0 | Q28: 0 | R28: 0 | S28: 0 | T28: 0 | U28: 0 | V28: 0 | W28: 0
B29: 4 | C29: 0 | D29: 0 | E29: 0 | F29: 25 | G29: 0 | H29: 0 | I29: 0 | K29: 0 | L29: 0 | M29: 0 | N29: 0 | O29: 0 | P29: 0 | Q29: 0 | R29: 0 | S29: 0 | T29: 0 | U29: 0 | V29: 0 | W29: 0
B30: 5 | C30: 0 | D30: 0 | E30: 0 | F30: 25 | G30: 0 | H30: 0 | I30: 0 | K30: 0 | L30: 0 | M30: 0 | N30: 0 | O30: 0 | P30: 0 | Q30: 0 | R30: 0 | S30: 0 | T30: 0 | U30: 0 | V30: 0 | W30: 0
B31: 6 | C31: 0 | D31: 0 | E31: 0 | F31: 25 | G31: 0 | H31: 0 | I31: 0 | K31: 0 | L31: 0 | M31: 0 | N31: 0 | O31: 0 | P31: 0 | Q31: 0 | R31: 0 | S31: 0 | T31: 0 | U31: 0 | V31: 0 | W31: 0
B32: 7 | C32: 0 | D32: 0 | E32: 0 | F32: 25 | G32: 0 | H32: 0 | I32: 0 | K32: 0 | L32: 0 | M32: 0 | N32: 0 | O32: 0 | P32: 0 | Q32: 0 | R32: 0 | S32: 0 | T32: 0 | U32: 0 | V32: 0 | W32: 0
B33: 8 | C33: 0 | D33: 0 | E33: 0 | F33: 25 | G33: =IFERROR(E33*0.00000110231131*(VLOOKUP(F33,EmAuto20,2)*VLOOKUP(ProjLoc,EmCost,2)+VLOOKUP(F33,EmAuto20,3)*VLOOKUP(ProjLoc,EmCost,3)*(1+CO2Uprater)^($B33+Construct-1)+VLOOKUP(F33,EmAuto20,4)*VLOOKUP(ProjLoc,EmCost,4)+VLOOKUP(F33,EmAuto20,5)*VLOOKUP(ProjLoc,EmCost,5)+VLOOKUP(F33,EmAuto20,6)*VLOOKUP(ProjLoc,EmCost,6)+VLOOKUP(F33,EmAuto20,7)*VLOOKUP(ProjLoc,EmCost,7)),0) -> 0 | H33: 0 | I33: 0 | K33: =0.00000110231131*(E33*VLOOKUP(F33,EmAuto20,2)) -> 0 | L33: =0.00000110231131*(E33*VLOOKUP(F33,EmAuto20,3)) -> 0 | M33: =0.00000110231131*(E33*VLOOKUP(F33,EmAuto20,4)) -> 0 | N33: =0.00000110231131*(E33*VLOOKUP(F33,EmAuto20,5)) -> 0 | O33: =0.00000110231131*(E33*VLOOKUP(F33,EmAuto20,6)) -> 0 | P33: =0.00000110231131*(E33*VLOOKUP(F33,EmAuto20,7)) -> 0 | Q33: =0.00000110231131*(E33*VLOOKUP(F33,EmAuto20,8)) -> 0 | R33: 0 | S33: 0 | T33: 0 | U33: 0 | V33: 0 | W33: 0
B34: 9 | C34: 0 | D34: 0 | E34: 0 | F34: 25 | G34: 0 | H34: 0 | I34: 0 | K34: 0 | L34: 0 | M34: 0 | N34: 0 | O34: 0 | P34: 0 | Q34: 0 | R34: 0 | S34: 0 | T34: 0 | U34: 0 | V34: 0 | W34: 0
B35: 10 | C35: 0 | D35: 0 | E35: 0 | F35: 25 | G35: 0 | H35: 0 | I35: 0 | K35: 0 | L35: 0 | M35: 0 | N35: 0 | O35: 0 | P35: 0 | Q35: 0 | R35: 0 | S35: 0 | T35: 0 | U35: 0 | V35: 0 | W35: 0
B36: 11 | C36: 0 | D36: 0 | E36: 0 | F36: 25 | G36: 0 | H36: 0 | I36: 0 | K36: 0 | L36: 0 | M36: 0 | N36: 0 | O36: 0 | P36: 0 | Q36: 0 | R36: 0 | S36: 0 | T36: 0 | U36: 0 | V36: 0 | W36: 0
B37: 12 | C37: 0 | D37: 0 | E37: 0 | F37: 25 | G37: 0 | H37: 0 | I37: 0 | K37: 0 | L37: 0 | M37: 0 | N37: 0 | O37: 0 | P37: 0 | Q37: 0 | R37: 0 | S37: 0 | T37: 0 | U37: 0 | V37: 0 | W37: 0
B38: 13 | C38: 0 | D38: 0 | E38: 0 | F38: 25 | G38: 0 | H38: 0 | I38: 0 | K38: 0 | L38: 0 | M38: 0 | N38: 0 | O38: 0 | P38: 0 | Q38: 0 | R38: 0 | S38: 0 | T38: 0 | U38: 0 | V38: 0 | W38: 0
B39: 14 | C39: 0 | D39: 0 | E39: 0 | F39: 25 | G39: 0 | H39: 0 | I39: 0 | K39: 0 | L39: 0 | M39: 0 | N39: 0 | O39: 0 | P39: 0 | Q39: 0 | R39: 0 | S39: 0 | T39: 0 | U39: 0 | V39: 0 | W39: 0
B40: 15 | C40: 0 | D40: 0 | E40: 0 | F40: 25 | G40: 0 | H40: 0 | I40: 0 | K40: 0 | L40: 0 | M40: 0 | N40: 0 | O40: 0 | P40: 0 | Q40: 0 | R40: 0 | S40: 0 | T40: 0 | U40: 0 | V40: 0 | W40: 0
B41: 16 | C41: 0 | D41: 0 | E41: 0 | F41: 25 | G41: 0 | H41: 0 | I41: 0 | K41: 0 | L41: 0 | M41: 0 | N41: 0 | O41: 0 | P41: 0 | Q41: 0 | R41: 0 | S41: 0 | T41: 0 | U41: 0 | V41: 0 | W41: 0
B42: 17 | C42: 0 | D42: 0 | E42: 0 | F42: 25 | G42: 0 | H42: 0 | I42: 0 | K42: 0 | L42: 0 | M42: 0 | N42: 0 | O42: 0 | P42: 0 | Q42: 0 | R42: 0 | S42: 0 | T42: 0 | U42: 0 | V42: 0 | W42: 0
B43: 18 | C43: 0 | D43: 0 | E43: 0 | F43: 25 | G43: 0 | H43: 0 | I43: 0 | K43: 0 | L43: 0 | M43: 0 | N43: 0 | O43: 0 | P43: 0 | Q43: 0 | R43: 0 | S43: 0 | T43: 0 | U43: 0 | V43: 0 | W43: 0
B44: 19 | C44: 0 | D44: 0 | E44: 0 | F44: 25 | G44: 0 | H44: 0 | I44: 0 | K44: 0 | L44: 0 | M44: 0 | N44: 0 | O44: 0 | P44: 0 | Q44: 0 | R44: 0 | S44: 0 | T44: 0 | U44: 0 | V44: 0 | W44: 0
B45: 20 | C45: 0 | D45: 0 | E45: 0 | F45: 25 | G45: 0 | H45: 0 | I45: 0 | K45: 0 | L45: 0 | M45: 0 | N45: 0 | O45: 0 | P45: 0 | Q45: 0 | R45: 0 | S45: 0 | T45: 0 | U45: 0 | V45: 0 | W45: 0
B47: Total | I47: =SUM(I26:I45) -> 0 | K47: =SUM(K26:K45) -> 0 | L47: =SUM(L26:L45) -> 0 | M47: =SUM(M26:M45) -> 0 | N47: 0 | O47: 0 | P47: 0 | Q47: 0 | R47: =SUM(R26:R45) -> 0 | S47: =SUM(S26:S45) -> 0 | T47: =SUM(T26:T45) -> 0 | U47: 0 | V47: 0 | W47: 0

Sheet Final Calculations
B1: Final Calculations
B3: This sheet performs the final calculations before presenting the summary results.
B4: Both net present value and internal rate of return are calculated.
B15: A | C15: NET PRESENT VALUE CALCULATION | M15: B | N15: SRTS BENEFITS | S15: C | T15: INTERNAL RATE OF RETURN ON INVESTMENT AND PAYBACK PERIOD
C20: PRESENT VALUE OF USER BENEFITS | N20: PRESENT VALUE OF USER BENEFITS | T20: USER BENEFITS IN CONSTANT DOLLARS
C22: Journey Quality | D22: Additional Delay Savings | E22: Additional Safety Benefits | F22: Health Benefits | G22: Emission Cost Savings | H22: Present Value of Total Benefits | I22: Present Value of Total Costs | J22: NET | K22: CUMULATIVE NET | N22: Journey Quality | O22: Additional Delay Savings | P22: Additional Safety Benefits | T22: Journey Quality | U22: Additional Delay Savings | V22: Additional Safety Benefits | W22: Health Benefits | X22: Emission Cost Savings | Y22: Total Benefits - Constant Dollars | Z22: Total Costs - Constant Dollars | AA22: Annual Returns on Investment | AB22: Cumulative Costs and Benefits | AD22: Years of Project Implementation and Operation | AE22: Annual Returns on Investment
B23: Year | E23: Absenteeism | F23: Absenteeism | J23: PRESENT | K23: PRESENT | M23: Year | P23: Absenteeism | S23: Year | V23: Absenteeism | W23: Absenteeism
E24: Reduction | F24: Reduction | J24: VALUE | K24: VALUE | P24: Reduction | V24: Reduction | W24: Reduction
B25: Construction Period | M25: Construction Period | S25: Construction Period | AD25: 1 | AE25: =IF(ISNA(IF(AD25<=Construct,AA26,VLOOKUP(AD25-Construct,$S$35:$AA$54,9,FALSE))),0,IF(AD25<=Construct,AA26,VLOOKUP(AD25-Construct,$S$35:$AA$54,9,FALSE))) -> 0
B26: 1 | H26: =SUM(C26:G26) -> 0 | I26: ='1a) Project Info'!AG15+'1a) Project Info'!AG59 -> 0 | J26: =H26-I26 -> 0 | K26: =J26 -> 0 | M26: 1 | S26: 1 | Y26: =SUM(T26:X26) -> 0 | Z26: ='1a) Project Info'!AF15+'1a) Project Info'!AF59 -> 0 | AA26: =-Z26 -> 0 | AB26: =AA26 -> 0 | AD26: 2 | AE26: 0
B27: 2 | H27: 0 | I27: ='1a) Project Info'!AG16+'1a) Project Info'!AG60 -> 0 | J27: =H27-I27 -> 0 | K27: =K26+J27 -> 0 | M27: 2 | S27: 2 | Y27: =SUM(T27:X27) -> 0 | Z27: ='1a) Project Info'!AF16+'1a) Project Info'!AF60 -> 0 | AA27: =-Z27 -> 0 | AB27: =AB26+AA27 -> 0 | AD27: 3 | AE27: 0
B28: 3 | H28: 0 | I28: ='1a) Project Info'!AG17+'1a) Project Info'!AG61 -> 0 | J28: 0 | K28: =K27+J28 -> 0 | M28: 3 | S28: 3 | Y28: 0 | Z28: ='1a) Project Info'!AF17+'1a) Project Info'!AF61 -> 0 | AA28: 0 | AB28: =AB27+AA28 -> 0 | AD28: 4 | AE28: 0
B29: 4 | H29: 0 | I29: ='1a) Project Info'!AG18+'1a) Project Info'!AG62 -> 0 | J29: 0 | K29: 0 | M29: 4 | S29: 4 | Y29: 0 | Z29: ='1a) Project Info'!AF18+'1a) Project Info'!AF62 -> 0 | AA29: 0 | AB29: 0 | AD29: 5 | AE29: 0
B30: 5 | H30: 0 | I30: ='1a) Project Info'!AG19+'1a) Project Info'!AG63 -> 0 | J30: 0 | K30: 0 | M30: 5 | S30: 5 | Y30: 0 | Z30: ='1a) Project Info'!AF19+'1a) Project Info'!AF63 -> 0 | AA30: 0 | AB30: 0 | AD30: 6 | AE30: 0
B31: 6 | H31: 0 | I31: ='1a) Project Info'!AG20+'1a) Project Info'!AG64 -> 0 | J31: =H31-I31 -> 0 | K31: 0 | M31: 6 | S31: 6 | Y31: 0 | Z31: ='1a) Project Info'!AF20+'1a) Project Info'!AF64 -> 0 | AA31: 0 | AB31: 0 | AD31: 7 | AE31: 0
B32: 7 | H32: 0 | I32: ='1a) Project Info'!AG21+'1a) Project Info'!AG65 -> 0 | J32: =H32-I32 -> 0 | K32: 0 | M32: 7 | S32: 7 | Y32: 0 | Z32: ='1a) Project Info'!AF21+'1a) Project Info'!AF65 -> 0 | AA32: 0 | AB32: 0 | AD32: 8 | AE32: 0
B33: 8 | H33: 0 | I33: ='1a) Project Info'!AG22+'1a) Project Info'!AG66 -> 0 | J33: =H33-I33 -> 0 | K33: 0 | M33: 8 | S33: 8 | Y33: 0 | Z33: ='1a) Project Info'!AF22+'1a) Project Info'!AF66 -> 0 | AA33: 0 | AB33: 0 | AD33: 9 | AE33: 0
B34: Project Open | M34: Project Open | S34: Project Open | AD34: 10 | AE34: 0
B35: 1 | C35: ='Journey Quality'!Z26+'Journey Quality'!Z58+'Journey Quality'!Z92+'Journey Quality'!Z128 -> 0 | D35: ='Intersection Delay'!AB26+'Intersection Delay'!AB63 -> 0 | E35: ='Intersection Safety'!AL26+'Auto Accident Costs'!H26 -> 0 | F35: ='Health - Absenteeism'!V26+'Health - Reduced Mortality'!Z26+'Health - Reduced Mortality'!Z63 -> 0 | G35: =Emissions!I26 -> 0 | H35: =SUM(C35:G35) -> 0 | I35: ='1a) Project Info'!AG24+'1a) Project Info'!AG68 -> 0 | J35: =H35-I35 -> 0 | K35: =J35 -> 0 | M35: 1 | N35: ='Journey Quality'!Z92+'Journey Quality'!Z128 -> 0 | O35: ='Intersection Delay'!AB63 -> 0 | P35: ='Intersection Safety'!AQ26 -> 0 | S35: 1 | T35: ='Journey Quality'!Y26+'Journey Quality'!Y58+'Journey Quality'!Y92+'Journey Quality'!Y128 -> 0 | U35: ='Intersection Delay'!AA26+'Intersection Delay'!AA63 -> 0 | V35: ='Intersection Safety'!AK26+'Auto Accident Costs'!G26 -> 0 | W35: ='Health - Absenteeism'!U26+'Health - Reduced Mortality'!Y26+'Health - Reduced Mortality'!Y63 -> 0 | X35: =Emissions!H26 -> 0 | Y35: =SUM(T35:X35) -> 0 | Z35: ='1a) Project Info'!AF24+'1a) Project Info'!AF68 -> 0 | AA35: =Y35-Z35 -> 0 | AB35: =AA35 -> 0 | AD35: 11 | AE35: 0
B36: 2 | C36: ='Journey Quality'!Z27+'Journey Quality'!Z59+'Journey Quality'!Z93+'Journey Quality'!Z129 -> 0 | D36: ='Intersection Delay'!AB27+'Intersection Delay'!AB64 -> 0 | E36: ='Intersection Safety'!AL27+'Auto Accident Costs'!H27 -> 0 | F36: ='Health - Absenteeism'!V27+'Health - Reduced Mortality'!Z27+'Health - Reduced Mortality'!Z64 -> 0 | G36: =Emissions!I27 -> 0 | H36: 0 | I36: ='1a) Project Info'!AG25+'1a) Project Info'!AG69 -> 0 | J36: =H36-I36 -> 0 | K36: =K35+J36 -> 0 | M36: 2 | N36: ='Journey Quality'!Z93+'Journey Quality'!Z129 -> 0 | O36: ='Intersection Delay'!AB64 -> 0 | P36: ='Intersection Safety'!AQ27 -> 0 | S36: 2 | T36: ='Journey Quality'!Y27+'Journey Quality'!Y59+'Journey Quality'!Y93+'Journey Quality'!Y129 -> 0 | U36: ='Intersection Delay'!AA27+'Intersection Delay'!AA64 -> 0 | V36: ='Intersection Safety'!AK27+'Auto Accident Costs'!G27 -> 0 | W36: ='Health - Absenteeism'!U27+'Health - Reduced Mortality'!Y27+'Health - Reduced Mortality'!Y64 -> 0 | X36: =Emissions!H27 -> 0 | Y36: 0 | Z36: ='1a) Project Info'!AF25+'1a) Project Info'!AF69 -> 0 | AA36: 0 | AB36: =AB35+AA36 -> 0 | AD36: 12 | AE36: 0
B37: 3 | C37: ='Journey Quality'!Z28+'Journey Quality'!Z60+'Journey Quality'!Z94+'Journey Quality'!Z130 -> 0 | D37: ='Intersection Delay'!AB28+'Intersection Delay'!AB65 -> 0 | E37: ='Intersection Safety'!AL28+'Auto Accident Costs'!H28 -> 0 | F37: ='Health - Absenteeism'!V28+'Health - Reduced Mortality'!Z28+'Health - Reduced Mortality'!Z65 -> 0 | G37: =Emissions!I28 -> 0 | H37: 0 | I37: ='1a) Project Info'!AG26+'1a) Project Info'!AG70 -> 0 | J37: =H37-I37 -> 0 | K37: 0 | M37: 3 | N37: ='Journey Quality'!Z94+'Journey Quality'!Z130 -> 0 | O37: ='Intersection Delay'!AB65 -> 0 | P37: ='Intersection Safety'!AQ28 -> 0 | S37: 3 | T37: ='Journey Quality'!Y28+'Journey Quality'!Y60+'Journey Quality'!Y94+'Journey Quality'!Y130 -> 0 | U37: ='Intersection Delay'!AA28+'Intersection Delay'!AA65 -> 0 | V37: ='Intersection Safety'!AK28+'Auto Accident Costs'!G28 -> 0 | W37: ='Health - Absenteeism'!U28+'Health - Reduced Mortality'!Y28+'Health - Reduced Mortality'!Y65 -> 0 | X37: =Emissions!H28 -> 0 | Y37: 0 | Z37: ='1a) Project Info'!AF26+'1a) Project Info'!AF70 -> 0 | AA37: 0 | AB37: 0 | AD37: 13 | AE37: 0
B38: 4 | C38: ='Journey Quality'!Z29+'Journey Quality'!Z61+'Journey Quality'!Z95+'Journey Quality'!Z131 -> 0 | D38: ='Intersection Delay'!AB29+'Intersection Delay'!AB66 -> 0 | E38: ='Intersection Safety'!AL29+'Auto Accident Costs'!H29 -> 0 | F38: ='Health - Absenteeism'!V29+'Health - Reduced Mortality'!Z29+'Health - Reduced Mortality'!Z66 -> 0 | G38: =Emissions!I29 -> 0 | H38: 0 | I38: ='1a) Project Info'!AG27+'1a) Project Info'!AG71 -> 0 | J38: =H38-I38 -> 0 | K38: 0 | M38: 4 | N38: ='Journey Quality'!Z95+'Journey Quality'!Z131 -> 0 | O38: ='Intersection Delay'!AB66 -> 0 | P38: ='Intersection Safety'!AQ29 -> 0 | S38: 4 | T38: ='Journey Quality'!Y29+'Journey Quality'!Y61+'Journey Quality'!Y95+'Journey Quality'!Y131 -> 0 | U38: ='Intersection Delay'!AA29+'Intersection Delay'!AA66 -> 0 | V38: ='Intersection Safety'!AK29+'Auto Accident Costs'!G29 -> 0 | W38: ='Health - Absenteeism'!U29+'Health - Reduced Mortality'!Y29+'Health - Reduced Mortality'!Y66 -> 0 | X38: =Emissions!H29 -> 0 | Y38: 0 | Z38: ='1a) Project Info'!AF27+'1a) Project Info'!AF71 -> 0 | AA38: 0 | AB38: 0 | AD38: 14 | AE38: 0
B39: 5 | C39: ='Journey Quality'!Z30+'Journey Quality'!Z62+'Journey Quality'!Z96+'Journey Quality'!Z132 -> 0 | D39: ='Intersection Delay'!AB30+'Intersection Delay'!AB67 -> 0 | E39: ='Intersection Safety'!AL30+'Auto Accident Costs'!H30 -> 0 | F39: ='Health - Absenteeism'!V30+'Health - Reduced Mortality'!Z30+'Health - Reduced Mortality'!Z67 -> 0 | G39: =Emissions!I30 -> 0 | H39: 0 | I39: ='1a) Project Info'!AG28+'1a) Project Info'!AG72 -> 0 | J39: 0 | K39: 0 | M39: 5 | N39: ='Journey Quality'!Z96+'Journey Quality'!Z132 -> 0 | O39: ='Intersection Delay'!AB67 -> 0 | P39: ='Intersection Safety'!AQ30 -> 0 | S39: 5 | T39: ='Journey Quality'!Y30+'Journey Quality'!Y62+'Journey Quality'!Y96+'Journey Quality'!Y132 -> 0 | U39: ='Intersection Delay'!AA30+'Intersection Delay'!AA67 -> 0 | V39: ='Intersection Safety'!AK30+'Auto Accident Costs'!G30 -> 0 | W39: ='Health - Absenteeism'!U30+'Health - Reduced Mortality'!Y30+'Health - Reduced Mortality'!Y67 -> 0 | X39: =Emissions!H30 -> 0 | Y39: 0 | Z39: ='1a) Project Info'!AF28+'1a) Project Info'!AF72 -> 0 | AA39: 0 | AB39: 0 | AD39: 15 | AE39: 0
B40: 6 | C40: ='Journey Quality'!Z31+'Journey Quality'!Z63+'Journey Quality'!Z97+'Journey Quality'!Z133 -> 0 | D40: ='Intersection Delay'!AB31+'Intersection Delay'!AB68 -> 0 | E40: ='Intersection Safety'!AL31+'Auto Accident Costs'!H31 -> 0 | F40: ='Health - Absenteeism'!V31+'Health - Reduced Mortality'!Z31+'Health - Reduced Mortality'!Z68 -> 0 | G40: =Emissions!I31 -> 0 | H40: 0 | I40: ='1a) Project Info'!AG29+'1a) Project Info'!AG73 -> 0 | J40: 0 | K40: 0 | M40: 6 | N40: ='Journey Quality'!Z97+'Journey Quality'!Z133 -> 0 | O40: ='Intersection Delay'!AB68 -> 0 | P40: ='Intersection Safety'!AQ31 -> 0 | S40: 6 | T40: ='Journey Quality'!Y31+'Journey Quality'!Y63+'Journey Quality'!Y97+'Journey Quality'!Y133 -> 0 | U40: ='Intersection Delay'!AA31+'Intersection Delay'!AA68 -> 0 | V40: ='Intersection Safety'!AK31+'Auto Accident Costs'!G31 -> 0 | W40: ='Health - Absenteeism'!U31+'Health - Reduced Mortality'!Y31+'Health - Reduced Mortality'!Y68 -> 0 | X40: =Emissions!H31 -> 0 | Y40: 0 | Z40: ='1a) Project Info'!AF29+'1a) Project Info'!AF73 -> 0 | AA40: 0 | AB40: 0 | AD40: 16 | AE40: 0
B41: 7 | C41: ='Journey Quality'!Z32+'Journey Quality'!Z64+'Journey Quality'!Z98+'Journey Quality'!Z134 -> 0 | D41: ='Intersection Delay'!AB32+'Intersection Delay'!AB69 -> 0 | E41: ='Intersection Safety'!AL32+'Auto Accident Costs'!H32 -> 0 | F41: ='Health - Absenteeism'!V32+'Health - Reduced Mortality'!Z32+'Health - Reduced Mortality'!Z69 -> 0 | G41: =Emissions!I32 -> 0 | H41: 0 | I41: ='1a) Project Info'!AG30+'1a) Project Info'!AG74 -> 0 | J41: =H41-I41 -> 0 | K41: 0 | M41: 7 | N41: ='Journey Quality'!Z98+'Journey Quality'!Z134 -> 0 | O41: ='Intersection Delay'!AB69 -> 0 | P41: ='Intersection Safety'!AQ32 -> 0 | S41: 7 | T41: ='Journey Quality'!Y32+'Journey Quality'!Y64+'Journey Quality'!Y98+'Journey Quality'!Y134 -> 0 | U41: ='Intersection Delay'!AA32+'Intersection Delay'!AA69 -> 0 | V41: ='Intersection Safety'!AK32+'Auto Accident Costs'!G32 -> 0 | W41: ='Health - Absenteeism'!U32+'Health - Reduced Mortality'!Y32+'Health - Reduced Mortality'!Y69 -> 0 | X41: =Emissions!H32 -> 0 | Y41: 0 | Z41: ='1a) Project Info'!AF30+'1a) Project Info'!AF74 -> 0 | AA41: 0 | AB41: 0 | AD41: 17 | AE41: 0
B42: 8 | C42: ='Journey Quality'!Z33+'Journey Quality'!Z65+'Journey Quality'!Z99+'Journey Quality'!Z135 -> 0 | D42: ='Intersection Delay'!AB33+'Intersection Delay'!AB70 -> 0 | E42: ='Intersection Safety'!AL33+'Auto Accident Costs'!H33 -> 0 | F42: ='Health - Absenteeism'!V33+'Health - Reduced Mortality'!Z33+'Health - Reduced Mortality'!Z70 -> 0 | G42: =Emissions!I33 -> 0 | H42: 0 | I42: ='1a) Project Info'!AG31+'1a) Project Info'!AG75 -> 0 | J42: 0 | K42: =K41+J42 -> 0 | M42: 8 | N42: ='Journey Quality'!Z99+'Journey Quality'!Z135 -> 0 | O42: ='Intersection Delay'!AB70 -> 0 | P42: ='Intersection Safety'!AQ33 -> 0 | S42: 8 | T42: ='Journey Quality'!Y33+'Journey Quality'!Y65+'Journey Quality'!Y99+'Journey Quality'!Y135 -> 0 | U42: ='Intersection Delay'!AA33+'Intersection Delay'!AA70 -> 0 | V42: ='Intersection Safety'!AK33+'Auto Accident Costs'!G33 -> 0 | W42: ='Health - Absenteeism'!U33+'Health - Reduced Mortality'!Y33+'Health - Reduced Mortality'!Y70 -> 0 | X42: =Emissions!H33 -> 0 | Y42: 0 | Z42: ='1a) Project Info'!AF31+'1a) Project Info'!AF75 -> 0 | AA42: 0 | AB42: =AB41+AA42 -> 0 | AD42: 18 | AE42: 0
B43: 9 | C43: ='Journey Quality'!Z34+'Journey Quality'!Z66+'Journey Quality'!Z100+'Journey Quality'!Z136 -> 0 | D43: ='Intersection Delay'!AB34+'Intersection Delay'!AB71 -> 0 | E43: ='Intersection Safety'!AL34+'Auto Accident Costs'!H34 -> 0 | F43: ='Health - Absenteeism'!V34+'Health - Reduced Mortality'!Z34+'Health - Reduced Mortality'!Z71 -> 0 | G43: =Emissions!I34 -> 0 | H43: 0 | I43: ='1a) Project Info'!AG32+'1a) Project Info'!AG76 -> 0 | J43: 0 | K43: =K42+J43 -> 0 | M43: 9 | N43: ='Journey Quality'!Z100+'Journey Quality'!Z136 -> 0 | O43: ='Intersection Delay'!AB71 -> 0 | P43: ='Intersection Safety'!AQ34 -> 0 | S43: 9 | T43: ='Journey Quality'!Y34+'Journey Quality'!Y66+'Journey Quality'!Y100+'Journey Quality'!Y136 -> 0 | U43: ='Intersection Delay'!AA34+'Intersection Delay'!AA71 -> 0 | V43: ='Intersection Safety'!AK34+'Auto Accident Costs'!G34 -> 0 | W43: ='Health - Absenteeism'!U34+'Health - Reduced Mortality'!Y34+'Health - Reduced Mortality'!Y71 -> 0 | X43: =Emissions!H34 -> 0 | Y43: 0 | Z43: ='1a) Project Info'!AF32+'1a) Project Info'!AF76 -> 0 | AA43: 0 | AB43: =AB42+AA43 -> 0 | AD43: 19 | AE43: 0
B44: 10 | C44: ='Journey Quality'!Z35+'Journey Quality'!Z67+'Journey Quality'!Z101+'Journey Quality'!Z137 -> 0 | D44: ='Intersection Delay'!AB35+'Intersection Delay'!AB72 -> 0 | E44: ='Intersection Safety'!AL35+'Auto Accident Costs'!H35 -> 0 | F44: ='Health - Absenteeism'!V35+'Health - Reduced Mortality'!Z35+'Health - Reduced Mortality'!Z72 -> 0 | G44: =Emissions!I35 -> 0 | H44: 0 | I44: ='1a) Project Info'!AG33+'1a) Project Info'!AG77 -> 0 | J44: 0 | K44: =K43+J44 -> 0 | M44: 10 | N44: ='Journey Quality'!Z101+'Journey Quality'!Z137 -> 0 | O44: ='Intersection Delay'!AB72 -> 0 | P44: ='Intersection Safety'!AQ35 -> 0 | S44: 10 | T44: ='Journey Quality'!Y35+'Journey Quality'!Y67+'Journey Quality'!Y101+'Journey Quality'!Y137 -> 0 | U44: ='Intersection Delay'!AA35+'Intersection Delay'!AA72 -> 0 | V44: ='Intersection Safety'!AK35+'Auto Accident Costs'!G35 -> 0 | W44: ='Health - Absenteeism'!U35+'Health - Reduced Mortality'!Y35+'Health - Reduced Mortality'!Y72 -> 0 | X44: =Emissions!H35 -> 0 | Y44: 0 | Z44: ='1a) Project Info'!AF33+'1a) Project Info'!AF77 -> 0 | AA44: 0 | AB44: =AB43+AA44 -> 0 | AD44: 20 | AE44: 0
B45: 11 | C45: ='Journey Quality'!Z36+'Journey Quality'!Z68+'Journey Quality'!Z102+'Journey Quality'!Z138 -> 0 | D45: ='Intersection Delay'!AB36+'Intersection Delay'!AB73 -> 0 | E45: ='Intersection Safety'!AL36+'Auto Accident Costs'!H36 -> 0 | F45: ='Health - Absenteeism'!V36+'Health - Reduced Mortality'!Z36+'Health - Reduced Mortality'!Z73 -> 0 | G45: =Emissions!I36 -> 0 | H45: 0 | I45: ='1a) Project Info'!AG34+'1a) Project Info'!AG78 -> 0 | J45: 0 | K45: =K44+J45 -> 0 | M45: 11 | N45: ='Journey Quality'!Z102+'Journey Quality'!Z138 -> 0 | O45: ='Intersection Delay'!AB73 -> 0 | P45: ='Intersection Safety'!AQ36 -> 0 | S45: 11 | T45: ='Journey Quality'!Y36+'Journey Quality'!Y68+'Journey Quality'!Y102+'Journey Quality'!Y138 -> 0 | U45: ='Intersection Delay'!AA36+'Intersection Delay'!AA73 -> 0 | V45: ='Intersection Safety'!AK36+'Auto Accident Costs'!G36 -> 0 | W45: ='Health - Absenteeism'!U36+'Health - Reduced Mortality'!Y36+'Health - Reduced Mortality'!Y73 -> 0 | X45: =Emissions!H36 -> 0 | Y45: 0 | Z45: ='1a) Project Info'!AF34+'1a) Project Info'!AF78 -> 0 | AA45: 0 | AB45: =AB44+AA45 -> 0 | AD45: 21 | AE45: 0
B46: 12 | C46: ='Journey Quality'!Z37+'Journey Quality'!Z69+'Journey Quality'!Z103+'Journey Quality'!Z139 -> 0 | D46: ='Intersection Delay'!AB37+'Intersection Delay'!AB74 -> 0 | E46: ='Intersection Safety'!AL37+'Auto Accident Costs'!H37 -> 0 | F46: ='Health - Absenteeism'!V37+'Health - Reduced Mortality'!Z37+'Health - Reduced Mortality'!Z74 -> 0 | G46: =Emissions!I37 -> 0 | H46: 0 | I46: ='1a) Project Info'!AG35+'1a) Project Info'!AG79 -> 0 | J46: 0 | K46: 0 | M46: 12 | N46: ='Journey Quality'!Z103+'Journey Quality'!Z139 -> 0 | O46: ='Intersection Delay'!AB74 -> 0 | P46: ='Intersection Safety'!AQ37 -> 0 | S46: 12 | T46: ='Journey Quality'!Y37+'Journey Quality'!Y69+'Journey Quality'!Y103+'Journey Quality'!Y139 -> 0 | U46: ='Intersection Delay'!AA37+'Intersection Delay'!AA74 -> 0 | V46: ='Intersection Safety'!AK37+'Auto Accident Costs'!G37 -> 0 | W46: ='Health - Absenteeism'!U37+'Health - Reduced Mortality'!Y37+'Health - Reduced Mortality'!Y74 -> 0 | X46: =Emissions!H37 -> 0 | Y46: 0 | Z46: ='1a) Project Info'!AF35+'1a) Project Info'!AF79 -> 0 | AA46: 0 | AB46: 0 | AD46: 22 | AE46: 0
B47: 13 | C47: ='Journey Quality'!Z38+'Journey Quality'!Z70+'Journey Quality'!Z104+'Journey Quality'!Z140 -> 0 | D47: ='Intersection Delay'!AB38+'Intersection Delay'!AB75 -> 0 | E47: ='Intersection Safety'!AL38+'Auto Accident Costs'!H38 -> 0 | F47: ='Health - Absenteeism'!V38+'Health - Reduced Mortality'!Z38+'Health - Reduced Mortality'!Z75 -> 0 | G47: =Emissions!I38 -> 0 | H47: 0 | I47: ='1a) Project Info'!AG36+'1a) Project Info'!AG80 -> 0 | J47: 0 | K47: =K46+J47 -> 0 | M47: 13 | N47: ='Journey Quality'!Z104+'Journey Quality'!Z140 -> 0 | O47: ='Intersection Delay'!AB75 -> 0 | P47: ='Intersection Safety'!AQ38 -> 0 | S47: 13 | T47: ='Journey Quality'!Y38+'Journey Quality'!Y70+'Journey Quality'!Y104+'Journey Quality'!Y140 -> 0 | U47: ='Intersection Delay'!AA38+'Intersection Delay'!AA75 -> 0 | V47: ='Intersection Safety'!AK38+'Auto Accident Costs'!G38 -> 0 | W47: ='Health - Absenteeism'!U38+'Health - Reduced Mortality'!Y38+'Health - Reduced Mortality'!Y75 -> 0 | X47: =Emissions!H38 -> 0 | Y47: 0 | Z47: ='1a) Project Info'!AF36+'1a) Project Info'!AF80 -> 0 | AA47: 0 | AB47: =AB46+AA47 -> 0 | AD47: 23 | AE47: 0
B48: 14 | C48: ='Journey Quality'!Z39+'Journey Quality'!Z71+'Journey Quality'!Z105+'Journey Quality'!Z141 -> 0 | D48: ='Intersection Delay'!AB39+'Intersection Delay'!AB76 -> 0 | E48: ='Intersection Safety'!AL39+'Auto Accident Costs'!H39 -> 0 | F48: ='Health - Absenteeism'!V39+'Health - Reduced Mortality'!Z39+'Health - Reduced Mortality'!Z76 -> 0 | G48: =Emissions!I39 -> 0 | H48: 0 | I48: ='1a) Project Info'!AG37+'1a) Project Info'!AG81 -> 0 | J48: 0 | K48: =K47+J48 -> 0 | M48: 14 | N48: ='Journey Quality'!Z105+'Journey Quality'!Z141 -> 0 | O48: ='Intersection Delay'!AB76 -> 0 | P48: ='Intersection Safety'!AQ39 -> 0 | S48: 14 | T48: ='Journey Quality'!Y39+'Journey Quality'!Y71+'Journey Quality'!Y105+'Journey Quality'!Y141 -> 0 | U48: ='Intersection Delay'!AA39+'Intersection Delay'!AA76 -> 0 | V48: ='Intersection Safety'!AK39+'Auto Accident Costs'!G39 -> 0 | W48: ='Health - Absenteeism'!U39+'Health - Reduced Mortality'!Y39+'Health - Reduced Mortality'!Y76 -> 0 | X48: =Emissions!H39 -> 0 | Y48: 0 | Z48: ='1a) Project Info'!AF37+'1a) Project Info'!AF81 -> 0 | AA48: 0 | AB48: =AB47+AA48 -> 0 | AD48: 24 | AE48: 0
B49: 15 | C49: ='Journey Quality'!Z40+'Journey Quality'!Z72+'Journey Quality'!Z106+'Journey Quality'!Z142 -> 0 | D49: ='Intersection Delay'!AB40+'Intersection Delay'!AB77 -> 0 | E49: ='Intersection Safety'!AL40+'Auto Accident Costs'!H40 -> 0 | F49: ='Health - Absenteeism'!V40+'Health - Reduced Mortality'!Z40+'Health - Reduced Mortality'!Z77 -> 0 | G49: =Emissions!I40 -> 0 | H49: 0 | I49: ='1a) Project Info'!AG38+'1a) Project Info'!AG82 -> 0 | J49: 0 | K49: 0 | M49: 15 | N49: ='Journey Quality'!Z106+'Journey Quality'!Z142 -> 0 | O49: ='Intersection Delay'!AB77 -> 0 | P49: ='Intersection Safety'!AQ40 -> 0 | S49: 15 | T49: ='Journey Quality'!Y40+'Journey Quality'!Y72+'Journey Quality'!Y106+'Journey Quality'!Y142 -> 0 | U49: ='Intersection Delay'!AA40+'Intersection Delay'!AA77 -> 0 | V49: ='Intersection Safety'!AK40+'Auto Accident Costs'!G40 -> 0 | W49: ='Health - Absenteeism'!U40+'Health - Reduced Mortality'!Y40+'Health - Reduced Mortality'!Y77 -> 0 | X49: =Emissions!H40 -> 0 | Y49: 0 | Z49: ='1a) Project Info'!AF38+'1a) Project Info'!AF82 -> 0 | AA49: 0 | AB49: 0 | AD49: 25 | AE49: 0
B50: 16 | C50: ='Journey Quality'!Z41+'Journey Quality'!Z73+'Journey Quality'!Z107+'Journey Quality'!Z143 -> 0 | D50: ='Intersection Delay'!AB41+'Intersection Delay'!AB78 -> 0 | E50: ='Intersection Safety'!AL41+'Auto Accident Costs'!H41 -> 0 | F50: ='Health - Absenteeism'!V41+'Health - Reduced Mortality'!Z41+'Health - Reduced Mortality'!Z78 -> 0 | G50: =Emissions!I41 -> 0 | H50: 0 | I50: ='1a) Project Info'!AG39+'1a) Project Info'!AG83 -> 0 | J50: 0 | K50: =K49+J50 -> 0 | M50: 16 | N50: ='Journey Quality'!Z107+'Journey Quality'!Z143 -> 0 | O50: ='Intersection Delay'!AB78 -> 0 | P50: ='Intersection Safety'!AQ41 -> 0 | S50: 16 | T50: ='Journey Quality'!Y41+'Journey Quality'!Y73+'Journey Quality'!Y107+'Journey Quality'!Y143 -> 0 | U50: ='Intersection Delay'!AA41+'Intersection Delay'!AA78 -> 0 | V50: ='Intersection Safety'!AK41+'Auto Accident Costs'!G41 -> 0 | W50: ='Health - Absenteeism'!U41+'Health - Reduced Mortality'!Y41+'Health - Reduced Mortality'!Y78 -> 0 | X50: =Emissions!H41 -> 0 | Y50: 0 | Z50: ='1a) Project Info'!AF39+'1a) Project Info'!AF83 -> 0 | AA50: 0 | AB50: =AB49+AA50 -> 0 | AD50: 26 | AE50: 0
B51: 17 | C51: ='Journey Quality'!Z42+'Journey Quality'!Z74+'Journey Quality'!Z108+'Journey Quality'!Z144 -> 0 | D51: ='Intersection Delay'!AB42+'Intersection Delay'!AB79 -> 0 | E51: ='Intersection Safety'!AL42+'Auto Accident Costs'!H42 -> 0 | F51: ='Health - Absenteeism'!V42+'Health - Reduced Mortality'!Z42+'Health - Reduced Mortality'!Z79 -> 0 | G51: =Emissions!I42 -> 0 | H51: 0 | I51: ='1a) Project Info'!AG40+'1a) Project Info'!AG84 -> 0 | J51: 0 | K51: =K50+J51 -> 0 | M51: 17 | N51: ='Journey Quality'!Z108+'Journey Quality'!Z144 -> 0 | O51: ='Intersection Delay'!AB79 -> 0 | P51: ='Intersection Safety'!AQ42 -> 0 | S51: 17 | T51: ='Journey Quality'!Y42+'Journey Quality'!Y74+'Journey Quality'!Y108+'Journey Quality'!Y144 -> 0 | U51: ='Intersection Delay'!AA42+'Intersection Delay'!AA79 -> 0 | V51: ='Intersection Safety'!AK42+'Auto Accident Costs'!G42 -> 0 | W51: ='Health - Absenteeism'!U42+'Health - Reduced Mortality'!Y42+'Health - Reduced Mortality'!Y79 -> 0 | X51: =Emissions!H42 -> 0 | Y51: 0 | Z51: ='1a) Project Info'!AF40+'1a) Project Info'!AF84 -> 0 | AA51: 0 | AB51: =AB50+AA51 -> 0 | AD51: 27 | AE51: 0
B52: 18 | C52: ='Journey Quality'!Z43+'Journey Quality'!Z75+'Journey Quality'!Z109+'Journey Quality'!Z145 -> 0 | D52: ='Intersection Delay'!AB43+'Intersection Delay'!AB80 -> 0 | E52: ='Intersection Safety'!AL43+'Auto Accident Costs'!H43 -> 0 | F52: ='Health - Absenteeism'!V43+'Health - Reduced Mortality'!Z43+'Health - Reduced Mortality'!Z80 -> 0 | G52: =Emissions!I43 -> 0 | H52: 0 | I52: ='1a) Project Info'!AG41+'1a) Project Info'!AG85 -> 0 | J52: 0 | K52: =K51+J52 -> 0 | M52: 18 | N52: ='Journey Quality'!Z109+'Journey Quality'!Z145 -> 0 | O52: ='Intersection Delay'!AB80 -> 0 | P52: ='Intersection Safety'!AQ43 -> 0 | S52: 18 | T52: ='Journey Quality'!Y43+'Journey Quality'!Y75+'Journey Quality'!Y109+'Journey Quality'!Y145 -> 0 | U52: ='Intersection Delay'!AA43+'Intersection Delay'!AA80 -> 0 | V52: ='Intersection Safety'!AK43+'Auto Accident Costs'!G43 -> 0 | W52: ='Health - Absenteeism'!U43+'Health - Reduced Mortality'!Y43+'Health - Reduced Mortality'!Y80 -> 0 | X52: =Emissions!H43 -> 0 | Y52: 0 | Z52: ='1a) Project Info'!AF41+'1a) Project Info'!AF85 -> 0 | AA52: 0 | AB52: =AB51+AA52 -> 0 | AD52: 28 | AE52: 0
B53: 19 | C53: ='Journey Quality'!Z44+'Journey Quality'!Z76+'Journey Quality'!Z110+'Journey Quality'!Z146 -> 0 | D53: ='Intersection Delay'!AB44+'Intersection Delay'!AB81 -> 0 | E53: ='Intersection Safety'!AL44+'Auto Accident Costs'!H44 -> 0 | F53: ='Health - Absenteeism'!V44+'Health - Reduced Mortality'!Z44+'Health - Reduced Mortality'!Z81 -> 0 | G53: =Emissions!I44 -> 0 | H53: 0 | I53: ='1a) Project Info'!AG42+'1a) Project Info'!AG86 -> 0 | J53: 0 | K53: 0 | M53: 19 | N53: ='Journey Quality'!Z110+'Journey Quality'!Z146 -> 0 | O53: ='Intersection Delay'!AB81 -> 0 | P53: ='Intersection Safety'!AQ44 -> 0 | S53: 19 | T53: ='Journey Quality'!Y44+'Journey Quality'!Y76+'Journey Quality'!Y110+'Journey Quality'!Y146 -> 0 | U53: ='Intersection Delay'!AA44+'Intersection Delay'!AA81 -> 0 | V53: ='Intersection Safety'!AK44+'Auto Accident Costs'!G44 -> 0 | W53: ='Health - Absenteeism'!U44+'Health - Reduced Mortality'!Y44+'Health - Reduced Mortality'!Y81 -> 0 | X53: =Emissions!H44 -> 0 | Y53: 0 | Z53: ='1a) Project Info'!AF42+'1a) Project Info'!AF86 -> 0 | AA53: 0 | AB53: 0
B54: 20 | C54: ='Journey Quality'!Z45+'Journey Quality'!Z77+'Journey Quality'!Z111+'Journey Quality'!Z147 -> 0 | D54: ='Intersection Delay'!AB45+'Intersection Delay'!AB82 -> 0 | E54: ='Intersection Safety'!AL45+'Auto Accident Costs'!H45 -> 0 | F54: ='Health - Absenteeism'!V45+'Health - Reduced Mortality'!Z45+'Health - Reduced Mortality'!Z82 -> 0 | G54: =Emissions!I45 -> 0 | H54: 0 | I54: ='1a) Project Info'!AG43+'1a) Project Info'!AG87 -> 0 | J54: 0 | K54: =K53+J54 -> 0 | M54: 20 | N54: ='Journey Quality'!Z111+'Journey Quality'!Z147 -> 0 | O54: ='Intersection Delay'!AB82 -> 0 | P54: ='Intersection Safety'!AQ45 -> 0 | S54: 20 | T54: ='Journey Quality'!Y45+'Journey Quality'!Y77+'Journey Quality'!Y111+'Journey Quality'!Y147 -> 0 | U54: ='Intersection Delay'!AA45+'Intersection Delay'!AA82 -> 0 | V54: ='Intersection Safety'!AK45+'Auto Accident Costs'!G45 -> 0 | W54: ='Health - Absenteeism'!U45+'Health - Reduced Mortality'!Y45+'Health - Reduced Mortality'!Y82 -> 0 | X54: =Emissions!H45 -> 0 | Y54: 0 | Z54: ='1a) Project Info'!AF43+'1a) Project Info'!AF87 -> 0 | AA54: 0 | AB54: =AB53+AA54 -> 0 | AD54: Internal Rate | AG54: The INTERNAL RATE OF RETURN (IRR) is the discount rate at which benefits and costs break even (are equal). For a project
AD55: of Return | AE55: =IF(SUM(AE25:AE52)=0,"N/A",IRR(AE25:AE52)) -> N/A | AG55: with an IRR greater than the Discount Rate, benefits are greater than costs, and the project has a positive economic value. The
B56: Total | C56: =SUM(C35:C54) -> 0 | D56: =SUM(D35:D54) -> 0 | E56: =SUM(E35:E54) -> 0 | F56: =SUM(F35:F54) -> 0 | G56: =SUM(G35:G54) -> 0 | H56: =SUM(H26:H54) -> 0 | I56: =SUM(I26:I54) -> 0 | J56: =SUM(J26:J54) -> 0 | M56: Total | N56: =SUM(N35:N54) -> 0 | O56: =SUM(O35:O54) -> 0 | P56: =SUM(P35:P54) -> 0 | S56: Total | T56: =SUM(T35:T54) -> 0 | U56: =SUM(U35:U54) -> 0 | V56: =SUM(V35:V54) -> 0 | W56: =SUM(W35:W54) -> 0 | X56: =SUM(X35:X54) -> 0 | Y56: =SUM(Y26:Y54) -> 0 | Z56: =SUM(Z26:Z54) -> 0 | AA56: 0 | AG56: IRR allows projects with different costs, different benefit flows, and different time periods to be compared.
AD58: Payback | AG58: The PAYBACK PERIOD is the number of years it takes for the net benefits (benefits minus costs) to equal, or payback, the initial
C59: tons | D59: $ PV | J59: Total Construction Costs | K59: =-(SUM(J26:J33)) -> 0 | AA59: Total Construction Costs | AB59: =ABS(SUM(AA26:AA33)) -> 0 | AD59: Period | AE59: =IF(AB59=0,"N/A",IF(AB59<AB35,"1 year",IF(AB59>AB54,"20+",(LOOKUP(AB59,AB35:AB54,S35:S54)+1))&" years")) -> N/A | AG59: construction costs. For a project with a Payback Period longer than the life-cycle of the project, initial construction costs are not
C60: =Emissions!K47 -> 0 | D60: =Emissions!R47 -> 0 | E60: CO Saved | AG60: recovered. The Payback Period varies inversely with the Benefit-Cost Ratio: shorter Payback Period yields higher Benefit-Cost.
C61: =Emissions!L47 -> 0 | D61: =Emissions!S47 -> 0 | E61: CO2 Saved
C62: =Emissions!M47 -> 0 | D62: =Emissions!T47 -> 0 | E62: NOX Saved
C63: =Emissions!N47 -> 0 | D63: =Emissions!U47 -> 0 | E63: PM10 Saved
C64: =Emissions!Q47 -> 0 | E64: PM2.5 Saved
C65: =Emissions!O47 -> 0 | D65: =Emissions!V47 -> 0 | E65: SOX Saved
C66: =Emissions!P47 -> 0 | D66: =Emissions!W47 -> 0 | E66: VOC Saved

Sheet PARAMETERS
B1: Parameters
B3: This page contains all economic values and rate tables.
B4: To update economic values automatically, change "Economic Update Factor." | AF4: Travel Demand Tables | AQ4: Operating Cost Tables | AX4: Accident Tables | BO4: Emissions Tables | DA4: Pavement Adjustments (used only for pavement projects) | DO4: Weaving Adjustments (used only for freeway | DV4: TMS Adjustments (used only for ramp metering, ramp metering signal coordination, incident | EI4: Reliability Tables (used for calculating travel time reliability
DO5: connector, HOV connector, and HOV drop ramp projects) | DV5: management, traveler information projects, AVL, transit priority, and BRT projects) | EI5: impacts if included)
B7: General Economic Parameters | I7: Mode Types | Y7: Project Types
AG8: DEMAND FOR TRAVEL IN PEAK PERIOD | AR8: FUEL CONSUMPTION RATES | AY8: HIGHWAY INJURY SEVERITY FREQUENCY | BG8: RATES FOR NON-HIGHWAY ACCIDENT EVENTS | BP8: HIGHWAY EMISSIONS FACTORS (g/mi) | CB8: HIGHWAY EMISSIONS FACTORS (g/mi) | CO8: HEALTH COST OF TRANSPORTATION EMISSIONS | DB8: PAVEMENT DETERIORATION | DI8: VEHICLE OPERATING SPEED | DP8: VEHICLE OPERATING SPEED | DW8: PEAK PERIOD SPEED, VOLUME, AND NON-HIGHWAY BENEFITS | EJ8: C11 RELIABILITY PARAMETERS
C9: Year of Current Dollars for Model | F9: 2022 | J9: Bus | Z9: Highway Capacity Expansion | AC9: Please select a type of highway project | AG9: (percent of total daily travel) | AR9: (gal/veh-mi) | AY9: (percent of injuries) | BG9: (events/million veh-mi) | BP9: Model Year 2024 | CB9: Model Year 2044 | CO9: ($/ton) | DB9: (IRI in inches/mile) | DI9: (percent adjustment) | DP9: (percent adjustment) | DW9: (percent adjustment) | EJ9: (coefficients for standard deviation calculations)
C10: Economic Update Factor (Using GDP Deflator) | F10: 1.069287594 | H10: 1 | J10: Pass Train | Z10: General Highway | AB10: GenHwy
J11: Light Rail | Z11: HOV Lane Addition | AB11: HOV | AC11: Enter HOV restriction in section 1B | AG11: Number of | AH11: Urban | AR11: Speed | AS11: Auto* | AT11: Truck | AY11: Event | AZ11: Urban | BA11: Suburban | BB11: Rural | BC11: Average | BG11: Event | BH11: Pass Train | BI11: Light Rail | BJ11: Bus | BK11: Freight Rail | BP11: Mode | BQ11: Speed | BR11: CO | BS11: CO2 | BT11: NOX | BU11: PM2.5 | BV11: SOX | BW11: VOC | BX11: PM2.5 | CB11: Mode | CC11: Speed | CD11: CO | CE11: CO2 | CF11: NOX | CG11: PM2.5 | CH11: SOX | CI11: VOC | CJ11: PM2.5 | CO11: Area | CP11: Proj Loc | CQ11: CO | CR11: CO2e | CS11: NOX | CT11: PM2.5 | CU11: SOX | CV11: VOC | DC11: Year 20, By Loading | DP11: Percent | DQ11: Freeway | DR11: HOV | DW11: TMS | DX11: Without | DZ11: With | EB11: Non-Highway Benefits | EE11: Total | EJ11: AlphaTTI | EK11: BetaTTI | EL11: AlphaSTD | EM11: BetaSTD
C12: Real Discount Rate | F12: 0.031 | H12: 2 | J12: Highway | Z12: HOT Lane Addition | AB12: HOT | AC12: Include toll payers as HOVs & check AVOs | AG12: Hours in | AH12: So. California | AJ12: No. California | AL12: Rural | AR12: 5 | AS12: 0.0515 | AT12: 0.14 | AY12: Severe Injury (A) | AZ12: =ROUND((11713+2488)/277160,4) -> 0.0512 | BA12: =ROUND((11713+2488)/277160,4) -> 0.0512 | BB12: =ROUND((11713+2488)/277160,4) -> 0.0512 | BC12: =ROUND((11713+2488)/277160,4) -> 0.0512 | BG12: Fatality | BH12: 0.0804 | BI12: 0.2416 | BJ12: 0.0372 | BK12: 1.0368 | BP12: Auto | BQ12: 0 | BR12: 3.5182 | BS12: 78.9185 | BT12: 0.3056 | BU12: 0.002 | BV12: 0.0008 | BW12: 0.39 | BX12: 0.002 | CB12: Auto | CC12: 0 | CD12: 1.7535 | CE12: 60.2289 | CF12: 0.1686 | CG12: 0.0008 | CH12: 0.0006 | CI12: 0.1451 | CJ12: 0.0008 | CO12: LA/South Coast | CP12: 1 | CQ12: =ROUND(115*(1.1578/0.78)*ValueUpdate/5,0)*5 -> 185 | CR12: 211 | CS12: 18235 | CT12: 873809 | CU12: 48807 | CV12: =ROUND(2898*(1.1578/0.78)*ValueUpdate/5,0)*5 -> 4600 | DB12: Year 0 | DC12: Light | DD12: Medium | DE12: Heavy | DI12: IRI | DJ12: Auto | DK12: Truck | DP12: Weaving | DQ12: Conn | DR12: Project | DW12: Strategy | DX12: Speed | DY12: Volume | DZ12: Speed | EA12: Volume | EB12: TT | EC12: VOC | ED12: Em | EE12: Benefit | EJ12: 1.0274 | EK12: 1.2204 | EL12: 0.71 | EM12: 0.56
Z13: Passing Lane | AB13: Passing | AC13: Enter a truck speed in section 1B | AG13: Peak Period | AH13: Fwy/Exp | AI13: Other | AJ13: Fwy/Exp | AK13: Other | AL13: Fwy/Exp | AM13: Other | AR13: 6 | AS13: 0.0501 | AT13: 0.1377 | AY13: Other Visible Injury (B) | AZ13: =ROUND((60380+9746)/277160,4) -> 0.253 | BA13: =ROUND((60380+9746)/277160,4) -> 0.253 | BB13: =ROUND((60380+9746)/277160,4) -> 0.253 | BC13: =ROUND((60380+9746)/277160,4) -> 0.253 | BG13: Injury | BH13: 0.2855 | BI13: 2.9209 | BJ13: 3.5526 | BK13: 7.3121 | BQ13: 5 | BR13: 1.3616 | BS13: 555.4365 | BT13: 0.0959 | BU13: 0.0065 | BV13: 0.0055 | BW13: 0.0868 | BX13: 0.0065 | CC13: 5 | CD13: 0.5559 | CE13: 330.9034 | CF13: 0.0223 | CG13: 0.0018 | CH13: 0.0033 | CI13: 0.0249 | CJ13: 0.0018 | CO13: CA Urban Area | CP13: 2 | CQ13: =ROUND(60*(1.1578/0.78)*ValueUpdate/5,0)*5 -> 95 | CR13: 211 | CS13: 18235 | CT13: 873809 | CU13: 48807 | CV13: =ROUND(954*(1.1578/0.78)*ValueUpdate/5,0)*5 -> 1515 | DB13: 0 | DC13: 125 | DD13: 150 | DE13: 350 | DI13: 0 | DJ13: 1 | DK13: 1.025 | DP13: 0 | DQ13: 1 | DR13: 1 | DW13: AMoth | DX13: 1.024390244 | DY13: 0.9503320629 | DZ13: 1.022648084 | EA13: 0.9502478565 | EB13: -5.048265471 | EC13: 12.81200477 | ED13: 1.368537764 | EE13: 0.736497545
Z14: Intersection | AB14: Intersect | AC14: Remember to run model for both roads | AG14: 1 | AH14: 0.085 | AI14: 0.085 | AJ14: 0.085 | AK14: 0.085 | AL14: 0.085 | AM14: 0.085 | AR14: 7 | AS14: 0.0488 | AT14: 0.1355 | AY14: Complaint of Pain (C) | AZ14: =ROUND((174210+18623)/277160,4) -> 0.6957 | BA14: =ROUND((174210+18623)/277160,4) -> 0.6957 | BB14: =ROUND((174210+18623)/277160,4) -> 0.6957 | BC14: =ROUND((174210+18623)/277160,4) -> 0.6957 | BG14: All Accidents | BH14: 0.3128 | BI14: 4.1374 | BJ14: 2.0523 | BK14: 13.2505 | BQ14: 6 | BR14: 1.3409 | BS14: 538.7039 | BT14: 0.0933 | BU14: 0.006 | BV14: 0.0053 | BW14: 0.0797 | BX14: 0.006 | CC14: 6 | CD14: 0.5576 | CE14: 324.7042 | CF14: 0.0221 | CG14: 0.0016 | CH14: 0.0032 | CI14: 0.0233 | CJ14: 0.0016 | CO14: CA Rural Area | CP14: 3 | CQ14: =ROUND(54*(1.1578/0.78)*ValueUpdate/5,0)*5 -> 85 | CR14: 211 | CS14: 18235 | CT14: 873809 | CU14: 48807 | CV14: =ROUND(749*(1.1578/0.78)*ValueUpdate/5,0)*5 -> 1190 | DB14: 25 | DC14: 150 | DD14: 200 | DE14: 500 | DI14: 25 | DJ14: 1 | DK14: 1.025 | DP14: 0.002 | DQ14: 0.982 | DR14: 0.988 | DW14: AMsev | DX14: 1.530973451 | DY14: 0.9385815808 | DZ14: 1.533923304 | EA14: 0.9365252325 | EB14: 1.205596712 | EC14: 1.379528678 | ED14: -0.3652658395 | EE14: 1
Z15: Truck Only Lane | AB15: TruckLane | AC15: Remember to run macro for truck lane | AG15: 2 | AH15: 0.168 | AI15: 0.168 | AJ15: 0.168 | AK15: 0.168 | AL15: 0.168 | AM15: 0.168 | AR15: 8 | AS15: 0.0476 | AT15: 0.1333 | BQ15: 7 | BR15: 1.3206 | BS15: 522.4754 | BT15: 0.0907 | BU15: 0.0055 | BV15: 0.0052 | BW15: 0.0732 | BX15: 0.0055 | CC15: 7 | CD15: 0.5594 | CE15: 318.621 | CF15: 0.0219 | CG15: 0.0015 | CH15: 0.0031 | CI15: 0.0217 | CJ15: 0.0015 | DB15: 50 | DC15: 175 | DD15: 250 | DE15: 675 | DI15: 50 | DJ15: 1 | DK15: 1.025 | DP15: 0.004 | DQ15: 0.964 | DR15: 0.976 | DW15: IMoth | DX15: 0.8763197587 | DY15: 1.178741497 | DZ15: 0.9793459552 | EA15: 0.9556060017 | EB15: 0.5127996725 | EC15: 0.148212878 | ED15: 0.05879892443 | EE15: 0.736497545 | EI15: Source: Pricing and Travel Time Reliability Enhancements in the
Z16: Bypass | AB16: Bypass | AC16: Remember to run model for both roads | AG16: 3 | AH16: 0.25 | AI16: 0.25 | AJ16: 0.25 | AK16: 0.25 | AL16: 0.25 | AM16: 0.25 | AR16: 9 | AS16: 0.0464 | AT16: 0.1312 | BQ16: 8 | BR16: 1.3005 | BS16: 506.7358 | BT16: 0.0881 | BU16: 0.0051 | BV16: 0.005 | BW16: 0.0672 | BX16: 0.0051 | CC16: 8 | CD16: 0.5612 | CE16: 312.6518 | CF16: 0.0218 | CG16: 0.0014 | CH16: 0.0031 | CI16: 0.0203 | CJ16: 0.0014 | CQ16: CO2e Uprater | CR16: 0.017 | CS16: increase in value per year | DB16: 75 | DC16: 200 | DD16: 300 | DE16: 750 | DI16: 75 | DJ16: 1 | DK16: 1.025 | DP16: 0.006 | DQ16: 0.945 | DR16: 0.964 | DW16: IMsev | DX16: 1.006389776 | DY16: 0.9724862862 | DZ16: 1.009584665 | EA16: 0.9461055622 | EB16: 0.2957044886 | EC16: 0.3126114503 | ED16: 0.3020072069 | EE16: 1 | EJ16: SANDAG Activity-Based Travel Model: Final Report, 2016.
B17: Travel Time Parameters | I17: Highway Operations Parameters | R17: Active Transportation Parameters | Z17: Queuing | AB17: Queuing | AC17: Add arrival rate & check departure rate in 1B | AG17: 4 | AH17: 0.328 | AI17: 0.328 | AJ17: 0.328 | AK17: 0.328 | AL17: 0.328 | AM17: 0.328 | AR17: 10 | AS17: 0.0452 | AT17: 0.1291 | AX17: Source: 2017 SWITRS Annual Report, Table 8C | BF17: Sources: USDOT,Transportation Statistics Annual Report, Table 2-33, 2010 to 2019 average | BQ17: 9 | BR17: 1.2807 | BS17: 491.4703 | BT17: 0.0857 | BU17: 0.0047 | BV17: 0.0049 | BW17: 0.0617 | BX17: 0.0047 | CC17: 9 | CD17: 0.563 | CE17: 306.7945 | CF17: 0.0216 | CG17: 0.0013 | CH17: 0.003 | CI17: 0.0189 | CJ17: 0.0013 | DB17: 100 | DC17: 275 | DD17: 400 | DE17: 750 | DI17: 100 | DJ17: 1 | DK17: 1.025 | DP17: 0.008 | DQ17: 0.927 | DR17: 0.952 | DW17: NoAdj | DX17: 1 | DY17: 1 | DZ17: 1 | EA17: 1 | EB17: 0 | EC17: 0 | ED17: 0 | EE17: 1
E18: Value | F18: Units | M18: Value | N18: Units | Z18: Pavement | AB18: Pavement | AC18: Enter pavement condition in section 1B | AG18: 5 | AH18: 0.403 | AI18: 0.403 | AJ18: 0.403 | AK18: 0.403 | AL18: 0.403 | AM18: 0.403 | AR18: 11 | AS18: 0.0429 | AT18: 0.1238 | BG18: FRA, Office of Safety Analysis, Table 1.13, 2011 to 2020 CY average | BQ18: 10 | BR18: 1.2613 | BS18: 476.6647 | BT18: 0.0833 | BU18: 0.0043 | BV18: 0.0047 | BW18: 0.0567 | BX18: 0.0043 | CC18: 10 | CD18: 0.5647 | CE18: 301.0469 | CF18: 0.0214 | CG18: 0.0012 | CH18: 0.003 | CI18: 0.0177 | CJ18: 0.0012 | DB18: 125 | DC18: 325 | DD18: 475 | DE18: 750 | DI18: 125 | DJ18: 1 | DK18: 1.025 | DP18: 0.01 | DQ18: 0.909 | DR18: 0.939 | DW18: ORoth | DX18: =1/1.025 -> 0.9756097561 | DY18: =1/0.967507287790243 -> 1.033583946 | DZ18: 1 | EA18: 1 | EB18: -0.07356647791 | EC18: -0.03071615219 | ED18: -0.0696029926 | EG18: 27
C19: Statewide Average Hourly Wage | E19: =32.94*ValueUpdate -> 35.22233336 | F19: $/hr | H19: 3 | J19: Maximum V/C Ratio | M19: 1.56 | N19: - | Q19: 16 | S19: General Travel Activity Characteristics Parameters | U19: Value | V19: Units | AG19: 6 | AH19: 0.474 | AI19: 0.474 | AJ19: 0.474 | AK19: 0.474 | AL19: 0.474 | AM19: 0.474 | AR19: 12 | AS19: 0.0407 | AT19: 0.1186 | BQ19: 11 | BR19: 1.2223 | BS19: 452.58 | BT19: 0.0804 | BU19: 0.0039 | BV19: 0.0045 | BW19: 0.0518 | BX19: 0.0039 | CC19: 11 | CD19: 0.5479 | CE19: 285.9535 | CF19: 0.0206 | CG19: 0.0011 | CH19: 0.0028 | CI19: 0.0161 | CJ19: 0.0011 | CN19: Sources: McCubbin and Delucchi, 1996 for emissions other than CO2e | DB19: 150 | DC19: 400 | DD19: 575 | DE19: 750 | DI19: 150 | DJ19: 1 | DK19: 1.013 | DP19: 0.012 | DQ19: 0.891 | DR19: 0.927 | DW19: ORsev | DX19: =1/1.05014749262537 -> 0.952247191 | DY19: =1/0.972697289554735 -> 1.028069072 | DZ19: 1 | EA19: 1 | EB19: -0.001481505335 | EC19: -0.001323833569 | ED19: 5.67437418 | EG19: 27
T20: Cycling Days per Year | U20: 365 | V20: days | Z20: Rail or Transit Cap Expansion | AC20: Please select a type of rail or transit project | AG20: 7 | AH20: 0.542 | AI20: 0.542 | AJ20: 0.542 | AK20: 0.542 | AL20: 0.542 | AM20: 0.542 | AR20: 13 | AS20: 0.0387 | AT20: 0.1137 | BQ20: 12 | BR20: 1.1846 | BS20: 429.7124 | BT20: 0.0775 | BU20: 0.0036 | BV20: 0.0042 | BW20: 0.0473 | BX20: 0.0036 | CC20: 12 | CD20: 0.5315 | CE20: 271.6169 | CF20: 0.0199 | CG20: 0.001 | CH20: 0.0027 | CI20: 0.0147 | CJ20: 0.001 | CO20: Interagency Working Group on Social Cost of Carbon, United States Government, 2021 for CO2e | DB20: 175 | DC20: 500 | DD20: 700 | DE20: 750 | DI20: 175 | DJ20: 1 | DK20: 1 | DP20: 0.014 | DQ20: 0.873 | DR20: 0.915 | DW20: RMoth | DX20: 1 | DY20: 1 | DZ20: 1.025 | EA20: 0.9675072878 | EB20: -0.07356647791 | EC20: -0.03071615219 | ED20: -0.0696029926 | EE20: 1 | EJ20: RELIABILITY RATIO
C21: Heavy and Light Truck Drivers | J21: Percent ADT in Peak Period | N21: % | T21: Walking Days per Year | U21: 365 | V21: days | Z21: Passenger Rail | AB21: PassRail | AC21: Enter data in both sections 1B & 1E | AG21: 8 | AH21: 0.608 | AI21: 0.608 | AJ21: 0.608 | AK21: 0.608 | AL21: 0.608 | AM21: 0.608 | AR21: 14 | AS21: 0.0367 | AT21: 0.109 | BQ21: 13 | BR21: 1.148 | BS21: 408.0001 | BT21: 0.0748 | BU21: 0.0033 | BV21: 0.004 | BW21: 0.0433 | BX21: 0.0033 | CC21: 13 | CD21: 0.5156 | CE21: 257.9991 | CF21: 0.0192 | CG21: 0.0009 | CH21: 0.0026 | CI21: 0.0134 | CJ21: 0.0009 | DB21: 200 | DC21: 575 | DD21: 750 | DE21: 750 | DI21: 200 | DJ21: 1 | DK21: 0.98 | DP21: 0.016 | DQ21: 0.855 | DR21: 0.903 | DW21: RMsev | DX21: 1 | DY21: 1 | DZ21: 1.050147493 | EA21: 0.9726972896 | EB21: -0.001481505335 | EC21: -0.001323833569 | ED21: 5.67437418 | EE21: 1 | EJ21: (value of reliability relative to value of time)
D22: Average Hourly Wage | E22: =25.06*ValueUpdate -> 26.79634712 | F22: $/hr | H22: 3 | J22: Percent ADT in Average Peak Hour | N22: % | T22: School Days per Year | U22: 180 | V22: days | Z22: Light-Rail (LRT) | AB22: LRT | AC22: Enter data in both sections 1B & 1E | AG22: 9 | AH22: 0.671 | AI22: 0.671 | AJ22: 0.671 | AK22: 0.671 | AL22: 0.671 | AM22: 0.671 | AR22: 15 | AS22: 0.0349 | AT22: 0.1044 | AY22: NUMBER OF FATALITIES | BG22: COST OF NON-HIGHWAY ACCIDENT EVENTS | BQ22: 14 | BR22: 1.1126 | BS22: 387.3849 | BT22: 0.0721 | BU22: 0.003 | BV22: 0.0038 | BW22: 0.0396 | BX22: 0.003 | CC22: 14 | CD22: 0.5002 | CE22: 245.064 | CF22: 0.0185 | CG22: 0.0009 | CH22: 0.0024 | CI22: 0.0122 | CJ22: 0.0009 | DB22: 225 | DC22: 650 | DD22: 750 | DE22: 750 | DI22: 225 | DJ22: 1 | DK22: 0.949 | DP22: 0.018 | DQ22: 0.836 | DR22: 0.891 | DW22: TIoth | DX22: 1 | DY22: 1 | DZ22: 1.015463918 | EA22: 0.9691308177 | EB22: -0.1102658587 | EC22: -0.1187270477 | ED22: -0.3518002468 | EE22: 1
D23: Benefits and Costs | E23: =WageTruck*(32.42/21.65-1)*ValueUpdate -> 14.25371024 | F23: $/hr | H23: 4 | Z23: Bus | AB23: Bus | AC23: Enter data in both sections 1B & 1E | AG23: 10 | AH23: 0.734 | AI23: 0.734 | AJ23: 0.734 | AK23: 0.734 | AL23: 0.734 | AM23: 0.734 | AR23: 16 | AS23: 0.0351 | AT23: 0.1029 | AY23: (events/crash) | BG23: ($/event) | BQ23: 15 | BR23: 1.0783 | BS23: 367.8114 | BT23: 0.0696 | BU23: 0.0027 | BV23: 0.0036 | BW23: 0.0361 | BX23: 0.0027 | CC23: 15 | CD23: 0.4853 | CE23: 232.7774 | CF23: 0.0178 | CG23: 0.0008 | CH23: 0.0023 | CI23: 0.0111 | CJ23: 0.0008 | DB23: 250 | DC23: 750 | DD23: 750 | DE23: 750 | DI23: 250 | DJ23: 1 | DK23: 0.919 | DP23: 0.02 | DQ23: 0.789 | DR23: 0.879 | DW23: TIsev | DX23: 1 | DY23: 1 | DZ23: 1.005899705 | EA23: 0.9718304881 | EB23: -0.391225726 | EC23: -0.3916022882 | ED23: -0.3518002468 | EE23: 1 | EJ23: Mode | EK23: Value
J24: Annualization Factor | M24: 365 | N24: days/yr | S24: Vehicle Statistics | Z24: Hwy-Rail Grade Crossing | AB24: HwyRail | AC24: Put hwy design in 1B, safety in 1C & crossing in 1D | AG24: 11 | AH24: 0.79 | AI24: 0.79 | AJ24: 0.79 | AK24: 0.79 | AL24: 0.79 | AM24: 0.79 | AR24: 17 | AS24: 0.0352 | AT24: 0.1015 | BQ24: 16 | BR24: 1.0942 | BS24: 366.761 | BT24: 0.0702 | BU24: 0.0026 | BV24: 0.0036 | BW24: 0.0348 | BX24: 0.0026 | CC24: 16 | CD24: 0.5039 | CE24: 236.956 | CF24: 0.0184 | CG24: 0.0008 | CH24: 0.0023 | CI24: 0.0109 | CJ24: 0.0008 | CO24: PASSENGER TRAIN EMISSIONS FACTORS | DB24: 275 | DC24: 750 | DD24: 750 | DE24: 750 | DI24: 275 | DJ24: 0.991 | DK24: 0.89 | DP24: 0.022 | DQ24: 0.747 | DR24: 0.867 | EJ24: Auto | EK24: 0.8
C25: Value of Time | T25: Average Vehicle Speed | U25: 25 | V25: mph | AG25: 12 | AH25: 0.843 | AI25: 0.843 | AJ25: 0.843 | AK25: 0.843 | AL25: 0.843 | AM25: 0.843 | AR25: 18 | AS25: 0.0354 | AT25: 0.1 | AY25: Crash Type | AZ25: Urban | BA25: Suburban | BB25: Rural | BC25: Average | BG25: Event | BH25: Pass Train | BI25: Light Rail | BJ25: Bus | BK25: Freight Rail | BQ25: 17 | BR25: 1.1103 | BS25: 365.7136 | BT25: 0.0708 | BU25: 0.0025 | BV25: 0.0036 | BW25: 0.0335 | BX25: 0.0025 | CC25: 17 | CD25: 0.5232 | CE25: 241.2096 | CF25: 0.019 | CG25: 0.0008 | CH25: 0.0024 | CI25: 0.0107 | CJ25: 0.0008 | CO25: (g/train-mile) | DB25: 300 | DC25: 750 | DD25: 750 | DE25: 750 | DI25: 300 | DJ25: 0.981 | DK25: 0.862 | DP25: 0.024 | DQ25: 0.706 | DR25: 0.855 | EJ25: Truck | EK25: 1.1
D26: Automobile | E26: 19.6 | F26: $/hr/per | H26: 5 | N26: Capacity | O26: Dep. Rate | T26: Average Vehicle Occupancy | U26: 1.51 | V26: persons / veh | X26: 19 | Z26: Hwy Operational Improvement | AC26: Please select a type of op. improvement | AG26: 13 | AH26: 0.886 | AI26: 0.886 | AJ26: 0.886 | AK26: 0.886 | AL26: 0.886 | AM26: 0.886 | AR26: 19 | AS26: 0.0356 | AT26: 0.0986 | AY26: Fatal Crash | AZ26: 1.09 | BA26: 1.08 | BB26: 1.14 | BC26: 1.11 | BG26: Fatality | BH26: =FatValue -> 12500000 | BI26: =FatValue -> 12500000 | BJ26: =FatValue -> 12500000 | BK26: =FatValue -> 12500000 | BQ26: 18 | BR26: 1.1267 | BS26: 364.6693 | BT26: 0.0714 | BU26: 0.0024 | BV26: 0.0036 | BW26: 0.0323 | BX26: 0.0024 | CC26: 18 | CD26: 0.5433 | CE26: 245.5396 | CF26: 0.0197 | CG26: 0.0007 | CH26: 0.0024 | CI26: 0.0105 | CJ26: 0.0007 | DB26: 325 | DC26: 750 | DD26: 750 | DE26: 750 | DI26: 325 | DJ26: 0.971 | DK26: 0.834 | DP26: 0.026 | DQ26: 0.664 | DR26: 0.842 | DV26: Source: California Department of Transportation TMS Master Plan, 2003
D27: Truck | E27: 33.5 | F27: $/hr/veh | H27: 5 | L27: Alpha | M27: Beta | N27: (vphpl) | O27: (vphpl) | Z27: Auxiliary Lane | AB27: AuxLane | AC27: Enter ramp design speed & on-ramp volume | AG27: 14 | AH27: 0.916 | AI27: 0.916 | AJ27: 0.916 | AK27: 0.916 | AL27: 0.916 | AM27: 0.916 | AR27: 20 | AS27: 0.0358 | AT27: 0.0972 | BG27: Injury | BH27: =ROUND((BC12*InjAValue+BC13*InjBValue)/SUM(BC12:BC13),-2) -> 394400 | BI27: =ROUND((BC12*InjAValue+BC13*InjBValue)/SUM(BC12:BC13),-2) -> 394400 | BJ27: =ROUND((BC12*InjAValue+BC13*InjBValue)/SUM(BC12:BC13),-2) -> 394400 | BK27: =ROUND((BC12*InjAValue+BC13*InjBValue)/SUM(BC12:BC13),-2) -> 394400 | BQ27: 19 | BR27: 1.1433 | BS27: 363.6278 | BT27: 0.072 | BU27: 0.0024 | BV27: 0.0036 | BW27: 0.0311 | BX27: 0.0024 | CC27: 19 | CD27: 0.5641 | CE27: 249.9473 | CF27: 0.0203 | CG27: 0.0007 | CH27: 0.0025 | CI27: 0.0103 | CJ27: 0.0007 | CO27: Mode | CP27: Year | CQ27: CO | CR27: CO2 | CS27: NOX | CT27: PM2.5 | CU27: SOX | CV27: VOC | CW27: PM2.5 | DB27: 350 | DC27: 750 | DD27: 750 | DE27: 750 | DI27: 350 | DJ27: 0.961 | DK27: 0.808 | DP27: 0.028 | DQ27: 0.623 | DR27: 0.817 | DW27: 27) Chaudhary and Messer, 2000
D28: Auto & Truck Composite | E28: =ROUND((1.3*ValTimeAuto*0.91+ValTimeTruck*0.09)/5,2)*5 -> 26.2 | F28: $/hr/veh | H28: 6 | J28: Freeway | L28: 0.2 | M28: 10 | N28: 2000 | O28: 1800 | Q28: 16, 17 | S28: Active Transportation User Characteristics | Z28: Freeway Connector | AB28: FreeConn | AC28: Check percent traffic in weave in section 1B | AG28: 15 | AH28: 0.943 | AI28: 0.943 | AJ28: 0.943 | AK28: 0.943 | AL28: 0.943 | AM28: 0.943 | AR28: 21 | AS28: 0.0354 | AT28: 0.094 | BG28: Prop Damage | BH28: 90000 | BI28: 14200 | BJ28: 4300 | BK28: 156700 | BQ28: 20 | BR28: 1.1601 | BS28: 362.5894 | BT28: 0.0726 | BU28: 0.0023 | BV28: 0.0036 | BW28: 0.03 | BX28: 0.0023 | CC28: 20 | CD28: 0.5858 | CE28: 254.4341 | CF28: 0.021 | CG28: 0.0007 | CH28: 0.0025 | CI28: 0.0101 | CJ28: 0.0007 | CO28: Passenger Train | CP28: 2010 | CQ28: 8.110940668 | CR28: 5150.447324 | CS28: 96.11464692 | CT28: 2.027735167 | CW28: 2.027735167 | DB28: 375 | DC28: 750 | DD28: 750 | DE28: 750 | DI28: 375 | DJ28: 0.952 | DK28: 0.782 | DP28: 0.03 | DQ28: 0.581 | DR28: 0.789 | EI28: Source: SHRP2 Project C11: Reliability Analysis
D29: Transit | E29: 19.6 | F29: $/hr/per | H29: 5 | J29: Expressway | L29: 0.2 | M29: 10 | N29: 2000 | O29: 1800 | Q29: 16, 17 | T29: Average Cycling Speed | U29: 8.7 | V29: mph | X29: 20 | Z29: HOV Connector | AB29: HOVConn | AC29: Check percent traffic in weave in section 1B | AG29: 16 | AH29: 0.964 | AI29: 0.964 | AJ29: 0.964 | AK29: 0.964 | AL29: 0.964 | AM29: 0.964 | AR29: 22 | AS29: 0.035 | AT29: 0.0909 | AY29: NUMBER OF INJURIES | BQ29: 21 | BR29: 1.1563 | BS29: 356.251 | BT29: 0.0724 | BU29: 0.0022 | BV29: 0.0035 | BW29: 0.0287 | BX29: 0.0022 | CC29: 21 | CD29: 0.591 | CE29: 253.2384 | CF29: 0.0211 | CG29: 0.0007 | CH29: 0.0025 | CI29: 0.0098 | CJ29: 0.0007 | CP29: 2040 | CQ29: 0.4055470334 | CR29: 359.3146716 | CS29: 4.866564401 | CT29: 0 | CW29: 0 | DB29: 400 | DC29: 750 | DD29: 750 | DE29: 750 | DI29: 400 | DJ29: 0.942 | DK29: 0.758 | DP29: 0.032 | DQ29: 0.54 | DR29: 0.761 | EJ29: Tool: User's Guide, January 2013.
D30: Out-of-Vehicle Travel | E30: 1.82 | F30: times | H30: 5 | J30: Conventional Highway | L30: 0.05 | M30: 10 | N30: 800 | O30: 1400 | Q30: 17 | T30: Average Walking Speed | U30: 3.3 | V30: mph | X30: 20 | Z30: HOV Drop Ramp | AB30: HOVDrop | AC30: Check percent traffic in weave in section 1B | AG30: 17 | AH30: 0.976 | AI30: 0.976 | AJ30: 0.976 | AK30: 0.976 | AL30: 0.976 | AM30: 0.976 | AR30: 23 | AS30: 0.0345 | AT30: 0.0879 | AY30: (events/crash) | BQ30: 22 | BR30: 1.1524 | BS30: 350.0234 | BT30: 0.0723 | BU30: 0.0021 | BV30: 0.0035 | BW30: 0.0275 | BX30: 0.0021 | CC30: 22 | CD30: 0.5964 | CE30: 252.0482 | CF30: 0.0213 | CG30: 0.0007 | CH30: 0.0025 | CI30: 0.0094 | CJ30: 0.0007 | DB30: 425 | DC30: 750 | DD30: 750 | DE30: 750 | DI30: 425 | DJ30: 0.932 | DK30: 0.734 | DP30: 0.034 | DQ30: 0.498 | DR30: 0.734
D31: Incident-Related Travel | E31: 3 | F31: times | H31: 7 | J31: HOV Lanes | L31: 0.55 | M31: 8 | N31: 1600 | Q31: 18 | T31: Number of Unlinked Cycling Trips per Day | U31: 2.23 | V31: trips | X31: 19 | Z31: Off-Ramp Widening | AB31: OffRamp | AC31: Check percent traffic in weave in section 1B | AG31: 18 | AH31: 0.985 | AI31: 0.985 | AJ31: 0.985 | AK31: 0.985 | AL31: 0.985 | AM31: 0.985 | AR31: 24 | AS31: 0.0341 | AT31: 0.085 | BF31: Sources: FTA, Transit Safety & Security Statistics, 2002 to 2011 average | BQ31: 23 | BR31: 1.1486 | BS31: 343.9046 | BT31: 0.0721 | BU31: 0.002 | BV31: 0.0034 | BW31: 0.0263 | BX31: 0.002 | CC31: 23 | CD31: 0.6018 | CE31: 250.8636 | CF31: 0.0215 | CG31: 0.0006 | CH31: 0.0025 | CI31: 0.0091 | CJ31: 0.0006 | DB31: 450 | DC31: 750 | DD31: 750 | DE31: 750 | DI31: 450 | DJ31: 0.923 | DK31: 0.709 | DP31: 0.036 | DQ31: 0.476 | DR31: 0.706
D32: Travel Time Uprater | E32: 0 | F32: annual incr | T32: Number of Unlinked Pedestrian Trips per Day | U32: 2.1 | V32: trips | X32: 19 | Z32: On-Ramp Widening | AB32: OnRamp | AC32: Enter on-ramp volume & metering strategy | AG32: 19 | AH32: 0.991 | AI32: 0.991 | AJ32: 0.991 | AK32: 0.991 | AL32: 0.991 | AM32: 0.991 | AR32: 25 | AS32: 0.0337 | AT32: 0.0822 | AY32: Crash Type | AZ32: Urban | BA32: Suburban | BB32: Rural | BC32: Average | BG32: FRA, Office of Safety Analysis, Table 3.16, 2018 to 2020 average | BQ32: 24 | BR32: 1.1448 | BS32: 337.8928 | BT32: 0.0719 | BU32: 0.0019 | BV32: 0.0033 | BW32: 0.0252 | BX32: 0.0019 | CC32: 24 | CD32: 0.6072 | CE32: 249.6847 | CF32: 0.0217 | CG32: 0.0006 | CH32: 0.0025 | CI32: 0.0088 | CJ32: 0.0006 | CO32: LIGHT RAIL EMISSIONS FACTORS | DP32: 0.038 | DQ32: 0.473 | DR32: 0.678 | DW32: TRANSIT TRAVEL TIME AND AGENCY COST SAVINGS
N33: Capacity | T33: Diversion of Cyclists from Personal Vehicles | U33: 0.5 | V33: assumption | Z33: HOV-2 to HOV-3 Conv | AB33: HOV2to3 | AC33: Check AVOs & trips in sections 1B & 2D | AG33: 20 | AH33: 0.994 | AI33: 0.994 | AJ33: 0.994 | AK33: 0.994 | AL33: 0.994 | AM33: 0.994 | AR33: 26 | AS33: 0.0334 | AT33: 0.0813 | AY33: Fatal Crash | AZ33: 0.81 | BA33: 0.82 | BB33: 1.12 | BC33: 0.95 | BQ33: 25 | BR33: 1.141 | BS33: 331.9861 | BT33: 0.0718 | BU33: 0.0018 | BV33: 0.0033 | BW33: 0.0242 | BX33: 0.0018 | CC33: 25 | CD33: 0.6127 | CE33: 248.5112 | CF33: 0.0218 | CG33: 0.0006 | CH33: 0.0025 | CI33: 0.0085 | CJ33: 0.0006 | CO33: (g/veh-mile) | DP33: 0.04 | DQ33: 0.471 | DR33: 0.65 | DW33: (percent savings)
B34: Vehicle Operating Cost Parameters | J34: Non-HOV Lanes | L34: Alpha | M34: Beta | N34: (vphpl) | T34: Diversion of Pedestrians from Personal Vehicles | U34: 0.5 | V34: assumption | Z34: HOT Lane Conversion | AB34: HOTConv | AC34: Check AVOs & trips in sections 1B & 2D | AG34: 21 | AH34: 0.997 | AI34: 0.997 | AJ34: 0.997 | AK34: 0.997 | AL34: 0.997 | AM34: 0.997 | AR34: 27 | AS34: 0.0331 | AT34: 0.0803 | AY34: Injury Crash | AZ34: 1.44 | BA34: 1.43 | BB34: 1.5 | BC34: 1.44 | BQ34: 26 | BR34: 1.1286 | BS34: 327.2741 | BT34: 0.0711 | BU34: 0.0017 | BV34: 0.0032 | BW34: 0.0232 | BX34: 0.0017 | CC34: 26 | CD34: 0.6144 | CE34: 247.79 | CF34: 0.022 | CG34: 0.0006 | CH34: 0.0024 | CI34: 0.0083 | CJ34: 0.0006 | DA34: Source: Paterson, 1987 | DH34: Source: Botterill, 1996 and 1997 | DP34: 0.042 | DQ34: 0.468 | DR34: 0.623
K35: No Build | AG35: 22 | AH35: 0.998 | AI35: 0.998 | AJ35: 0.998 | AK35: 0.998 | AL35: 0.998 | AM35: 0.998 | AR35: 28 | AS35: 0.0328 | AT35: 0.0794 | BG35: COSTS OF NON-HIGHWAY ACCIDENTS | BQ35: 27 | BR35: 1.1164 | BS35: 322.6289 | BT35: 0.0703 | BU35: 0.0017 | BV35: 0.0032 | BW35: 0.0222 | BX35: 0.0017 | CC35: 27 | CD35: 0.6161 | CE35: 247.0709 | CF35: 0.0221 | CG35: 0.0006 | CH35: 0.0024 | CI35: 0.008 | CJ35: 0.0006 | CO35: Mode | CP35: Year | CQ35: CO | CR35: CO2 | CS35: NOX | CT35: PM2.5 | CU35: SOX | CV35: VOC | CW35: PM2.5 | DP35: 0.044 | DQ35: 0.466 | DR35: 0.595 | DZ35: Travel | EA35: Agency Costs
C36: Average Fuel Price | K36: Build | S36: Value of Travel Time | Z36: Transp Mgmt Systems (TMS) | AC36: Please select a type of TMS project | AG36: 23 | AH36: 0.999 | AI36: 0.999 | AJ36: 0.999 | AK36: 0.999 | AL36: 0.999 | AM36: 0.999 | AR36: 29 | AS36: 0.0325 | AT36: 0.0785 | BG36: ($/million veh-mi) | BQ36: 28 | BR36: 1.1042 | BS36: 318.0497 | BT36: 0.0696 | BU36: 0.0016 | BV36: 0.0031 | BW36: 0.0213 | BX36: 0.0016 | CC36: 28 | CD36: 0.6178 | CE36: 246.3539 | CF36: 0.0222 | CG36: 0.0006 | CH36: 0.0024 | CI36: 0.0078 | CJ36: 0.0006 | CO36: Light Rail | CP36: 2021 | CQ36: 0.3079346802 | CR36: 1241.733628 | CS36: 0.3867304278 | CT36: 0.06433220275 | CU36: 0.0872871461 | CV36: 0.02548694683 | CW36: 0.06433220275 | DP36: 0.046 | DQ36: 0.463 | DR36: 0.567 | DW36: TMS Strategy | DZ36: Time | EA36: Capital | EB36: O&M
D37: Automobile (regular unleaded) | E37: =AVERAGE(3.227,4.39)*ValueUpdate -> 4.072381804 | F37: $/gal | H37: 8 | T37: Adults | U37: 19.6 | V37: $/hr/per | Z37: Ramp Metering | AB37: RM | AC37: Enter model data, if avail, in sections 2A & 2C | AG37: 24 | AH37: 1 | AI37: 1 | AJ37: 1 | AK37: 1 | AL37: 1 | AM37: 1 | AR37: 30 | AS37: 0.0322 | AT37: 0.0776 | AY37: NUMBER OF VEHICLES INVOLVED | BQ37: 29 | BR37: 1.0922 | BS37: 313.5355 | BT37: 0.0689 | BU37: 0.0015 | BV37: 0.0031 | BW37: 0.0204 | BX37: 0.0015 | CC37: 29 | CD37: 0.6195 | CE37: 245.6389 | CF37: 0.0224 | CG37: 0.0005 | CH37: 0.0024 | CI37: 0.0076 | CJ37: 0.0005 | CP37: 2022 | CQ37: 0.3079346802 | CR37: 1241.733628 | CS37: 0.3867304278 | CT37: 0.06433220275 | CU37: 0.0872871461 | CV37: 0.02548694683 | CW37: 0.06433220275 | DP37: 0.048 | DQ37: 0.46 | DR37: 0.54 | DW37: Transit Vehicle Location (AVL) | DZ37: 0.15 | EA37: 0.02 | EB37: 0.08
D38: Truck (diesel) | E38: =AVERAGE(4.372,3.366)*ValueUpdate -> 4.137073703 | F38: $/gal | H38: 8 | T38: Children | U38: 19.6 | V38: $/hr/per | Z38: Ramp Metering Signal Coord | AB38: AM | AC38: Enter model data, if avail, in sections 2A & 2C | AR38: 31 | AS38: 0.0317 | AT38: 0.0778 | AY38: (events/crash) | BG38: Value | BH38: Pass Train | BI38: Light Rail | BJ38: Bus | BK38: Freight Rail | BQ38: 30 | BR38: 1.0804 | BS38: 309.0854 | BT38: 0.0682 | BU38: 0.0015 | BV38: 0.0031 | BW38: 0.0196 | BX38: 0.0015 | CC38: 30 | CD38: 0.6212 | CE38: 244.9261 | CF38: 0.0225 | CG38: 0.0005 | CH38: 0.0024 | CI38: 0.0074 | CJ38: 0.0005 | DB38: FUEL CONSUMPTION | DI38: NON-FUEL COSTS | DP38: 0.05 | DQ38: 0.458 | DR38: 0.512 | DW38: Transit Vehicle Signal Priority | DZ38: 0.1 | EA38: - | EB38: -
I39: Sources: 16) Highway Capacity Manual, 17) NCHRP 387, 18) PeMS data | Z39: Incident Management | AB39: IM | AC39: Enter model data, if avail, in sections 2A & 2C | AR39: 32 | AS39: 0.0313 | AT39: 0.0781 | BG39: Cost | BH39: =ROUND(BH12*BH26+BH13*BH27+BH14*BH28,-2) -> 1145800 | BI39: =ROUND(BI12*BI26+BI13*BI27+BI14*BI28,-2) -> 4230800 | BJ39: =ROUND(BJ12*BJ26+BJ13*BJ27+BJ14*BJ28,-2) -> 1875000 | BK39: =ROUND(BK12*BK26+BK13*BK27+BK14*BK28,-2) -> 17920200 | BQ39: 31 | BR39: 1.0681 | BS39: 304.8313 | BT39: 0.0679 | BU39: 0.0014 | BV39: 0.003 | BW39: 0.019 | BX39: 0.0014 | CC39: 31 | CD39: 0.6126 | CE39: 241.3366 | CF39: 0.0222 | CG39: 0.0005 | CH39: 0.0024 | CI39: 0.0071 | CJ39: 0.0005 | DB39: (percent adjustment) | DI39: (percent adjustment) | DP39: 0.052 | DQ39: 0.455 | DR39: 0.484 | DW39: Bus Rapid Transit (BRT) | DZ39: 0.29 | EA39: - | EB39: -
C40: Sales and Fuel Taxes | S40: Cycling Journey Quality - Facility Preference Factors as Function of Distance by Facility Class | Z40: Traveler Information | AB40: TI | AC40: Enter model data, if avail, in sections 2A & 2C | AF40: Source: California Department of Transportation, 2010-2012 California Household Travel | AR40: 33 | AS40: 0.0308 | AT40: 0.0784 | AY40: Crash Type | AZ40: Urban | BA40: Suburban | BB40: Rural | BC40: Average | BQ40: 32 | BR40: 1.0561 | BS40: 300.6357 | BT40: 0.0675 | BU40: 0.0014 | BV40: 0.003 | BW40: 0.0184 | BX40: 0.0014 | CC40: 32 | CD40: 0.6042 | CE40: 237.7997 | CF40: 0.022 | CG40: 0.0005 | CH40: 0.0024 | CI40: 0.0068 | CJ40: 0.0005 | CO40: FREIGHT LOCOMOTIVE EMISSIONS FACTORS | DP40: 0.054 | DQ40: 0.453 | DR40: 0.476
D41: State Sales Tax (gasoline) | E41: 0.0225 | F41: % | H41: 9 | T41: Class I | U41: 0.57 | V41: - | X41: 21 | Z41: Arterial Signal Management | AB41: ASM | AC41: Complete only sections 1A, 1E & 2C | AF41: Survey, Final Report Appendix, June 2013 | AR41: 34 | AS41: 0.0304 | AT41: 0.0787 | AY41: Fatal Crash | AZ41: 1.51 | BA41: 1.69 | BB41: 1.58 | BC41: 1.63 | BQ41: 33 | BR41: 1.0441 | BS41: 296.4979 | BT41: 0.0671 | BU41: 0.0013 | BV41: 0.0029 | BW41: 0.0178 | BX41: 0.0013 | CC41: 33 | CD41: 0.5959 | CE41: 234.3147 | CF41: 0.0217 | CG41: 0.0005 | CH41: 0.0023 | CI41: 0.0065 | CJ41: 0.0005 | CO41: (g/gal) | DB41: IRI | DC41: Auto | DD41: Truck | DI41: IRI | DJ41: Auto | DK41: Truck | DP41: 0.056 | DQ41: 0.453 | DR41: 0.474
D42: State Sales Tax (diesel) | E42: 0.13 | F42: % | H42: 10 | T42: Class II | U42: 0.49 | V42: - | X42: 21 | Z42: Transit Vehicle Location (AVL) | AB42: AVL | AC42: Enter transit agency costs in section 1D | AR42: 35 | AS42: 0.03 | AT42: 0.079 | AY42: Injury Crash | AZ42: 1.82 | BA42: 2.1 | BB42: 1.59 | BC42: 1.99 | BF42: Source: Combination of above two tables | BQ42: 34 | BR42: 1.0323 | BS42: 292.4171 | BT42: 0.0667 | BU42: 0.0013 | BV42: 0.0029 | BW42: 0.0172 | BX42: 0.0013 | CC42: 34 | CD42: 0.5877 | CE42: 230.8807 | CF42: 0.0215 | CG42: 0.0005 | CH42: 0.0023 | CI42: 0.0063 | CJ42: 0.0005 | DB42: 0 | DC42: 0.971 | DD42: 0.961 | DI42: 0 | DJ42: 1 | DK42: 1 | DP42: 0.058 | DQ42: 0.453 | DR42: 0.473 | DV42: Sources: FHWA ITS Deployment Analysis System (IDAS), California PATH
D43: Average Local Sales Tax | E43: 0.005 | F43: % | H43: 9 | T43: Class III | U43: 0.92 | V43: - | X43: 21 | Z43: Transit Vehicle Signal Priority | AB43: SigPriority | AC43: Check travel time in section 1D | AR43: 36 | AS43: 0.0298 | AT43: 0.0794 | AY43: PDO Crash | AZ43: 1.8 | BA43: 2.03 | BB43: 1.59 | BC43: 1.96 | BQ43: 35 | BR43: 1.0206 | BS43: 288.3924 | BT43: 0.0663 | BU43: 0.0012 | BV43: 0.0029 | BW43: 0.0167 | BX43: 0.0012 | CC43: 35 | CD43: 0.5796 | CE43: 227.497 | CF43: 0.0212 | CG43: 0.0004 | CH43: 0.0022 | CI43: 0.006 | CJ43: 0.0004 | CO43: Mode | CP43: Year | CQ43: CO | CR43: CO2 | CS43: NOX | CT43: PM2.5 | CU43: SOX | CV43: VOC | CW43: PM2.5 | DB43: 25 | DC43: 0.977 | DD43: 0.965 | DI43: 25 | DJ43: 1 | DK43: 1 | DP43: 0.06 | DQ43: 0.453 | DR43: 0.471
D44: Federal Fuel Excise Tax (gasoline) | E44: 0.183 | F44: $/gal | H44: 9 | T44: Class IV | U44: =CLASS2MRS -> 0.49 | V44: - | X44: 21 | Z44: Bus Rapid Transit (BRT) | AB44: BRT | AC44: Enter free-flow bus lane speed in section 1B | AR44: 37 | AS44: 0.0297 | AT44: 0.0799 | BQ44: 36 | BR44: 1.0098 | BS44: 287.1873 | BT44: 0.0661 | BU44: 0.0012 | BV44: 0.0028 | BW44: 0.0163 | BX44: 0.0012 | CC44: 36 | CD44: 0.5729 | CE44: 226.5716 | CF44: 0.0211 | CG44: 0.0004 | CH44: 0.0022 | CI44: 0.0058 | CJ44: 0.0004 | CO44: Freight Rail | CP44: 2020 | CQ44: 26.62 | CR44: 10217 | CS44: 107.38 | CT44: 3.11 | CW44: 3.11 | DB44: 50 | DC44: 0.98 | DD44: 0.97 | DI44: 50 | DJ44: 1 | DK44: 1 | DP44: 0.062 | DQ44: 0.453 | DR44: 0.469
D45: Federal Fuel Excise Tax (diesel) | E45: 0.243 | F45: $/gal | H45: 9 | T45: Note: Class IV assumed to be the same as Class II | AR45: 38 | AS45: 0.0296 | AT45: 0.0803 | BQ45: 37 | BR45: 0.9991 | BS45: 285.9872 | BT45: 0.0658 | BU45: 0.0012 | BV45: 0.0028 | BW45: 0.0159 | BX45: 0.0012 | CC45: 37 | CD45: 0.5664 | CE45: 225.6499 | CF45: 0.021 | CG45: 0.0004 | CH45: 0.0022 | CI45: 0.0057 | CJ45: 0.0004 | CP45: 2030 | CQ45: 26.62 | CR45: 10217 | CS45: 70.92 | CT45: 1.83 | CW45: 1.83 | DB45: 75 | DC45: 0.982 | DD45: 0.975 | DI45: 75 | DJ45: 1 | DK45: 1 | DP45: 0.064 | DQ45: 0.453 | DR45: 0.467
D46: State Fuel Excise Tax (gasoline) | E46: 0.539 | F46: $/gal | H46: 9 | Z46: TMS Lookup Code | AB46: TMSLookup | AG46: AGE COHORTS FOR MORTALITY RISK REDUCTION | AR46: 39 | AS46: 0.0295 | AT46: 0.0808 | AY46: DISTRIBUTION OF CRASH TYPES | BG46: HIGHWAY-RAIL GRADE CROSSING INCIDENTS | BQ46: 38 | BR46: 0.9885 | BS46: 284.7922 | BT46: 0.0656 | BU46: 0.0011 | BV46: 0.0028 | BW46: 0.0155 | BX46: 0.0011 | CC46: 38 | CD46: 0.5599 | CE46: 224.7319 | CF46: 0.0208 | CG46: 0.0004 | CH46: 0.0022 | CI46: 0.0055 | CJ46: 0.0004 | DB46: 100 | DC46: 0.985 | DD46: 0.98 | DI46: 100 | DJ46: 1 | DK46: 1 | DP46: 0.066 | DQ46: 0.453 | DR46: 0.466
D47: State Fuel Excise Tax (diesel) | E47: 0.41 | F47: $/gal | H47: 9 | S47: Walking Journey Quality Values per Mile by Amenity | Z47: User Modified Inputs | AB47: UserAdjInputs | AG47: (percent of population) | AR47: 40 | AS47: 0.0293 | AT47: 0.0812 | AY47: (percent of crashes) | BG47: (units in table) | BQ47: 39 | BR47: 0.978 | BS47: 283.6021 | BT47: 0.0653 | BU47: 0.0011 | BV47: 0.0028 | BW47: 0.0152 | BX47: 0.0011 | CC47: 39 | CD47: 0.5535 | CE47: 223.8177 | CF47: 0.0207 | CG47: 0.0004 | CH47: 0.0022 | CI47: 0.0053 | CJ47: 0.0004 | CR47: Freight Rail Fuel Efficiency | CS47: 480 | CT47: ton-miles/gal | DB47: 125 | DC47: 0.99 | DD47: 0.986 | DI47: 125 | DJ47: 1 | DK47: 1 | DP47: 0.068 | DQ47: 0.453 | DR47: 0.464
T48: Street Lighting | U48: 0.11 | V48: $/mi | X48: 22 | AR48: 41 | AS48: 0.0294 | AT48: 0.0813 | BQ48: 40 | BR48: 0.9677 | BS48: 282.417 | BT48: 0.0651 | BU48: 0.0011 | BV48: 0.0028 | BW48: 0.0148 | BX48: 0.0011 | CC48: 40 | CD48: 0.5471 | CE48: 222.9072 | CF48: 0.0206 | CG48: 0.0004 | CH48: 0.0022 | CI48: 0.0052 | CJ48: 0.0004 | CR48: Fuel Burned at Idle | CS48: =AVERAGE(3,5) -> 4 | CT48: gal/hr | DB48: 150 | DC48: 0.995 | DD48: 0.993 | DI48: 150 | DJ48: 1.017 | DK48: 1.018 | DP48: 0.07 | DQ48: 0.453 | DR48: 0.462
C49: Fuel Cost Per Gallon (Exclude Taxes) | T49: Curb Level | U49: 0.078 | V49: $/mi | X49: 22 | AJ49: Urban | AR49: 42 | AS49: 0.0294 | AT49: 0.0813 | AY49: Crash Type | AZ49: Urban | BA49: Suburban | BB49: Rural | BC49: Average | BG49: Value | BH49: Incident | BI49: Fatality | BJ49: Injury | BQ49: 41 | BR49: 0.9542 | BS49: 282.6316 | BT49: 0.0649 | BU49: 0.0011 | BV49: 0.0028 | BW49: 0.0146 | BX49: 0.0011 | CC49: 41 | CD49: 0.5398 | CE49: 223.3585 | CF49: 0.0205 | CG49: 0.0004 | CH49: 0.0022 | CI49: 0.0051 | CJ49: 0.0004 | DB49: 175 | DC49: 1 | DD49: 1 | DI49: 175 | DJ49: 1.034 | DK49: 1.038 | DP49: 0.072 | DQ49: 0.453 | DR49: 0.46
D50: Automobile | E50: =ROUND((FuelPriceAuto/(1+SalesTaxGasState+SalesTaxLocal)-ExciseTaxGasFed-ExciseTaxGasState)/5,2)*5 -> 3.25 | F50: $/gal | T50: Crowding | U50: 0.055 | V50: $/mi | X50: 22 | AG50: Mode | AH50: Age Cohort | AJ50: South | AK50: North | AL50: Rural | AR50: 43 | AS50: 0.0295 | AT50: 0.0814 | AY50: Fatal Crash | AZ50: =ROUND(553/123662,4) -> 0.0045 | BA50: =ROUND(250/34195,4) -> 0.0073 | BB50: =ROUND(559/27456,4) -> 0.0204 | BC50: =ROUND(1362/185313,4) -> 0.0073 | BE50: 26 | BG50: Total Events | BH50: 847 | BI50: 80 | BJ50: 462 | BQ50: 42 | BR50: 0.9408 | BS50: 282.8464 | BT50: 0.0647 | BU50: 0.001 | BV50: 0.0028 | BW50: 0.0144 | BX50: 0.001 | CC50: 42 | CD50: 0.5325 | CE50: 223.8107 | CF50: 0.0205 | CG50: 0.0004 | CH50: 0.0022 | CI50: 0.005 | CJ50: 0.0004 | DB50: 200 | DC50: 1.005 | DD50: 1.007 | DI50: 200 | DJ50: 1.052 | DK50: 1.058 | DP50: 0.074 | DQ50: 0.453 | DR50: 0.459
D51: Truck | E51: =ROUND((FuelPriceTruck/(1+SalesTaxDieselState)-ExciseTaxDieselFed-ExciseTaxDieselState)/5,2)*5 -> 3 | F51: $/gal | T51: Pavement Evenness | U51: 0.026 | V51: $/mi | X51: 22 | AG51: Cycling | AH51: Age 16-64 | AJ51: 0.549 | AK51: 0.549 | AL51: 0.446 | AR51: 44 | AS51: 0.0295 | AT51: 0.0814 | AY51: Injury Crash | AZ51: =ROUND(39513/123662,4) -> 0.3195 | BA51: =ROUND(11328/34195,4) -> 0.3313 | BB51: =ROUND(9886/27456,4) -> 0.3601 | BC51: =ROUND(60727/185313,4) -> 0.3277 | BE51: 26 | BG51: Avg per Incident | BI51: =ROUND(BI50/BH50,4) -> 0.0945 | BJ51: =ROUND(BJ50/BH50,4) -> 0.5455 | BQ51: 43 | BR51: 0.9277 | BS51: 283.0613 | BT51: 0.0645 | BU51: 0.001 | BV51: 0.0028 | BW51: 0.0142 | BX51: 0.001 | CC51: 43 | CD51: 0.5253 | CE51: 224.2638 | CF51: 0.0204 | CG51: 0.0004 | CH51: 0.0022 | CI51: 0.005 | CJ51: 0.0004 | CN51: Sources: Argonne National Laboratory, Energy Systems, GREET Model, 2021 | DB51: 225 | DC51: 1.012 | DD51: 1.017 | DI51: 225 | DJ51: 1.07 | DK51: 1.078 | DP51: 0.076 | DQ51: 0.453 | DR51: 0.457
T52: Information Panels | U52: 0.026 | V52: $/mi | X52: 22 | AG52: Walking | AH52: Age 16-74 | AJ52: 0.805 | AK52: 0.805 | AL52: 0.799 | AR52: 45 | AS52: 0.0295 | AT52: 0.0814 | AY52: PDO Crash | AZ52: =ROUND(83596/123662,4) -> 0.676 | BA52: =ROUND(22617/34195,4) -> 0.6614 | BB52: =ROUND(17011/27456,4) -> 0.6196 | BC52: =ROUND(123224/185313,4) -> 0.665 | BE52: 26 | BG52: Cost per Event | BI52: =BH26 -> 12500000 | BJ52: =BH27 -> 394400 | BQ52: 44 | BR52: 0.9147 | BS52: 283.2764 | BT52: 0.0643 | BU52: 0.001 | BV52: 0.0028 | BW52: 0.014 | BX52: 0.001 | CC52: 44 | CD52: 0.5182 | CE52: 224.7179 | CF52: 0.0203 | CG52: 0.0004 | CH52: 0.0022 | CI52: 0.0049 | CJ52: 0.0004 | CO52: FTA, National Transit Database, Fuel and Energy, 2019 | DB52: 250 | DC52: 1.019 | DD52: 1.026 | DI52: 250 | DJ52: 1.088 | DK52: 1.097 | DP52: 0.078 | DQ52: 0.453 | DR52: 0.455
C53: Non-Fuel Cost Per Mile | T53: Benches | U53: 0.017 | V53: $/mi | X53: 22 | AR53: 46 | AS53: 0.0299 | AT53: 0.0786 | BQ53: 45 | BR53: 0.902 | BS53: 283.4917 | BT53: 0.0641 | BU53: 0.001 | BV53: 0.0028 | BW53: 0.0138 | BX53: 0.001 | CC53: 45 | CD53: 0.5112 | CE53: 225.1728 | CF53: 0.0203 | CG53: 0.0004 | CH53: 0.0022 | CI53: 0.0048 | CJ53: 0.0004 | CO53: Energy Information Administration, Electricty Retail Sales, 2019 | DB53: 275 | DC53: 1.027 | DD53: 1.036 | DI53: 275 | DJ53: 1.105 | DK53: 1.117 | DP53: 0.08 | DQ53: 0.453 | DR53: 0.453
D54: Automobile | E54: =ROUND((0.0955+3900/15000)*ValueUpdate,3) -> 0.38 | F54: $/mi | H54: 11 | T54: Directional Signage | U54: 0.017 | V54: $/mi | X54: 22 | AR54: 47 | AS54: 0.0302 | AT54: 0.0758 | BQ54: 46 | BR54: 0.895 | BS54: 286.147 | BT54: 0.0643 | BU54: 0.001 | BV54: 0.0028 | BW54: 0.0138 | BX54: 0.001 | CC54: 46 | CD54: 0.5081 | CE54: 228.0552 | CF54: 0.0203 | CG54: 0.0004 | CH54: 0.0023 | CI54: 0.0048 | CJ54: 0.0004 | CO54: Association of American Railroads, Freight Rail & Preserving the Environment, April 2021 | DB54: 300 | DC54: 1.034 | DD54: 1.047 | DI54: 300 | DJ54: 1.123 | DK54: 1.137
D55: Truck | E55: =ROUND((0.28+0.119+0.034)*(1.1578/1.1385)*ValueUpdate,3) -> 0.471 | F55: $/mi | H55: 12 | AG55: AVERAGE DISTANCE PER ACTIVE TRANSPORTATION TRIP | AR55: 48 | AS55: 0.0305 | AT55: 0.0731 | AX55: Source: California Department of Transportation,TASAS Unit, 2010 to 2013 average | BF55: Source: FRA, Office of Safety Analysis, 5.10 - Hwy/Rail Incidents Summary | BQ55: 47 | BR55: 0.8882 | BS55: 288.8273 | BT55: 0.0645 | BU55: 0.001 | BV55: 0.0029 | BW55: 0.0138 | BX55: 0.001 | CC55: 47 | CD55: 0.5051 | CE55: 230.9745 | CF55: 0.0204 | CG55: 0.0004 | CH55: 0.0023 | CI55: 0.0048 | CJ55: 0.0004 | CO55: California Environmental Protection Agency / Air Resources Board, Technology Assessment: | DB55: 325 | DC55: 1.041 | DD55: 1.058 | DI55: 325 | DJ55: 1.141 | DK55: 1.156
S56: Health (Absenteeism Reduction) | AG56: (miles/trip) | AR56: 49 | AS56: 0.0309 | AT56: 0.0705 | AY56: 26) Crash Data on California State Highways 2018 | BG56: Table, California, Motor Vehicles, Public Crossings, Jan 2011 to Dec 2020 | BQ56: 48 | BR56: 0.8814 | BS56: 291.5326 | BT56: 0.0647 | BU56: 0.001 | BV56: 0.0029 | BW56: 0.0137 | BX56: 0.001 | CC56: 48 | CD56: 0.5021 | CE56: 233.9312 | CF56: 0.0205 | CG56: 0.0004 | CH56: 0.0023 | CI56: 0.0048 | CJ56: 0.0004 | CO56: Freight Locomotives, November 2016 | DB56: 350 | DC56: 1.05 | DD56: 1.07 | DI56: 350 | DJ56: 1.159 | DK56: 1.176 | DO56: Source: Fitzpatrick, Brewer, and Venglar, 2003
C57: Idling Speed for Op. Costs and Emissions | E57: 5 | F57: mph | T57: Average Absence of Employees | U57: 3.5 | V57: days/yr | X57: 23 | AR57: 50 | AS57: 0.0312 | AT57: 0.068 | BQ57: 49 | BR57: 0.8746 | BS57: 294.2633 | BT57: 0.0649 | BU57: 0.001 | BV57: 0.0029 | BW57: 0.0137 | BX57: 0.001 | CC57: 49 | CD57: 0.4991 | CE57: 236.9257 | CF57: 0.0206 | CG57: 0.0004 | CH57: 0.0023 | CI57: 0.0048 | CJ57: 0.0004 | DB57: 375 | DC57: 1.061 | DD57: 1.085 | DI57: 375 | DJ57: 1.176 | DK57: 1.196
T58: Percentage Covered by Short-Term Sick Leave | U58: 0.66 | V58: % | X58: 23 | AJ58: Urban | AR58: 51 | AS58: 0.0316 | AT58: 0.0707 | BQ58: 50 | BR58: 0.8679 | BS58: 297.0195 | BT58: 0.0652 | BU58: 0.001 | BV58: 0.0029 | BW58: 0.0137 | BX58: 0.001 | CC58: 50 | CD58: 0.4961 | CE58: 239.9586 | CF58: 0.0207 | CG58: 0.0004 | CH58: 0.0024 | CI58: 0.0048 | CJ58: 0.0004 | DB58: 400 | DC58: 1.072 | DD58: 1.1 | DI58: 400 | DJ58: 1.194 | DK58: 1.216
B59: Accident Cost Parameters | T59: Percentage of Sick Days Reduced When Active at Least 30 Minutes per Day | U59: 0.06 | V59: % | X59: 24 | AG59: Mode | AH59: Age Cohort | AJ59: South | AK59: North | AL59: Rural | AR59: 52 | AS59: 0.0321 | AT59: 0.0735 | BQ59: 51 | BR59: 0.8608 | BS59: 300.5677 | BT59: 0.0655 | BU59: 0.001 | BV59: 0.003 | BW59: 0.0138 | BX59: 0.001 | CC59: 51 | CD59: 0.4937 | CE59: 243.8377 | CF59: 0.0209 | CG59: 0.0004 | CH59: 0.0024 | CI59: 0.0049 | CJ59: 0.0004 | DB59: 425 | DC59: 1.082 | DD59: 1.114 | DI59: 425 | DJ59: 1.212 | DK59: 1.235
AG60: Cycling | AH60: Adults | AJ60: 2.29 | AK60: 2.29 | AL60: 7.89 | AR60: 53 | AS60: 0.0325 | AT60: 0.0764 | AY60: COST OF HIGHWAY CRASHES | BG60: PASSING LANE CRASH REDUCTION FACTORS | BQ60: 52 | BR60: 0.8537 | BS60: 304.1583 | BT60: 0.0659 | BU60: 0.001 | BV60: 0.003 | BW60: 0.0139 | BX60: 0.001 | CC60: 52 | CD60: 0.4913 | CE60: 247.7794 | CF60: 0.0211 | CG60: 0.0004 | CH60: 0.0024 | CI60: 0.0049 | CJ60: 0.0004 | DB60: 450 | DC60: 1.093 | DD60: 1.129 | DI60: 450 | DJ60: 1.23 | DK60: 1.255
C61: Cost of a Fatality | E61: 12500000 | F61: $/event | H61: 13 | S61: Health (Mortality Reduction) | AH61: Children <16 | AJ61: 0.99 | AK61: 0.99 | AL61: 0.78 | AR61: 54 | AS61: 0.033 | AT61: 0.0794 | AY61: ($/crash) | BG61: (rate with passing lane/rate without passing lane) | BQ61: 53 | BR61: 0.8467 | BS61: 307.7918 | BT61: 0.0663 | BU61: 0.001 | BV61: 0.003 | BW61: 0.014 | BX61: 0.001 | CC61: 53 | CD61: 0.4889 | CE61: 251.7849 | CF61: 0.0213 | CG61: 0.0004 | CH61: 0.0025 | CI61: 0.005 | CJ61: 0.0004
T62: Percentage of Cyclists Aged 16-64 | U62: =IF(ProjLoc=1,AJ51,IF(ProjLoc=2,AK51,AL51)) -> 0.549 | V62: % | AG62: Walking | AH62: Adults | AJ62: 0.68 | AK62: 0.68 | AL62: 0.6 | AR62: 55 | AS62: 0.0334 | AT62: 0.0826 | BQ62: 54 | BR62: 0.8398 | BS62: 311.4687 | BT62: 0.0667 | BU62: 0.001 | BV62: 0.0031 | BW62: 0.0141 | BX62: 0.001 | CC62: 54 | CD62: 0.4866 | CE62: 255.8552 | CF62: 0.0215 | CG62: 0.0004 | CH62: 0.0025 | CI62: 0.0051 | CJ62: 0.0004
C63: Cost of an Injury | T63: Percentage of Pedestrians Aged 16-74 | U63: =IF(ProjLoc=1,AJ52,IF(ProjLoc=2,AK52,AL52)) -> 0.805 | V63: % | AH63: Children <16 | AJ63: 0.63 | AK63: 0.63 | AL63: 1.08 | AR63: 56 | AS63: 0.0337 | AT63: 0.0865 | AY63: Crash Type | AZ63: Urban | BA63: Suburban | BB63: Rural | BC63: Average | BG63: Minimum ADT | BH63: Fatality | BI63: Injury | BJ63: PDO | BQ63: 55 | BR63: 0.8329 | BS63: 315.1895 | BT63: 0.0671 | BU63: 0.001 | BV63: 0.0031 | BW63: 0.0142 | BX63: 0.001 | CC63: 55 | CD63: 0.4842 | CE63: 259.9912 | CF63: 0.0217 | CG63: 0.0004 | CH63: 0.0026 | CI63: 0.0051 | CJ63: 0.0004 | DA63: Source: Texas Transportation Institute, 1994 | DH63: Source: ARRB Research Board TR VOC Model
D64: Level A (Severe) | E64: 1188200 | F64: $/event | H64: 13 | AR64: 57 | AS64: 0.034 | AT64: 0.0907 | AY64: Fatal Crash | AZ64: =ROUND(FatValue*AZ26+(InjAValue*AZ$12+InjBValue*AZ$13+InjCValue*AZ$14)*AZ33+NoInjValue*AZ41,-5) -> 13800000 | BA64: =ROUND(FatValue*BA26+(InjAValue*BA$12+InjBValue*BA$13+InjCValue*BA$14)*BA33+NoInjValue*BA41,-5) -> 13700000 | BB64: =ROUND(FatValue*BB26+(InjAValue*BB$12+InjBValue*BB$13+InjCValue*BB$14)*BB33+NoInjValue*BB41,-5) -> 14500000 | BC64: =ROUND(FatValue*BC26+(InjAValue*BC$12+InjBValue*BC$13+InjCValue*BC$14)*BC33+NoInjValue*BC41,-5) -> 14100000 | BG64: 0 | BH64: 0.25 | BI64: 0.694 | BJ64: 0.926 | BQ64: 56 | BR64: 0.8167 | BS64: 317.3875 | BT64: 0.0668 | BU64: 0.001 | BV64: 0.0031 | BW64: 0.0143 | BX64: 0.001 | CC64: 56 | CD64: 0.4772 | CE64: 262.646 | CF64: 0.0218 | CG64: 0.0004 | CH64: 0.0026 | CI64: 0.0052 | CJ64: 0.0004
D65: Level B (Moderate) | E65: 233800 | F65: $/event | H65: 13 | T65: Percentage Reduction in Mortality per 365 Annual Cycling Miles | U65: 0.045 | V65: % | X65: 20 | AR65: 58 | AS65: 0.0343 | AT65: 0.095 | AY65: Injury Crash | AZ65: =ROUND((InjAValue*AZ$12+InjBValue*AZ$13+InjCValue*AZ$14)*AZ34+NoInjValue*AZ42,-2) -> 293800 | BA65: =ROUND((InjAValue*BA$12+InjBValue*BA$13+InjCValue*BA$14)*BA34+NoInjValue*BA42,-2) -> 293200 | BB65: =ROUND((InjAValue*BB$12+InjBValue*BB$13+InjCValue*BB$14)*BB34+NoInjValue*BB42,-2) -> 304500 | BC65: =ROUND((InjAValue*BC$12+InjBValue*BC$13+InjCValue*BC$14)*BC34+NoInjValue*BC42,-2) -> 294600 | BG65: 5000 | BH65: 0.192 | BI65: 0.803 | BJ65: 0.965 | BQ65: 57 | BR65: 0.8008 | BS65: 319.6009 | BT65: 0.0666 | BU65: 0.001 | BV65: 0.0032 | BW65: 0.0144 | BX65: 0.001 | CC65: 57 | CD65: 0.4703 | CE65: 265.3279 | CF65: 0.022 | CG65: 0.0004 | CH65: 0.0026 | CI65: 0.0053 | CJ65: 0.0004
D66: Level C (Minor) | E66: 111700 | F66: $/event | H66: 13 | T66: Percentage Reduction in Mortality per 365 Annual Walking Miles | U66: 0.09 | V66: % | X66: 20 | AG66: TRIP PURPOSE FOR ACTIVE TRANSPORTATION TRIPS | AR66: 59 | AS66: 0.0345 | AT66: 0.0995 | AY66: PDO Crash | AZ66: =ROUND(NoInjValue*AZ43,-2) -> 9000 | BA66: =ROUND(NoInjValue*BA43,-2) -> 10200 | BB66: =ROUND(NoInjValue*BB43,-2) -> 8000 | BC66: =ROUND(NoInjValue*BC43,-2) -> 9800 | BG66: 10000 | BH66: 0.84 | BI66: 0.577 | BJ66: 0.978 | BQ66: 58 | BR66: 0.7852 | BS66: 321.8297 | BT66: 0.0664 | BU66: 0.0011 | BV66: 0.0032 | BW66: 0.0144 | BX66: 0.0011 | CC66: 58 | CD66: 0.4635 | CE66: 268.0372 | CF66: 0.0222 | CG66: 0.0004 | CH66: 0.0026 | CI66: 0.0054 | CJ66: 0.0004
AG67: (percent of trips) | AR67: 60 | AS67: 0.0348 | AT67: 0.1043 | AY67: All Types | AZ67: =ROUND(AZ50*AZ64+AZ51*AZ65+AZ52*AZ66,-2) -> 162100 | BA67: =ROUND(BA50*BA64+BA51*BA65+BA52*BA66,-2) -> 203900 | BB67: =ROUND(BB50*BB64+BB51*BB65+BB52*BB66,-2) -> 410400 | BC67: =ROUND(BC50*BC64+BC51*BC65+BC52*BC66,-2) -> 206000 | BQ67: 59 | BR67: 0.7699 | BS67: 324.074 | BT67: 0.0662 | BU67: 0.0011 | BV67: 0.0032 | BW67: 0.0145 | BX67: 0.0011 | CC67: 59 | CD67: 0.4568 | CE67: 270.7741 | CF67: 0.0223 | CG67: 0.0004 | CH67: 0.0027 | CI67: 0.0055 | CJ67: 0.0004
C68: Cost of Property Damage | E68: 5000 | F68: $/event | H68: 14 | T68: Morality Rate - All Causes (Aged 20-64) | U68: 252 | V68: #/100,000 people | X68: 25 | AR68: 61 | AS68: 0.0351 | AT68: 0.1062 | BQ68: 60 | BR68: 0.7549 | BS68: 326.334 | BT68: 0.066 | BU68: 0.0011 | BV68: 0.0032 | BW68: 0.0146 | BX68: 0.0011 | CC68: 60 | CD68: 0.4502 | CE68: 273.539 | CF68: 0.0225 | CG68: 0.0004 | CH68: 0.0027 | CI68: 0.0057 | CJ68: 0.0004
T69: Morality Rate - All Causes (Aged 20-74) | U69: 392 | V69: #/100,000 people | X69: 25 | AJ69: Urban | AR69: 62 | AS69: 0.0353 | AT69: 0.1083 | BQ69: 61 | BR69: 0.7519 | BS69: 328.7321 | BT69: 0.0672 | BU69: 0.0011 | BV69: 0.0032 | BW69: 0.0151 | BX69: 0.0011 | CC69: 61 | CD69: 0.4455 | CE69: 275.3018 | CF69: 0.0227 | CG69: 0.0004 | CH69: 0.0027 | CI69: 0.0058 | CJ69: 0.0004
C70: Cost of Highway Crash | AG70: Mode | AH70: Trip Purpose | AJ70: South | AK70: North | AL70: Rural | AR70: 63 | AS70: 0.0356 | AT70: 0.1104 | AX70: Source: Combination of above four tables | BF70: Source: Taylor and Jain, 1991 | BQ70: 62 | BR70: 0.749 | BS70: 331.1477 | BT70: 0.0684 | BU70: 0.0011 | BV70: 0.0033 | BW70: 0.0156 | BX70: 0.0011 | CC70: 62 | CD70: 0.4408 | CE70: 277.076 | CF70: 0.0229 | CG70: 0.0004 | CH70: 0.0027 | CI70: 0.0059 | CJ70: 0.0004
D71: Fatal Crash | E71: =IF(ProjLoc=3,HwyFatCostR,HwyFatCostU) -> 13800000 | F71: $/crash | AG71: Cycling | AH71: Commuting | AJ71: 0.186 | AK71: 0.186 | AL71: 0.099 | AR71: 64 | AS71: 0.0358 | AT71: 0.1125 | BQ71: 63 | BR71: 0.746 | BS71: 333.5812 | BT71: 0.0697 | BU71: 0.0012 | BV71: 0.0033 | BW71: 0.016 | BX71: 0.0012 | CC71: 63 | CD71: 0.4362 | CE71: 278.8616 | CF71: 0.0231 | CG71: 0.0004 | CH71: 0.0028 | CI71: 0.0061 | CJ71: 0.0004
D72: Injury Crash | E72: =IF(ProjLoc=3,HwyInjCostR,HwyInjCostU) -> 293800 | F72: $/crash | R72: Sources: 19) 2017 National Household Travel Survey, 20) 2017 WHO HEAT Model Documentation, 21) Hood et al., 2011, 22) Heuman et al., 2005, | AH72: Recreation | AJ72: 0.461 | AK72: 0.461 | AL72: 0.622 | AR72: 65 | AS72: 0.0361 | AT72: 0.1146 | BQ72: 64 | BR72: 0.743 | BS72: 336.0325 | BT72: 0.071 | BU72: 0.0012 | BV72: 0.0033 | BW72: 0.0165 | BX72: 0.0012 | CC72: 64 | CD72: 0.4316 | CE72: 280.6587 | CF72: 0.0233 | CG72: 0.0005 | CH72: 0.0028 | CI72: 0.0062 | CJ72: 0.0005
D73: PDO Crash | E73: =IF(ProjLoc=3,HwyPDOCostR,HwyPDOCostU) -> 9000 | F73: $/crash | R73: 23) Maestas et al., 2018, 24) World Health Organization, 2003, 25) California Health and Human Services Agency, 2019 Final Deaths | AH73: Other Destination | AJ73: 0.353 | AK73: 0.353 | AL73: 0.279 | AR73: 66 | AS73: 0.0361 | AT73: 0.1138 | BQ73: 65 | BR73: 0.7401 | BS73: 338.5018 | BT73: 0.0723 | BU73: 0.0012 | BV73: 0.0033 | BW73: 0.0171 | BX73: 0.0012 | CC73: 65 | CD73: 0.4271 | CE73: 282.4673 | CF73: 0.0235 | CG73: 0.0005 | CH73: 0.0028 | CI73: 0.0064 | CJ73: 0.0005
D74: Average Cost | E74: =IF(ProjLoc=3,AvgAccCostR,AvgAccCostU) -> 162100 | F74: $/crash | AG74: Walking | AH74: Commuting | AJ74: 0.052 | AK74: 0.052 | AL74: 0.062 | AR74: 67 | AS74: 0.0362 | AT74: 0.113 | BQ74: 66 | BR74: 0.738 | BS74: 339.0778 | BT74: 0.0728 | BU74: 0.0012 | BV74: 0.0034 | BW74: 0.0172 | BX74: 0.0012 | CC74: 66 | CD74: 0.425 | CE74: 283.2451 | CF74: 0.0236 | CG74: 0.0005 | CH74: 0.0028 | CI74: 0.0065 | CJ74: 0.0005
AH75: Recreation | AJ75: 0.55 | AK75: 0.55 | AL75: 0.635 | AR75: 68 | AS75: 0.0363 | AT75: 0.1123 | BQ75: 67 | BR75: 0.7359 | BS75: 339.6547 | BT75: 0.0732 | BU75: 0.0013 | BV75: 0.0034 | BW75: 0.0173 | BX75: 0.0013 | CC75: 67 | CD75: 0.4229 | CE75: 284.025 | CF75: 0.0237 | CG75: 0.0005 | CH75: 0.0028 | CI75: 0.0066 | CJ75: 0.0005
C76: Statewide Highway Crash Rates | AH76: Other Destination | AJ76: 0.398 | AK76: 0.398 | AL76: 0.303 | AR76: 69 | AS76: 0.0364 | AT76: 0.1115 | BQ76: 68 | BR76: 0.7338 | BS76: 340.2326 | BT76: 0.0737 | BU76: 0.0013 | BV76: 0.0034 | BW76: 0.0175 | BX76: 0.0013 | CC76: 68 | CD76: 0.4208 | CE76: 284.807 | CF76: 0.0238 | CG76: 0.0005 | CH76: 0.0028 | CI76: 0.0067 | CJ76: 0.0005
D77: Fatal Crash | E77: =ROUND(3628/773922,3) -> 0.005 | F77: per mil veh-mi | H77: 15 | AR77: 70 | AS77: 0.0365 | AT77: 0.1107 | BQ77: 69 | BR77: 0.7318 | BS77: 340.8115 | BT77: 0.0742 | BU77: 0.0013 | BV77: 0.0034 | BW77: 0.0176 | BX77: 0.0013 | CC77: 69 | CD77: 0.4187 | CE77: 285.5912 | CF77: 0.0239 | CG77: 0.0005 | CH77: 0.0028 | CI77: 0.0068 | CJ77: 0.0005
D78: Injury Crash | E78: =ROUND(218217/773922,2) -> 0.28 | F78: per mil veh-mi | H78: 15 | BQ78: 70 | BR78: 0.7297 | BS78: 341.3914 | BT78: 0.0746 | BU78: 0.0013 | BV78: 0.0034 | BW78: 0.0178 | BX78: 0.0013 | CC78: 70 | CD78: 0.4166 | CE78: 286.3775 | CF78: 0.0241 | CG78: 0.0005 | CH78: 0.0028 | CI78: 0.0069 | CJ78: 0.0005
D79: PDO Crash | E79: =ROUND(474304/773922,2) -> 0.61 | F79: per mil veh-mi | H79: 15 | AF79: Source: 2017 National Household Travel Survey, California Sample | AQ79: * Includes motorcycles & medium duty vehicles
D80: Non-Freeway | E80: 1.04 | F80: per mil veh-mi | H80: 15 | AQ80: Note: Five mph is best estimate for idling | BP80: Truck | BQ80: 0 | BR80: 1.315 | BS80: 11.0294 | BT80: 1.0065 | BU80: 0.0001 | BV80: 0.0001 | BW80: 0.0703 | BX80: 0.0001 | CB80: Truck | CC80: 0 | CD80: 0.6659 | CE80: 5.1023 | CF80: 0.7656 | CG80: 0 | CH80: 0.0001 | CI80: 0.0203 | CJ80: 0
BQ81: 5 | BR81: 2.3136 | BS81: 1696.8926 | BT81: 2.1959 | BU81: 0.046 | BV81: 0.0164 | BW81: 0.3065 | BX81: 0.046 | CC81: 5 | CD81: 0.6516 | CE81: 865.1623 | CF81: 0.4277 | CG81: 0.0095 | CH81: 0.0083 | CI81: 0.0478 | CJ81: 0.0095
AQ82: Source: California Air Resources Board, | BQ82: 6 | BR82: 2.2436 | BS82: 1668.3322 | BT82: 2.2233 | BU82: 0.0443 | BV82: 0.0161 | BW82: 0.2881 | BX82: 0.0443 | CC82: 6 | CD82: 0.6625 | CE82: 866.0485 | CF82: 0.5016 | CG82: 0.0092 | CH82: 0.0083 | CI82: 0.0465 | CJ82: 0.0092
B83: Sources: 1) Office of Management and Budget (OMB), 2) Review of OMB and State | AQ83: EMFAC2021, 2024 & 2044 average | BQ83: 7 | BR83: 2.1757 | BS83: 1640.2524 | BT83: 2.2511 | BU83: 0.0426 | BV83: 0.0157 | BW83: 0.2708 | BX83: 0.0426 | CC83: 7 | CD83: 0.6737 | CE83: 866.9357 | CF83: 0.5882 | CG83: 0.009 | CH83: 0.0082 | CI83: 0.0453 | CJ83: 0.009
B84: Treasurer's Office data, 3) Bureau of Labor Statistics (BLS) OES 2020, 4) BLS Employment | BQ84: 8 | BR84: 2.1098 | BS84: 1612.6453 | BT84: 2.2792 | BU84: 0.041 | BV84: 0.0154 | BW84: 0.2546 | BX84: 0.041 | CC84: 8 | CD84: 0.685 | CE84: 867.8238 | CF84: 0.6897 | CG84: 0.0087 | CH84: 0.0082 | CI84: 0.0441 | CJ84: 0.0087
B85: Cost Index, 5) USDOT Department Guidance 2021, 6) California Department of Transportation | BQ85: 9 | BR85: 2.046 | BS85: 1585.5029 | BT85: 2.3076 | BU85: 0.0395 | BV85: 0.0151 | BW85: 0.2393 | BX85: 0.0395 | CC85: 9 | CD85: 0.6966 | CE85: 868.7128 | CF85: 0.8088 | CG85: 0.0084 | CH85: 0.0082 | CI85: 0.043 | CJ85: 0.0084
B86: TSI and Traffic Operations, 7) IDAS model, 8) AAA Daily Fuel Gauge Report 2021, 9) California | BQ86: 10 | BR86: 1.9841 | BS86: 1558.8172 | BT86: 2.3365 | BU86: 0.038 | BV86: 0.0148 | BW86: 0.2249 | BX86: 0.038 | CC86: 10 | CD86: 0.7083 | CE86: 869.6027 | CF86: 0.9484 | CG86: 0.0082 | CH86: 0.0081 | CI86: 0.0419 | CJ86: 0.0082
B87: Board of Equalization, 10) Caltrans Transportation Funding in California 2020, 11) AAA Your | BQ87: 11 | BR87: 1.8688 | BS87: 1490.2476 | BT87: 2.1839 | BU87: 0.036 | BV87: 0.0141 | BW87: 0.2111 | BX87: 0.036 | CC87: 11 | CD87: 0.66 | CE87: 836.5388 | CF87: 0.8852 | CG87: 0.0079 | CH87: 0.0078 | CI87: 0.0398 | CJ87: 0.0079
B88: Driving Costs 2021, 12) American Transportation Research Institute 2021, 13) USDOT VSL, | BQ88: 12 | BR88: 1.7601 | BS88: 1424.6943 | BT88: 2.0413 | BU88: 0.0341 | BV88: 0.0135 | BW88: 0.1981 | BX88: 0.0341 | CC88: 12 | CD88: 0.615 | CE88: 804.7321 | CF88: 0.8261 | CG88: 0.0077 | CH88: 0.0075 | CI88: 0.0378 | CJ88: 0.0077
B89: 14) NHTSA 2010, 15) Crash Data on California State Highways 2018 | BQ89: 13 | BR89: 1.6578 | BS89: 1362.0246 | BT89: 1.908 | BU89: 0.0323 | BV89: 0.0129 | BW89: 0.186 | BX89: 0.0323 | CC89: 13 | CD89: 0.5731 | CE89: 774.1348 | CF89: 0.771 | CG89: 0.0074 | CH89: 0.0073 | CI89: 0.0359 | CJ89: 0.0074
BQ90: 14 | BR90: 1.5615 | BS90: 1302.1116 | BT90: 1.7834 | BU90: 0.0306 | BV90: 0.0124 | BW90: 0.1746 | BX90: 0.0306 | CC90: 14 | CD90: 0.534 | CE90: 744.7008 | CF90: 0.7196 | CG90: 0.0072 | CH90: 0.007 | CI90: 0.0341 | CJ90: 0.0072
BQ91: 15 | BR91: 1.4707 | BS91: 1244.834 | BT91: 1.667 | BU91: 0.029 | BV91: 0.0118 | BW91: 0.1639 | BX91: 0.029 | CC91: 15 | CD91: 0.4976 | CE91: 716.386 | CF91: 0.6716 | CG91: 0.007 | CH91: 0.0067 | CI91: 0.0324 | CJ91: 0.007
BQ92: 16 | BR92: 1.3769 | BS92: 1231.6228 | BT92: 1.6477 | BU92: 0.0269 | BV92: 0.0117 | BW92: 0.1517 | BX92: 0.0269 | CC92: 16 | CD92: 0.4584 | CE92: 707.567 | CF92: 0.6712 | CG92: 0.0066 | CH92: 0.0067 | CI92: 0.0303 | CJ92: 0.0066
BQ93: 17 | BR93: 1.289 | BS93: 1218.5517 | BT93: 1.6286 | BU93: 0.0251 | BV93: 0.0116 | BW93: 0.1404 | BX93: 0.0251 | CC93: 17 | CD93: 0.4222 | CE93: 698.8566 | CF93: 0.6709 | CG93: 0.0062 | CH93: 0.0066 | CI93: 0.0283 | CJ93: 0.0062
BQ94: 18 | BR94: 1.2067 | BS94: 1205.6194 | BT94: 1.6097 | BU94: 0.0233 | BV94: 0.0115 | BW94: 0.13 | BX94: 0.0233 | CC94: 18 | CD94: 0.389 | CE94: 690.2534 | CF94: 0.6706 | CG94: 0.0058 | CH94: 0.0065 | CI94: 0.0265 | CJ94: 0.0058
BQ95: 19 | BR95: 1.1297 | BS95: 1192.8244 | BT95: 1.591 | BU95: 0.0217 | BV95: 0.0113 | BW95: 0.1204 | BX95: 0.0217 | CC95: 19 | CD95: 0.3583 | CE95: 681.7562 | CF95: 0.6703 | CG95: 0.0055 | CH95: 0.0064 | CI95: 0.0247 | CJ95: 0.0055
BQ96: 20 | BR96: 1.0576 | BS96: 1180.1651 | BT96: 1.5726 | BU96: 0.0201 | BV96: 0.0112 | BW96: 0.1114 | BX96: 0.0201 | CC96: 20 | CD96: 0.33 | CE96: 673.3635 | CF96: 0.6699 | CG96: 0.0052 | CH96: 0.0063 | CI96: 0.0231 | CJ96: 0.0052
BQ97: 21 | BR97: 1.0154 | BS97: 1138.1322 | BT97: 1.5314 | BU97: 0.0199 | BV97: 0.0108 | BW97: 0.1089 | BX97: 0.0199 | CC97: 21 | CD97: 0.3157 | CE97: 654.8921 | CF97: 0.6323 | CG97: 0.0051 | CH97: 0.0062 | CI97: 0.023 | CJ97: 0.0051
BQ98: 22 | BR98: 0.9749 | BS98: 1097.5964 | BT98: 1.4913 | BU98: 0.0197 | BV98: 0.0104 | BW98: 0.1065 | BX98: 0.0197 | CC98: 22 | CD98: 0.3021 | CE98: 636.9274 | CF98: 0.5968 | CG98: 0.0051 | CH98: 0.006 | CI98: 0.0229 | CJ98: 0.0051
BQ99: 23 | BR99: 0.9361 | BS99: 1058.5043 | BT99: 1.4522 | BU99: 0.0195 | BV99: 0.0101 | BW99: 0.1041 | BX99: 0.0195 | CC99: 23 | CD99: 0.289 | CE99: 619.4555 | CF99: 0.5632 | CG99: 0.005 | CH99: 0.0058 | CI99: 0.0227 | CJ99: 0.005
BQ100: 24 | BR100: 0.8988 | BS100: 1020.8046 | BT100: 1.4141 | BU100: 0.0192 | BV100: 0.0097 | BW100: 0.1017 | BX100: 0.0192 | CC100: 24 | CD100: 0.2765 | CE100: 602.4629 | CF100: 0.5316 | CG100: 0.005 | CH100: 0.0057 | CI100: 0.0226 | CJ100: 0.005
BQ101: 25 | BR101: 0.8629 | BS101: 984.4475 | BT101: 1.3771 | BU101: 0.019 | BV101: 0.0093 | BW101: 0.0995 | BX101: 0.019 | CC101: 25 | CD101: 0.2645 | CE101: 585.9364 | CF101: 0.5017 | CG101: 0.0049 | CH101: 0.0055 | CI101: 0.0225 | CJ101: 0.0049
BQ102: 26 | BR102: 0.8297 | BS102: 974.5904 | BT102: 1.3491 | BU102: 0.018 | BV102: 0.0092 | BW102: 0.0935 | BX102: 0.018 | CC102: 26 | CD102: 0.2525 | CE102: 579.6648 | CF102: 0.4836 | CG102: 0.0047 | CH102: 0.0054 | CI102: 0.0213 | CJ102: 0.0047
BQ103: 27 | BR103: 0.7977 | BS103: 964.8319 | BT103: 1.3216 | BU103: 0.017 | BV103: 0.0091 | BW103: 0.0879 | BX103: 0.017 | CC103: 27 | CD103: 0.241 | CE103: 573.4603 | CF103: 0.4662 | CG103: 0.0045 | CH103: 0.0054 | CI103: 0.0202 | CJ103: 0.0045
BQ104: 28 | BR104: 0.767 | BS104: 955.1712 | BT104: 1.2948 | BU104: 0.0161 | BV104: 0.009 | BW104: 0.0827 | BX104: 0.0161 | CC104: 28 | CD104: 0.23 | CE104: 567.3222 | CF104: 0.4493 | CG104: 0.0043 | CH104: 0.0053 | CI104: 0.0191 | CJ104: 0.0043
BQ105: 29 | BR105: 0.7374 | BS105: 945.6072 | BT105: 1.2684 | BU105: 0.0152 | BV105: 0.0089 | BW105: 0.0777 | BX105: 0.0152 | CC105: 29 | CD105: 0.2196 | CE105: 561.2498 | CF105: 0.4331 | CG105: 0.0041 | CH105: 0.0053 | CI105: 0.0181 | CJ105: 0.0041
BQ106: 30 | BR106: 0.709 | BS106: 936.1389 | BT106: 1.2426 | BU106: 0.0144 | BV106: 0.0088 | BW106: 0.0731 | BX106: 0.0144 | CC106: 30 | CD106: 0.2096 | CE106: 555.2424 | CF106: 0.4175 | CG106: 0.0039 | CH106: 0.0052 | CI106: 0.0172 | CJ106: 0.0039
BQ107: 31 | BR107: 0.6779 | BS107: 941.2716 | BT107: 1.2298 | BU107: 0.0137 | BV107: 0.0089 | BW107: 0.0682 | BX107: 0.0137 | CC107: 31 | CD107: 0.2018 | CE107: 559.8303 | CF107: 0.4131 | CG107: 0.0038 | CH107: 0.0052 | CI107: 0.0162 | CJ107: 0.0038
BQ108: 32 | BR108: 0.6482 | BS108: 946.4323 | BT108: 1.2171 | BU108: 0.0131 | BV108: 0.0089 | BW108: 0.0636 | BX108: 0.0131 | CC108: 32 | CD108: 0.1942 | CE108: 564.4561 | CF108: 0.4088 | CG108: 0.0038 | CH108: 0.0053 | CI108: 0.0153 | CJ108: 0.0038
BQ109: 33 | BR109: 0.6198 | BS109: 951.6214 | BT109: 1.2046 | BU109: 0.0126 | BV109: 0.0089 | BW109: 0.0593 | BX109: 0.0126 | CC109: 33 | CD109: 0.187 | CE109: 569.1201 | CF109: 0.4045 | CG109: 0.0037 | CH109: 0.0053 | CI109: 0.0144 | CJ109: 0.0037
BQ110: 34 | BR110: 0.5926 | BS110: 956.8389 | BT110: 1.1921 | BU110: 0.012 | BV110: 0.009 | BW110: 0.0553 | BX110: 0.012 | CC110: 34 | CD110: 0.18 | CE110: 573.8226 | CF110: 0.4003 | CG110: 0.0036 | CH110: 0.0053 | CI110: 0.0136 | CJ110: 0.0036
BQ111: 35 | BR111: 0.5666 | BS111: 962.085 | BT111: 1.1798 | BU111: 0.0115 | BV111: 0.009 | BW111: 0.0516 | BX111: 0.0115 | CC111: 35 | CD111: 0.1733 | CE111: 578.564 | CF111: 0.3961 | CG111: 0.0035 | CH111: 0.0054 | CI111: 0.0128 | CJ111: 0.0035
BQ112: 36 | BR112: 0.5505 | BS112: 967.4195 | BT112: 1.1663 | BU112: 0.0113 | BV112: 0.0091 | BW112: 0.0488 | BX112: 0.0113 | CC112: 36 | CD112: 0.1688 | CE112: 584.0671 | CF112: 0.3883 | CG112: 0.0036 | CH112: 0.0054 | CI112: 0.0122 | CJ112: 0.0036
BQ113: 37 | BR113: 0.5349 | BS113: 972.7836 | BT113: 1.1529 | BU113: 0.011 | BV113: 0.0091 | BW113: 0.0462 | BX113: 0.011 | CC113: 37 | CD113: 0.1645 | CE113: 589.6225 | CF113: 0.3806 | CG113: 0.0037 | CH113: 0.0055 | CI113: 0.0116 | CJ113: 0.0037
BQ114: 38 | BR114: 0.5197 | BS114: 978.1775 | BT114: 1.1396 | BU114: 0.0108 | BV114: 0.0091 | BW114: 0.0437 | BX114: 0.0108 | CC114: 38 | CD114: 0.1603 | CE114: 595.2308 | CF114: 0.3731 | CG114: 0.0038 | CH114: 0.0055 | CI114: 0.0111 | CJ114: 0.0038
BQ115: 39 | BR115: 0.505 | BS115: 983.6013 | BT115: 1.1266 | BU115: 0.0106 | BV115: 0.0092 | BW115: 0.0413 | BX115: 0.0106 | CC115: 39 | CD115: 0.1561 | CE115: 600.8924 | CF115: 0.3658 | CG115: 0.0038 | CH115: 0.0056 | CI115: 0.0105 | CJ115: 0.0038
BQ116: 40 | BR116: 0.4906 | BS116: 989.0551 | BT116: 1.1136 | BU116: 0.0104 | BV116: 0.0092 | BW116: 0.0391 | BX116: 0.0104 | CC116: 40 | CD116: 0.1521 | CE116: 606.6079 | CF116: 0.3586 | CG116: 0.0039 | CH116: 0.0056 | CI116: 0.01 | CJ116: 0.0039
BQ117: 41 | BR117: 0.4868 | BS117: 984.5077 | BT117: 1.0994 | BU117: 0.0105 | BV117: 0.0092 | BW117: 0.0382 | BX117: 0.0105 | CC117: 41 | CD117: 0.1479 | CE117: 611.8629 | CF117: 0.353 | CG117: 0.0042 | CH117: 0.0057 | CI117: 0.0098 | CJ117: 0.0042
BQ118: 42 | BR118: 0.4829 | BS118: 979.9812 | BT118: 1.0854 | BU118: 0.0106 | BV118: 0.0091 | BW118: 0.0374 | BX118: 0.0106 | CC118: 42 | CD118: 0.1438 | CE118: 617.1633 | CF118: 0.3474 | CG118: 0.0044 | CH118: 0.0057 | CI118: 0.0096 | CJ118: 0.0044
BQ119: 43 | BR119: 0.4791 | BS119: 975.4754 | BT119: 1.0715 | BU119: 0.0106 | BV119: 0.0091 | BW119: 0.0366 | BX119: 0.0106 | CC119: 43 | CD119: 0.1399 | CE119: 622.5096 | CF119: 0.342 | CG119: 0.0047 | CH119: 0.0058 | CI119: 0.0094 | CJ119: 0.0047
BQ120: 44 | BR120: 0.4753 | BS120: 970.9904 | BT120: 1.0579 | BU120: 0.0107 | BV120: 0.0091 | BW120: 0.0359 | BX120: 0.0107 | CC120: 44 | CD120: 0.136 | CE120: 627.9023 | CF120: 0.3366 | CG120: 0.005 | CH120: 0.0058 | CI120: 0.0093 | CJ120: 0.005
BQ121: 45 | BR121: 0.4716 | BS121: 966.5261 | BT121: 1.0444 | BU121: 0.0108 | BV121: 0.009 | BW121: 0.0351 | BX121: 0.0108 | CC121: 45 | CD121: 0.1323 | CE121: 633.3417 | CF121: 0.3314 | CG121: 0.0053 | CH121: 0.0059 | CI121: 0.0091 | CJ121: 0.0053
BQ122: 46 | BR122: 0.4762 | BS122: 930.2224 | BT122: 1.0417 | BU122: 0.011 | BV122: 0.0087 | BW122: 0.0368 | BX122: 0.011 | CC122: 46 | CD122: 0.13 | CE122: 609.3532 | CF122: 0.3103 | CG122: 0.0054 | CH122: 0.0057 | CI122: 0.0093 | CJ122: 0.0054
BQ123: 47 | BR123: 0.4809 | BS123: 895.2823 | BT123: 1.0391 | BU123: 0.0112 | BV123: 0.0084 | BW123: 0.0386 | BX123: 0.0112 | CC123: 47 | CD123: 0.1278 | CE123: 586.2732 | CF123: 0.2906 | CG123: 0.0055 | CH123: 0.0055 | CI123: 0.0096 | CJ123: 0.0055
BQ124: 48 | BR124: 0.4857 | BS124: 861.6546 | BT124: 1.0364 | BU124: 0.0115 | BV124: 0.0081 | BW124: 0.0405 | BX124: 0.0115 | CC124: 48 | CD124: 0.1256 | CE124: 564.0674 | CF124: 0.2722 | CG124: 0.0056 | CH124: 0.0053 | CI124: 0.0099 | CJ124: 0.0056
BQ125: 49 | BR125: 0.4905 | BS125: 829.2899 | BT125: 1.0338 | BU125: 0.0117 | BV125: 0.0078 | BW125: 0.0425 | BX125: 0.0117 | CC125: 49 | CD125: 0.1234 | CE125: 542.7027 | CF125: 0.2549 | CG125: 0.0057 | CH125: 0.0051 | CI125: 0.0102 | CJ125: 0.0057
BQ126: 50 | BR126: 0.4953 | BS126: 798.141 | BT126: 1.0311 | BU126: 0.012 | BV126: 0.0075 | BW126: 0.0445 | BX126: 0.012 | CC126: 50 | CD126: 0.1213 | CE126: 522.1472 | CF126: 0.2387 | CG126: 0.0058 | CH126: 0.0049 | CI126: 0.0105 | CJ126: 0.0058
BQ127: 51 | BR127: 0.4801 | BS127: 830.7086 | BT127: 1.0417 | BU127: 0.0125 | BV127: 0.0078 | BW127: 0.0425 | BX127: 0.0125 | CC127: 51 | CD127: 0.1184 | CE127: 546.1226 | CF127: 0.2548 | CG127: 0.0064 | CH127: 0.0051 | CI127: 0.0101 | CJ127: 0.0064
BQ128: 52 | BR128: 0.4653 | BS128: 864.6052 | BT128: 1.0523 | BU128: 0.013 | BV128: 0.0081 | BW128: 0.0405 | BX128: 0.013 | CC128: 52 | CD128: 0.1156 | CE128: 571.1989 | CF128: 0.2719 | CG128: 0.007 | CH128: 0.0053 | CI128: 0.0098 | CJ128: 0.007
BQ129: 53 | BR129: 0.451 | BS129: 899.8848 | BT129: 1.0631 | BU129: 0.0136 | BV129: 0.0085 | BW129: 0.0386 | BX129: 0.0136 | CC129: 53 | CD129: 0.1129 | CE129: 597.4266 | CF129: 0.2902 | CG129: 0.0076 | CH129: 0.0056 | CI129: 0.0094 | CJ129: 0.0076
BQ130: 54 | BR130: 0.4371 | BS130: 936.604 | BT130: 1.0739 | BU130: 0.0142 | BV130: 0.0088 | BW130: 0.0369 | BX130: 0.0142 | CC130: 54 | CD130: 0.1102 | CE130: 624.8585 | CF130: 0.3097 | CG130: 0.0083 | CH130: 0.0058 | CI130: 0.0091 | CJ130: 0.0083
BQ131: 55 | BR131: 0.4236 | BS131: 974.8216 | BT131: 1.0849 | BU131: 0.0148 | BV131: 0.0091 | BW131: 0.0352 | BX131: 0.0148 | CC131: 55 | CD131: 0.1076 | CE131: 653.5501 | CF131: 0.3306 | CG131: 0.0091 | CH131: 0.0061 | CI131: 0.0088 | CJ131: 0.0091
BQ132: 56 | BR132: 0.41 | BS132: 1022.8646 | BT132: 1.0832 | BU132: 0.0157 | BV132: 0.0096 | BW132: 0.0315 | BX132: 0.0157 | CC132: 56 | CD132: 0.1045 | CE132: 686.2747 | CF132: 0.3648 | CG132: 0.01 | CH132: 0.0064 | CI132: 0.0085 | CJ132: 0.01
BQ133: 57 | BR133: 0.3969 | BS133: 1073.2754 | BT133: 1.0815 | BU133: 0.0165 | BV133: 0.0101 | BW133: 0.0282 | BX133: 0.0165 | CC133: 57 | CD133: 0.1015 | CE133: 720.6379 | CF133: 0.4025 | CG133: 0.0111 | CH133: 0.0067 | CI133: 0.0083 | CJ133: 0.0111
BQ134: 58 | BR134: 0.3841 | BS134: 1126.1707 | BT134: 1.0797 | BU134: 0.0175 | BV134: 0.0105 | BW134: 0.0252 | BX134: 0.0175 | CC134: 58 | CD134: 0.0986 | CE134: 756.7217 | CF134: 0.4442 | CG134: 0.0123 | CH134: 0.0071 | CI134: 0.008 | CJ134: 0.0123
BQ135: 59 | BR135: 0.3718 | BS135: 1181.6728 | BT135: 1.078 | BU135: 0.0184 | BV135: 0.0111 | BW135: 0.0226 | BX135: 0.0184 | CC135: 59 | CD135: 0.0957 | CE135: 794.6123 | CF135: 0.4902 | CG135: 0.0137 | CH135: 0.0074 | CI135: 0.0078 | CJ135: 0.0137
BQ136: 60 | BR136: 0.3599 | BS136: 1239.9103 | BT136: 1.0763 | BU136: 0.0195 | BV136: 0.0116 | BW136: 0.0202 | BX136: 0.0195 | CC136: 60 | CD136: 0.093 | CE136: 834.4002 | CF136: 0.5409 | CG136: 0.0151 | CH136: 0.0078 | CI136: 0.0076 | CJ136: 0.0151
BQ137: 61 | BR137: 0.3501 | BS137: 1264.0964 | BT137: 1.1266 | BU137: 0.0206 | BV137: 0.0118 | BW137: 0.0202 | BX137: 0.0206 | CC137: 61 | CD137: 0.0918 | CE137: 852.4879 | CF137: 0.5861 | CG137: 0.0162 | CH137: 0.008 | CI137: 0.0078 | CJ137: 0.0162
BQ138: 62 | BR138: 0.3406 | BS138: 1288.7544 | BT138: 1.1792 | BU138: 0.0219 | BV138: 0.0121 | BW138: 0.0201 | BX138: 0.0219 | CC138: 62 | CD138: 0.0907 | CE138: 870.9677 | CF138: 0.6351 | CG138: 0.0173 | CH138: 0.0082 | CI138: 0.0081 | CJ138: 0.0173
BQ139: 63 | BR139: 0.3313 | BS139: 1313.8933 | BT139: 1.2343 | BU139: 0.0232 | BV139: 0.0123 | BW139: 0.0201 | BX139: 0.0232 | CC139: 63 | CD139: 0.0896 | CE139: 889.8481 | CF139: 0.6882 | CG139: 0.0185 | CH139: 0.0083 | CI139: 0.0084 | CJ139: 0.0185
BQ140: 64 | BR140: 0.3223 | BS140: 1339.5226 | BT140: 1.292 | BU140: 0.0247 | BV140: 0.0126 | BW140: 0.0201 | BX140: 0.0247 | CC140: 64 | CD140: 0.0885 | CE140: 909.1377 | CF140: 0.7457 | CG140: 0.0197 | CH140: 0.0085 | CI140: 0.0086 | CJ140: 0.0197
BQ141: 65 | BR141: 0.3135 | BS141: 1365.6518 | BT141: 1.3524 | BU141: 0.0262 | BV141: 0.0128 | BW141: 0.02 | BX141: 0.0262 | CC141: 65 | CD141: 0.0874 | CE141: 928.8456 | CF141: 0.8081 | CG141: 0.0211 | CH141: 0.0087 | CI141: 0.0089 | CJ141: 0.0211
BQ142: 66 | BR142: 0.3131 | BS142: 1350.2912 | BT142: 1.3589 | BU142: 0.0264 | BV142: 0.0127 | BW142: 0.0209 | BX142: 0.0264 | CC142: 66 | CD142: 0.0866 | CE142: 929.4837 | CF142: 0.8155 | CG142: 0.0213 | CH142: 0.0087 | CI142: 0.0091 | CJ142: 0.0213
BQ143: 67 | BR143: 0.3127 | BS143: 1335.1033 | BT143: 1.3655 | BU143: 0.0266 | BV143: 0.0125 | BW143: 0.0218 | BX143: 0.0266 | CC143: 67 | CD143: 0.0858 | CE143: 930.1224 | CF143: 0.823 | CG143: 0.0216 | CH143: 0.0087 | CI143: 0.0092 | CJ143: 0.0216
BQ144: 68 | BR144: 0.3124 | BS144: 1320.0862 | BT144: 1.3722 | BU144: 0.0269 | BV144: 0.0124 | BW144: 0.0228 | BX144: 0.0269 | CC144: 68 | CD144: 0.085 | CE144: 930.7614 | CF144: 0.8306 | CG144: 0.0218 | CH144: 0.0087 | CI144: 0.0094 | CJ144: 0.0218
BQ145: 69 | BR145: 0.312 | BS145: 1305.2381 | BT145: 1.3788 | BU145: 0.0271 | BV145: 0.0123 | BW145: 0.0238 | BX145: 0.0271 | CC145: 69 | CD145: 0.0842 | CE145: 931.4009 | CF145: 0.8383 | CG145: 0.022 | CH145: 0.0088 | CI145: 0.0095 | CJ145: 0.022
BQ146: 70 | BR146: 0.3116 | BS146: 1290.5569 | BT146: 1.3855 | BU146: 0.0273 | BV146: 0.0122 | BW146: 0.0248 | BX146: 0.0273 | CC146: 70 | CD146: 0.0834 | CE146: 932.0408 | CF146: 0.846 | CG146: 0.0223 | CH146: 0.0088 | CI146: 0.0097 | CJ146: 0.0223
BP148: Bus | BQ148: 0 | BR148: 1.7524 | BS148: 13.2318 | BT148: 0.5397 | BU148: 0.0001 | BV148: 0.0001 | BW148: 0.0815 | BX148: 0.0001 | CB148: Bus | CC148: 0 | CD148: 0.7539 | CE148: 6.0009 | CF148: 0.3925 | CG148: 0.0001 | CH148: 0.0001 | CI148: 0.0363 | CJ148: 0.0001
BQ149: 5 | BR149: 31.9638 | BS149: 5318.2891 | BT149: 4.1913 | BU149: 0.0368 | BV149: 0.0162 | BW149: 0.355 | BX149: 0.0368 | CC149: 5 | CD149: 4.4133 | CE149: 1358.904 | CF149: 0.8621 | CG149: 0.0053 | CH149: 0.0083 | CI149: 0.0694 | CJ149: 0.0053
BQ150: 6 | BR150: 29.9626 | BS150: 4954.2773 | BT150: 3.8723 | BU150: 0.0346 | BV150: 0.0157 | BW150: 0.3264 | BX150: 0.0346 | CC150: 6 | CD150: 3.5422 | CE150: 1229.3096 | CF150: 0.7928 | CG150: 0.0049 | CH150: 0.0079 | CI150: 0.061 | CJ150: 0.0049
BQ151: 7 | BR151: 28.0868 | BS151: 4615.1803 | BT151: 3.5776 | BU151: 0.0325 | BV151: 0.0153 | BW151: 0.3 | BX151: 0.0325 | CC151: 7 | CD151: 2.8431 | CE151: 1112.0741 | CF151: 0.729 | CG151: 0.0046 | CH151: 0.0075 | CI151: 0.0537 | CJ151: 0.0046
BQ152: 8 | BR152: 26.3284 | BS152: 4299.2929 | BT152: 3.3053 | BU152: 0.0306 | BV152: 0.0149 | BW152: 0.2758 | BX152: 0.0306 | CC152: 8 | CD152: 2.282 | CE152: 1006.0191 | CF152: 0.6704 | CG152: 0.0042 | CH152: 0.0071 | CI152: 0.0472 | CJ152: 0.0042
BQ153: 9 | BR153: 24.6801 | BS153: 4005.0265 | BT153: 3.0537 | BU153: 0.0287 | BV153: 0.0145 | BW153: 0.2536 | BX153: 0.0287 | CC153: 9 | CD153: 1.8316 | CE153: 910.0782 | CF153: 0.6165 | CG153: 0.0039 | CH153: 0.0067 | CI153: 0.0415 | CJ153: 0.0039
BQ154: 10 | BR154: 23.1349 | BS154: 3730.9013 | BT154: 2.8213 | BU154: 0.027 | BV154: 0.0141 | BW154: 0.2331 | BX154: 0.027 | CC154: 10 | CD154: 1.4701 | CE154: 823.2868 | CF154: 0.5669 | CG154: 0.0037 | CH154: 0.0063 | CI154: 0.0365 | CJ154: 0.0037
BQ155: 11 | BR155: 21.8499 | BS155: 3416.1438 | BT155: 2.5833 | BU155: 0.0241 | BV155: 0.0133 | BW155: 0.2059 | BX155: 0.0241 | CC155: 11 | CD155: 1.2749 | CE155: 759.9968 | CF155: 0.5047 | CG155: 0.0033 | CH155: 0.0059 | CI155: 0.0308 | CJ155: 0.0033
BQ156: 12 | BR156: 20.6362 | BS156: 3127.9409 | BT156: 2.3655 | BU156: 0.0216 | BV156: 0.0127 | BW156: 0.1819 | BX156: 0.0216 | CC156: 12 | CD156: 1.1056 | CE156: 701.5721 | CF156: 0.4493 | CG156: 0.0029 | CH156: 0.0055 | CI156: 0.0259 | CJ156: 0.0029
BQ157: 13 | BR157: 19.4899 | BS157: 2864.0522 | BT157: 2.166 | BU157: 0.0193 | BV157: 0.012 | BW157: 0.1606 | BX157: 0.0193 | CC157: 13 | CD157: 0.9588 | CE157: 647.6388 | CF157: 0.4 | CG157: 0.0026 | CH157: 0.0052 | CI157: 0.0219 | CJ157: 0.0026
BQ158: 14 | BR158: 18.4073 | BS158: 2622.4265 | BT158: 1.9833 | BU158: 0.0172 | BV158: 0.0114 | BW158: 0.1419 | BX158: 0.0172 | CC158: 14 | CD158: 0.8315 | CE158: 597.8517 | CF158: 0.3561 | CG158: 0.0024 | CH158: 0.0048 | CI158: 0.0184 | CJ158: 0.0024
BQ159: 15 | BR159: 17.3848 | BS159: 2401.1855 | BT159: 1.816 | BU159: 0.0154 | BV159: 0.0108 | BW159: 0.1253 | BX159: 0.0154 | CC159: 15 | CD159: 0.7211 | CE159: 551.8919 | CF159: 0.3171 | CG159: 0.0021 | CH159: 0.0045 | CI159: 0.0155 | CJ159: 0.0021
BQ160: 16 | BR160: 19.1133 | BS160: 2343.2881 | BT160: 1.5686 | BU160: 0.012 | BV160: 0.0092 | BW160: 0.1068 | BX160: 0.012 | CC160: 16 | CD160: 0.5336 | CE160: 427.0975 | CF160: 0.2446 | CG160: 0.0016 | CH160: 0.0035 | CI160: 0.0113 | CJ160: 0.0016
BQ161: 17 | BR161: 21.0138 | BS161: 2286.7867 | BT161: 1.3549 | BU161: 0.0093 | BV161: 0.0078 | BW161: 0.091 | BX161: 0.0093 | CC161: 17 | CD161: 0.3949 | CE161: 330.5218 | CF161: 0.1888 | CG161: 0.0012 | CH161: 0.0027 | CI161: 0.0082 | CJ161: 0.0012
BQ162: 18 | BR162: 23.1031 | BS162: 2231.6477 | BT162: 1.1703 | BU162: 0.0073 | BV162: 0.0066 | BW162: 0.0776 | BX162: 0.0073 | CC162: 18 | CD162: 0.2922 | CE162: 255.7839 | CF162: 0.1456 | CG162: 0.0009 | CH162: 0.0021 | CI162: 0.006 | CJ162: 0.0009
BQ163: 19 | BR163: 25.4002 | BS163: 2177.8382 | BT163: 1.0108 | BU163: 0.0057 | BV163: 0.0056 | BW163: 0.0661 | BX163: 0.0057 | CC163: 19 | CD163: 0.2162 | CE163: 197.9458 | CF163: 0.1124 | CG163: 0.0007 | CH163: 0.0017 | CI163: 0.0044 | CJ163: 0.0007
BQ164: 20 | BR164: 27.9257 | BS164: 2125.3262 | BT164: 0.8731 | BU164: 0.0044 | BV164: 0.0047 | BW164: 0.0563 | BX164: 0.0044 | CC164: 20 | CD164: 0.16 | CE164: 153.1861 | CF164: 0.0867 | CG164: 0.0005 | CH164: 0.0013 | CI164: 0.0032 | CJ164: 0.0005
BQ165: 21 | BR165: 21.3276 | BS165: 1958.9478 | BT165: 0.9662 | BU165: 0.0053 | BV165: 0.0055 | BW165: 0.0589 | BX165: 0.0053 | CC165: 21 | CD165: 0.1995 | CE165: 195.5079 | CF165: 0.11 | CG165: 0.0007 | CH165: 0.0016 | CI165: 0.0039 | CJ165: 0.0007
BQ166: 22 | BR166: 16.2884 | BS166: 1805.5941 | BT166: 1.0692 | BU166: 0.0063 | BV166: 0.0064 | BW166: 0.0616 | BX166: 0.0063 | CC166: 22 | CD166: 0.2487 | CE166: 249.5223 | CF166: 0.1395 | CG166: 0.0009 | CH166: 0.0021 | CI166: 0.0049 | CJ166: 0.0009
BQ167: 23 | BR167: 12.4399 | BS167: 1664.2455 | BT167: 1.1832 | BU167: 0.0076 | BV167: 0.0075 | BW167: 0.0644 | BX167: 0.0076 | CC167: 23 | CD167: 0.31 | CE167: 318.4596 | CF167: 0.177 | CG167: 0.0011 | CH167: 0.0027 | CI167: 0.0061 | CJ167: 0.0011
BQ168: 24 | BR168: 9.5006 | BS168: 1533.9621 | BT168: 1.3094 | BU168: 0.0091 | BV168: 0.0087 | BW168: 0.0673 | BX168: 0.0091 | CC168: 24 | CD168: 0.3864 | CE168: 406.4427 | CF168: 0.2246 | CG168: 0.0014 | CH168: 0.0034 | CI168: 0.0076 | CJ168: 0.0014
BQ169: 25 | BR169: 7.2559 | BS169: 1413.8779 | BT169: 1.449 | BU169: 0.0109 | BV169: 0.0101 | BW169: 0.0704 | BX169: 0.0109 | CC169: 25 | CD169: 0.4817 | CE169: 518.7335 | CF169: 0.285 | CG169: 0.0018 | CH169: 0.0044 | CI169: 0.0094 | CJ169: 0.0018
BQ170: 26 | BR170: 7.1789 | BS170: 1378.7891 | BT170: 1.4072 | BU170: 0.0106 | BV170: 0.0099 | BW170: 0.0677 | BX170: 0.0106 | CC170: 26 | CD170: 0.4524 | CE170: 503.8763 | CF170: 0.2716 | CG170: 0.0017 | CH170: 0.0043 | CI170: 0.0089 | CJ170: 0.0017
BQ171: 27 | BR171: 7.1028 | BS171: 1344.571 | BT171: 1.3666 | BU171: 0.0103 | BV171: 0.0097 | BW171: 0.0651 | BX171: 0.0103 | CC171: 27 | CD171: 0.4249 | CE171: 489.4446 | CF171: 0.2589 | CG171: 0.0017 | CH171: 0.0042 | CI171: 0.0085 | CJ171: 0.0017
BQ172: 28 | BR172: 7.0275 | BS172: 1311.2022 | BT172: 1.3272 | BU172: 0.01 | BV172: 0.0095 | BW172: 0.0626 | BX172: 0.01 | CC172: 28 | CD172: 0.3991 | CE172: 475.4262 | CF172: 0.2468 | CG172: 0.0017 | CH172: 0.004 | CI172: 0.0081 | CJ172: 0.0017
BQ173: 29 | BR173: 6.9529 | BS173: 1278.6615 | BT173: 1.289 | BU173: 0.0097 | BV173: 0.0094 | BW173: 0.0602 | BX173: 0.0097 | CC173: 29 | CD173: 0.3748 | CE173: 461.8094 | CF173: 0.2352 | CG173: 0.0016 | CH173: 0.0039 | CI173: 0.0077 | CJ173: 0.0016
BQ174: 30 | BR174: 6.8792 | BS174: 1246.9284 | BT174: 1.2518 | BU174: 0.0095 | BV174: 0.0092 | BW174: 0.0579 | BX174: 0.0095 | CC174: 30 | CD174: 0.352 | CE174: 448.5826 | CF174: 0.2242 | CG174: 0.0016 | CH174: 0.0038 | CI174: 0.0073 | CJ174: 0.0016
BQ175: 31 | BR175: 6.6944 | BS175: 1222.2643 | BT175: 1.234 | BU175: 0.0095 | BV175: 0.0091 | BW175: 0.0564 | BX175: 0.0095 | CC175: 31 | CD175: 0.3357 | CE175: 444.9934 | CF175: 0.218 | CG175: 0.0016 | CH175: 0.0038 | CI175: 0.0071 | CJ175: 0.0016
BQ176: 32 | BR176: 6.5146 | BS176: 1198.088 | BT176: 1.2165 | BU176: 0.0096 | BV176: 0.009 | BW176: 0.055 | BX176: 0.0096 | CC176: 32 | CD176: 0.3202 | CE176: 441.4329 | CF176: 0.2121 | CG176: 0.0016 | CH176: 0.0038 | CI176: 0.007 | CJ176: 0.0016
BQ177: 33 | BR177: 6.3396 | BS177: 1174.39 | BT177: 1.1992 | BU177: 0.0096 | BV177: 0.0089 | BW177: 0.0536 | BX177: 0.0096 | CC177: 33 | CD177: 0.3054 | CE177: 437.9009 | CF177: 0.2062 | CG177: 0.0017 | CH177: 0.0038 | CI177: 0.0068 | CJ177: 0.0017
BQ178: 34 | BR178: 6.1693 | BS178: 1151.1607 | BT178: 1.1822 | BU178: 0.0097 | BV178: 0.0088 | BW178: 0.0523 | BX178: 0.0097 | CC178: 34 | CD178: 0.2913 | CE178: 434.3972 | CF178: 0.2006 | CG178: 0.0017 | CH178: 0.0038 | CI178: 0.0066 | CJ178: 0.0017
BQ179: 35 | BR179: 6.0035 | BS179: 1128.3909 | BT179: 1.1654 | BU179: 0.0097 | BV179: 0.0087 | BW179: 0.051 | BX179: 0.0097 | CC179: 35 | CD179: 0.2779 | CE179: 430.9215 | CF179: 0.1951 | CG179: 0.0017 | CH179: 0.0037 | CI179: 0.0065 | CJ179: 0.0017
BQ180: 36 | BR180: 5.7912 | BS180: 1115.9714 | BT180: 1.1584 | BU180: 0.0099 | BV180: 0.0087 | BW180: 0.0498 | BX180: 0.0099 | CC180: 36 | CD180: 0.2673 | CE180: 436.4497 | CF180: 0.1926 | CG180: 0.0018 | CH180: 0.0038 | CI180: 0.0064 | CJ180: 0.0018
BQ181: 37 | BR181: 5.5864 | BS181: 1103.6886 | BT181: 1.1514 | BU181: 0.01 | BV181: 0.0087 | BW181: 0.0487 | BX181: 0.01 | CC181: 37 | CD181: 0.2571 | CE181: 442.0488 | CF181: 0.1902 | CG181: 0.0019 | CH181: 0.0039 | CI181: 0.0064 | CJ181: 0.0019
BQ182: 38 | BR182: 5.3889 | BS182: 1091.541 | BT182: 1.1445 | BU182: 0.0101 | BV182: 0.0087 | BW182: 0.0476 | BX182: 0.0101 | CC182: 38 | CD182: 0.2473 | CE182: 447.7198 | CF182: 0.1877 | CG182: 0.002 | CH182: 0.0039 | CI182: 0.0063 | CJ182: 0.002
BQ183: 39 | BR183: 5.1983 | BS183: 1079.5271 | BT183: 1.1376 | BU183: 0.0102 | BV183: 0.0087 | BW183: 0.0466 | BX183: 0.0102 | CC183: 39 | CD183: 0.2378 | CE183: 453.4634 | CF183: 0.1854 | CG183: 0.0021 | CH183: 0.004 | CI183: 0.0063 | CJ183: 0.0021
BQ184: 40 | BR184: 5.0145 | BS184: 1067.6455 | BT184: 1.1308 | BU184: 0.0103 | BV184: 0.0087 | BW184: 0.0455 | BX184: 0.0103 | CC184: 40 | CD184: 0.2288 | CE184: 459.2808 | CF184: 0.183 | CG184: 0.0022 | CH184: 0.0041 | CI184: 0.0062 | CJ184: 0.0022
BQ185: 41 | BR185: 4.8804 | BS185: 1062.5605 | BT185: 1.1354 | BU185: 0.0104 | BV185: 0.0087 | BW185: 0.0446 | BX185: 0.0104 | CC185: 41 | CD185: 0.2233 | CE185: 464.4658 | CF185: 0.1794 | CG185: 0.0022 | CH185: 0.0041 | CI185: 0.0061 | CJ185: 0.0022
BQ186: 42 | BR186: 4.7499 | BS186: 1057.4997 | BT186: 1.1399 | BU186: 0.0105 | BV186: 0.0087 | BW186: 0.0436 | BX186: 0.0105 | CC186: 42 | CD186: 0.2179 | CE186: 469.7092 | CF186: 0.1759 | CG186: 0.0023 | CH186: 0.0042 | CI186: 0.006 | CJ186: 0.0023
BQ187: 43 | BR187: 4.6229 | BS187: 1052.463 | BT187: 1.1446 | BU187: 0.0105 | BV187: 0.0087 | BW187: 0.0427 | BX187: 0.0105 | CC187: 43 | CD187: 0.2127 | CE187: 475.0119 | CF187: 0.1724 | CG187: 0.0024 | CH187: 0.0042 | CI187: 0.0059 | CJ187: 0.0024
BQ188: 44 | BR188: 4.4993 | BS188: 1047.4503 | BT188: 1.1492 | BU188: 0.0106 | BV188: 0.0087 | BW188: 0.0418 | BX188: 0.0106 | CC188: 44 | CD188: 0.2076 | CE188: 480.3744 | CF188: 0.1691 | CG188: 0.0025 | CH188: 0.0043 | CI188: 0.0059 | CJ188: 0.0025
BQ189: 45 | BR189: 4.3791 | BS189: 1042.4615 | BT189: 1.1538 | BU189: 0.0106 | BV189: 0.0088 | BW189: 0.0409 | BX189: 0.0106 | CC189: 45 | CD189: 0.2026 | CE189: 485.7975 | CF189: 0.1657 | CG189: 0.0026 | CH189: 0.0044 | CI189: 0.0058 | CJ189: 0.0026
BQ190: 46 | BR190: 4.3262 | BS190: 1046.1259 | BT190: 1.144 | BU190: 0.0105 | BV190: 0.0088 | BW190: 0.0401 | BX190: 0.0105 | CC190: 46 | CD190: 0.2012 | CE190: 489.0084 | CF190: 0.1615 | CG190: 0.0026 | CH190: 0.0044 | CI190: 0.0057 | CJ190: 0.0026
BQ191: 47 | BR191: 4.274 | BS191: 1049.8033 | BT191: 1.1342 | BU191: 0.0104 | BV191: 0.0089 | BW191: 0.0392 | BX191: 0.0104 | CC191: 47 | CD191: 0.1997 | CE191: 492.2406 | CF191: 0.1573 | CG191: 0.0027 | CH191: 0.0044 | CI191: 0.0056 | CJ191: 0.0027
BQ192: 48 | BR192: 4.2223 | BS192: 1053.4936 | BT192: 1.1245 | BU192: 0.0103 | BV192: 0.0089 | BW192: 0.0384 | BX192: 0.0103 | CC192: 48 | CD192: 0.1983 | CE192: 495.4942 | CF192: 0.1532 | CG192: 0.0028 | CH192: 0.0045 | CI192: 0.0055 | CJ192: 0.0028
BQ193: 49 | BR193: 4.1714 | BS193: 1057.1969 | BT193: 1.1148 | BU193: 0.0101 | BV193: 0.009 | BW193: 0.0377 | BX193: 0.0101 | CC193: 49 | CD193: 0.1969 | CE193: 498.7693 | CF193: 0.1493 | CG193: 0.0028 | CH193: 0.0045 | CI193: 0.0054 | CJ193: 0.0028
BQ194: 50 | BR194: 4.121 | BS194: 1060.9131 | BT194: 1.1053 | BU194: 0.01 | BV194: 0.009 | BW194: 0.0369 | BX194: 0.01 | CC194: 50 | CD194: 0.1955 | CE194: 502.066 | CF194: 0.1454 | CG194: 0.0029 | CH194: 0.0045 | CI194: 0.0054 | CJ194: 0.0029
BQ195: 51 | BR195: 4.0545 | BS195: 1079.6318 | BT195: 1.1102 | BU195: 0.0102 | BV195: 0.0092 | BW195: 0.0371 | BX195: 0.0102 | CC195: 51 | CD195: 0.1974 | CE195: 514.7106 | CF195: 0.1497 | CG195: 0.0031 | CH195: 0.0047 | CI195: 0.0054 | CJ195: 0.0031
BQ196: 52 | BR196: 3.9891 | BS196: 1098.6808 | BT196: 1.115 | BU196: 0.0104 | BV196: 0.0094 | BW196: 0.0373 | BX196: 0.0104 | CC196: 52 | CD196: 0.1995 | CE196: 527.6737 | CF196: 0.154 | CG196: 0.0033 | CH196: 0.0048 | CI196: 0.0055 | CJ196: 0.0033
BQ197: 53 | BR197: 3.9248 | BS197: 1118.0659 | BT197: 1.1199 | BU197: 0.0105 | BV197: 0.0096 | BW197: 0.0374 | BX197: 0.0105 | CC197: 53 | CD197: 0.2015 | CE197: 540.9633 | CF197: 0.1585 | CG197: 0.0035 | CH197: 0.0049 | CI197: 0.0056 | CJ197: 0.0035
BQ198: 54 | BR198: 3.8615 | BS198: 1137.7929 | BT198: 1.1249 | BU198: 0.0107 | BV198: 0.0098 | BW198: 0.0376 | BX198: 0.0107 | CC198: 54 | CD198: 0.2036 | CE198: 554.5876 | CF198: 0.1632 | CG198: 0.0037 | CH198: 0.005 | CI198: 0.0057 | CJ198: 0.0037
BQ199: 55 | BR199: 3.7992 | BS199: 1157.8681 | BT199: 1.1298 | BU199: 0.0109 | BV199: 0.0101 | BW199: 0.0378 | BX199: 0.0109 | CC199: 55 | CD199: 0.2056 | CE199: 568.555 | CF199: 0.168 | CG199: 0.0039 | CH199: 0.0052 | CI199: 0.0058 | CJ199: 0.0039
BQ200: 56 | BR200: 3.683 | BS200: 1184.1948 | BT200: 1.1319 | BU200: 0.0113 | BV200: 0.0103 | BW200: 0.038 | BX200: 0.0113 | CC200: 56 | CD200: 0.1997 | CE200: 594.1363 | CF200: 0.1821 | CG200: 0.0044 | CH200: 0.0054 | CI200: 0.006 | CJ200: 0.0044
BQ201: 57 | BR201: 3.5703 | BS201: 1211.1202 | BT201: 1.1339 | BU201: 0.0117 | BV201: 0.0106 | BW201: 0.0382 | BX201: 0.0117 | CC201: 57 | CD201: 0.194 | CE201: 620.8686 | CF201: 0.1975 | CG201: 0.0048 | CH201: 0.0057 | CI201: 0.0062 | CJ201: 0.0048
BQ202: 58 | BR202: 3.4611 | BS202: 1238.6578 | BT202: 1.136 | BU202: 0.0121 | BV202: 0.0109 | BW202: 0.0384 | BX202: 0.0121 | CC202: 58 | CD202: 0.1885 | CE202: 648.8037 | CF202: 0.2141 | CG202: 0.0053 | CH202: 0.0059 | CI202: 0.0065 | CJ202: 0.0053
BQ203: 59 | BR203: 3.3552 | BS203: 1266.8214 | BT203: 1.138 | BU203: 0.0125 | BV203: 0.0113 | BW203: 0.0386 | BX203: 0.0125 | CC203: 59 | CD203: 0.1831 | CE203: 677.9957 | CF203: 0.2321 | CG203: 0.0059 | CH203: 0.0062 | CI203: 0.0067 | CJ203: 0.0059
... 13 more rows
